Workbook

Sheet Arkusz2
A7: c | B7: d | C7: 0
A8: p | B8: k | C8: 1
B13: opcja 1 | D13: opcja 2 | F13: opcja 3 | H13: opcja 4 | J13: opcja 5 | L13: opcja 6 | N13: portfel
A14: =Arkusz1!A13 -> 70 | B14: =IF(Arkusz1!B$9=1,Arkusz1!B13+Arkusz1!C13,"") -> 34.76706974 | C14: =IF(Arkusz1!B$9=1,Arkusz1!C13,"") -> 13.58731829 | D14: =IF(Arkusz1!D$9=1,Arkusz1!D13+Arkusz1!E13,"") -> -8.173784043 | E14: =IF(Arkusz1!D$9=1,Arkusz1!E13,"") -> -9.041439067 | F14: =IF(Arkusz1!F$9=1,Arkusz1!F13+Arkusz1!G13,"") ->  | G14: =IF(Arkusz1!F$9=1,Arkusz1!G13,"") ->  | H14: =IF(Arkusz1!H$9=1,Arkusz1!H13+Arkusz1!I13,"") ->  | I14: =IF(Arkusz1!H$9=1,Arkusz1!I13,"") ->  | J14: =IF(Arkusz1!J$9=1,Arkusz1!J13+Arkusz1!K13,"") ->  | K14: =IF(Arkusz1!J$9=1,Arkusz1!K13,"") ->  | L14: =IF(Arkusz1!L$9=1,Arkusz1!L13+Arkusz1!M13,"") ->  | M14: =IF(Arkusz1!L$9=1,Arkusz1!M13,"") ->  | N14: =Arkusz1!O13+Arkusz1!P13 -> 26.59328569 | O14: =Arkusz1!P13 -> 4.545879221
A15: =Arkusz1!A14 -> 70.5 | B15: =IF(Arkusz1!B$9=1,Arkusz1!B14+Arkusz1!C14,"") -> 33.90267478 | C15: =IF(Arkusz1!B$9=1,Arkusz1!C14,"") -> 13.08731829 | D15: =IF(Arkusz1!D$9=1,Arkusz1!D14+Arkusz1!E14,"") -> -8.123475558 | E15: =IF(Arkusz1!D$9=1,Arkusz1!E14,"") -> -9.041439067 | F15: =IF(Arkusz1!F$9=1,Arkusz1!F14+Arkusz1!G14,"") ->  | G15: =IF(Arkusz1!F$9=1,Arkusz1!G14,"") ->  | H15: =IF(Arkusz1!H$9=1,Arkusz1!H14+Arkusz1!I14,"") ->  | I15: =IF(Arkusz1!H$9=1,Arkusz1!I14,"") ->  | J15: =IF(Arkusz1!J$9=1,Arkusz1!J14+Arkusz1!K14,"") ->  | K15: =IF(Arkusz1!J$9=1,Arkusz1!K14,"") ->  | L15: =IF(Arkusz1!L$9=1,Arkusz1!L14+Arkusz1!M14,"") ->  | M15: =IF(Arkusz1!L$9=1,Arkusz1!M14,"") ->  | N15: =Arkusz1!O14+Arkusz1!P14 -> 25.77919922 | O15: =Arkusz1!P14 -> 4.045879221
A16: =Arkusz1!A15 -> 71 | B16: =IF(Arkusz1!B$9=1,Arkusz1!B15+Arkusz1!C15,"") -> 33.04222479 | C16: =IF(Arkusz1!B$9=1,Arkusz1!C15,"") -> 12.58731829 | D16: =IF(Arkusz1!D$9=1,Arkusz1!D15+Arkusz1!E15,"") -> -8.071051761 | E16: =IF(Arkusz1!D$9=1,Arkusz1!E15,"") -> -9.041439067 | F16: =IF(Arkusz1!F$9=1,Arkusz1!F15+Arkusz1!G15,"") ->  | G16: =IF(Arkusz1!F$9=1,Arkusz1!G15,"") ->  | H16: =IF(Arkusz1!H$9=1,Arkusz1!H15+Arkusz1!I15,"") ->  | I16: =IF(Arkusz1!H$9=1,Arkusz1!I15,"") ->  | J16: =IF(Arkusz1!J$9=1,Arkusz1!J15+Arkusz1!K15,"") ->  | K16: =IF(Arkusz1!J$9=1,Arkusz1!K15,"") ->  | L16: =IF(Arkusz1!L$9=1,Arkusz1!L15+Arkusz1!M15,"") ->  | M16: =IF(Arkusz1!L$9=1,Arkusz1!M15,"") ->  | N16: =Arkusz1!O15+Arkusz1!P15 -> 24.97117303 | O16: =Arkusz1!P15 -> 3.545879221
A17: =Arkusz1!A16 -> 71.5 | B17: =IF(Arkusz1!B$9=1,Arkusz1!B16+Arkusz1!C16,"") -> 32.18574638 | C17: =IF(Arkusz1!B$9=1,Arkusz1!C16,"") -> 12.08731829 | D17: =IF(Arkusz1!D$9=1,Arkusz1!D16+Arkusz1!E16,"") -> -8.016464556 | E17: =IF(Arkusz1!D$9=1,Arkusz1!E16,"") -> -9.041439067 | F17: =IF(Arkusz1!F$9=1,Arkusz1!F16+Arkusz1!G16,"") ->  | G17: =IF(Arkusz1!F$9=1,Arkusz1!G16,"") ->  | H17: =IF(Arkusz1!H$9=1,Arkusz1!H16+Arkusz1!I16,"") ->  | I17: =IF(Arkusz1!H$9=1,Arkusz1!I16,"") ->  | J17: =IF(Arkusz1!J$9=1,Arkusz1!J16+Arkusz1!K16,"") ->  | K17: =IF(Arkusz1!J$9=1,Arkusz1!K16,"") ->  | L17: =IF(Arkusz1!L$9=1,Arkusz1!L16+Arkusz1!M16,"") ->  | M17: =IF(Arkusz1!L$9=1,Arkusz1!M16,"") ->  | N17: =Arkusz1!O16+Arkusz1!P16 -> 24.16928182 | O17: =Arkusz1!P16 -> 3.045879221
A18: =Arkusz1!A17 -> 72 | B18: =IF(Arkusz1!B$9=1,Arkusz1!B17+Arkusz1!C17,"") -> 31.33326398 | C18: =IF(Arkusz1!B$9=1,Arkusz1!C17,"") -> 11.58731829 | D18: =IF(Arkusz1!D$9=1,Arkusz1!D17+Arkusz1!E17,"") -> -7.959666315 | E18: =IF(Arkusz1!D$9=1,Arkusz1!E17,"") -> -9.041439067 | F18: =IF(Arkusz1!F$9=1,Arkusz1!F17+Arkusz1!G17,"") ->  | G18: =IF(Arkusz1!F$9=1,Arkusz1!G17,"") ->  | H18: =IF(Arkusz1!H$9=1,Arkusz1!H17+Arkusz1!I17,"") ->  | I18: =IF(Arkusz1!H$9=1,Arkusz1!I17,"") ->  | J18: =IF(Arkusz1!J$9=1,Arkusz1!J17+Arkusz1!K17,"") ->  | K18: =IF(Arkusz1!J$9=1,Arkusz1!K17,"") ->  | L18: =IF(Arkusz1!L$9=1,Arkusz1!L17+Arkusz1!M17,"") ->  | M18: =IF(Arkusz1!L$9=1,Arkusz1!M17,"") ->  | N18: =Arkusz1!O17+Arkusz1!P17 -> 23.37359766 | O18: =Arkusz1!P17 -> 2.545879221
A19: =Arkusz1!A18 -> 72.5 | B19: =IF(Arkusz1!B$9=1,Arkusz1!B18+Arkusz1!C18,"") -> 30.48479981 | C19: =IF(Arkusz1!B$9=1,Arkusz1!C18,"") -> 11.08731829 | D19: =IF(Arkusz1!D$9=1,Arkusz1!D18+Arkusz1!E18,"") -> -7.90060993 | E19: =IF(Arkusz1!D$9=1,Arkusz1!E18,"") -> -9.041439067 | F19: =IF(Arkusz1!F$9=1,Arkusz1!F18+Arkusz1!G18,"") ->  | G19: =IF(Arkusz1!F$9=1,Arkusz1!G18,"") ->  | H19: =IF(Arkusz1!H$9=1,Arkusz1!H18+Arkusz1!I18,"") ->  | I19: =IF(Arkusz1!H$9=1,Arkusz1!I18,"") ->  | J19: =IF(Arkusz1!J$9=1,Arkusz1!J18+Arkusz1!K18,"") ->  | K19: =IF(Arkusz1!J$9=1,Arkusz1!K18,"") ->  | L19: =IF(Arkusz1!L$9=1,Arkusz1!L18+Arkusz1!M18,"") ->  | M19: =IF(Arkusz1!L$9=1,Arkusz1!M18,"") ->  | N19: =Arkusz1!O18+Arkusz1!P18 -> 22.58418988 | O19: =Arkusz1!P18 -> 2.045879221
A20: =Arkusz1!A19 -> 73 | B20: =IF(Arkusz1!B$9=1,Arkusz1!B19+Arkusz1!C19,"") -> 29.64037392 | C20: =IF(Arkusz1!B$9=1,Arkusz1!C19,"") -> 10.58731829 | D20: =IF(Arkusz1!D$9=1,Arkusz1!D19+Arkusz1!E19,"") -> -7.839248854 | E20: =IF(Arkusz1!D$9=1,Arkusz1!E19,"") -> -9.041439067 | F20: =IF(Arkusz1!F$9=1,Arkusz1!F19+Arkusz1!G19,"") ->  | G20: =IF(Arkusz1!F$9=1,Arkusz1!G19,"") ->  | H20: =IF(Arkusz1!H$9=1,Arkusz1!H19+Arkusz1!I19,"") ->  | I20: =IF(Arkusz1!H$9=1,Arkusz1!I19,"") ->  | J20: =IF(Arkusz1!J$9=1,Arkusz1!J19+Arkusz1!K19,"") ->  | K20: =IF(Arkusz1!J$9=1,Arkusz1!K19,"") ->  | L20: =IF(Arkusz1!L$9=1,Arkusz1!L19+Arkusz1!M19,"") ->  | M20: =IF(Arkusz1!L$9=1,Arkusz1!M19,"") ->  | N20: =Arkusz1!O19+Arkusz1!P19 -> 21.80112506 | O20: =Arkusz1!P19 -> 1.545879221
A21: =Arkusz1!A20 -> 73.5 | B21: =IF(Arkusz1!B$9=1,Arkusz1!B20+Arkusz1!C20,"") -> 28.80000416 | C21: =IF(Arkusz1!B$9=1,Arkusz1!C20,"") -> 10.08731829 | D21: =IF(Arkusz1!D$9=1,Arkusz1!D20+Arkusz1!E20,"") -> -7.77553715 | E21: =IF(Arkusz1!D$9=1,Arkusz1!E20,"") -> -9.041439067 | F21: =IF(Arkusz1!F$9=1,Arkusz1!F20+Arkusz1!G20,"") ->  | G21: =IF(Arkusz1!F$9=1,Arkusz1!G20,"") ->  | H21: =IF(Arkusz1!H$9=1,Arkusz1!H20+Arkusz1!I20,"") ->  | I21: =IF(Arkusz1!H$9=1,Arkusz1!I20,"") ->  | J21: =IF(Arkusz1!J$9=1,Arkusz1!J20+Arkusz1!K20,"") ->  | K21: =IF(Arkusz1!J$9=1,Arkusz1!K20,"") ->  | L21: =IF(Arkusz1!L$9=1,Arkusz1!L20+Arkusz1!M20,"") ->  | M21: =IF(Arkusz1!L$9=1,Arkusz1!M20,"") ->  | N21: =Arkusz1!O20+Arkusz1!P20 -> 21.02446701 | O21: =Arkusz1!P20 -> 1.045879221
A22: =Arkusz1!A21 -> 74 | B22: =IF(Arkusz1!B$9=1,Arkusz1!B21+Arkusz1!C21,"") -> 27.96370623 | C22: =IF(Arkusz1!B$9=1,Arkusz1!C21,"") -> 9.587318288 | D22: =IF(Arkusz1!D$9=1,Arkusz1!D21+Arkusz1!E21,"") -> -7.709429534 | E22: =IF(Arkusz1!D$9=1,Arkusz1!E21,"") -> -9.041439067 | F22: =IF(Arkusz1!F$9=1,Arkusz1!F21+Arkusz1!G21,"") ->  | G22: =IF(Arkusz1!F$9=1,Arkusz1!G21,"") ->  | H22: =IF(Arkusz1!H$9=1,Arkusz1!H21+Arkusz1!I21,"") ->  | I22: =IF(Arkusz1!H$9=1,Arkusz1!I21,"") ->  | J22: =IF(Arkusz1!J$9=1,Arkusz1!J21+Arkusz1!K21,"") ->  | K22: =IF(Arkusz1!J$9=1,Arkusz1!K21,"") ->  | L22: =IF(Arkusz1!L$9=1,Arkusz1!L21+Arkusz1!M21,"") ->  | M22: =IF(Arkusz1!L$9=1,Arkusz1!M21,"") ->  | N22: =Arkusz1!O21+Arkusz1!P21 -> 20.2542767 | O22: =Arkusz1!P21 -> 0.5458792205
A23: =Arkusz1!A22 -> 74.5 | B23: =IF(Arkusz1!B$9=1,Arkusz1!B22+Arkusz1!C22,"") -> 27.13149371 | C23: =IF(Arkusz1!B$9=1,Arkusz1!C22,"") -> 9.087318288 | D23: =IF(Arkusz1!D$9=1,Arkusz1!D22+Arkusz1!E22,"") -> -7.640881414 | E23: =IF(Arkusz1!D$9=1,Arkusz1!E22,"") -> -9.041439067 | F23: =IF(Arkusz1!F$9=1,Arkusz1!F22+Arkusz1!G22,"") ->  | G23: =IF(Arkusz1!F$9=1,Arkusz1!G22,"") ->  | H23: =IF(Arkusz1!H$9=1,Arkusz1!H22+Arkusz1!I22,"") ->  | I23: =IF(Arkusz1!H$9=1,Arkusz1!I22,"") ->  | J23: =IF(Arkusz1!J$9=1,Arkusz1!J22+Arkusz1!K22,"") ->  | K23: =IF(Arkusz1!J$9=1,Arkusz1!K22,"") ->  | L23: =IF(Arkusz1!L$9=1,Arkusz1!L22+Arkusz1!M22,"") ->  | M23: =IF(Arkusz1!L$9=1,Arkusz1!M22,"") ->  | N23: =Arkusz1!O22+Arkusz1!P22 -> 19.4906123 | O23: =Arkusz1!P22 -> 0.04587922054
A24: =Arkusz1!A23 -> 75 | B24: =IF(Arkusz1!B$9=1,Arkusz1!B23+Arkusz1!C23,"") -> 26.30337803 | C24: =IF(Arkusz1!B$9=1,Arkusz1!C23,"") -> 8.587318288 | D24: =IF(Arkusz1!D$9=1,Arkusz1!D23+Arkusz1!E23,"") -> -7.569848934 | E24: =IF(Arkusz1!D$9=1,Arkusz1!E23,"") -> -9.041439067 | F24: =IF(Arkusz1!F$9=1,Arkusz1!F23+Arkusz1!G23,"") ->  | G24: =IF(Arkusz1!F$9=1,Arkusz1!G23,"") ->  | H24: =IF(Arkusz1!H$9=1,Arkusz1!H23+Arkusz1!I23,"") ->  | I24: =IF(Arkusz1!H$9=1,Arkusz1!I23,"") ->  | J24: =IF(Arkusz1!J$9=1,Arkusz1!J23+Arkusz1!K23,"") ->  | K24: =IF(Arkusz1!J$9=1,Arkusz1!K23,"") ->  | L24: =IF(Arkusz1!L$9=1,Arkusz1!L23+Arkusz1!M23,"") ->  | M24: =IF(Arkusz1!L$9=1,Arkusz1!M23,"") ->  | N24: =Arkusz1!O23+Arkusz1!P23 -> 18.7335291 | O24: =Arkusz1!P23 -> -0.4541207795
A25: =Arkusz1!A24 -> 75.5 | B25: =IF(Arkusz1!B$9=1,Arkusz1!B24+Arkusz1!C24,"") -> 25.47936854 | C25: =IF(Arkusz1!B$9=1,Arkusz1!C24,"") -> 8.087318288 | D25: =IF(Arkusz1!D$9=1,Arkusz1!D24+Arkusz1!E24,"") -> -7.496289012 | E25: =IF(Arkusz1!D$9=1,Arkusz1!E24,"") -> -9.041439067 | F25: =IF(Arkusz1!F$9=1,Arkusz1!F24+Arkusz1!G24,"") ->  | G25: =IF(Arkusz1!F$9=1,Arkusz1!G24,"") ->  | H25: =IF(Arkusz1!H$9=1,Arkusz1!H24+Arkusz1!I24,"") ->  | I25: =IF(Arkusz1!H$9=1,Arkusz1!I24,"") ->  | J25: =IF(Arkusz1!J$9=1,Arkusz1!J24+Arkusz1!K24,"") ->  | K25: =IF(Arkusz1!J$9=1,Arkusz1!K24,"") ->  | L25: =IF(Arkusz1!L$9=1,Arkusz1!L24+Arkusz1!M24,"") ->  | M25: =IF(Arkusz1!L$9=1,Arkusz1!M24,"") ->  | N25: =Arkusz1!O24+Arkusz1!P24 -> 17.98307953 | O25: =Arkusz1!P24 -> -0.9541207795
A26: =Arkusz1!A25 -> 76 | B26: =IF(Arkusz1!B$9=1,Arkusz1!B25+Arkusz1!C25,"") -> 24.65947253 | C26: =IF(Arkusz1!B$9=1,Arkusz1!C25,"") -> 7.587318288 | D26: =IF(Arkusz1!D$9=1,Arkusz1!D25+Arkusz1!E25,"") -> -7.420159377 | E26: =IF(Arkusz1!D$9=1,Arkusz1!E25,"") -> -9.041439067 | F26: =IF(Arkusz1!F$9=1,Arkusz1!F25+Arkusz1!G25,"") ->  | G26: =IF(Arkusz1!F$9=1,Arkusz1!G25,"") ->  | H26: =IF(Arkusz1!H$9=1,Arkusz1!H25+Arkusz1!I25,"") ->  | I26: =IF(Arkusz1!H$9=1,Arkusz1!I25,"") ->  | J26: =IF(Arkusz1!J$9=1,Arkusz1!J25+Arkusz1!K25,"") ->  | K26: =IF(Arkusz1!J$9=1,Arkusz1!K25,"") ->  | L26: =IF(Arkusz1!L$9=1,Arkusz1!L25+Arkusz1!M25,"") ->  | M26: =IF(Arkusz1!L$9=1,Arkusz1!M25,"") ->  | N26: =Arkusz1!O25+Arkusz1!P25 -> 17.23931316 | O26: =Arkusz1!P25 -> -1.454120779
A27: =Arkusz1!A26 -> 76.5 | B27: =IF(Arkusz1!B$9=1,Arkusz1!B26+Arkusz1!C26,"") -> 23.84369525 | C27: =IF(Arkusz1!B$9=1,Arkusz1!C26,"") -> 7.087318288 | D27: =IF(Arkusz1!D$9=1,Arkusz1!D26+Arkusz1!E26,"") -> -7.341418608 | E27: =IF(Arkusz1!D$9=1,Arkusz1!E26,"") -> -9.041439067 | F27: =IF(Arkusz1!F$9=1,Arkusz1!F26+Arkusz1!G26,"") ->  | G27: =IF(Arkusz1!F$9=1,Arkusz1!G26,"") ->  | H27: =IF(Arkusz1!H$9=1,Arkusz1!H26+Arkusz1!I26,"") ->  | I27: =IF(Arkusz1!H$9=1,Arkusz1!I26,"") ->  | J27: =IF(Arkusz1!J$9=1,Arkusz1!J26+Arkusz1!K26,"") ->  | K27: =IF(Arkusz1!J$9=1,Arkusz1!K26,"") ->  | L27: =IF(Arkusz1!L$9=1,Arkusz1!L26+Arkusz1!M26,"") ->  | M27: =IF(Arkusz1!L$9=1,Arkusz1!M26,"") ->  | N27: =Arkusz1!O26+Arkusz1!P26 -> 16.50227664 | O27: =Arkusz1!P26 -> -1.954120779
A28: =Arkusz1!A27 -> 77 | B28: =IF(Arkusz1!B$9=1,Arkusz1!B27+Arkusz1!C27,"") -> 23.03203994 | C28: =IF(Arkusz1!B$9=1,Arkusz1!C27,"") -> 6.587318288 | D28: =IF(Arkusz1!D$9=1,Arkusz1!D27+Arkusz1!E27,"") -> -7.260026162 | E28: =IF(Arkusz1!D$9=1,Arkusz1!E27,"") -> -9.041439067 | F28: =IF(Arkusz1!F$9=1,Arkusz1!F27+Arkusz1!G27,"") ->  | G28: =IF(Arkusz1!F$9=1,Arkusz1!G27,"") ->  | H28: =IF(Arkusz1!H$9=1,Arkusz1!H27+Arkusz1!I27,"") ->  | I28: =IF(Arkusz1!H$9=1,Arkusz1!I27,"") ->  | J28: =IF(Arkusz1!J$9=1,Arkusz1!J27+Arkusz1!K27,"") ->  | K28: =IF(Arkusz1!J$9=1,Arkusz1!K27,"") ->  | L28: =IF(Arkusz1!L$9=1,Arkusz1!L27+Arkusz1!M27,"") ->  | M28: =IF(Arkusz1!L$9=1,Arkusz1!M27,"") ->  | N28: =Arkusz1!O27+Arkusz1!P27 -> 15.77201378 | O28: =Arkusz1!P27 -> -2.454120779
A29: =Arkusz1!A28 -> 77.5 | B29: =IF(Arkusz1!B$9=1,Arkusz1!B28+Arkusz1!C28,"") -> 22.22450788 | C29: =IF(Arkusz1!B$9=1,Arkusz1!C28,"") -> 6.087318288 | D29: =IF(Arkusz1!D$9=1,Arkusz1!D28+Arkusz1!E28,"") -> -7.175942412 | E29: =IF(Arkusz1!D$9=1,Arkusz1!E28,"") -> -9.041439067 | F29: =IF(Arkusz1!F$9=1,Arkusz1!F28+Arkusz1!G28,"") ->  | G29: =IF(Arkusz1!F$9=1,Arkusz1!G28,"") ->  | H29: =IF(Arkusz1!H$9=1,Arkusz1!H28+Arkusz1!I28,"") ->  | I29: =IF(Arkusz1!H$9=1,Arkusz1!I28,"") ->  | J29: =IF(Arkusz1!J$9=1,Arkusz1!J28+Arkusz1!K28,"") ->  | K29: =IF(Arkusz1!J$9=1,Arkusz1!K28,"") ->  | L29: =IF(Arkusz1!L$9=1,Arkusz1!L28+Arkusz1!M28,"") ->  | M29: =IF(Arkusz1!L$9=1,Arkusz1!M28,"") ->  | N29: =Arkusz1!O28+Arkusz1!P28 -> 15.04856547 | O29: =Arkusz1!P28 -> -2.954120779
A30: =Arkusz1!A29 -> 78 | B30: =IF(Arkusz1!B$9=1,Arkusz1!B29+Arkusz1!C29,"") -> 21.4210984 | C30: =IF(Arkusz1!B$9=1,Arkusz1!C29,"") -> 5.587318288 | D30: =IF(Arkusz1!D$9=1,Arkusz1!D29+Arkusz1!E29,"") -> -7.089128677 | E30: =IF(Arkusz1!D$9=1,Arkusz1!E29,"") -> -9.041439067 | F30: =IF(Arkusz1!F$9=1,Arkusz1!F29+Arkusz1!G29,"") ->  | G30: =IF(Arkusz1!F$9=1,Arkusz1!G29,"") ->  | H30: =IF(Arkusz1!H$9=1,Arkusz1!H29+Arkusz1!I29,"") ->  | I30: =IF(Arkusz1!H$9=1,Arkusz1!I29,"") ->  | J30: =IF(Arkusz1!J$9=1,Arkusz1!J29+Arkusz1!K29,"") ->  | K30: =IF(Arkusz1!J$9=1,Arkusz1!K29,"") ->  | L30: =IF(Arkusz1!L$9=1,Arkusz1!L29+Arkusz1!M29,"") ->  | M30: =IF(Arkusz1!L$9=1,Arkusz1!M29,"") ->  | N30: =Arkusz1!O29+Arkusz1!P29 -> 14.33196973 | O30: =Arkusz1!P29 -> -3.454120779
A31: =Arkusz1!A30 -> 78.5 | B31: =IF(Arkusz1!B$9=1,Arkusz1!B30+Arkusz1!C30,"") -> 20.62180896 | C31: =IF(Arkusz1!B$9=1,Arkusz1!C30,"") -> 5.087318288 | D31: =IF(Arkusz1!D$9=1,Arkusz1!D30+Arkusz1!E30,"") -> -6.999547249 | E31: =IF(Arkusz1!D$9=1,Arkusz1!E30,"") -> -9.041439067 | F31: =IF(Arkusz1!F$9=1,Arkusz1!F30+Arkusz1!G30,"") ->  | G31: =IF(Arkusz1!F$9=1,Arkusz1!G30,"") ->  | H31: =IF(Arkusz1!H$9=1,Arkusz1!H30+Arkusz1!I30,"") ->  | I31: =IF(Arkusz1!H$9=1,Arkusz1!I30,"") ->  | J31: =IF(Arkusz1!J$9=1,Arkusz1!J30+Arkusz1!K30,"") ->  | K31: =IF(Arkusz1!J$9=1,Arkusz1!K30,"") ->  | L31: =IF(Arkusz1!L$9=1,Arkusz1!L30+Arkusz1!M30,"") ->  | M31: =IF(Arkusz1!L$9=1,Arkusz1!M30,"") ->  | N31: =Arkusz1!O30+Arkusz1!P30 -> 13.62226171 | O31: =Arkusz1!P30 -> -3.954120779
A32: =Arkusz1!A31 -> 79 | B32: =IF(Arkusz1!B$9=1,Arkusz1!B31+Arkusz1!C31,"") -> 19.82663515 | C32: =IF(Arkusz1!B$9=1,Arkusz1!C31,"") -> 4.587318288 | D32: =IF(Arkusz1!D$9=1,Arkusz1!D31+Arkusz1!E31,"") -> -6.907161422 | E32: =IF(Arkusz1!D$9=1,Arkusz1!E31,"") -> -9.041439067 | F32: =IF(Arkusz1!F$9=1,Arkusz1!F31+Arkusz1!G31,"") ->  | G32: =IF(Arkusz1!F$9=1,Arkusz1!G31,"") ->  | H32: =IF(Arkusz1!H$9=1,Arkusz1!H31+Arkusz1!I31,"") ->  | I32: =IF(Arkusz1!H$9=1,Arkusz1!I31,"") ->  | J32: =IF(Arkusz1!J$9=1,Arkusz1!J31+Arkusz1!K31,"") ->  | K32: =IF(Arkusz1!J$9=1,Arkusz1!K31,"") ->  | L32: =IF(Arkusz1!L$9=1,Arkusz1!L31+Arkusz1!M31,"") ->  | M32: =IF(Arkusz1!L$9=1,Arkusz1!M31,"") ->  | N32: =Arkusz1!O31+Arkusz1!P31 -> 12.91947372 | O32: =Arkusz1!P31 -> -4.454120779
A33: =Arkusz1!A32 -> 79.5 | B33: =IF(Arkusz1!B$9=1,Arkusz1!B32+Arkusz1!C32,"") -> 19.03557073 | C33: =IF(Arkusz1!B$9=1,Arkusz1!C32,"") -> 4.087318288 | D33: =IF(Arkusz1!D$9=1,Arkusz1!D32+Arkusz1!E32,"") -> -6.811935517 | E33: =IF(Arkusz1!D$9=1,Arkusz1!E32,"") -> -9.041439067 | F33: =IF(Arkusz1!F$9=1,Arkusz1!F32+Arkusz1!G32,"") ->  | G33: =IF(Arkusz1!F$9=1,Arkusz1!G32,"") ->  | H33: =IF(Arkusz1!H$9=1,Arkusz1!H32+Arkusz1!I32,"") ->  | I33: =IF(Arkusz1!H$9=1,Arkusz1!I32,"") ->  | J33: =IF(Arkusz1!J$9=1,Arkusz1!J32+Arkusz1!K32,"") ->  | K33: =IF(Arkusz1!J$9=1,Arkusz1!K32,"") ->  | L33: =IF(Arkusz1!L$9=1,Arkusz1!L32+Arkusz1!M32,"") ->  | M33: =IF(Arkusz1!L$9=1,Arkusz1!M32,"") ->  | N33: =Arkusz1!O32+Arkusz1!P32 -> 12.22363521 | O33: =Arkusz1!P32 -> -4.954120779
A34: =Arkusz1!A33 -> 80 | B34: =IF(Arkusz1!B$9=1,Arkusz1!B33+Arkusz1!C33,"") -> 18.24860772 | C34: =IF(Arkusz1!B$9=1,Arkusz1!C33,"") -> 3.587318288 | D34: =IF(Arkusz1!D$9=1,Arkusz1!D33+Arkusz1!E33,"") -> -6.713834906 | E34: =IF(Arkusz1!D$9=1,Arkusz1!E33,"") -> -9.041439067 | F34: =IF(Arkusz1!F$9=1,Arkusz1!F33+Arkusz1!G33,"") ->  | G34: =IF(Arkusz1!F$9=1,Arkusz1!G33,"") ->  | H34: =IF(Arkusz1!H$9=1,Arkusz1!H33+Arkusz1!I33,"") ->  | I34: =IF(Arkusz1!H$9=1,Arkusz1!I33,"") ->  | J34: =IF(Arkusz1!J$9=1,Arkusz1!J33+Arkusz1!K33,"") ->  | K34: =IF(Arkusz1!J$9=1,Arkusz1!K33,"") ->  | L34: =IF(Arkusz1!L$9=1,Arkusz1!L33+Arkusz1!M33,"") ->  | M34: =IF(Arkusz1!L$9=1,Arkusz1!M33,"") ->  | N34: =Arkusz1!O33+Arkusz1!P33 -> 11.53477281 | O34: =Arkusz1!P33 -> -5.454120779
A35: =Arkusz1!A34 -> 80.5 | B35: =IF(Arkusz1!B$9=1,Arkusz1!B34+Arkusz1!C34,"") -> 17.46573639 | C35: =IF(Arkusz1!B$9=1,Arkusz1!C34,"") -> 3.087318288 | D35: =IF(Arkusz1!D$9=1,Arkusz1!D34+Arkusz1!E34,"") -> -6.612826035 | E35: =IF(Arkusz1!D$9=1,Arkusz1!E34,"") -> -9.041439067 | F35: =IF(Arkusz1!F$9=1,Arkusz1!F34+Arkusz1!G34,"") ->  | G35: =IF(Arkusz1!F$9=1,Arkusz1!G34,"") ->  | H35: =IF(Arkusz1!H$9=1,Arkusz1!H34+Arkusz1!I34,"") ->  | I35: =IF(Arkusz1!H$9=1,Arkusz1!I34,"") ->  | J35: =IF(Arkusz1!J$9=1,Arkusz1!J34+Arkusz1!K34,"") ->  | K35: =IF(Arkusz1!J$9=1,Arkusz1!K34,"") ->  | L35: =IF(Arkusz1!L$9=1,Arkusz1!L34+Arkusz1!M34,"") ->  | M35: =IF(Arkusz1!L$9=1,Arkusz1!M34,"") ->  | N35: =Arkusz1!O34+Arkusz1!P34 -> 10.85291035 | O35: =Arkusz1!P34 -> -5.954120779
A36: =Arkusz1!A35 -> 81 | B36: =IF(Arkusz1!B$9=1,Arkusz1!B35+Arkusz1!C35,"") -> 16.68694534 | C36: =IF(Arkusz1!B$9=1,Arkusz1!C35,"") -> 2.587318288 | D36: =IF(Arkusz1!D$9=1,Arkusz1!D35+Arkusz1!E35,"") -> -6.508876443 | E36: =IF(Arkusz1!D$9=1,Arkusz1!E35,"") -> -9.041439067 | F36: =IF(Arkusz1!F$9=1,Arkusz1!F35+Arkusz1!G35,"") ->  | G36: =IF(Arkusz1!F$9=1,Arkusz1!G35,"") ->  | H36: =IF(Arkusz1!H$9=1,Arkusz1!H35+Arkusz1!I35,"") ->  | I36: =IF(Arkusz1!H$9=1,Arkusz1!I35,"") ->  | J36: =IF(Arkusz1!J$9=1,Arkusz1!J35+Arkusz1!K35,"") ->  | K36: =IF(Arkusz1!J$9=1,Arkusz1!K35,"") ->  | L36: =IF(Arkusz1!L$9=1,Arkusz1!L35+Arkusz1!M35,"") ->  | M36: =IF(Arkusz1!L$9=1,Arkusz1!M35,"") ->  | N36: =Arkusz1!O35+Arkusz1!P35 -> 10.17806889 | O36: =Arkusz1!P35 -> -6.454120779
A37: =Arkusz1!A36 -> 81.5 | B37: =IF(Arkusz1!B$9=1,Arkusz1!B36+Arkusz1!C36,"") -> 15.91222152 | C37: =IF(Arkusz1!B$9=1,Arkusz1!C36,"") -> 2.087318288 | D37: =IF(Arkusz1!D$9=1,Arkusz1!D36+Arkusz1!E36,"") -> -6.401954781 | E37: =IF(Arkusz1!D$9=1,Arkusz1!E36,"") -> -9.041439067 | F37: =IF(Arkusz1!F$9=1,Arkusz1!F36+Arkusz1!G36,"") ->  | G37: =IF(Arkusz1!F$9=1,Arkusz1!G36,"") ->  | H37: =IF(Arkusz1!H$9=1,Arkusz1!H36+Arkusz1!I36,"") ->  | I37: =IF(Arkusz1!H$9=1,Arkusz1!I36,"") ->  | J37: =IF(Arkusz1!J$9=1,Arkusz1!J36+Arkusz1!K36,"") ->  | K37: =IF(Arkusz1!J$9=1,Arkusz1!K36,"") ->  | L37: =IF(Arkusz1!L$9=1,Arkusz1!L36+Arkusz1!M36,"") ->  | M37: =IF(Arkusz1!L$9=1,Arkusz1!M36,"") ->  | N37: =Arkusz1!O36+Arkusz1!P36 -> 9.510266741 | O37: =Arkusz1!P36 -> -6.954120779
A38: =Arkusz1!A37 -> 82 | B38: =IF(Arkusz1!B$9=1,Arkusz1!B37+Arkusz1!C37,"") -> 15.14155031 | C38: =IF(Arkusz1!B$9=1,Arkusz1!C37,"") -> 1.587318288 | D38: =IF(Arkusz1!D$9=1,Arkusz1!D37+Arkusz1!E37,"") -> -6.292030831 | E38: =IF(Arkusz1!D$9=1,Arkusz1!E37,"") -> -9.041439067 | F38: =IF(Arkusz1!F$9=1,Arkusz1!F37+Arkusz1!G37,"") ->  | G38: =IF(Arkusz1!F$9=1,Arkusz1!G37,"") ->  | H38: =IF(Arkusz1!H$9=1,Arkusz1!H37+Arkusz1!I37,"") ->  | I38: =IF(Arkusz1!H$9=1,Arkusz1!I37,"") ->  | J38: =IF(Arkusz1!J$9=1,Arkusz1!J37+Arkusz1!K37,"") ->  | K38: =IF(Arkusz1!J$9=1,Arkusz1!K37,"") ->  | L38: =IF(Arkusz1!L$9=1,Arkusz1!L37+Arkusz1!M37,"") ->  | M38: =IF(Arkusz1!L$9=1,Arkusz1!M37,"") ->  | N38: =Arkusz1!O37+Arkusz1!P37 -> 8.849519481 | O38: =Arkusz1!P37 -> -7.454120779
A39: =Arkusz1!A38 -> 82.5 | B39: =IF(Arkusz1!B$9=1,Arkusz1!B38+Arkusz1!C38,"") -> 14.37491553 | C39: =IF(Arkusz1!B$9=1,Arkusz1!C38,"") -> 1.087318288 | D39: =IF(Arkusz1!D$9=1,Arkusz1!D38+Arkusz1!E38,"") -> -6.179075516 | E39: =IF(Arkusz1!D$9=1,Arkusz1!E38,"") -> -9.041439067 | F39: =IF(Arkusz1!F$9=1,Arkusz1!F38+Arkusz1!G38,"") ->  | G39: =IF(Arkusz1!F$9=1,Arkusz1!G38,"") ->  | H39: =IF(Arkusz1!H$9=1,Arkusz1!H38+Arkusz1!I38,"") ->  | I39: =IF(Arkusz1!H$9=1,Arkusz1!I38,"") ->  | J39: =IF(Arkusz1!J$9=1,Arkusz1!J38+Arkusz1!K38,"") ->  | K39: =IF(Arkusz1!J$9=1,Arkusz1!K38,"") ->  | L39: =IF(Arkusz1!L$9=1,Arkusz1!L38+Arkusz1!M38,"") ->  | M39: =IF(Arkusz1!L$9=1,Arkusz1!M38,"") ->  | N39: =Arkusz1!O38+Arkusz1!P38 -> 8.195840018 | O39: =Arkusz1!P38 -> -7.954120779
A40: =Arkusz1!A39 -> 83 | B40: =IF(Arkusz1!B$9=1,Arkusz1!B39+Arkusz1!C39,"") -> 13.61229952 | C40: =IF(Arkusz1!B$9=1,Arkusz1!C39,"") -> 0.5873182878 | D40: =IF(Arkusz1!D$9=1,Arkusz1!D39+Arkusz1!E39,"") -> -6.06306092 | E40: =IF(Arkusz1!D$9=1,Arkusz1!E39,"") -> -9.041439067 | F40: =IF(Arkusz1!F$9=1,Arkusz1!F39+Arkusz1!G39,"") ->  | G40: =IF(Arkusz1!F$9=1,Arkusz1!G39,"") ->  | H40: =IF(Arkusz1!H$9=1,Arkusz1!H39+Arkusz1!I39,"") ->  | I40: =IF(Arkusz1!H$9=1,Arkusz1!I39,"") ->  | J40: =IF(Arkusz1!J$9=1,Arkusz1!J39+Arkusz1!K39,"") ->  | K40: =IF(Arkusz1!J$9=1,Arkusz1!K39,"") ->  | L40: =IF(Arkusz1!L$9=1,Arkusz1!L39+Arkusz1!M39,"") ->  | M40: =IF(Arkusz1!L$9=1,Arkusz1!M39,"") ->  | N40: =Arkusz1!O39+Arkusz1!P39 -> 7.549238604 | O40: =Arkusz1!P39 -> -8.454120779
A41: =Arkusz1!A40 -> 83.5 | B41: =IF(Arkusz1!B$9=1,Arkusz1!B40+Arkusz1!C40,"") -> 12.85368317 | C41: =IF(Arkusz1!B$9=1,Arkusz1!C40,"") -> 0.08731828784 | D41: =IF(Arkusz1!D$9=1,Arkusz1!D40+Arkusz1!E40,"") -> -5.943960295 | E41: =IF(Arkusz1!D$9=1,Arkusz1!E40,"") -> -9.041439067 | F41: =IF(Arkusz1!F$9=1,Arkusz1!F40+Arkusz1!G40,"") ->  | G41: =IF(Arkusz1!F$9=1,Arkusz1!G40,"") ->  | H41: =IF(Arkusz1!H$9=1,Arkusz1!H40+Arkusz1!I40,"") ->  | I41: =IF(Arkusz1!H$9=1,Arkusz1!I40,"") ->  | J41: =IF(Arkusz1!J$9=1,Arkusz1!J40+Arkusz1!K40,"") ->  | K41: =IF(Arkusz1!J$9=1,Arkusz1!K40,"") ->  | L41: =IF(Arkusz1!L$9=1,Arkusz1!L40+Arkusz1!M40,"") ->  | M41: =IF(Arkusz1!L$9=1,Arkusz1!M40,"") ->  | N41: =Arkusz1!O40+Arkusz1!P40 -> 6.909722877 | O41: =Arkusz1!P40 -> -8.954120779
A42: =Arkusz1!A41 -> 84 | B42: =IF(Arkusz1!B$9=1,Arkusz1!B41+Arkusz1!C41,"") -> 12.09904597 | C42: =IF(Arkusz1!B$9=1,Arkusz1!C41,"") -> -0.4126817122 | D42: =IF(Arkusz1!D$9=1,Arkusz1!D41+Arkusz1!E41,"") -> -5.821748074 | E42: =IF(Arkusz1!D$9=1,Arkusz1!E41,"") -> -9.041439067 | F42: =IF(Arkusz1!F$9=1,Arkusz1!F41+Arkusz1!G41,"") ->  | G42: =IF(Arkusz1!F$9=1,Arkusz1!G41,"") ->  | H42: =IF(Arkusz1!H$9=1,Arkusz1!H41+Arkusz1!I41,"") ->  | I42: =IF(Arkusz1!H$9=1,Arkusz1!I41,"") ->  | J42: =IF(Arkusz1!J$9=1,Arkusz1!J41+Arkusz1!K41,"") ->  | K42: =IF(Arkusz1!J$9=1,Arkusz1!K41,"") ->  | L42: =IF(Arkusz1!L$9=1,Arkusz1!L41+Arkusz1!M41,"") ->  | M42: =IF(Arkusz1!L$9=1,Arkusz1!M41,"") ->  | N42: =Arkusz1!O41+Arkusz1!P41 -> 6.277297898 | O42: =Arkusz1!P41 -> -9.454120779
A43: =Arkusz1!A42 -> 84.5 | B43: =IF(Arkusz1!B$9=1,Arkusz1!B42+Arkusz1!C42,"") -> 11.34836607 | C43: =IF(Arkusz1!B$9=1,Arkusz1!C42,"") -> -0.9126817122 | D43: =IF(Arkusz1!D$9=1,Arkusz1!D42+Arkusz1!E42,"") -> -5.696399879 | E43: =IF(Arkusz1!D$9=1,Arkusz1!E42,"") -> -9.041439067 | F43: =IF(Arkusz1!F$9=1,Arkusz1!F42+Arkusz1!G42,"") ->  | G43: =IF(Arkusz1!F$9=1,Arkusz1!G42,"") ->  | H43: =IF(Arkusz1!H$9=1,Arkusz1!H42+Arkusz1!I42,"") ->  | I43: =IF(Arkusz1!H$9=1,Arkusz1!I42,"") ->  | J43: =IF(Arkusz1!J$9=1,Arkusz1!J42+Arkusz1!K42,"") ->  | K43: =IF(Arkusz1!J$9=1,Arkusz1!K42,"") ->  | L43: =IF(Arkusz1!L$9=1,Arkusz1!L42+Arkusz1!M42,"") ->  | M43: =IF(Arkusz1!L$9=1,Arkusz1!M42,"") ->  | N43: =Arkusz1!O42+Arkusz1!P42 -> 5.651966196 | O43: =Arkusz1!P42 -> -9.954120779
A44: =Arkusz1!A43 -> 85 | B44: =IF(Arkusz1!B$9=1,Arkusz1!B43+Arkusz1!C43,"") -> 10.60162033 | C44: =IF(Arkusz1!B$9=1,Arkusz1!C43,"") -> -1.412681712 | D44: =IF(Arkusz1!D$9=1,Arkusz1!D43+Arkusz1!E43,"") -> -5.567892525 | E44: =IF(Arkusz1!D$9=1,Arkusz1!E43,"") -> -9.041439067 | F44: =IF(Arkusz1!F$9=1,Arkusz1!F43+Arkusz1!G43,"") ->  | G44: =IF(Arkusz1!F$9=1,Arkusz1!G43,"") ->  | H44: =IF(Arkusz1!H$9=1,Arkusz1!H43+Arkusz1!I43,"") ->  | I44: =IF(Arkusz1!H$9=1,Arkusz1!I43,"") ->  | J44: =IF(Arkusz1!J$9=1,Arkusz1!J43+Arkusz1!K43,"") ->  | K44: =IF(Arkusz1!J$9=1,Arkusz1!K43,"") ->  | L44: =IF(Arkusz1!L$9=1,Arkusz1!L43+Arkusz1!M43,"") ->  | M44: =IF(Arkusz1!L$9=1,Arkusz1!M43,"") ->  | N44: =Arkusz1!O43+Arkusz1!P43 -> 5.033727808 | O44: =Arkusz1!P43 -> -10.45412078
A45: =Arkusz1!A44 -> 85.5 | B45: =IF(Arkusz1!B$9=1,Arkusz1!B44+Arkusz1!C44,"") -> 9.858784355 | C45: =IF(Arkusz1!B$9=1,Arkusz1!C44,"") -> -1.912681712 | D45: =IF(Arkusz1!D$9=1,Arkusz1!D44+Arkusz1!E44,"") -> -5.436204031 | E45: =IF(Arkusz1!D$9=1,Arkusz1!E44,"") -> -9.041439067 | F45: =IF(Arkusz1!F$9=1,Arkusz1!F44+Arkusz1!G44,"") ->  | G45: =IF(Arkusz1!F$9=1,Arkusz1!G44,"") ->  | H45: =IF(Arkusz1!H$9=1,Arkusz1!H44+Arkusz1!I44,"") ->  | I45: =IF(Arkusz1!H$9=1,Arkusz1!I44,"") ->  | J45: =IF(Arkusz1!J$9=1,Arkusz1!J44+Arkusz1!K44,"") ->  | K45: =IF(Arkusz1!J$9=1,Arkusz1!K44,"") ->  | L45: =IF(Arkusz1!L$9=1,Arkusz1!L44+Arkusz1!M44,"") ->  | M45: =IF(Arkusz1!L$9=1,Arkusz1!M44,"") ->  | N45: =Arkusz1!O44+Arkusz1!P44 -> 4.422580324 | O45: =Arkusz1!P44 -> -10.95412078
A46: =Arkusz1!A45 -> 86 | B46: =IF(Arkusz1!B$9=1,Arkusz1!B45+Arkusz1!C45,"") -> 9.119832551 | C46: =IF(Arkusz1!B$9=1,Arkusz1!C45,"") -> -2.412681712 | D46: =IF(Arkusz1!D$9=1,Arkusz1!D45+Arkusz1!E45,"") -> -5.301313619 | E46: =IF(Arkusz1!D$9=1,Arkusz1!E45,"") -> -9.041439067 | F46: =IF(Arkusz1!F$9=1,Arkusz1!F45+Arkusz1!G45,"") ->  | G46: =IF(Arkusz1!F$9=1,Arkusz1!G45,"") ->  | H46: =IF(Arkusz1!H$9=1,Arkusz1!H45+Arkusz1!I45,"") ->  | I46: =IF(Arkusz1!H$9=1,Arkusz1!I45,"") ->  | J46: =IF(Arkusz1!J$9=1,Arkusz1!J45+Arkusz1!K45,"") ->  | K46: =IF(Arkusz1!J$9=1,Arkusz1!K45,"") ->  | L46: =IF(Arkusz1!L$9=1,Arkusz1!L45+Arkusz1!M45,"") ->  | M46: =IF(Arkusz1!L$9=1,Arkusz1!M45,"") ->  | N46: =Arkusz1!O45+Arkusz1!P45 -> 3.818518932 | O46: =Arkusz1!P45 -> -11.45412078
A47: =Arkusz1!A46 -> 86.5 | B47: =IF(Arkusz1!B$9=1,Arkusz1!B46+Arkusz1!C46,"") -> 8.384738186 | C47: =IF(Arkusz1!B$9=1,Arkusz1!C46,"") -> -2.912681712 | D47: =IF(Arkusz1!D$9=1,Arkusz1!D46+Arkusz1!E46,"") -> -5.163201719 | E47: =IF(Arkusz1!D$9=1,Arkusz1!E46,"") -> -9.041439067 | F47: =IF(Arkusz1!F$9=1,Arkusz1!F46+Arkusz1!G46,"") ->  | G47: =IF(Arkusz1!F$9=1,Arkusz1!G46,"") ->  | H47: =IF(Arkusz1!H$9=1,Arkusz1!H46+Arkusz1!I46,"") ->  | I47: =IF(Arkusz1!H$9=1,Arkusz1!I46,"") ->  | J47: =IF(Arkusz1!J$9=1,Arkusz1!J46+Arkusz1!K46,"") ->  | K47: =IF(Arkusz1!J$9=1,Arkusz1!K46,"") ->  | L47: =IF(Arkusz1!L$9=1,Arkusz1!L46+Arkusz1!M46,"") ->  | M47: =IF(Arkusz1!L$9=1,Arkusz1!M46,"") ->  | N47: =Arkusz1!O46+Arkusz1!P46 -> 3.221536467 | O47: =Arkusz1!P46 -> -11.95412078
A48: =Arkusz1!A47 -> 87 | B48: =IF(Arkusz1!B$9=1,Arkusz1!B47+Arkusz1!C47,"") -> 7.653473428 | C48: =IF(Arkusz1!B$9=1,Arkusz1!C47,"") -> -3.412681712 | D48: =IF(Arkusz1!D$9=1,Arkusz1!D47+Arkusz1!E47,"") -> -5.021849969 | E48: =IF(Arkusz1!D$9=1,Arkusz1!E47,"") -> -9.041439067 | F48: =IF(Arkusz1!F$9=1,Arkusz1!F47+Arkusz1!G47,"") ->  | G48: =IF(Arkusz1!F$9=1,Arkusz1!G47,"") ->  | H48: =IF(Arkusz1!H$9=1,Arkusz1!H47+Arkusz1!I47,"") ->  | I48: =IF(Arkusz1!H$9=1,Arkusz1!I47,"") ->  | J48: =IF(Arkusz1!J$9=1,Arkusz1!J47+Arkusz1!K47,"") ->  | K48: =IF(Arkusz1!J$9=1,Arkusz1!K47,"") ->  | L48: =IF(Arkusz1!L$9=1,Arkusz1!L47+Arkusz1!M47,"") ->  | M48: =IF(Arkusz1!L$9=1,Arkusz1!M47,"") ->  | N48: =Arkusz1!O47+Arkusz1!P47 -> 2.631623459 | O48: =Arkusz1!P47 -> -12.45412078
A49: =Arkusz1!A48 -> 87.5 | B49: =IF(Arkusz1!B$9=1,Arkusz1!B48+Arkusz1!C48,"") -> 6.926009397 | C49: =IF(Arkusz1!B$9=1,Arkusz1!C48,"") -> -3.912681712 | D49: =IF(Arkusz1!D$9=1,Arkusz1!D48+Arkusz1!E48,"") -> -4.877241216 | E49: =IF(Arkusz1!D$9=1,Arkusz1!E48,"") -> -9.041439067 | F49: =IF(Arkusz1!F$9=1,Arkusz1!F48+Arkusz1!G48,"") ->  | G49: =IF(Arkusz1!F$9=1,Arkusz1!G48,"") ->  | H49: =IF(Arkusz1!H$9=1,Arkusz1!H48+Arkusz1!I48,"") ->  | I49: =IF(Arkusz1!H$9=1,Arkusz1!I48,"") ->  | J49: =IF(Arkusz1!J$9=1,Arkusz1!J48+Arkusz1!K48,"") ->  | K49: =IF(Arkusz1!J$9=1,Arkusz1!K48,"") ->  | L49: =IF(Arkusz1!L$9=1,Arkusz1!L48+Arkusz1!M48,"") ->  | M49: =IF(Arkusz1!L$9=1,Arkusz1!M48,"") ->  | N49: =Arkusz1!O48+Arkusz1!P48 -> 2.048768182 | O49: =Arkusz1!P48 -> -12.95412078
A50: =Arkusz1!A49 -> 88 | B50: =IF(Arkusz1!B$9=1,Arkusz1!B49+Arkusz1!C49,"") -> 6.202316214 | C50: =IF(Arkusz1!B$9=1,Arkusz1!C49,"") -> -4.412681712 | D50: =IF(Arkusz1!D$9=1,Arkusz1!D49+Arkusz1!E49,"") -> -4.729359511 | E50: =IF(Arkusz1!D$9=1,Arkusz1!E49,"") -> -9.041439067 | F50: =IF(Arkusz1!F$9=1,Arkusz1!F49+Arkusz1!G49,"") ->  | G50: =IF(Arkusz1!F$9=1,Arkusz1!G49,"") ->  | H50: =IF(Arkusz1!H$9=1,Arkusz1!H49+Arkusz1!I49,"") ->  | I50: =IF(Arkusz1!H$9=1,Arkusz1!I49,"") ->  | J50: =IF(Arkusz1!J$9=1,Arkusz1!J49+Arkusz1!K49,"") ->  | K50: =IF(Arkusz1!J$9=1,Arkusz1!K49,"") ->  | L50: =IF(Arkusz1!L$9=1,Arkusz1!L49+Arkusz1!M49,"") ->  | M50: =IF(Arkusz1!L$9=1,Arkusz1!M49,"") ->  | N50: =Arkusz1!O49+Arkusz1!P49 -> 1.472956703 | O50: =Arkusz1!P49 -> -13.45412078
A51: =Arkusz1!A50 -> 88.5 | B51: =IF(Arkusz1!B$9=1,Arkusz1!B50+Arkusz1!C50,"") -> 5.482363051 | C51: =IF(Arkusz1!B$9=1,Arkusz1!C50,"") -> -4.912681712 | D51: =IF(Arkusz1!D$9=1,Arkusz1!D50+Arkusz1!E50,"") -> -4.578190111 | E51: =IF(Arkusz1!D$9=1,Arkusz1!E50,"") -> -9.041439067 | F51: =IF(Arkusz1!F$9=1,Arkusz1!F50+Arkusz1!G50,"") ->  | G51: =IF(Arkusz1!F$9=1,Arkusz1!G50,"") ->  | H51: =IF(Arkusz1!H$9=1,Arkusz1!H50+Arkusz1!I50,"") ->  | I51: =IF(Arkusz1!H$9=1,Arkusz1!I50,"") ->  | J51: =IF(Arkusz1!J$9=1,Arkusz1!J50+Arkusz1!K50,"") ->  | K51: =IF(Arkusz1!J$9=1,Arkusz1!K50,"") ->  | L51: =IF(Arkusz1!L$9=1,Arkusz1!L50+Arkusz1!M50,"") ->  | M51: =IF(Arkusz1!L$9=1,Arkusz1!M50,"") ->  | N51: =Arkusz1!O50+Arkusz1!P50 -> 0.9041729399 | O51: =Arkusz1!P50 -> -13.95412078
A52: =Arkusz1!A51 -> 89 | B52: =IF(Arkusz1!B$9=1,Arkusz1!B51+Arkusz1!C51,"") -> 4.766118175 | C52: =IF(Arkusz1!B$9=1,Arkusz1!C51,"") -> -5.412681712 | D52: =IF(Arkusz1!D$9=1,Arkusz1!D51+Arkusz1!E51,"") -> -4.423719468 | E52: =IF(Arkusz1!D$9=1,Arkusz1!E51,"") -> -9.041439067 | F52: =IF(Arkusz1!F$9=1,Arkusz1!F51+Arkusz1!G51,"") ->  | G52: =IF(Arkusz1!F$9=1,Arkusz1!G51,"") ->  | H52: =IF(Arkusz1!H$9=1,Arkusz1!H51+Arkusz1!I51,"") ->  | I52: =IF(Arkusz1!H$9=1,Arkusz1!I51,"") ->  | J52: =IF(Arkusz1!J$9=1,Arkusz1!J51+Arkusz1!K51,"") ->  | K52: =IF(Arkusz1!J$9=1,Arkusz1!K51,"") ->  | L52: =IF(Arkusz1!L$9=1,Arkusz1!L51+Arkusz1!M51,"") ->  | M52: =IF(Arkusz1!L$9=1,Arkusz1!M51,"") ->  | N52: =Arkusz1!O51+Arkusz1!P51 -> 0.3423987066 | O52: =Arkusz1!P51 -> -14.45412078
A53: =Arkusz1!A52 -> 89.5 | B53: =IF(Arkusz1!B$9=1,Arkusz1!B52+Arkusz1!C52,"") -> 4.053549002 | C53: =IF(Arkusz1!B$9=1,Arkusz1!C52,"") -> -5.912681712 | D53: =IF(Arkusz1!D$9=1,Arkusz1!D52+Arkusz1!E52,"") -> -4.265935231 | E53: =IF(Arkusz1!D$9=1,Arkusz1!E52,"") -> -9.041439067 | F53: =IF(Arkusz1!F$9=1,Arkusz1!F52+Arkusz1!G52,"") ->  | G53: =IF(Arkusz1!F$9=1,Arkusz1!G52,"") ->  | H53: =IF(Arkusz1!H$9=1,Arkusz1!H52+Arkusz1!I52,"") ->  | I53: =IF(Arkusz1!H$9=1,Arkusz1!I52,"") ->  | J53: =IF(Arkusz1!J$9=1,Arkusz1!J52+Arkusz1!K52,"") ->  | K53: =IF(Arkusz1!J$9=1,Arkusz1!K52,"") ->  | L53: =IF(Arkusz1!L$9=1,Arkusz1!L52+Arkusz1!M52,"") ->  | M53: =IF(Arkusz1!L$9=1,Arkusz1!M52,"") ->  | N53: =Arkusz1!O52+Arkusz1!P52 -> -0.2123862292 | O53: =Arkusz1!P52 -> -14.95412078
A54: =Arkusz1!A53 -> 90 | B54: =IF(Arkusz1!B$9=1,Arkusz1!B53+Arkusz1!C53,"") -> 3.344622139 | C54: =IF(Arkusz1!B$9=1,Arkusz1!C53,"") -> -6.412681712 | D54: =IF(Arkusz1!D$9=1,Arkusz1!D53+Arkusz1!E53,"") -> -4.104826232 | E54: =IF(Arkusz1!D$9=1,Arkusz1!E53,"") -> -9.041439067 | F54: =IF(Arkusz1!F$9=1,Arkusz1!F53+Arkusz1!G53,"") ->  | G54: =IF(Arkusz1!F$9=1,Arkusz1!G53,"") ->  | H54: =IF(Arkusz1!H$9=1,Arkusz1!H53+Arkusz1!I53,"") ->  | I54: =IF(Arkusz1!H$9=1,Arkusz1!I53,"") ->  | J54: =IF(Arkusz1!J$9=1,Arkusz1!J53+Arkusz1!K53,"") ->  | K54: =IF(Arkusz1!J$9=1,Arkusz1!K53,"") ->  | L54: =IF(Arkusz1!L$9=1,Arkusz1!L53+Arkusz1!M53,"") ->  | M54: =IF(Arkusz1!L$9=1,Arkusz1!M53,"") ->  | N54: =Arkusz1!O53+Arkusz1!P53 -> -0.7602040936 | O54: =Arkusz1!P53 -> -15.45412078
A55: =Arkusz1!A54 -> 90.5 | B55: =IF(Arkusz1!B$9=1,Arkusz1!B54+Arkusz1!C54,"") -> 3.139303432 | C55: =IF(Arkusz1!B$9=1,Arkusz1!C54,"") -> -6.412681712 | D55: =IF(Arkusz1!D$9=1,Arkusz1!D54+Arkusz1!E54,"") -> -3.940382484 | E55: =IF(Arkusz1!D$9=1,Arkusz1!E54,"") -> -9.041439067 | F55: =IF(Arkusz1!F$9=1,Arkusz1!F54+Arkusz1!G54,"") ->  | G55: =IF(Arkusz1!F$9=1,Arkusz1!G54,"") ->  | H55: =IF(Arkusz1!H$9=1,Arkusz1!H54+Arkusz1!I54,"") ->  | I55: =IF(Arkusz1!H$9=1,Arkusz1!I54,"") ->  | J55: =IF(Arkusz1!J$9=1,Arkusz1!J54+Arkusz1!K54,"") ->  | K55: =IF(Arkusz1!J$9=1,Arkusz1!K54,"") ->  | L55: =IF(Arkusz1!L$9=1,Arkusz1!L54+Arkusz1!M54,"") ->  | M55: =IF(Arkusz1!L$9=1,Arkusz1!M54,"") ->  | N55: =Arkusz1!O54+Arkusz1!P54 -> -0.801079052 | O55: =Arkusz1!P54 -> -15.45412078
A56: =Arkusz1!A55 -> 91 | B56: =IF(Arkusz1!B$9=1,Arkusz1!B55+Arkusz1!C55,"") -> 2.937558011 | C56: =IF(Arkusz1!B$9=1,Arkusz1!C55,"") -> -6.412681712 | D56: =IF(Arkusz1!D$9=1,Arkusz1!D55+Arkusz1!E55,"") -> -3.772595165 | E56: =IF(Arkusz1!D$9=1,Arkusz1!E55,"") -> -9.041439067 | F56: =IF(Arkusz1!F$9=1,Arkusz1!F55+Arkusz1!G55,"") ->  | G56: =IF(Arkusz1!F$9=1,Arkusz1!G55,"") ->  | H56: =IF(Arkusz1!H$9=1,Arkusz1!H55+Arkusz1!I55,"") ->  | I56: =IF(Arkusz1!H$9=1,Arkusz1!I55,"") ->  | J56: =IF(Arkusz1!J$9=1,Arkusz1!J55+Arkusz1!K55,"") ->  | K56: =IF(Arkusz1!J$9=1,Arkusz1!K55,"") ->  | L56: =IF(Arkusz1!L$9=1,Arkusz1!L55+Arkusz1!M55,"") ->  | M56: =IF(Arkusz1!L$9=1,Arkusz1!M55,"") ->  | N56: =Arkusz1!O55+Arkusz1!P55 -> -0.8350371547 | O56: =Arkusz1!P55 -> -15.45412078
A57: =Arkusz1!A56 -> 91.5 | B57: =IF(Arkusz1!B$9=1,Arkusz1!B56+Arkusz1!C56,"") -> 2.739350336 | C57: =IF(Arkusz1!B$9=1,Arkusz1!C56,"") -> -6.412681712 | D57: =IF(Arkusz1!D$9=1,Arkusz1!D56+Arkusz1!E56,"") -> -3.601456617 | E57: =IF(Arkusz1!D$9=1,Arkusz1!E56,"") -> -9.041439067 | F57: =IF(Arkusz1!F$9=1,Arkusz1!F56+Arkusz1!G56,"") ->  | G57: =IF(Arkusz1!F$9=1,Arkusz1!G56,"") ->  | H57: =IF(Arkusz1!H$9=1,Arkusz1!H56+Arkusz1!I56,"") ->  | I57: =IF(Arkusz1!H$9=1,Arkusz1!I56,"") ->  | J57: =IF(Arkusz1!J$9=1,Arkusz1!J56+Arkusz1!K56,"") ->  | K57: =IF(Arkusz1!J$9=1,Arkusz1!K56,"") ->  | L57: =IF(Arkusz1!L$9=1,Arkusz1!L56+Arkusz1!M56,"") ->  | M57: =IF(Arkusz1!L$9=1,Arkusz1!M56,"") ->  | N57: =Arkusz1!O56+Arkusz1!P56 -> -0.862106281 | O57: =Arkusz1!P56 -> -15.45412078
A58: =Arkusz1!A57 -> 92 | B58: =IF(Arkusz1!B$9=1,Arkusz1!B57+Arkusz1!C57,"") -> 2.544644242 | C58: =IF(Arkusz1!B$9=1,Arkusz1!C57,"") -> -6.412681712 | D58: =IF(Arkusz1!D$9=1,Arkusz1!D57+Arkusz1!E57,"") -> -3.426960327 | E58: =IF(Arkusz1!D$9=1,Arkusz1!E57,"") -> -9.041439067 | F58: =IF(Arkusz1!F$9=1,Arkusz1!F57+Arkusz1!G57,"") ->  | G58: =IF(Arkusz1!F$9=1,Arkusz1!G57,"") ->  | H58: =IF(Arkusz1!H$9=1,Arkusz1!H57+Arkusz1!I57,"") ->  | I58: =IF(Arkusz1!H$9=1,Arkusz1!I57,"") ->  | J58: =IF(Arkusz1!J$9=1,Arkusz1!J57+Arkusz1!K57,"") ->  | K58: =IF(Arkusz1!J$9=1,Arkusz1!K57,"") ->  | L58: =IF(Arkusz1!L$9=1,Arkusz1!L57+Arkusz1!M57,"") ->  | M58: =IF(Arkusz1!L$9=1,Arkusz1!M57,"") ->  | N58: =Arkusz1!O57+Arkusz1!P57 -> -0.8823160849 | O58: =Arkusz1!P57 -> -15.45412078
A59: =Arkusz1!A58 -> 92.5 | B59: =IF(Arkusz1!B$9=1,Arkusz1!B58+Arkusz1!C58,"") -> 2.35340298 | C59: =IF(Arkusz1!B$9=1,Arkusz1!C58,"") -> -6.412681712 | D59: =IF(Arkusz1!D$9=1,Arkusz1!D58+Arkusz1!E58,"") -> -3.249100918 | E59: =IF(Arkusz1!D$9=1,Arkusz1!E58,"") -> -9.041439067 | F59: =IF(Arkusz1!F$9=1,Arkusz1!F58+Arkusz1!G58,"") ->  | G59: =IF(Arkusz1!F$9=1,Arkusz1!G58,"") ->  | H59: =IF(Arkusz1!H$9=1,Arkusz1!H58+Arkusz1!I58,"") ->  | I59: =IF(Arkusz1!H$9=1,Arkusz1!I58,"") ->  | J59: =IF(Arkusz1!J$9=1,Arkusz1!J58+Arkusz1!K58,"") ->  | K59: =IF(Arkusz1!J$9=1,Arkusz1!K58,"") ->  | L59: =IF(Arkusz1!L$9=1,Arkusz1!L58+Arkusz1!M58,"") ->  | M59: =IF(Arkusz1!L$9=1,Arkusz1!M58,"") ->  | N59: =Arkusz1!O58+Arkusz1!P58 -> -0.8956979388 | O59: =Arkusz1!P58 -> -15.45412078
A60: =Arkusz1!A59 -> 93 | B60: =IF(Arkusz1!B$9=1,Arkusz1!B59+Arkusz1!C59,"") -> 2.165589259 | C60: =IF(Arkusz1!B$9=1,Arkusz1!C59,"") -> -6.412681712 | D60: =IF(Arkusz1!D$9=1,Arkusz1!D59+Arkusz1!E59,"") -> -3.067874138 | E60: =IF(Arkusz1!D$9=1,Arkusz1!E59,"") -> -9.041439067 | F60: =IF(Arkusz1!F$9=1,Arkusz1!F59+Arkusz1!G59,"") ->  | G60: =IF(Arkusz1!F$9=1,Arkusz1!G59,"") ->  | H60: =IF(Arkusz1!H$9=1,Arkusz1!H59+Arkusz1!I59,"") ->  | I60: =IF(Arkusz1!H$9=1,Arkusz1!I59,"") ->  | J60: =IF(Arkusz1!J$9=1,Arkusz1!J59+Arkusz1!K59,"") ->  | K60: =IF(Arkusz1!J$9=1,Arkusz1!K59,"") ->  | L60: =IF(Arkusz1!L$9=1,Arkusz1!L59+Arkusz1!M59,"") ->  | M60: =IF(Arkusz1!L$9=1,Arkusz1!M59,"") ->  | N60: =Arkusz1!O59+Arkusz1!P59 -> -0.9022848784 | O60: =Arkusz1!P59 -> -15.45412078
A61: =Arkusz1!A60 -> 93.5 | B61: =IF(Arkusz1!B$9=1,Arkusz1!B60+Arkusz1!C60,"") -> 1.981165294 | C61: =IF(Arkusz1!B$9=1,Arkusz1!C60,"") -> -6.412681712 | D61: =IF(Arkusz1!D$9=1,Arkusz1!D60+Arkusz1!E60,"") -> -2.883276841 | E61: =IF(Arkusz1!D$9=1,Arkusz1!E60,"") -> -9.041439067 | F61: =IF(Arkusz1!F$9=1,Arkusz1!F60+Arkusz1!G60,"") ->  | G61: =IF(Arkusz1!F$9=1,Arkusz1!G60,"") ->  | H61: =IF(Arkusz1!H$9=1,Arkusz1!H60+Arkusz1!I60,"") ->  | I61: =IF(Arkusz1!H$9=1,Arkusz1!I60,"") ->  | J61: =IF(Arkusz1!J$9=1,Arkusz1!J60+Arkusz1!K60,"") ->  | K61: =IF(Arkusz1!J$9=1,Arkusz1!K60,"") ->  | L61: =IF(Arkusz1!L$9=1,Arkusz1!L60+Arkusz1!M60,"") ->  | M61: =IF(Arkusz1!L$9=1,Arkusz1!M60,"") ->  | N61: =Arkusz1!O60+Arkusz1!P60 -> -0.902111547 | O61: =Arkusz1!P60 -> -15.45412078
A62: =Arkusz1!A61 -> 94 | B62: =IF(Arkusz1!B$9=1,Arkusz1!B61+Arkusz1!C61,"") -> 1.800092837 | C62: =IF(Arkusz1!B$9=1,Arkusz1!C61,"") -> -6.412681712 | D62: =IF(Arkusz1!D$9=1,Arkusz1!D61+Arkusz1!E61,"") -> -2.695306977 | E62: =IF(Arkusz1!D$9=1,Arkusz1!E61,"") -> -9.041439067 | F62: =IF(Arkusz1!F$9=1,Arkusz1!F61+Arkusz1!G61,"") ->  | G62: =IF(Arkusz1!F$9=1,Arkusz1!G61,"") ->  | H62: =IF(Arkusz1!H$9=1,Arkusz1!H61+Arkusz1!I61,"") ->  | I62: =IF(Arkusz1!H$9=1,Arkusz1!I61,"") ->  | J62: =IF(Arkusz1!J$9=1,Arkusz1!J61+Arkusz1!K61,"") ->  | K62: =IF(Arkusz1!J$9=1,Arkusz1!K61,"") ->  | L62: =IF(Arkusz1!L$9=1,Arkusz1!L61+Arkusz1!M61,"") ->  | M62: =IF(Arkusz1!L$9=1,Arkusz1!M61,"") ->  | N62: =Arkusz1!O61+Arkusz1!P61 -> -0.8952141399 | O62: =Arkusz1!P61 -> -15.45412078
A63: =Arkusz1!A62 -> 94.5 | B63: =IF(Arkusz1!B$9=1,Arkusz1!B62+Arkusz1!C62,"") -> 1.622333225 | C63: =IF(Arkusz1!B$9=1,Arkusz1!C62,"") -> -6.412681712 | D63: =IF(Arkusz1!D$9=1,Arkusz1!D62+Arkusz1!E62,"") -> -2.503963575 | E63: =IF(Arkusz1!D$9=1,Arkusz1!E62,"") -> -9.041439067 | F63: =IF(Arkusz1!F$9=1,Arkusz1!F62+Arkusz1!G62,"") ->  | G63: =IF(Arkusz1!F$9=1,Arkusz1!G62,"") ->  | H63: =IF(Arkusz1!H$9=1,Arkusz1!H62+Arkusz1!I62,"") ->  | I63: =IF(Arkusz1!H$9=1,Arkusz1!I62,"") ->  | J63: =IF(Arkusz1!J$9=1,Arkusz1!J62+Arkusz1!K62,"") ->  | K63: =IF(Arkusz1!J$9=1,Arkusz1!K62,"") ->  | L63: =IF(Arkusz1!L$9=1,Arkusz1!L62+Arkusz1!M62,"") ->  | M63: =IF(Arkusz1!L$9=1,Arkusz1!M62,"") ->  | N63: =Arkusz1!O62+Arkusz1!P62 -> -0.8816303496 | O63: =Arkusz1!P62 -> -15.45412078
A64: =Arkusz1!A63 -> 95 | B64: =IF(Arkusz1!B$9=1,Arkusz1!B63+Arkusz1!C63,"") -> 1.447847417 | C64: =IF(Arkusz1!B$9=1,Arkusz1!C63,"") -> -6.412681712 | D64: =IF(Arkusz1!D$9=1,Arkusz1!D63+Arkusz1!E63,"") -> -2.309246727 | E64: =IF(Arkusz1!D$9=1,Arkusz1!E63,"") -> -9.041439067 | F64: =IF(Arkusz1!F$9=1,Arkusz1!F63+Arkusz1!G63,"") ->  | G64: =IF(Arkusz1!F$9=1,Arkusz1!G63,"") ->  | H64: =IF(Arkusz1!H$9=1,Arkusz1!H63+Arkusz1!I63,"") ->  | I64: =IF(Arkusz1!H$9=1,Arkusz1!I63,"") ->  | J64: =IF(Arkusz1!J$9=1,Arkusz1!J63+Arkusz1!K63,"") ->  | K64: =IF(Arkusz1!J$9=1,Arkusz1!K63,"") ->  | L64: =IF(Arkusz1!L$9=1,Arkusz1!L63+Arkusz1!M63,"") ->  | M64: =IF(Arkusz1!L$9=1,Arkusz1!M63,"") ->  | N64: =Arkusz1!O63+Arkusz1!P63 -> -0.8613993101 | O64: =Arkusz1!P63 -> -15.45412078
A65: =Arkusz1!A64 -> 95.5 | B65: =IF(Arkusz1!B$9=1,Arkusz1!B64+Arkusz1!C64,"") -> 1.276596027 | C65: =IF(Arkusz1!B$9=1,Arkusz1!C64,"") -> -6.412681712 | D65: =IF(Arkusz1!D$9=1,Arkusz1!D64+Arkusz1!E64,"") -> -2.111157569 | E65: =IF(Arkusz1!D$9=1,Arkusz1!E64,"") -> -9.041439067 | F65: =IF(Arkusz1!F$9=1,Arkusz1!F64+Arkusz1!G64,"") ->  | G65: =IF(Arkusz1!F$9=1,Arkusz1!G64,"") ->  | H65: =IF(Arkusz1!H$9=1,Arkusz1!H64+Arkusz1!I64,"") ->  | I65: =IF(Arkusz1!H$9=1,Arkusz1!I64,"") ->  | J65: =IF(Arkusz1!J$9=1,Arkusz1!J64+Arkusz1!K64,"") ->  | K65: =IF(Arkusz1!J$9=1,Arkusz1!K64,"") ->  | L65: =IF(Arkusz1!L$9=1,Arkusz1!L64+Arkusz1!M64,"") ->  | M65: =IF(Arkusz1!L$9=1,Arkusz1!M64,"") ->  | N65: =Arkusz1!O64+Arkusz1!P64 -> -0.8345615423 | O65: =Arkusz1!P64 -> -15.45412078
A66: =Arkusz1!A65 -> 96 | B66: =IF(Arkusz1!B$9=1,Arkusz1!B65+Arkusz1!C65,"") -> 1.108539369 | C66: =IF(Arkusz1!B$9=1,Arkusz1!C65,"") -> -6.412681712 | D66: =IF(Arkusz1!D$9=1,Arkusz1!D65+Arkusz1!E65,"") -> -1.909698268 | E66: =IF(Arkusz1!D$9=1,Arkusz1!E65,"") -> -9.041439067 | F66: =IF(Arkusz1!F$9=1,Arkusz1!F65+Arkusz1!G65,"") ->  | G66: =IF(Arkusz1!F$9=1,Arkusz1!G65,"") ->  | H66: =IF(Arkusz1!H$9=1,Arkusz1!H65+Arkusz1!I65,"") ->  | I66: =IF(Arkusz1!H$9=1,Arkusz1!I65,"") ->  | J66: =IF(Arkusz1!J$9=1,Arkusz1!J65+Arkusz1!K65,"") ->  | K66: =IF(Arkusz1!J$9=1,Arkusz1!K65,"") ->  | L66: =IF(Arkusz1!L$9=1,Arkusz1!L65+Arkusz1!M65,"") ->  | M66: =IF(Arkusz1!L$9=1,Arkusz1!M65,"") ->  | N66: =Arkusz1!O65+Arkusz1!P65 -> -0.8011588995 | O66: =Arkusz1!P65 -> -15.45412078
A67: =Arkusz1!A66 -> 96.5 | B67: =IF(Arkusz1!B$9=1,Arkusz1!B66+Arkusz1!C66,"") -> 0.943637486 | C67: =IF(Arkusz1!B$9=1,Arkusz1!C66,"") -> -6.412681712 | D67: =IF(Arkusz1!D$9=1,Arkusz1!D66+Arkusz1!E66,"") -> -1.704872 | E67: =IF(Arkusz1!D$9=1,Arkusz1!E66,"") -> -9.041439067 | F67: =IF(Arkusz1!F$9=1,Arkusz1!F66+Arkusz1!G66,"") ->  | G67: =IF(Arkusz1!F$9=1,Arkusz1!G66,"") ->  | H67: =IF(Arkusz1!H$9=1,Arkusz1!H66+Arkusz1!I66,"") ->  | I67: =IF(Arkusz1!H$9=1,Arkusz1!I66,"") ->  | J67: =IF(Arkusz1!J$9=1,Arkusz1!J66+Arkusz1!K66,"") ->  | K67: =IF(Arkusz1!J$9=1,Arkusz1!K66,"") ->  | L67: =IF(Arkusz1!L$9=1,Arkusz1!L66+Arkusz1!M66,"") ->  | M67: =IF(Arkusz1!L$9=1,Arkusz1!M66,"") ->  | N67: =Arkusz1!O66+Arkusz1!P66 -> -0.7612345136 | O67: =Arkusz1!P66 -> -15.45412078
A68: =Arkusz1!A67 -> 97 | B68: =IF(Arkusz1!B$9=1,Arkusz1!B67+Arkusz1!C67,"") -> 0.7818501899 | C68: =IF(Arkusz1!B$9=1,Arkusz1!C67,"") -> -6.412681712 | D68: =IF(Arkusz1!D$9=1,Arkusz1!D67+Arkusz1!E67,"") -> -1.496682931 | E68: =IF(Arkusz1!D$9=1,Arkusz1!E67,"") -> -9.041439067 | F68: =IF(Arkusz1!F$9=1,Arkusz1!F67+Arkusz1!G67,"") ->  | G68: =IF(Arkusz1!F$9=1,Arkusz1!G67,"") ->  | H68: =IF(Arkusz1!H$9=1,Arkusz1!H67+Arkusz1!I67,"") ->  | I68: =IF(Arkusz1!H$9=1,Arkusz1!I67,"") ->  | J68: =IF(Arkusz1!J$9=1,Arkusz1!J67+Arkusz1!K67,"") ->  | K68: =IF(Arkusz1!J$9=1,Arkusz1!K67,"") ->  | L68: =IF(Arkusz1!L$9=1,Arkusz1!L67+Arkusz1!M67,"") ->  | M68: =IF(Arkusz1!L$9=1,Arkusz1!M67,"") ->  | N68: =Arkusz1!O67+Arkusz1!P67 -> -0.7148327409 | O68: =Arkusz1!P67 -> -15.45412078
A69: =Arkusz1!A68 -> 97.5 | B69: =IF(Arkusz1!B$9=1,Arkusz1!B68+Arkusz1!C68,"") -> 0.6231370925 | C69: =IF(Arkusz1!B$9=1,Arkusz1!C68,"") -> -6.412681712 | D69: =IF(Arkusz1!D$9=1,Arkusz1!D68+Arkusz1!E68,"") -> -1.285136202 | E69: =IF(Arkusz1!D$9=1,Arkusz1!E68,"") -> -9.041439067 | F69: =IF(Arkusz1!F$9=1,Arkusz1!F68+Arkusz1!G68,"") ->  | G69: =IF(Arkusz1!F$9=1,Arkusz1!G68,"") ->  | H69: =IF(Arkusz1!H$9=1,Arkusz1!H68+Arkusz1!I68,"") ->  | I69: =IF(Arkusz1!H$9=1,Arkusz1!I68,"") ->  | J69: =IF(Arkusz1!J$9=1,Arkusz1!J68+Arkusz1!K68,"") ->  | K69: =IF(Arkusz1!J$9=1,Arkusz1!K68,"") ->  | L69: =IF(Arkusz1!L$9=1,Arkusz1!L68+Arkusz1!M68,"") ->  | M69: =IF(Arkusz1!L$9=1,Arkusz1!M68,"") ->  | N69: =Arkusz1!O68+Arkusz1!P68 -> -0.6619991093 | O69: =Arkusz1!P68 -> -15.45412078
A70: =Arkusz1!A69 -> 98 | B70: =IF(Arkusz1!B$9=1,Arkusz1!B69+Arkusz1!C69,"") -> 0.4674576399 | C70: =IF(Arkusz1!B$9=1,Arkusz1!C69,"") -> -6.412681712 | D70: =IF(Arkusz1!D$9=1,Arkusz1!D69+Arkusz1!E69,"") -> -1.070237905 | E70: =IF(Arkusz1!D$9=1,Arkusz1!E69,"") -> -9.041439067 | F70: =IF(Arkusz1!F$9=1,Arkusz1!F69+Arkusz1!G69,"") ->  | G70: =IF(Arkusz1!F$9=1,Arkusz1!G69,"") ->  | H70: =IF(Arkusz1!H$9=1,Arkusz1!H69+Arkusz1!I69,"") ->  | I70: =IF(Arkusz1!H$9=1,Arkusz1!I69,"") ->  | J70: =IF(Arkusz1!J$9=1,Arkusz1!J69+Arkusz1!K69,"") ->  | K70: =IF(Arkusz1!J$9=1,Arkusz1!K69,"") ->  | L70: =IF(Arkusz1!L$9=1,Arkusz1!L69+Arkusz1!M69,"") ->  | M70: =IF(Arkusz1!L$9=1,Arkusz1!M69,"") ->  | N70: =Arkusz1!O69+Arkusz1!P69 -> -0.6027802656 | O70: =Arkusz1!P69 -> -15.45412078
A71: =Arkusz1!A70 -> 98.5 | B71: =IF(Arkusz1!B$9=1,Arkusz1!B70+Arkusz1!C70,"") -> 0.3147711436 | C71: =IF(Arkusz1!B$9=1,Arkusz1!C70,"") -> -6.412681712 | D71: =IF(Arkusz1!D$9=1,Arkusz1!D70+Arkusz1!E70,"") -> -0.8519950674 | E71: =IF(Arkusz1!D$9=1,Arkusz1!E70,"") -> -9.041439067 | F71: =IF(Arkusz1!F$9=1,Arkusz1!F70+Arkusz1!G70,"") ->  | G71: =IF(Arkusz1!F$9=1,Arkusz1!G70,"") ->  | H71: =IF(Arkusz1!H$9=1,Arkusz1!H70+Arkusz1!I70,"") ->  | I71: =IF(Arkusz1!H$9=1,Arkusz1!I70,"") ->  | J71: =IF(Arkusz1!J$9=1,Arkusz1!J70+Arkusz1!K70,"") ->  | K71: =IF(Arkusz1!J$9=1,Arkusz1!K70,"") ->  | L71: =IF(Arkusz1!L$9=1,Arkusz1!L70+Arkusz1!M70,"") ->  | M71: =IF(Arkusz1!L$9=1,Arkusz1!M70,"") ->  | N71: =Arkusz1!O70+Arkusz1!P70 -> -0.5372239238 | O71: =Arkusz1!P70 -> -15.45412078
A72: =Arkusz1!A71 -> 99 | B72: =IF(Arkusz1!B$9=1,Arkusz1!B71+Arkusz1!C71,"") -> 0.1650368126 | C72: =IF(Arkusz1!B$9=1,Arkusz1!C71,"") -> -6.412681712 | D72: =IF(Arkusz1!D$9=1,Arkusz1!D71+Arkusz1!E71,"") -> -0.6304156256 | E72: =IF(Arkusz1!D$9=1,Arkusz1!E71,"") -> -9.041439067 | F72: =IF(Arkusz1!F$9=1,Arkusz1!F71+Arkusz1!G71,"") ->  | G72: =IF(Arkusz1!F$9=1,Arkusz1!G71,"") ->  | H72: =IF(Arkusz1!H$9=1,Arkusz1!H71+Arkusz1!I71,"") ->  | I72: =IF(Arkusz1!H$9=1,Arkusz1!I71,"") ->  | J72: =IF(Arkusz1!J$9=1,Arkusz1!J71+Arkusz1!K71,"") ->  | K72: =IF(Arkusz1!J$9=1,Arkusz1!K71,"") ->  | L72: =IF(Arkusz1!L$9=1,Arkusz1!L71+Arkusz1!M71,"") ->  | M72: =IF(Arkusz1!L$9=1,Arkusz1!M71,"") ->  | N72: =Arkusz1!O71+Arkusz1!P71 -> -0.465378813 | O72: =Arkusz1!P71 -> -15.45412078
A73: =Arkusz1!A72 -> 99.5 | B73: =IF(Arkusz1!B$9=1,Arkusz1!B72+Arkusz1!C72,"") -> 0.01821378195 | C73: =IF(Arkusz1!B$9=1,Arkusz1!C72,"") -> -6.412681712 | D73: =IF(Arkusz1!D$9=1,Arkusz1!D72+Arkusz1!E72,"") -> -0.4055084094 | E73: =IF(Arkusz1!D$9=1,Arkusz1!E72,"") -> -9.041439067 | F73: =IF(Arkusz1!F$9=1,Arkusz1!F72+Arkusz1!G72,"") ->  | G73: =IF(Arkusz1!F$9=1,Arkusz1!G72,"") ->  | H73: =IF(Arkusz1!H$9=1,Arkusz1!H72+Arkusz1!I72,"") ->  | I73: =IF(Arkusz1!H$9=1,Arkusz1!I72,"") ->  | J73: =IF(Arkusz1!J$9=1,Arkusz1!J72+Arkusz1!K72,"") ->  | K73: =IF(Arkusz1!J$9=1,Arkusz1!K72,"") ->  | L73: =IF(Arkusz1!L$9=1,Arkusz1!L72+Arkusz1!M72,"") ->  | M73: =IF(Arkusz1!L$9=1,Arkusz1!M72,"") ->  | N73: =Arkusz1!O72+Arkusz1!P72 -> -0.3872946275 | O73: =Arkusz1!P72 -> -15.45412078
A74: =Arkusz1!A73 -> 100 | B74: =IF(Arkusz1!B$9=1,Arkusz1!B73+Arkusz1!C73,"") -> -0.1257388571 | C74: =IF(Arkusz1!B$9=1,Arkusz1!C73,"") -> -6.412681712 | D74: =IF(Arkusz1!D$9=1,Arkusz1!D73+Arkusz1!E73,"") -> -0.177283119 | E74: =IF(Arkusz1!D$9=1,Arkusz1!E73,"") -> -9.041439067 | F74: =IF(Arkusz1!F$9=1,Arkusz1!F73+Arkusz1!G73,"") ->  | G74: =IF(Arkusz1!F$9=1,Arkusz1!G73,"") ->  | H74: =IF(Arkusz1!H$9=1,Arkusz1!H73+Arkusz1!I73,"") ->  | I74: =IF(Arkusz1!H$9=1,Arkusz1!I73,"") ->  | J74: =IF(Arkusz1!J$9=1,Arkusz1!J73+Arkusz1!K73,"") ->  | K74: =IF(Arkusz1!J$9=1,Arkusz1!K73,"") ->  | L74: =IF(Arkusz1!L$9=1,Arkusz1!L73+Arkusz1!M73,"") ->  | M74: =IF(Arkusz1!L$9=1,Arkusz1!M73,"") ->  | N74: =Arkusz1!O73+Arkusz1!P73 -> -0.3030219761 | O74: =Arkusz1!P73 -> -15.45412078
A75: =Arkusz1!A74 -> 100.5 | B75: =IF(Arkusz1!B$9=1,Arkusz1!B74+Arkusz1!C74,"") -> -0.26686203 | C75: =IF(Arkusz1!B$9=1,Arkusz1!C74,"") -> -6.412681712 | D75: =IF(Arkusz1!D$9=1,Arkusz1!D74+Arkusz1!E74,"") -> 0.05424969664 | E75: =IF(Arkusz1!D$9=1,Arkusz1!E74,"") -> -9.041439067 | F75: =IF(Arkusz1!F$9=1,Arkusz1!F74+Arkusz1!G74,"") ->  | G75: =IF(Arkusz1!F$9=1,Arkusz1!G74,"") ->  | H75: =IF(Arkusz1!H$9=1,Arkusz1!H74+Arkusz1!I74,"") ->  | I75: =IF(Arkusz1!H$9=1,Arkusz1!I74,"") ->  | J75: =IF(Arkusz1!J$9=1,Arkusz1!J74+Arkusz1!K74,"") ->  | K75: =IF(Arkusz1!J$9=1,Arkusz1!K74,"") ->  | L75: =IF(Arkusz1!L$9=1,Arkusz1!L74+Arkusz1!M74,"") ->  | M75: =IF(Arkusz1!L$9=1,Arkusz1!M74,"") ->  | N75: =Arkusz1!O74+Arkusz1!P74 -> -0.2126123333 | O75: =Arkusz1!P74 -> -15.45412078
A76: =Arkusz1!A75 -> 101 | B76: =IF(Arkusz1!B$9=1,Arkusz1!B75+Arkusz1!C75,"") -> -0.4051966516 | C76: =IF(Arkusz1!B$9=1,Arkusz1!C75,"") -> -6.412681712 | D76: =IF(Arkusz1!D$9=1,Arkusz1!D75+Arkusz1!E75,"") -> 0.2890786608 | E76: =IF(Arkusz1!D$9=1,Arkusz1!E75,"") -> -9.041439067 | F76: =IF(Arkusz1!F$9=1,Arkusz1!F75+Arkusz1!G75,"") ->  | G76: =IF(Arkusz1!F$9=1,Arkusz1!G75,"") ->  | H76: =IF(Arkusz1!H$9=1,Arkusz1!H75+Arkusz1!I75,"") ->  | I76: =IF(Arkusz1!H$9=1,Arkusz1!I75,"") ->  | J76: =IF(Arkusz1!J$9=1,Arkusz1!J75+Arkusz1!K75,"") ->  | K76: =IF(Arkusz1!J$9=1,Arkusz1!K75,"") ->  | L76: =IF(Arkusz1!L$9=1,Arkusz1!L75+Arkusz1!M75,"") ->  | M76: =IF(Arkusz1!L$9=1,Arkusz1!M75,"") ->  | N76: =Arkusz1!O75+Arkusz1!P75 -> -0.1161179908 | O76: =Arkusz1!P75 -> -15.45412078
A77: =Arkusz1!A76 -> 101.5 | B77: =IF(Arkusz1!B$9=1,Arkusz1!B76+Arkusz1!C76,"") -> -0.5407836003 | C77: =IF(Arkusz1!B$9=1,Arkusz1!C76,"") -> -6.412681712 | D77: =IF(Arkusz1!D$9=1,Arkusz1!D76+Arkusz1!E76,"") -> 0.527191591 | E77: =IF(Arkusz1!D$9=1,Arkusz1!E76,"") -> -9.041439067 | F77: =IF(Arkusz1!F$9=1,Arkusz1!F76+Arkusz1!G76,"") ->  | G77: =IF(Arkusz1!F$9=1,Arkusz1!G76,"") ->  | H77: =IF(Arkusz1!H$9=1,Arkusz1!H76+Arkusz1!I76,"") ->  | I77: =IF(Arkusz1!H$9=1,Arkusz1!I76,"") ->  | J77: =IF(Arkusz1!J$9=1,Arkusz1!J76+Arkusz1!K76,"") ->  | K77: =IF(Arkusz1!J$9=1,Arkusz1!K76,"") ->  | L77: =IF(Arkusz1!L$9=1,Arkusz1!L76+Arkusz1!M76,"") ->  | M77: =IF(Arkusz1!L$9=1,Arkusz1!M76,"") ->  | N77: =Arkusz1!O76+Arkusz1!P76 -> -0.01359200931 | O77: =Arkusz1!P76 -> -15.45412078
A78: =Arkusz1!A77 -> 102 | B78: =IF(Arkusz1!B$9=1,Arkusz1!B77+Arkusz1!C77,"") -> -0.6736636934 | C78: =IF(Arkusz1!B$9=1,Arkusz1!C77,"") -> -6.412681712 | D78: =IF(Arkusz1!D$9=1,Arkusz1!D77+Arkusz1!E77,"") -> 0.7685755212 | E78: =IF(Arkusz1!D$9=1,Arkusz1!E77,"") -> -9.041439067 | F78: =IF(Arkusz1!F$9=1,Arkusz1!F77+Arkusz1!G77,"") ->  | G78: =IF(Arkusz1!F$9=1,Arkusz1!G77,"") ->  | H78: =IF(Arkusz1!H$9=1,Arkusz1!H77+Arkusz1!I77,"") ->  | I78: =IF(Arkusz1!H$9=1,Arkusz1!I77,"") ->  | J78: =IF(Arkusz1!J$9=1,Arkusz1!J77+Arkusz1!K77,"") ->  | K78: =IF(Arkusz1!J$9=1,Arkusz1!K77,"") ->  | L78: =IF(Arkusz1!L$9=1,Arkusz1!L77+Arkusz1!M77,"") ->  | M78: =IF(Arkusz1!L$9=1,Arkusz1!M77,"") ->  | N78: =Arkusz1!O77+Arkusz1!P77 -> 0.0949118278 | O78: =Arkusz1!P77 -> -15.45412078
A79: =Arkusz1!A78 -> 102.5 | B79: =IF(Arkusz1!B$9=1,Arkusz1!B78+Arkusz1!C78,"") -> -0.8038776627 | C79: =IF(Arkusz1!B$9=1,Arkusz1!C78,"") -> -6.412681712 | D79: =IF(Arkusz1!D$9=1,Arkusz1!D78+Arkusz1!E78,"") -> 1.013216724 | E79: =IF(Arkusz1!D$9=1,Arkusz1!E78,"") -> -9.041439067 | F79: =IF(Arkusz1!F$9=1,Arkusz1!F78+Arkusz1!G78,"") ->  | G79: =IF(Arkusz1!F$9=1,Arkusz1!G78,"") ->  | H79: =IF(Arkusz1!H$9=1,Arkusz1!H78+Arkusz1!I78,"") ->  | I79: =IF(Arkusz1!H$9=1,Arkusz1!I78,"") ->  | J79: =IF(Arkusz1!J$9=1,Arkusz1!J78+Arkusz1!K78,"") ->  | K79: =IF(Arkusz1!J$9=1,Arkusz1!K78,"") ->  | L79: =IF(Arkusz1!L$9=1,Arkusz1!L78+Arkusz1!M78,"") ->  | M79: =IF(Arkusz1!L$9=1,Arkusz1!M78,"") ->  | N79: =Arkusz1!O78+Arkusz1!P78 -> 0.2093390608 | O79: =Arkusz1!P78 -> -15.45412078
A80: =Arkusz1!A79 -> 103 | B80: =IF(Arkusz1!B$9=1,Arkusz1!B79+Arkusz1!C79,"") -> -0.9314661319 | C80: =IF(Arkusz1!B$9=1,Arkusz1!C79,"") -> -6.412681712 | D80: =IF(Arkusz1!D$9=1,Arkusz1!D79+Arkusz1!E79,"") -> 1.261100731 | E80: =IF(Arkusz1!D$9=1,Arkusz1!E79,"") -> -9.041439067 | F80: =IF(Arkusz1!F$9=1,Arkusz1!F79+Arkusz1!G79,"") ->  | G80: =IF(Arkusz1!F$9=1,Arkusz1!G79,"") ->  | H80: =IF(Arkusz1!H$9=1,Arkusz1!H79+Arkusz1!I79,"") ->  | I80: =IF(Arkusz1!H$9=1,Arkusz1!I79,"") ->  | J80: =IF(Arkusz1!J$9=1,Arkusz1!J79+Arkusz1!K79,"") ->  | K80: =IF(Arkusz1!J$9=1,Arkusz1!K79,"") ->  | L80: =IF(Arkusz1!L$9=1,Arkusz1!L79+Arkusz1!M79,"") ->  | M80: =IF(Arkusz1!L$9=1,Arkusz1!M79,"") ->  | N80: =Arkusz1!O79+Arkusz1!P79 -> 0.3296345988 | O80: =Arkusz1!P79 -> -15.45412078
A81: =Arkusz1!A80 -> 103.5 | B81: =IF(Arkusz1!B$9=1,Arkusz1!B80+Arkusz1!C80,"") -> -1.056469594 | C81: =IF(Arkusz1!B$9=1,Arkusz1!C80,"") -> -6.412681712 | D81: =IF(Arkusz1!D$9=1,Arkusz1!D80+Arkusz1!E80,"") -> 1.512212358 | E81: =IF(Arkusz1!D$9=1,Arkusz1!E80,"") -> -9.041439067 | F81: =IF(Arkusz1!F$9=1,Arkusz1!F80+Arkusz1!G80,"") ->  | G81: =IF(Arkusz1!F$9=1,Arkusz1!G80,"") ->  | H81: =IF(Arkusz1!H$9=1,Arkusz1!H80+Arkusz1!I80,"") ->  | I81: =IF(Arkusz1!H$9=1,Arkusz1!I80,"") ->  | J81: =IF(Arkusz1!J$9=1,Arkusz1!J80+Arkusz1!K80,"") ->  | K81: =IF(Arkusz1!J$9=1,Arkusz1!K80,"") ->  | L81: =IF(Arkusz1!L$9=1,Arkusz1!L80+Arkusz1!M80,"") ->  | M81: =IF(Arkusz1!L$9=1,Arkusz1!M80,"") ->  | N81: =Arkusz1!O80+Arkusz1!P80 -> 0.4557427638 | O81: =Arkusz1!P80 -> -15.45412078
A82: =Arkusz1!A81 -> 104 | B82: =IF(Arkusz1!B$9=1,Arkusz1!B81+Arkusz1!C81,"") -> -1.178928392 | C82: =IF(Arkusz1!B$9=1,Arkusz1!C81,"") -> -6.412681712 | D82: =IF(Arkusz1!D$9=1,Arkusz1!D81+Arkusz1!E81,"") -> 1.766535727 | E82: =IF(Arkusz1!D$9=1,Arkusz1!E81,"") -> -9.041439067 | F82: =IF(Arkusz1!F$9=1,Arkusz1!F81+Arkusz1!G81,"") ->  | G82: =IF(Arkusz1!F$9=1,Arkusz1!G81,"") ->  | H82: =IF(Arkusz1!H$9=1,Arkusz1!H81+Arkusz1!I81,"") ->  | I82: =IF(Arkusz1!H$9=1,Arkusz1!I81,"") ->  | J82: =IF(Arkusz1!J$9=1,Arkusz1!J81+Arkusz1!K81,"") ->  | K82: =IF(Arkusz1!J$9=1,Arkusz1!K81,"") ->  | L82: =IF(Arkusz1!L$9=1,Arkusz1!L81+Arkusz1!M81,"") ->  | M82: =IF(Arkusz1!L$9=1,Arkusz1!M81,"") ->  | N82: =Arkusz1!O81+Arkusz1!P81 -> 0.5876073345 | O82: =Arkusz1!P81 -> -15.45412078
A83: =Arkusz1!A82 -> 104.5 | B83: =IF(Arkusz1!B$9=1,Arkusz1!B82+Arkusz1!C82,"") -> -1.298882696 | C83: =IF(Arkusz1!B$9=1,Arkusz1!C82,"") -> -6.412681712 | D83: =IF(Arkusz1!D$9=1,Arkusz1!D82+Arkusz1!E82,"") -> 2.024054284 | E83: =IF(Arkusz1!D$9=1,Arkusz1!E82,"") -> -9.041439067 | F83: =IF(Arkusz1!F$9=1,Arkusz1!F82+Arkusz1!G82,"") ->  | G83: =IF(Arkusz1!F$9=1,Arkusz1!G82,"") ->  | H83: =IF(Arkusz1!H$9=1,Arkusz1!H82+Arkusz1!I82,"") ->  | I83: =IF(Arkusz1!H$9=1,Arkusz1!I82,"") ->  | J83: =IF(Arkusz1!J$9=1,Arkusz1!J82+Arkusz1!K82,"") ->  | K83: =IF(Arkusz1!J$9=1,Arkusz1!K82,"") ->  | L83: =IF(Arkusz1!L$9=1,Arkusz1!L82+Arkusz1!M82,"") ->  | M83: =IF(Arkusz1!L$9=1,Arkusz1!M82,"") ->  | N83: =Arkusz1!O82+Arkusz1!P82 -> 0.7251715884 | O83: =Arkusz1!P82 -> -15.45412078
A84: =Arkusz1!A83 -> 105 | B84: =IF(Arkusz1!B$9=1,Arkusz1!B83+Arkusz1!C83,"") -> -1.416372485 | C84: =IF(Arkusz1!B$9=1,Arkusz1!C83,"") -> -6.412681712 | D84: =IF(Arkusz1!D$9=1,Arkusz1!D83+Arkusz1!E83,"") -> 2.284750828 | E84: =IF(Arkusz1!D$9=1,Arkusz1!E83,"") -> -9.041439067 | F84: =IF(Arkusz1!F$9=1,Arkusz1!F83+Arkusz1!G83,"") ->  | G84: =IF(Arkusz1!F$9=1,Arkusz1!G83,"") ->  | H84: =IF(Arkusz1!H$9=1,Arkusz1!H83+Arkusz1!I83,"") ->  | I84: =IF(Arkusz1!H$9=1,Arkusz1!I83,"") ->  | J84: =IF(Arkusz1!J$9=1,Arkusz1!J83+Arkusz1!K83,"") ->  | K84: =IF(Arkusz1!J$9=1,Arkusz1!K83,"") ->  | L84: =IF(Arkusz1!L$9=1,Arkusz1!L83+Arkusz1!M83,"") ->  | M84: =IF(Arkusz1!L$9=1,Arkusz1!M83,"") ->  | N84: =Arkusz1!O83+Arkusz1!P83 -> 0.8683783434 | O84: =Arkusz1!P83 -> -15.45412078
A85: =Arkusz1!A84 -> 105.5 | B85: =IF(Arkusz1!B$9=1,Arkusz1!B84+Arkusz1!C84,"") -> -1.53143753 | C85: =IF(Arkusz1!B$9=1,Arkusz1!C84,"") -> -6.412681712 | D85: =IF(Arkusz1!D$9=1,Arkusz1!D84+Arkusz1!E84,"") -> 2.548607529 | E85: =IF(Arkusz1!D$9=1,Arkusz1!E84,"") -> -9.041439067 | F85: =IF(Arkusz1!F$9=1,Arkusz1!F84+Arkusz1!G84,"") ->  | G85: =IF(Arkusz1!F$9=1,Arkusz1!G84,"") ->  | H85: =IF(Arkusz1!H$9=1,Arkusz1!H84+Arkusz1!I84,"") ->  | I85: =IF(Arkusz1!H$9=1,Arkusz1!I84,"") ->  | J85: =IF(Arkusz1!J$9=1,Arkusz1!J84+Arkusz1!K84,"") ->  | K85: =IF(Arkusz1!J$9=1,Arkusz1!K84,"") ->  | L85: =IF(Arkusz1!L$9=1,Arkusz1!L84+Arkusz1!M84,"") ->  | M85: =IF(Arkusz1!L$9=1,Arkusz1!M84,"") ->  | N85: =Arkusz1!O84+Arkusz1!P84 -> 1.017169999 | O85: =Arkusz1!P84 -> -15.45412078
A86: =Arkusz1!A85 -> 106 | B86: =IF(Arkusz1!B$9=1,Arkusz1!B85+Arkusz1!C85,"") -> -1.644117376 | C86: =IF(Arkusz1!B$9=1,Arkusz1!C85,"") -> -6.412681712 | D86: =IF(Arkusz1!D$9=1,Arkusz1!D85+Arkusz1!E85,"") -> 2.81560595 | E86: =IF(Arkusz1!D$9=1,Arkusz1!E85,"") -> -9.041439067 | F86: =IF(Arkusz1!F$9=1,Arkusz1!F85+Arkusz1!G85,"") ->  | G86: =IF(Arkusz1!F$9=1,Arkusz1!G85,"") ->  | H86: =IF(Arkusz1!H$9=1,Arkusz1!H85+Arkusz1!I85,"") ->  | I86: =IF(Arkusz1!H$9=1,Arkusz1!I85,"") ->  | J86: =IF(Arkusz1!J$9=1,Arkusz1!J85+Arkusz1!K85,"") ->  | K86: =IF(Arkusz1!J$9=1,Arkusz1!K85,"") ->  | L86: =IF(Arkusz1!L$9=1,Arkusz1!L85+Arkusz1!M85,"") ->  | M86: =IF(Arkusz1!L$9=1,Arkusz1!M85,"") ->  | N86: =Arkusz1!O85+Arkusz1!P85 -> 1.171488575 | O86: =Arkusz1!P85 -> -15.45412078
A87: =Arkusz1!A86 -> 106.5 | B87: =IF(Arkusz1!B$9=1,Arkusz1!B86+Arkusz1!C86,"") -> -1.754451323 | C87: =IF(Arkusz1!B$9=1,Arkusz1!C86,"") -> -6.412681712 | D87: =IF(Arkusz1!D$9=1,Arkusz1!D86+Arkusz1!E86,"") -> 3.085727073 | E87: =IF(Arkusz1!D$9=1,Arkusz1!E86,"") -> -9.041439067 | F87: =IF(Arkusz1!F$9=1,Arkusz1!F86+Arkusz1!G86,"") ->  | G87: =IF(Arkusz1!F$9=1,Arkusz1!G86,"") ->  | H87: =IF(Arkusz1!H$9=1,Arkusz1!H86+Arkusz1!I86,"") ->  | I87: =IF(Arkusz1!H$9=1,Arkusz1!I86,"") ->  | J87: =IF(Arkusz1!J$9=1,Arkusz1!J86+Arkusz1!K86,"") ->  | K87: =IF(Arkusz1!J$9=1,Arkusz1!K86,"") ->  | L87: =IF(Arkusz1!L$9=1,Arkusz1!L86+Arkusz1!M86,"") ->  | M87: =IF(Arkusz1!L$9=1,Arkusz1!M86,"") ->  | N87: =Arkusz1!O86+Arkusz1!P86 -> 1.33127575 | O87: =Arkusz1!P86 -> -15.45412078
A88: =Arkusz1!A87 -> 107 | B88: =IF(Arkusz1!B$9=1,Arkusz1!B87+Arkusz1!C87,"") -> -1.862478413 | C88: =IF(Arkusz1!B$9=1,Arkusz1!C87,"") -> -6.412681712 | D88: =IF(Arkusz1!D$9=1,Arkusz1!D87+Arkusz1!E87,"") -> 3.358951316 | E88: =IF(Arkusz1!D$9=1,Arkusz1!E87,"") -> -9.041439067 | F88: =IF(Arkusz1!F$9=1,Arkusz1!F87+Arkusz1!G87,"") ->  | G88: =IF(Arkusz1!F$9=1,Arkusz1!G87,"") ->  | H88: =IF(Arkusz1!H$9=1,Arkusz1!H87+Arkusz1!I87,"") ->  | I88: =IF(Arkusz1!H$9=1,Arkusz1!I87,"") ->  | J88: =IF(Arkusz1!J$9=1,Arkusz1!J87+Arkusz1!K87,"") ->  | K88: =IF(Arkusz1!J$9=1,Arkusz1!K87,"") ->  | L88: =IF(Arkusz1!L$9=1,Arkusz1!L87+Arkusz1!M87,"") ->  | M88: =IF(Arkusz1!L$9=1,Arkusz1!M87,"") ->  | N88: =Arkusz1!O87+Arkusz1!P87 -> 1.496472902 | O88: =Arkusz1!P87 -> -15.45412078
A89: =Arkusz1!A88 -> 107.5 | B89: =IF(Arkusz1!B$9=1,Arkusz1!B88+Arkusz1!C88,"") -> -1.968237415 | C89: =IF(Arkusz1!B$9=1,Arkusz1!C88,"") -> -6.412681712 | D89: =IF(Arkusz1!D$9=1,Arkusz1!D88+Arkusz1!E88,"") -> 3.635258557 | E89: =IF(Arkusz1!D$9=1,Arkusz1!E88,"") -> -9.041439067 | F89: =IF(Arkusz1!F$9=1,Arkusz1!F88+Arkusz1!G88,"") ->  | G89: =IF(Arkusz1!F$9=1,Arkusz1!G88,"") ->  | H89: =IF(Arkusz1!H$9=1,Arkusz1!H88+Arkusz1!I88,"") ->  | I89: =IF(Arkusz1!H$9=1,Arkusz1!I88,"") ->  | J89: =IF(Arkusz1!J$9=1,Arkusz1!J88+Arkusz1!K88,"") ->  | K89: =IF(Arkusz1!J$9=1,Arkusz1!K88,"") ->  | L89: =IF(Arkusz1!L$9=1,Arkusz1!L88+Arkusz1!M88,"") ->  | M89: =IF(Arkusz1!L$9=1,Arkusz1!M88,"") ->  | N89: =Arkusz1!O88+Arkusz1!P88 -> 1.667021142 | O89: =Arkusz1!P88 -> -15.45412078
A90: =Arkusz1!A89 -> 108 | B90: =IF(Arkusz1!B$9=1,Arkusz1!B89+Arkusz1!C89,"") -> -2.071766809 | C90: =IF(Arkusz1!B$9=1,Arkusz1!C89,"") -> -6.412681712 | D90: =IF(Arkusz1!D$9=1,Arkusz1!D89+Arkusz1!E89,"") -> 3.91462816 | E90: =IF(Arkusz1!D$9=1,Arkusz1!E89,"") -> -9.041439067 | F90: =IF(Arkusz1!F$9=1,Arkusz1!F89+Arkusz1!G89,"") ->  | G90: =IF(Arkusz1!F$9=1,Arkusz1!G89,"") ->  | H90: =IF(Arkusz1!H$9=1,Arkusz1!H89+Arkusz1!I89,"") ->  | I90: =IF(Arkusz1!H$9=1,Arkusz1!I89,"") ->  | J90: =IF(Arkusz1!J$9=1,Arkusz1!J89+Arkusz1!K89,"") ->  | K90: =IF(Arkusz1!J$9=1,Arkusz1!K89,"") ->  | L90: =IF(Arkusz1!L$9=1,Arkusz1!L89+Arkusz1!M89,"") ->  | M90: =IF(Arkusz1!L$9=1,Arkusz1!M89,"") ->  | N90: =Arkusz1!O89+Arkusz1!P89 -> 1.84286135 | O90: =Arkusz1!P89 -> -15.45412078
A91: =Arkusz1!A90 -> 108.5 | B91: =IF(Arkusz1!B$9=1,Arkusz1!B90+Arkusz1!C90,"") -> -2.173104774 | C91: =IF(Arkusz1!B$9=1,Arkusz1!C90,"") -> -6.412681712 | D91: =IF(Arkusz1!D$9=1,Arkusz1!D90+Arkusz1!E90,"") -> 4.197038986 | E91: =IF(Arkusz1!D$9=1,Arkusz1!E90,"") -> -9.041439067 | F91: =IF(Arkusz1!F$9=1,Arkusz1!F90+Arkusz1!G90,"") ->  | G91: =IF(Arkusz1!F$9=1,Arkusz1!G90,"") ->  | H91: =IF(Arkusz1!H$9=1,Arkusz1!H90+Arkusz1!I90,"") ->  | I91: =IF(Arkusz1!H$9=1,Arkusz1!I90,"") ->  | J91: =IF(Arkusz1!J$9=1,Arkusz1!J90+Arkusz1!K90,"") ->  | K91: =IF(Arkusz1!J$9=1,Arkusz1!K90,"") ->  | L91: =IF(Arkusz1!L$9=1,Arkusz1!L90+Arkusz1!M90,"") ->  | M91: =IF(Arkusz1!L$9=1,Arkusz1!M90,"") ->  | N91: =Arkusz1!O90+Arkusz1!P90 -> 2.023934213 | O91: =Arkusz1!P90 -> -15.45412078
A92: =Arkusz1!A91 -> 109 | B92: =IF(Arkusz1!B$9=1,Arkusz1!B91+Arkusz1!C91,"") -> -2.272289174 | C92: =IF(Arkusz1!B$9=1,Arkusz1!C91,"") -> -6.412681712 | D92: =IF(Arkusz1!D$9=1,Arkusz1!D91+Arkusz1!E91,"") -> 4.482469428 | E92: =IF(Arkusz1!D$9=1,Arkusz1!E91,"") -> -9.041439067 | F92: =IF(Arkusz1!F$9=1,Arkusz1!F91+Arkusz1!G91,"") ->  | G92: =IF(Arkusz1!F$9=1,Arkusz1!G91,"") ->  | H92: =IF(Arkusz1!H$9=1,Arkusz1!H91+Arkusz1!I91,"") ->  | I92: =IF(Arkusz1!H$9=1,Arkusz1!I91,"") ->  | J92: =IF(Arkusz1!J$9=1,Arkusz1!J91+Arkusz1!K91,"") ->  | K92: =IF(Arkusz1!J$9=1,Arkusz1!K91,"") ->  | L92: =IF(Arkusz1!L$9=1,Arkusz1!L91+Arkusz1!M91,"") ->  | M92: =IF(Arkusz1!L$9=1,Arkusz1!M91,"") ->  | N92: =Arkusz1!O91+Arkusz1!P91 -> 2.210180254 | O92: =Arkusz1!P91 -> -15.45412078
A93: =Arkusz1!A92 -> 109.5 | B93: =IF(Arkusz1!B$9=1,Arkusz1!B92+Arkusz1!C92,"") -> -2.36935755 | C93: =IF(Arkusz1!B$9=1,Arkusz1!C92,"") -> -6.412681712 | D93: =IF(Arkusz1!D$9=1,Arkusz1!D92+Arkusz1!E92,"") -> 4.77089742 | E93: =IF(Arkusz1!D$9=1,Arkusz1!E92,"") -> -9.041439067 | F93: =IF(Arkusz1!F$9=1,Arkusz1!F92+Arkusz1!G92,"") ->  | G93: =IF(Arkusz1!F$9=1,Arkusz1!G92,"") ->  | H93: =IF(Arkusz1!H$9=1,Arkusz1!H92+Arkusz1!I92,"") ->  | I93: =IF(Arkusz1!H$9=1,Arkusz1!I92,"") ->  | J93: =IF(Arkusz1!J$9=1,Arkusz1!J92+Arkusz1!K92,"") ->  | K93: =IF(Arkusz1!J$9=1,Arkusz1!K92,"") ->  | L93: =IF(Arkusz1!L$9=1,Arkusz1!L92+Arkusz1!M92,"") ->  | M93: =IF(Arkusz1!L$9=1,Arkusz1!M92,"") ->  | N93: =Arkusz1!O92+Arkusz1!P92 -> 2.40153987 | O93: =Arkusz1!P92 -> -15.45412078
A94: =Arkusz1!A93 -> 110 | B94: =IF(Arkusz1!B$9=1,Arkusz1!B93+Arkusz1!C93,"") -> -2.464347104 | C94: =IF(Arkusz1!B$9=1,Arkusz1!C93,"") -> -6.412681712 | D94: =IF(Arkusz1!D$9=1,Arkusz1!D93+Arkusz1!E93,"") -> 5.062300465 | E94: =IF(Arkusz1!D$9=1,Arkusz1!E93,"") -> -9.041439067 | F94: =IF(Arkusz1!F$9=1,Arkusz1!F93+Arkusz1!G93,"") ->  | G94: =IF(Arkusz1!F$9=1,Arkusz1!G93,"") ->  | H94: =IF(Arkusz1!H$9=1,Arkusz1!H93+Arkusz1!I93,"") ->  | I94: =IF(Arkusz1!H$9=1,Arkusz1!I93,"") ->  | J94: =IF(Arkusz1!J$9=1,Arkusz1!J93+Arkusz1!K93,"") ->  | K94: =IF(Arkusz1!J$9=1,Arkusz1!K93,"") ->  | L94: =IF(Arkusz1!L$9=1,Arkusz1!L93+Arkusz1!M93,"") ->  | M94: =IF(Arkusz1!L$9=1,Arkusz1!M93,"") ->  | N94: =Arkusz1!O93+Arkusz1!P93 -> 2.597953361 | O94: =Arkusz1!P93 -> -15.45412078
A95: =Arkusz1!A94 -> 110.5 | B95: =IF(Arkusz1!B$9=1,Arkusz1!B94+Arkusz1!C94,"") -> -2.557294692 | C95: =IF(Arkusz1!B$9=1,Arkusz1!C94,"") -> -6.412681712 | D95: =IF(Arkusz1!D$9=1,Arkusz1!D94+Arkusz1!E94,"") -> 5.856655653 | E95: =IF(Arkusz1!D$9=1,Arkusz1!E94,"") -> -8.541439067 | F95: =IF(Arkusz1!F$9=1,Arkusz1!F94+Arkusz1!G94,"") ->  | G95: =IF(Arkusz1!F$9=1,Arkusz1!G94,"") ->  | H95: =IF(Arkusz1!H$9=1,Arkusz1!H94+Arkusz1!I94,"") ->  | I95: =IF(Arkusz1!H$9=1,Arkusz1!I94,"") ->  | J95: =IF(Arkusz1!J$9=1,Arkusz1!J94+Arkusz1!K94,"") ->  | K95: =IF(Arkusz1!J$9=1,Arkusz1!K94,"") ->  | L95: =IF(Arkusz1!L$9=1,Arkusz1!L94+Arkusz1!M94,"") ->  | M95: =IF(Arkusz1!L$9=1,Arkusz1!M94,"") ->  | N95: =Arkusz1!O94+Arkusz1!P94 -> 3.299360961 | O95: =Arkusz1!P94 -> -14.95412078
A96: =Arkusz1!A95 -> 111 | B96: =IF(Arkusz1!B$9=1,Arkusz1!B95+Arkusz1!C95,"") -> -2.648236812 | C96: =IF(Arkusz1!B$9=1,Arkusz1!C95,"") -> -6.412681712 | D96: =IF(Arkusz1!D$9=1,Arkusz1!D95+Arkusz1!E95,"") -> 6.653939684 | E96: =IF(Arkusz1!D$9=1,Arkusz1!E95,"") -> -8.041439067 | F96: =IF(Arkusz1!F$9=1,Arkusz1!F95+Arkusz1!G95,"") ->  | G96: =IF(Arkusz1!F$9=1,Arkusz1!G95,"") ->  | H96: =IF(Arkusz1!H$9=1,Arkusz1!H95+Arkusz1!I95,"") ->  | I96: =IF(Arkusz1!H$9=1,Arkusz1!I95,"") ->  | J96: =IF(Arkusz1!J$9=1,Arkusz1!J95+Arkusz1!K95,"") ->  | K96: =IF(Arkusz1!J$9=1,Arkusz1!K95,"") ->  | L96: =IF(Arkusz1!L$9=1,Arkusz1!L95+Arkusz1!M95,"") ->  | M96: =IF(Arkusz1!L$9=1,Arkusz1!M95,"") ->  | N96: =Arkusz1!O95+Arkusz1!P95 -> 4.005702871 | O96: =Arkusz1!P95 -> -14.45412078
A97: =Arkusz1!A96 -> 111.5 | B97: =IF(Arkusz1!B$9=1,Arkusz1!B96+Arkusz1!C96,"") -> -2.737209599 | C97: =IF(Arkusz1!B$9=1,Arkusz1!C96,"") -> -6.412681712 | D97: =IF(Arkusz1!D$9=1,Arkusz1!D96+Arkusz1!E96,"") -> 7.454128884 | E97: =IF(Arkusz1!D$9=1,Arkusz1!E96,"") -> -7.541439067 | F97: =IF(Arkusz1!F$9=1,Arkusz1!F96+Arkusz1!G96,"") ->  | G97: =IF(Arkusz1!F$9=1,Arkusz1!G96,"") ->  | H97: =IF(Arkusz1!H$9=1,Arkusz1!H96+Arkusz1!I96,"") ->  | I97: =IF(Arkusz1!H$9=1,Arkusz1!I96,"") ->  | J97: =IF(Arkusz1!J$9=1,Arkusz1!J96+Arkusz1!K96,"") ->  | K97: =IF(Arkusz1!J$9=1,Arkusz1!K96,"") ->  | L97: =IF(Arkusz1!L$9=1,Arkusz1!L96+Arkusz1!M96,"") ->  | M97: =IF(Arkusz1!L$9=1,Arkusz1!M96,"") ->  | N97: =Arkusz1!O96+Arkusz1!P96 -> 4.716919285 | O97: =Arkusz1!P96 -> -13.95412078
A98: =Arkusz1!A97 -> 112 | B98: =IF(Arkusz1!B$9=1,Arkusz1!B97+Arkusz1!C97,"") -> -2.82424881 | C98: =IF(Arkusz1!B$9=1,Arkusz1!C97,"") -> -6.412681712 | D98: =IF(Arkusz1!D$9=1,Arkusz1!D97+Arkusz1!E97,"") -> 8.257199229 | E98: =IF(Arkusz1!D$9=1,Arkusz1!E97,"") -> -7.041439067 | F98: =IF(Arkusz1!F$9=1,Arkusz1!F97+Arkusz1!G97,"") ->  | G98: =IF(Arkusz1!F$9=1,Arkusz1!G97,"") ->  | H98: =IF(Arkusz1!H$9=1,Arkusz1!H97+Arkusz1!I97,"") ->  | I98: =IF(Arkusz1!H$9=1,Arkusz1!I97,"") ->  | J98: =IF(Arkusz1!J$9=1,Arkusz1!J97+Arkusz1!K97,"") ->  | K98: =IF(Arkusz1!J$9=1,Arkusz1!K97,"") ->  | L98: =IF(Arkusz1!L$9=1,Arkusz1!L97+Arkusz1!M97,"") ->  | M98: =IF(Arkusz1!L$9=1,Arkusz1!M97,"") ->  | N98: =Arkusz1!O97+Arkusz1!P97 -> 5.432950418 | O98: =Arkusz1!P97 -> -13.45412078
A99: =Arkusz1!A98 -> 112.5 | B99: =IF(Arkusz1!B$9=1,Arkusz1!B98+Arkusz1!C98,"") -> -2.909389825 | C99: =IF(Arkusz1!B$9=1,Arkusz1!C98,"") -> -6.412681712 | D99: =IF(Arkusz1!D$9=1,Arkusz1!D98+Arkusz1!E98,"") -> 9.063126361 | E99: =IF(Arkusz1!D$9=1,Arkusz1!E98,"") -> -6.541439067 | F99: =IF(Arkusz1!F$9=1,Arkusz1!F98+Arkusz1!G98,"") ->  | G99: =IF(Arkusz1!F$9=1,Arkusz1!G98,"") ->  | H99: =IF(Arkusz1!H$9=1,Arkusz1!H98+Arkusz1!I98,"") ->  | I99: =IF(Arkusz1!H$9=1,Arkusz1!I98,"") ->  | J99: =IF(Arkusz1!J$9=1,Arkusz1!J98+Arkusz1!K98,"") ->  | K99: =IF(Arkusz1!J$9=1,Arkusz1!K98,"") ->  | L99: =IF(Arkusz1!L$9=1,Arkusz1!L98+Arkusz1!M98,"") ->  | M99: =IF(Arkusz1!L$9=1,Arkusz1!M98,"") ->  | N99: =Arkusz1!O98+Arkusz1!P98 -> 6.153736537 | O99: =Arkusz1!P98 -> -12.95412078
A100: =Arkusz1!A99 -> 113 | B100: =IF(Arkusz1!B$9=1,Arkusz1!B99+Arkusz1!C99,"") -> -2.99266763 | C100: =IF(Arkusz1!B$9=1,Arkusz1!C99,"") -> -6.412681712 | D100: =IF(Arkusz1!D$9=1,Arkusz1!D99+Arkusz1!E99,"") -> 9.871885613 | E100: =IF(Arkusz1!D$9=1,Arkusz1!E99,"") -> -6.041439067 | F100: =IF(Arkusz1!F$9=1,Arkusz1!F99+Arkusz1!G99,"") ->  | G100: =IF(Arkusz1!F$9=1,Arkusz1!G99,"") ->  | H100: =IF(Arkusz1!H$9=1,Arkusz1!H99+Arkusz1!I99,"") ->  | I100: =IF(Arkusz1!H$9=1,Arkusz1!I99,"") ->  | J100: =IF(Arkusz1!J$9=1,Arkusz1!J99+Arkusz1!K99,"") ->  | K100: =IF(Arkusz1!J$9=1,Arkusz1!K99,"") ->  | L100: =IF(Arkusz1!L$9=1,Arkusz1!L99+Arkusz1!M99,"") ->  | M100: =IF(Arkusz1!L$9=1,Arkusz1!M99,"") ->  | N100: =Arkusz1!O99+Arkusz1!P99 -> 6.879217983 | O100: =Arkusz1!P99 -> -12.45412078
A101: =Arkusz1!A100 -> 113.5 | B101: =IF(Arkusz1!B$9=1,Arkusz1!B100+Arkusz1!C100,"") -> -3.07411682 | C101: =IF(Arkusz1!B$9=1,Arkusz1!C100,"") -> -6.412681712 | D101: =IF(Arkusz1!D$9=1,Arkusz1!D100+Arkusz1!E100,"") -> 10.68345202 | E101: =IF(Arkusz1!D$9=1,Arkusz1!E100,"") -> -5.541439067 | F101: =IF(Arkusz1!F$9=1,Arkusz1!F100+Arkusz1!G100,"") ->  | G101: =IF(Arkusz1!F$9=1,Arkusz1!G100,"") ->  | H101: =IF(Arkusz1!H$9=1,Arkusz1!H100+Arkusz1!I100,"") ->  | I101: =IF(Arkusz1!H$9=1,Arkusz1!I100,"") ->  | J101: =IF(Arkusz1!J$9=1,Arkusz1!J100+Arkusz1!K100,"") ->  | K101: =IF(Arkusz1!J$9=1,Arkusz1!K100,"") ->  | L101: =IF(Arkusz1!L$9=1,Arkusz1!L100+Arkusz1!M100,"") ->  | M101: =IF(Arkusz1!L$9=1,Arkusz1!M100,"") ->  | N101: =Arkusz1!O100+Arkusz1!P100 -> 7.609335199 | O101: =Arkusz1!P100 -> -11.95412078
A102: =Arkusz1!A101 -> 114 | B102: =IF(Arkusz1!B$9=1,Arkusz1!B101+Arkusz1!C101,"") -> -3.153771586 | C102: =IF(Arkusz1!B$9=1,Arkusz1!C101,"") -> -6.412681712 | D102: =IF(Arkusz1!D$9=1,Arkusz1!D101+Arkusz1!E101,"") -> 11.49780034 | E102: =IF(Arkusz1!D$9=1,Arkusz1!E101,"") -> -5.041439067 | F102: =IF(Arkusz1!F$9=1,Arkusz1!F101+Arkusz1!G101,"") ->  | G102: =IF(Arkusz1!F$9=1,Arkusz1!G101,"") ->  | H102: =IF(Arkusz1!H$9=1,Arkusz1!H101+Arkusz1!I101,"") ->  | I102: =IF(Arkusz1!H$9=1,Arkusz1!I101,"") ->  | J102: =IF(Arkusz1!J$9=1,Arkusz1!J101+Arkusz1!K101,"") ->  | K102: =IF(Arkusz1!J$9=1,Arkusz1!K101,"") ->  | L102: =IF(Arkusz1!L$9=1,Arkusz1!L101+Arkusz1!M101,"") ->  | M102: =IF(Arkusz1!L$9=1,Arkusz1!M101,"") ->  | N102: =Arkusz1!O101+Arkusz1!P101 -> 8.344028755 | O102: =Arkusz1!P101 -> -11.45412078
A103: =Arkusz1!A102 -> 114.5 | B103: =IF(Arkusz1!B$9=1,Arkusz1!B102+Arkusz1!C102,"") -> -3.231665715 | C103: =IF(Arkusz1!B$9=1,Arkusz1!C102,"") -> -6.412681712 | D103: =IF(Arkusz1!D$9=1,Arkusz1!D102+Arkusz1!E102,"") -> 12.31490509 | E103: =IF(Arkusz1!D$9=1,Arkusz1!E102,"") -> -4.541439067 | F103: =IF(Arkusz1!F$9=1,Arkusz1!F102+Arkusz1!G102,"") ->  | G103: =IF(Arkusz1!F$9=1,Arkusz1!G102,"") ->  | H103: =IF(Arkusz1!H$9=1,Arkusz1!H102+Arkusz1!I102,"") ->  | I103: =IF(Arkusz1!H$9=1,Arkusz1!I102,"") ->  | J103: =IF(Arkusz1!J$9=1,Arkusz1!J102+Arkusz1!K102,"") ->  | K103: =IF(Arkusz1!J$9=1,Arkusz1!K102,"") ->  | L103: =IF(Arkusz1!L$9=1,Arkusz1!L102+Arkusz1!M102,"") ->  | M103: =IF(Arkusz1!L$9=1,Arkusz1!M102,"") ->  | N103: =Arkusz1!O102+Arkusz1!P102 -> 9.083239371 | O103: =Arkusz1!P102 -> -10.95412078
A104: =Arkusz1!A103 -> 115 | B104: =IF(Arkusz1!B$9=1,Arkusz1!B103+Arkusz1!C103,"") -> -3.307832579 | C104: =IF(Arkusz1!B$9=1,Arkusz1!C103,"") -> -6.412681712 | D104: =IF(Arkusz1!D$9=1,Arkusz1!D103+Arkusz1!E103,"") -> 13.13474052 | E104: =IF(Arkusz1!D$9=1,Arkusz1!E103,"") -> -4.041439067 | F104: =IF(Arkusz1!F$9=1,Arkusz1!F103+Arkusz1!G103,"") ->  | G104: =IF(Arkusz1!F$9=1,Arkusz1!G103,"") ->  | H104: =IF(Arkusz1!H$9=1,Arkusz1!H103+Arkusz1!I103,"") ->  | I104: =IF(Arkusz1!H$9=1,Arkusz1!I103,"") ->  | J104: =IF(Arkusz1!J$9=1,Arkusz1!J103+Arkusz1!K103,"") ->  | K104: =IF(Arkusz1!J$9=1,Arkusz1!K103,"") ->  | L104: =IF(Arkusz1!L$9=1,Arkusz1!L103+Arkusz1!M103,"") ->  | M104: =IF(Arkusz1!L$9=1,Arkusz1!M103,"") ->  | N104: =Arkusz1!O103+Arkusz1!P103 -> 9.826907938 | O104: =Arkusz1!P103 -> -10.45412078
A105: =Arkusz1!A104 -> 115.5 | B105: =IF(Arkusz1!B$9=1,Arkusz1!B104+Arkusz1!C104,"") -> -3.382305138 | C105: =IF(Arkusz1!B$9=1,Arkusz1!C104,"") -> -6.412681712 | D105: =IF(Arkusz1!D$9=1,Arkusz1!D104+Arkusz1!E104,"") -> 13.95728068 | E105: =IF(Arkusz1!D$9=1,Arkusz1!E104,"") -> -3.541439067 | F105: =IF(Arkusz1!F$9=1,Arkusz1!F104+Arkusz1!G104,"") ->  | G105: =IF(Arkusz1!F$9=1,Arkusz1!G104,"") ->  | H105: =IF(Arkusz1!H$9=1,Arkusz1!H104+Arkusz1!I104,"") ->  | I105: =IF(Arkusz1!H$9=1,Arkusz1!I104,"") ->  | J105: =IF(Arkusz1!J$9=1,Arkusz1!J104+Arkusz1!K104,"") ->  | K105: =IF(Arkusz1!J$9=1,Arkusz1!K104,"") ->  | L105: =IF(Arkusz1!L$9=1,Arkusz1!L104+Arkusz1!M104,"") ->  | M105: =IF(Arkusz1!L$9=1,Arkusz1!M104,"") ->  | N105: =Arkusz1!O104+Arkusz1!P104 -> 10.57497554 | O105: =Arkusz1!P104 -> -9.954120779
A106: =Arkusz1!A105 -> 116 | B106: =IF(Arkusz1!B$9=1,Arkusz1!B105+Arkusz1!C105,"") -> -3.455115931 | C106: =IF(Arkusz1!B$9=1,Arkusz1!C105,"") -> -6.412681712 | D106: =IF(Arkusz1!D$9=1,Arkusz1!D105+Arkusz1!E105,"") -> 14.78249942 | E106: =IF(Arkusz1!D$9=1,Arkusz1!E105,"") -> -3.041439067 | F106: =IF(Arkusz1!F$9=1,Arkusz1!F105+Arkusz1!G105,"") ->  | G106: =IF(Arkusz1!F$9=1,Arkusz1!G105,"") ->  | H106: =IF(Arkusz1!H$9=1,Arkusz1!H105+Arkusz1!I105,"") ->  | I106: =IF(Arkusz1!H$9=1,Arkusz1!I105,"") ->  | J106: =IF(Arkusz1!J$9=1,Arkusz1!J105+Arkusz1!K105,"") ->  | K106: =IF(Arkusz1!J$9=1,Arkusz1!K105,"") ->  | L106: =IF(Arkusz1!L$9=1,Arkusz1!L105+Arkusz1!M105,"") ->  | M106: =IF(Arkusz1!L$9=1,Arkusz1!M105,"") ->  | N106: =Arkusz1!O105+Arkusz1!P105 -> 11.32738349 | O106: =Arkusz1!P105 -> -9.454120779
A107: =Arkusz1!A106 -> 116.5 | B107: =IF(Arkusz1!B$9=1,Arkusz1!B106+Arkusz1!C106,"") -> -3.526297072 | C107: =IF(Arkusz1!B$9=1,Arkusz1!C106,"") -> -6.412681712 | D107: =IF(Arkusz1!D$9=1,Arkusz1!D106+Arkusz1!E106,"") -> 15.61037038 | E107: =IF(Arkusz1!D$9=1,Arkusz1!E106,"") -> -2.541439067 | F107: =IF(Arkusz1!F$9=1,Arkusz1!F106+Arkusz1!G106,"") ->  | G107: =IF(Arkusz1!F$9=1,Arkusz1!G106,"") ->  | H107: =IF(Arkusz1!H$9=1,Arkusz1!H106+Arkusz1!I106,"") ->  | I107: =IF(Arkusz1!H$9=1,Arkusz1!I106,"") ->  | J107: =IF(Arkusz1!J$9=1,Arkusz1!J106+Arkusz1!K106,"") ->  | K107: =IF(Arkusz1!J$9=1,Arkusz1!K106,"") ->  | L107: =IF(Arkusz1!L$9=1,Arkusz1!L106+Arkusz1!M106,"") ->  | M107: =IF(Arkusz1!L$9=1,Arkusz1!M106,"") ->  | N107: =Arkusz1!O106+Arkusz1!P106 -> 12.08407331 | O107: =Arkusz1!P106 -> -8.954120779
A108: =Arkusz1!A107 -> 117 | B108: =IF(Arkusz1!B$9=1,Arkusz1!B107+Arkusz1!C107,"") -> -3.595880254 | C108: =IF(Arkusz1!B$9=1,Arkusz1!C107,"") -> -6.412681712 | D108: =IF(Arkusz1!D$9=1,Arkusz1!D107+Arkusz1!E107,"") -> 16.44086706 | E108: =IF(Arkusz1!D$9=1,Arkusz1!E107,"") -> -2.041439067 | F108: =IF(Arkusz1!F$9=1,Arkusz1!F107+Arkusz1!G107,"") ->  | G108: =IF(Arkusz1!F$9=1,Arkusz1!G107,"") ->  | H108: =IF(Arkusz1!H$9=1,Arkusz1!H107+Arkusz1!I107,"") ->  | I108: =IF(Arkusz1!H$9=1,Arkusz1!I107,"") ->  | J108: =IF(Arkusz1!J$9=1,Arkusz1!J107+Arkusz1!K107,"") ->  | K108: =IF(Arkusz1!J$9=1,Arkusz1!K107,"") ->  | L108: =IF(Arkusz1!L$9=1,Arkusz1!L107+Arkusz1!M107,"") ->  | M108: =IF(Arkusz1!L$9=1,Arkusz1!M107,"") ->  | N108: =Arkusz1!O107+Arkusz1!P107 -> 12.84498681 | O108: =Arkusz1!P107 -> -8.454120779
A109: =Arkusz1!A108 -> 117.5 | B109: =IF(Arkusz1!B$9=1,Arkusz1!B108+Arkusz1!C108,"") -> -3.663896739 | C109: =IF(Arkusz1!B$9=1,Arkusz1!C108,"") -> -6.412681712 | D109: =IF(Arkusz1!D$9=1,Arkusz1!D108+Arkusz1!E108,"") -> 17.27396278 | E109: =IF(Arkusz1!D$9=1,Arkusz1!E108,"") -> -1.541439067 | F109: =IF(Arkusz1!F$9=1,Arkusz1!F108+Arkusz1!G108,"") ->  | G109: =IF(Arkusz1!F$9=1,Arkusz1!G108,"") ->  | H109: =IF(Arkusz1!H$9=1,Arkusz1!H108+Arkusz1!I108,"") ->  | I109: =IF(Arkusz1!H$9=1,Arkusz1!I108,"") ->  | J109: =IF(Arkusz1!J$9=1,Arkusz1!J108+Arkusz1!K108,"") ->  | K109: =IF(Arkusz1!J$9=1,Arkusz1!K108,"") ->  | L109: =IF(Arkusz1!L$9=1,Arkusz1!L108+Arkusz1!M108,"") ->  | M109: =IF(Arkusz1!L$9=1,Arkusz1!M108,"") ->  | N109: =Arkusz1!O108+Arkusz1!P108 -> 13.61006604 | O109: =Arkusz1!P108 -> -7.954120779
A110: =Arkusz1!A109 -> 118 | B110: =IF(Arkusz1!B$9=1,Arkusz1!B109+Arkusz1!C109,"") -> -3.730377358 | C110: =IF(Arkusz1!B$9=1,Arkusz1!C109,"") -> -6.412681712 | D110: =IF(Arkusz1!D$9=1,Arkusz1!D109+Arkusz1!E109,"") -> 18.10963074 | E110: =IF(Arkusz1!D$9=1,Arkusz1!E109,"") -> -1.041439067 | F110: =IF(Arkusz1!F$9=1,Arkusz1!F109+Arkusz1!G109,"") ->  | G110: =IF(Arkusz1!F$9=1,Arkusz1!G109,"") ->  | H110: =IF(Arkusz1!H$9=1,Arkusz1!H109+Arkusz1!I109,"") ->  | I110: =IF(Arkusz1!H$9=1,Arkusz1!I109,"") ->  | J110: =IF(Arkusz1!J$9=1,Arkusz1!J109+Arkusz1!K109,"") ->  | K110: =IF(Arkusz1!J$9=1,Arkusz1!K109,"") ->  | L110: =IF(Arkusz1!L$9=1,Arkusz1!L109+Arkusz1!M109,"") ->  | M110: =IF(Arkusz1!L$9=1,Arkusz1!M109,"") ->  | N110: =Arkusz1!O109+Arkusz1!P109 -> 14.37925338 | O110: =Arkusz1!P109 -> -7.454120779
A111: =Arkusz1!A110 -> 118.5 | B111: =IF(Arkusz1!B$9=1,Arkusz1!B110+Arkusz1!C110,"") -> -3.795352514 | C111: =IF(Arkusz1!B$9=1,Arkusz1!C110,"") -> -6.412681712 | D111: =IF(Arkusz1!D$9=1,Arkusz1!D110+Arkusz1!E110,"") -> 18.947844 | E111: =IF(Arkusz1!D$9=1,Arkusz1!E110,"") -> -0.5414390673 | F111: =IF(Arkusz1!F$9=1,Arkusz1!F110+Arkusz1!G110,"") ->  | G111: =IF(Arkusz1!F$9=1,Arkusz1!G110,"") ->  | H111: =IF(Arkusz1!H$9=1,Arkusz1!H110+Arkusz1!I110,"") ->  | I111: =IF(Arkusz1!H$9=1,Arkusz1!I110,"") ->  | J111: =IF(Arkusz1!J$9=1,Arkusz1!J110+Arkusz1!K110,"") ->  | K111: =IF(Arkusz1!J$9=1,Arkusz1!K110,"") ->  | L111: =IF(Arkusz1!L$9=1,Arkusz1!L110+Arkusz1!M110,"") ->  | M111: =IF(Arkusz1!L$9=1,Arkusz1!M110,"") ->  | N111: =Arkusz1!O110+Arkusz1!P110 -> 15.15249148 | O111: =Arkusz1!P110 -> -6.954120779
A112: =Arkusz1!A111 -> 119 | B112: =IF(Arkusz1!B$9=1,Arkusz1!B111+Arkusz1!C111,"") -> -3.858852173 | C112: =IF(Arkusz1!B$9=1,Arkusz1!C111,"") -> -6.412681712 | D112: =IF(Arkusz1!D$9=1,Arkusz1!D111+Arkusz1!E111,"") -> 19.78857553 | E112: =IF(Arkusz1!D$9=1,Arkusz1!E111,"") -> -0.04143906731 | F112: =IF(Arkusz1!F$9=1,Arkusz1!F111+Arkusz1!G111,"") ->  | G112: =IF(Arkusz1!F$9=1,Arkusz1!G111,"") ->  | H112: =IF(Arkusz1!H$9=1,Arkusz1!H111+Arkusz1!I111,"") ->  | I112: =IF(Arkusz1!H$9=1,Arkusz1!I111,"") ->  | J112: =IF(Arkusz1!J$9=1,Arkusz1!J111+Arkusz1!K111,"") ->  | K112: =IF(Arkusz1!J$9=1,Arkusz1!K111,"") ->  | L112: =IF(Arkusz1!L$9=1,Arkusz1!L111+Arkusz1!M111,"") ->  | M112: =IF(Arkusz1!L$9=1,Arkusz1!M111,"") ->  | N112: =Arkusz1!O111+Arkusz1!P111 -> 15.92972335 | O112: =Arkusz1!P111 -> -6.454120779
A113: =Arkusz1!A112 -> 119.5 | B113: =IF(Arkusz1!B$9=1,Arkusz1!B112+Arkusz1!C112,"") -> -3.920905871 | C113: =IF(Arkusz1!B$9=1,Arkusz1!C112,"") -> -6.412681712 | D113: =IF(Arkusz1!D$9=1,Arkusz1!D112+Arkusz1!E112,"") -> 20.63179819 | E113: =IF(Arkusz1!D$9=1,Arkusz1!E112,"") -> 0.4585609327 | F113: =IF(Arkusz1!F$9=1,Arkusz1!F112+Arkusz1!G112,"") ->  | G113: =IF(Arkusz1!F$9=1,Arkusz1!G112,"") ->  | H113: =IF(Arkusz1!H$9=1,Arkusz1!H112+Arkusz1!I112,"") ->  | I113: =IF(Arkusz1!H$9=1,Arkusz1!I112,"") ->  | J113: =IF(Arkusz1!J$9=1,Arkusz1!J112+Arkusz1!K112,"") ->  | K113: =IF(Arkusz1!J$9=1,Arkusz1!K112,"") ->  | L113: =IF(Arkusz1!L$9=1,Arkusz1!L112+Arkusz1!M112,"") ->  | M113: =IF(Arkusz1!L$9=1,Arkusz1!M112,"") ->  | N113: =Arkusz1!O112+Arkusz1!P112 -> 16.71089232 | O113: =Arkusz1!P112 -> -5.954120779
A114: =Arkusz1!A113 -> 120 | B114: =IF(Arkusz1!B$9=1,Arkusz1!B113+Arkusz1!C113,"") -> -3.981542708 | C114: =IF(Arkusz1!B$9=1,Arkusz1!C113,"") -> -6.412681712 | D114: =IF(Arkusz1!D$9=1,Arkusz1!D113+Arkusz1!E113,"") -> 21.47748479 | E114: =IF(Arkusz1!D$9=1,Arkusz1!E113,"") -> 0.9585609327 | F114: =IF(Arkusz1!F$9=1,Arkusz1!F113+Arkusz1!G113,"") ->  | G114: =IF(Arkusz1!F$9=1,Arkusz1!G113,"") ->  | H114: =IF(Arkusz1!H$9=1,Arkusz1!H113+Arkusz1!I113,"") ->  | I114: =IF(Arkusz1!H$9=1,Arkusz1!I113,"") ->  | J114: =IF(Arkusz1!J$9=1,Arkusz1!J113+Arkusz1!K113,"") ->  | K114: =IF(Arkusz1!J$9=1,Arkusz1!K113,"") ->  | L114: =IF(Arkusz1!L$9=1,Arkusz1!L113+Arkusz1!M113,"") ->  | M114: =IF(Arkusz1!L$9=1,Arkusz1!M113,"") ->  | N114: =Arkusz1!O113+Arkusz1!P113 -> 17.49594208 | O114: =Arkusz1!P113 -> -5.454120779
A115: =Arkusz1!A114 -> 120.5 | B115: =IF(Arkusz1!B$9=1,Arkusz1!B114+Arkusz1!C114,"") -> -4.040791351 | C115: =IF(Arkusz1!B$9=1,Arkusz1!C114,"") -> -6.412681712 | D115: =IF(Arkusz1!D$9=1,Arkusz1!D114+Arkusz1!E114,"") -> 22.32560804 | E115: =IF(Arkusz1!D$9=1,Arkusz1!E114,"") -> 1.458560933 | F115: =IF(Arkusz1!F$9=1,Arkusz1!F114+Arkusz1!G114,"") ->  | G115: =IF(Arkusz1!F$9=1,Arkusz1!G114,"") ->  | H115: =IF(Arkusz1!H$9=1,Arkusz1!H114+Arkusz1!I114,"") ->  | I115: =IF(Arkusz1!H$9=1,Arkusz1!I114,"") ->  | J115: =IF(Arkusz1!J$9=1,Arkusz1!J114+Arkusz1!K114,"") ->  | K115: =IF(Arkusz1!J$9=1,Arkusz1!K114,"") ->  | L115: =IF(Arkusz1!L$9=1,Arkusz1!L114+Arkusz1!M114,"") ->  | M115: =IF(Arkusz1!L$9=1,Arkusz1!M114,"") ->  | N115: =Arkusz1!O114+Arkusz1!P114 -> 18.28481669 | O115: =Arkusz1!P114 -> -4.954120779
A116: =Arkusz1!A115 -> 121 | B116: =IF(Arkusz1!B$9=1,Arkusz1!B115+Arkusz1!C115,"") -> -4.098680033 | C116: =IF(Arkusz1!B$9=1,Arkusz1!C115,"") -> -6.412681712 | D116: =IF(Arkusz1!D$9=1,Arkusz1!D115+Arkusz1!E115,"") -> 23.17614062 | E116: =IF(Arkusz1!D$9=1,Arkusz1!E115,"") -> 1.958560933 | F116: =IF(Arkusz1!F$9=1,Arkusz1!F115+Arkusz1!G115,"") ->  | G116: =IF(Arkusz1!F$9=1,Arkusz1!G115,"") ->  | H116: =IF(Arkusz1!H$9=1,Arkusz1!H115+Arkusz1!I115,"") ->  | I116: =IF(Arkusz1!H$9=1,Arkusz1!I115,"") ->  | J116: =IF(Arkusz1!J$9=1,Arkusz1!J115+Arkusz1!K115,"") ->  | K116: =IF(Arkusz1!J$9=1,Arkusz1!K115,"") ->  | L116: =IF(Arkusz1!L$9=1,Arkusz1!L115+Arkusz1!M115,"") ->  | M116: =IF(Arkusz1!L$9=1,Arkusz1!M115,"") ->  | N116: =Arkusz1!O115+Arkusz1!P115 -> 19.07746059 | O116: =Arkusz1!P115 -> -4.454120779
A117: =Arkusz1!A116 -> 121.5 | B117: =IF(Arkusz1!B$9=1,Arkusz1!B116+Arkusz1!C116,"") -> -4.155236553 | C117: =IF(Arkusz1!B$9=1,Arkusz1!C116,"") -> -6.412681712 | D117: =IF(Arkusz1!D$9=1,Arkusz1!D116+Arkusz1!E116,"") -> 24.02905518 | E117: =IF(Arkusz1!D$9=1,Arkusz1!E116,"") -> 2.458560933 | F117: =IF(Arkusz1!F$9=1,Arkusz1!F116+Arkusz1!G116,"") ->  | G117: =IF(Arkusz1!F$9=1,Arkusz1!G116,"") ->  | H117: =IF(Arkusz1!H$9=1,Arkusz1!H116+Arkusz1!I116,"") ->  | I117: =IF(Arkusz1!H$9=1,Arkusz1!I116,"") ->  | J117: =IF(Arkusz1!J$9=1,Arkusz1!J116+Arkusz1!K116,"") ->  | K117: =IF(Arkusz1!J$9=1,Arkusz1!K116,"") ->  | L117: =IF(Arkusz1!L$9=1,Arkusz1!L116+Arkusz1!M116,"") ->  | M117: =IF(Arkusz1!L$9=1,Arkusz1!M116,"") ->  | N117: =Arkusz1!O116+Arkusz1!P116 -> 19.87381863 | O117: =Arkusz1!P116 -> -3.954120779
A118: =Arkusz1!A117 -> 122 | B118: =IF(Arkusz1!B$9=1,Arkusz1!B117+Arkusz1!C117,"") -> -4.210488279 | C118: =IF(Arkusz1!B$9=1,Arkusz1!C117,"") -> -6.412681712 | D118: =IF(Arkusz1!D$9=1,Arkusz1!D117+Arkusz1!E117,"") -> 24.88432433 | E118: =IF(Arkusz1!D$9=1,Arkusz1!E117,"") -> 2.958560933 | F118: =IF(Arkusz1!F$9=1,Arkusz1!F117+Arkusz1!G117,"") ->  | G118: =IF(Arkusz1!F$9=1,Arkusz1!G117,"") ->  | H118: =IF(Arkusz1!H$9=1,Arkusz1!H117+Arkusz1!I117,"") ->  | I118: =IF(Arkusz1!H$9=1,Arkusz1!I117,"") ->  | J118: =IF(Arkusz1!J$9=1,Arkusz1!J117+Arkusz1!K117,"") ->  | K118: =IF(Arkusz1!J$9=1,Arkusz1!K117,"") ->  | L118: =IF(Arkusz1!L$9=1,Arkusz1!L117+Arkusz1!M117,"") ->  | M118: =IF(Arkusz1!L$9=1,Arkusz1!M117,"") ->  | N118: =Arkusz1!O117+Arkusz1!P117 -> 20.67383605 | O118: =Arkusz1!P117 -> -3.454120779
A119: =Arkusz1!A118 -> 122.5 | B119: =IF(Arkusz1!B$9=1,Arkusz1!B118+Arkusz1!C118,"") -> -4.264462147 | C119: =IF(Arkusz1!B$9=1,Arkusz1!C118,"") -> -6.412681712 | D119: =IF(Arkusz1!D$9=1,Arkusz1!D118+Arkusz1!E118,"") -> 25.74192067 | E119: =IF(Arkusz1!D$9=1,Arkusz1!E118,"") -> 3.458560933 | F119: =IF(Arkusz1!F$9=1,Arkusz1!F118+Arkusz1!G118,"") ->  | G119: =IF(Arkusz1!F$9=1,Arkusz1!G118,"") ->  | H119: =IF(Arkusz1!H$9=1,Arkusz1!H118+Arkusz1!I118,"") ->  | I119: =IF(Arkusz1!H$9=1,Arkusz1!I118,"") ->  | J119: =IF(Arkusz1!J$9=1,Arkusz1!J118+Arkusz1!K118,"") ->  | K119: =IF(Arkusz1!J$9=1,Arkusz1!K118,"") ->  | L119: =IF(Arkusz1!L$9=1,Arkusz1!L118+Arkusz1!M118,"") ->  | M119: =IF(Arkusz1!L$9=1,Arkusz1!M118,"") ->  | N119: =Arkusz1!O118+Arkusz1!P118 -> 21.47745853 | O119: =Arkusz1!P118 -> -2.954120779
A120: =Arkusz1!A119 -> 123 | B120: =IF(Arkusz1!B$9=1,Arkusz1!B119+Arkusz1!C119,"") -> -4.317184663 | C120: =IF(Arkusz1!B$9=1,Arkusz1!C119,"") -> -6.412681712 | D120: =IF(Arkusz1!D$9=1,Arkusz1!D119+Arkusz1!E119,"") -> 26.60181681 | E120: =IF(Arkusz1!D$9=1,Arkusz1!E119,"") -> 3.958560933 | F120: =IF(Arkusz1!F$9=1,Arkusz1!F119+Arkusz1!G119,"") ->  | G120: =IF(Arkusz1!F$9=1,Arkusz1!G119,"") ->  | H120: =IF(Arkusz1!H$9=1,Arkusz1!H119+Arkusz1!I119,"") ->  | I120: =IF(Arkusz1!H$9=1,Arkusz1!I119,"") ->  | J120: =IF(Arkusz1!J$9=1,Arkusz1!J119+Arkusz1!K119,"") ->  | K120: =IF(Arkusz1!J$9=1,Arkusz1!K119,"") ->  | L120: =IF(Arkusz1!L$9=1,Arkusz1!L119+Arkusz1!M119,"") ->  | M120: =IF(Arkusz1!L$9=1,Arkusz1!M119,"") ->  | N120: =Arkusz1!O119+Arkusz1!P119 -> 22.28463215 | O120: =Arkusz1!P119 -> -2.454120779
A121: =Arkusz1!A120 -> 123.5 | B121: =IF(Arkusz1!B$9=1,Arkusz1!B120+Arkusz1!C120,"") -> -4.368681906 | C121: =IF(Arkusz1!B$9=1,Arkusz1!C120,"") -> -6.412681712 | D121: =IF(Arkusz1!D$9=1,Arkusz1!D120+Arkusz1!E120,"") -> 27.46398537 | E121: =IF(Arkusz1!D$9=1,Arkusz1!E120,"") -> 4.458560933 | F121: =IF(Arkusz1!F$9=1,Arkusz1!F120+Arkusz1!G120,"") ->  | G121: =IF(Arkusz1!F$9=1,Arkusz1!G120,"") ->  | H121: =IF(Arkusz1!H$9=1,Arkusz1!H120+Arkusz1!I120,"") ->  | I121: =IF(Arkusz1!H$9=1,Arkusz1!I120,"") ->  | J121: =IF(Arkusz1!J$9=1,Arkusz1!J120+Arkusz1!K120,"") ->  | K121: =IF(Arkusz1!J$9=1,Arkusz1!K120,"") ->  | L121: =IF(Arkusz1!L$9=1,Arkusz1!L120+Arkusz1!M120,"") ->  | M121: =IF(Arkusz1!L$9=1,Arkusz1!M120,"") ->  | N121: =Arkusz1!O120+Arkusz1!P120 -> 23.09530347 | O121: =Arkusz1!P120 -> -1.954120779
A122: =Arkusz1!A121 -> 124 | B122: =IF(Arkusz1!B$9=1,Arkusz1!B121+Arkusz1!C121,"") -> -4.418979528 | C122: =IF(Arkusz1!B$9=1,Arkusz1!C121,"") -> -6.412681712 | D122: =IF(Arkusz1!D$9=1,Arkusz1!D121+Arkusz1!E121,"") -> 28.32839899 | E122: =IF(Arkusz1!D$9=1,Arkusz1!E121,"") -> 4.958560933 | F122: =IF(Arkusz1!F$9=1,Arkusz1!F121+Arkusz1!G121,"") ->  | G122: =IF(Arkusz1!F$9=1,Arkusz1!G121,"") ->  | H122: =IF(Arkusz1!H$9=1,Arkusz1!H121+Arkusz1!I121,"") ->  | I122: =IF(Arkusz1!H$9=1,Arkusz1!I121,"") ->  | J122: =IF(Arkusz1!J$9=1,Arkusz1!J121+Arkusz1!K121,"") ->  | K122: =IF(Arkusz1!J$9=1,Arkusz1!K121,"") ->  | L122: =IF(Arkusz1!L$9=1,Arkusz1!L121+Arkusz1!M121,"") ->  | M122: =IF(Arkusz1!L$9=1,Arkusz1!M121,"") ->  | N122: =Arkusz1!O121+Arkusz1!P121 -> 23.90941946 | O122: =Arkusz1!P121 -> -1.454120779
A123: =Arkusz1!A122 -> 124.5 | B123: =IF(Arkusz1!B$9=1,Arkusz1!B122+Arkusz1!C122,"") -> -4.468102757 | C123: =IF(Arkusz1!B$9=1,Arkusz1!C122,"") -> -6.412681712 | D123: =IF(Arkusz1!D$9=1,Arkusz1!D122+Arkusz1!E122,"") -> 29.19503033 | E123: =IF(Arkusz1!D$9=1,Arkusz1!E122,"") -> 5.458560933 | F123: =IF(Arkusz1!F$9=1,Arkusz1!F122+Arkusz1!G122,"") ->  | G123: =IF(Arkusz1!F$9=1,Arkusz1!G122,"") ->  | H123: =IF(Arkusz1!H$9=1,Arkusz1!H122+Arkusz1!I122,"") ->  | I123: =IF(Arkusz1!H$9=1,Arkusz1!I122,"") ->  | J123: =IF(Arkusz1!J$9=1,Arkusz1!J122+Arkusz1!K122,"") ->  | K123: =IF(Arkusz1!J$9=1,Arkusz1!K122,"") ->  | L123: =IF(Arkusz1!L$9=1,Arkusz1!L122+Arkusz1!M122,"") ->  | M123: =IF(Arkusz1!L$9=1,Arkusz1!M122,"") ->  | N123: =Arkusz1!O122+Arkusz1!P122 -> 24.72692757 | O123: =Arkusz1!P122 -> -0.9541207795
A124: =Arkusz1!A123 -> 125 | B124: =IF(Arkusz1!B$9=1,Arkusz1!B123+Arkusz1!C123,"") -> -4.516076399 | C124: =IF(Arkusz1!B$9=1,Arkusz1!C123,"") -> -6.412681712 | D124: =IF(Arkusz1!D$9=1,Arkusz1!D123+Arkusz1!E123,"") -> 30.06385213 | E124: =IF(Arkusz1!D$9=1,Arkusz1!E123,"") -> 5.958560933 | F124: =IF(Arkusz1!F$9=1,Arkusz1!F123+Arkusz1!G123,"") ->  | G124: =IF(Arkusz1!F$9=1,Arkusz1!G123,"") ->  | H124: =IF(Arkusz1!H$9=1,Arkusz1!H123+Arkusz1!I123,"") ->  | I124: =IF(Arkusz1!H$9=1,Arkusz1!I123,"") ->  | J124: =IF(Arkusz1!J$9=1,Arkusz1!J123+Arkusz1!K123,"") ->  | K124: =IF(Arkusz1!J$9=1,Arkusz1!K123,"") ->  | L124: =IF(Arkusz1!L$9=1,Arkusz1!L123+Arkusz1!M123,"") ->  | M124: =IF(Arkusz1!L$9=1,Arkusz1!M123,"") ->  | N124: =Arkusz1!O123+Arkusz1!P123 -> 25.54777573 | O124: =Arkusz1!P123 -> -0.4541207795
A125: =Arkusz1!A124 -> 125.5 | B125: =IF(Arkusz1!B$9=1,Arkusz1!B124+Arkusz1!C124,"") -> -4.562924842 | C125: =IF(Arkusz1!B$9=1,Arkusz1!C124,"") -> -6.412681712 | D125: =IF(Arkusz1!D$9=1,Arkusz1!D124+Arkusz1!E124,"") -> 30.93483716 | E125: =IF(Arkusz1!D$9=1,Arkusz1!E124,"") -> 6.458560933 | F125: =IF(Arkusz1!F$9=1,Arkusz1!F124+Arkusz1!G124,"") ->  | G125: =IF(Arkusz1!F$9=1,Arkusz1!G124,"") ->  | H125: =IF(Arkusz1!H$9=1,Arkusz1!H124+Arkusz1!I124,"") ->  | I125: =IF(Arkusz1!H$9=1,Arkusz1!I124,"") ->  | J125: =IF(Arkusz1!J$9=1,Arkusz1!J124+Arkusz1!K124,"") ->  | K125: =IF(Arkusz1!J$9=1,Arkusz1!K124,"") ->  | L125: =IF(Arkusz1!L$9=1,Arkusz1!L124+Arkusz1!M124,"") ->  | M125: =IF(Arkusz1!L$9=1,Arkusz1!M124,"") ->  | N125: =Arkusz1!O124+Arkusz1!P124 -> 26.37191231 | O125: =Arkusz1!P124 -> 0.04587922054
A126: =Arkusz1!A125 -> 126 | B126: =IF(Arkusz1!B$9=1,Arkusz1!B125+Arkusz1!C125,"") -> -4.608672058 | C126: =IF(Arkusz1!B$9=1,Arkusz1!C125,"") -> -6.412681712 | D126: =IF(Arkusz1!D$9=1,Arkusz1!D125+Arkusz1!E125,"") -> 31.80795826 | E126: =IF(Arkusz1!D$9=1,Arkusz1!E125,"") -> 6.958560933 | F126: =IF(Arkusz1!F$9=1,Arkusz1!F125+Arkusz1!G125,"") ->  | G126: =IF(Arkusz1!F$9=1,Arkusz1!G125,"") ->  | H126: =IF(Arkusz1!H$9=1,Arkusz1!H125+Arkusz1!I125,"") ->  | I126: =IF(Arkusz1!H$9=1,Arkusz1!I125,"") ->  | J126: =IF(Arkusz1!J$9=1,Arkusz1!J125+Arkusz1!K125,"") ->  | K126: =IF(Arkusz1!J$9=1,Arkusz1!K125,"") ->  | L126: =IF(Arkusz1!L$9=1,Arkusz1!L125+Arkusz1!M125,"") ->  | M126: =IF(Arkusz1!L$9=1,Arkusz1!M125,"") ->  | N126: =Arkusz1!O125+Arkusz1!P125 -> 27.1992862 | O126: =Arkusz1!P125 -> 0.5458792205
A127: =Arkusz1!A126 -> 126.5 | B127: =IF(Arkusz1!B$9=1,Arkusz1!B126+Arkusz1!C126,"") -> -4.653341605 | C127: =IF(Arkusz1!B$9=1,Arkusz1!C126,"") -> -6.412681712 | D127: =IF(Arkusz1!D$9=1,Arkusz1!D126+Arkusz1!E126,"") -> 32.68318835 | E127: =IF(Arkusz1!D$9=1,Arkusz1!E126,"") -> 7.458560933 | F127: =IF(Arkusz1!F$9=1,Arkusz1!F126+Arkusz1!G126,"") ->  | G127: =IF(Arkusz1!F$9=1,Arkusz1!G126,"") ->  | H127: =IF(Arkusz1!H$9=1,Arkusz1!H126+Arkusz1!I126,"") ->  | I127: =IF(Arkusz1!H$9=1,Arkusz1!I126,"") ->  | J127: =IF(Arkusz1!J$9=1,Arkusz1!J126+Arkusz1!K126,"") ->  | K127: =IF(Arkusz1!J$9=1,Arkusz1!K126,"") ->  | L127: =IF(Arkusz1!L$9=1,Arkusz1!L126+Arkusz1!M126,"") ->  | M127: =IF(Arkusz1!L$9=1,Arkusz1!M126,"") ->  | N127: =Arkusz1!O126+Arkusz1!P126 -> 28.02984674 | O127: =Arkusz1!P126 -> 1.045879221
A128: =Arkusz1!A127 -> 127 | B128: =IF(Arkusz1!B$9=1,Arkusz1!B127+Arkusz1!C127,"") -> -4.69695663 | C128: =IF(Arkusz1!B$9=1,Arkusz1!C127,"") -> -6.412681712 | D128: =IF(Arkusz1!D$9=1,Arkusz1!D127+Arkusz1!E127,"") -> 33.56050043 | E128: =IF(Arkusz1!D$9=1,Arkusz1!E127,"") -> 7.958560933 | F128: =IF(Arkusz1!F$9=1,Arkusz1!F127+Arkusz1!G127,"") ->  | G128: =IF(Arkusz1!F$9=1,Arkusz1!G127,"") ->  | H128: =IF(Arkusz1!H$9=1,Arkusz1!H127+Arkusz1!I127,"") ->  | I128: =IF(Arkusz1!H$9=1,Arkusz1!I127,"") ->  | J128: =IF(Arkusz1!J$9=1,Arkusz1!J127+Arkusz1!K127,"") ->  | K128: =IF(Arkusz1!J$9=1,Arkusz1!K127,"") ->  | L128: =IF(Arkusz1!L$9=1,Arkusz1!L127+Arkusz1!M127,"") ->  | M128: =IF(Arkusz1!L$9=1,Arkusz1!M127,"") ->  | N128: =Arkusz1!O127+Arkusz1!P127 -> 28.8635438 | O128: =Arkusz1!P127 -> 1.545879221
A129: =Arkusz1!A128 -> 127.5 | B129: =IF(Arkusz1!B$9=1,Arkusz1!B128+Arkusz1!C128,"") -> -4.739539874 | C129: =IF(Arkusz1!B$9=1,Arkusz1!C128,"") -> -6.412681712 | D129: =IF(Arkusz1!D$9=1,Arkusz1!D128+Arkusz1!E128,"") -> 34.43986761 | E129: =IF(Arkusz1!D$9=1,Arkusz1!E128,"") -> 8.458560933 | F129: =IF(Arkusz1!F$9=1,Arkusz1!F128+Arkusz1!G128,"") ->  | G129: =IF(Arkusz1!F$9=1,Arkusz1!G128,"") ->  | H129: =IF(Arkusz1!H$9=1,Arkusz1!H128+Arkusz1!I128,"") ->  | I129: =IF(Arkusz1!H$9=1,Arkusz1!I128,"") ->  | J129: =IF(Arkusz1!J$9=1,Arkusz1!J128+Arkusz1!K128,"") ->  | K129: =IF(Arkusz1!J$9=1,Arkusz1!K128,"") ->  | L129: =IF(Arkusz1!L$9=1,Arkusz1!L128+Arkusz1!M128,"") ->  | M129: =IF(Arkusz1!L$9=1,Arkusz1!M128,"") ->  | N129: =Arkusz1!O128+Arkusz1!P128 -> 29.70032773 | O129: =Arkusz1!P128 -> 2.045879221
A130: =Arkusz1!A129 -> 128 | B130: =IF(Arkusz1!B$9=1,Arkusz1!B129+Arkusz1!C129,"") -> -4.781113676 | C130: =IF(Arkusz1!B$9=1,Arkusz1!C129,"") -> -6.412681712 | D130: =IF(Arkusz1!D$9=1,Arkusz1!D129+Arkusz1!E129,"") -> 35.32126308 | E130: =IF(Arkusz1!D$9=1,Arkusz1!E129,"") -> 8.958560933 | F130: =IF(Arkusz1!F$9=1,Arkusz1!F129+Arkusz1!G129,"") ->  | G130: =IF(Arkusz1!F$9=1,Arkusz1!G129,"") ->  | H130: =IF(Arkusz1!H$9=1,Arkusz1!H129+Arkusz1!I129,"") ->  | I130: =IF(Arkusz1!H$9=1,Arkusz1!I129,"") ->  | J130: =IF(Arkusz1!J$9=1,Arkusz1!J129+Arkusz1!K129,"") ->  | K130: =IF(Arkusz1!J$9=1,Arkusz1!K129,"") ->  | L130: =IF(Arkusz1!L$9=1,Arkusz1!L129+Arkusz1!M129,"") ->  | M130: =IF(Arkusz1!L$9=1,Arkusz1!M129,"") ->  | N130: =Arkusz1!O129+Arkusz1!P129 -> 30.5401494 | O130: =Arkusz1!P129 -> 2.545879221
A131: =Arkusz1!A130 -> 128.5 | B131: =IF(Arkusz1!B$9=1,Arkusz1!B130+Arkusz1!C130,"") -> -4.821699973 | C131: =IF(Arkusz1!B$9=1,Arkusz1!C130,"") -> -6.412681712 | D131: =IF(Arkusz1!D$9=1,Arkusz1!D130+Arkusz1!E130,"") -> 36.20466015 | E131: =IF(Arkusz1!D$9=1,Arkusz1!E130,"") -> 9.458560933 | F131: =IF(Arkusz1!F$9=1,Arkusz1!F130+Arkusz1!G130,"") ->  | G131: =IF(Arkusz1!F$9=1,Arkusz1!G130,"") ->  | H131: =IF(Arkusz1!H$9=1,Arkusz1!H130+Arkusz1!I130,"") ->  | I131: =IF(Arkusz1!H$9=1,Arkusz1!I130,"") ->  | J131: =IF(Arkusz1!J$9=1,Arkusz1!J130+Arkusz1!K130,"") ->  | K131: =IF(Arkusz1!J$9=1,Arkusz1!K130,"") ->  | L131: =IF(Arkusz1!L$9=1,Arkusz1!L130+Arkusz1!M130,"") ->  | M131: =IF(Arkusz1!L$9=1,Arkusz1!M130,"") ->  | N131: =Arkusz1!O130+Arkusz1!P130 -> 31.38296018 | O131: =Arkusz1!P130 -> 3.045879221
A132: =Arkusz1!A131 -> 129 | B132: =IF(Arkusz1!B$9=1,Arkusz1!B131+Arkusz1!C131,"") -> -4.861320308 | C132: =IF(Arkusz1!B$9=1,Arkusz1!C131,"") -> -6.412681712 | D132: =IF(Arkusz1!D$9=1,Arkusz1!D131+Arkusz1!E131,"") -> 37.09003226 | E132: =IF(Arkusz1!D$9=1,Arkusz1!E131,"") -> 9.958560933 | F132: =IF(Arkusz1!F$9=1,Arkusz1!F131+Arkusz1!G131,"") ->  | G132: =IF(Arkusz1!F$9=1,Arkusz1!G131,"") ->  | H132: =IF(Arkusz1!H$9=1,Arkusz1!H131+Arkusz1!I131,"") ->  | I132: =IF(Arkusz1!H$9=1,Arkusz1!I131,"") ->  | J132: =IF(Arkusz1!J$9=1,Arkusz1!J131+Arkusz1!K131,"") ->  | K132: =IF(Arkusz1!J$9=1,Arkusz1!K131,"") ->  | L132: =IF(Arkusz1!L$9=1,Arkusz1!L131+Arkusz1!M131,"") ->  | M132: =IF(Arkusz1!L$9=1,Arkusz1!M131,"") ->  | N132: =Arkusz1!O131+Arkusz1!P131 -> 32.22871195 | O132: =Arkusz1!P131 -> 3.545879221
A133: =Arkusz1!A132 -> 129.5 | B133: =IF(Arkusz1!B$9=1,Arkusz1!B132+Arkusz1!C132,"") -> -4.899995829 | C133: =IF(Arkusz1!B$9=1,Arkusz1!C132,"") -> -6.412681712 | D133: =IF(Arkusz1!D$9=1,Arkusz1!D132+Arkusz1!E132,"") -> 37.97735295 | E133: =IF(Arkusz1!D$9=1,Arkusz1!E132,"") -> 10.45856093 | F133: =IF(Arkusz1!F$9=1,Arkusz1!F132+Arkusz1!G132,"") ->  | G133: =IF(Arkusz1!F$9=1,Arkusz1!G132,"") ->  | H133: =IF(Arkusz1!H$9=1,Arkusz1!H132+Arkusz1!I132,"") ->  | I133: =IF(Arkusz1!H$9=1,Arkusz1!I132,"") ->  | J133: =IF(Arkusz1!J$9=1,Arkusz1!J132+Arkusz1!K132,"") ->  | K133: =IF(Arkusz1!J$9=1,Arkusz1!K132,"") ->  | L133: =IF(Arkusz1!L$9=1,Arkusz1!L132+Arkusz1!M132,"") ->  | M133: =IF(Arkusz1!L$9=1,Arkusz1!M132,"") ->  | N133: =Arkusz1!O132+Arkusz1!P132 -> 33.07735712 | O133: =Arkusz1!P132 -> 4.045879221
A134: =Arkusz1!A133 -> 130 | B134: =IF(Arkusz1!B$9=1,Arkusz1!B133+Arkusz1!C133,"") -> -4.937747299 | C134: =IF(Arkusz1!B$9=1,Arkusz1!C133,"") -> -6.412681712 | D134: =IF(Arkusz1!D$9=1,Arkusz1!D133+Arkusz1!E133,"") -> 38.86659593 | E134: =IF(Arkusz1!D$9=1,Arkusz1!E133,"") -> 10.95856093 | F134: =IF(Arkusz1!F$9=1,Arkusz1!F133+Arkusz1!G133,"") ->  | G134: =IF(Arkusz1!F$9=1,Arkusz1!G133,"") ->  | H134: =IF(Arkusz1!H$9=1,Arkusz1!H133+Arkusz1!I133,"") ->  | I134: =IF(Arkusz1!H$9=1,Arkusz1!I133,"") ->  | J134: =IF(Arkusz1!J$9=1,Arkusz1!J133+Arkusz1!K133,"") ->  | K134: =IF(Arkusz1!J$9=1,Arkusz1!K133,"") ->  | L134: =IF(Arkusz1!L$9=1,Arkusz1!L133+Arkusz1!M133,"") ->  | M134: =IF(Arkusz1!L$9=1,Arkusz1!M133,"") ->  | N134: =Arkusz1!O133+Arkusz1!P133 -> 33.92884863 | O134: =Arkusz1!P133 -> 4.545879221

Sheet Arkusz1
O1: Portfel
A3: r | B3: =Arkusz3!B2 -> 0.02 | D3: =Arkusz3!C2 -> 0.02 | F3: =Arkusz3!D2 -> 0.02 | H3: =Arkusz3!E2 -> 0.02 | J3: =Arkusz3!F2 -> 0.02 | L3: =Arkusz3!G2 -> 0.02
A4: sigma | B4: =Arkusz3!B3 -> 0.3 | D4: =Arkusz3!C3 -> 0.3 | F4: =Arkusz3!D3 -> 0.3 | H4: =Arkusz3!E3 -> 0.3 | J4: =Arkusz3!F3 -> 0.3 | L4: =Arkusz3!G3 -> 0.3
A5: Czas do wykonania | B5: =Arkusz3!B4 -> 1 | D5: =Arkusz3!C4 -> 1 | F5: =Arkusz3!D4 -> 1 | H5: =Arkusz3!E4 -> 1 | J5: =Arkusz3!F4 -> 1 | L5: =Arkusz3!G4 -> 1
A6: Cena wykonania | B6: =Arkusz3!B5 -> 90 | D6: =Arkusz3!C5 -> 110 | F6: =Arkusz3!D5 -> 80 | H6: =Arkusz3!E5 -> 110 | J6: =Arkusz3!F5 -> 110 | L6: =Arkusz3!G5 -> 110
A7: Call/put | B7: =Arkusz3!B6 -> p | D7: =Arkusz3!C6 -> c | F7: =Arkusz3!D6 -> p | H7: =Arkusz3!E6 -> c | J7: =Arkusz3!F6 -> c | L7: =Arkusz3!G6 -> c
A8: długa/krótka | B8: =Arkusz3!B7 -> d | D8: =Arkusz3!C7 -> d | F8: =Arkusz3!D7 -> d | H8: =Arkusz3!E7 -> k | J8: =Arkusz3!F7 -> k | L8: =Arkusz3!G7 -> k
A9: w portfelu | B9: =Arkusz3!B8 -> 1 | C9: 0 | D9: =Arkusz3!C8 -> 1 | E9: 0 | F9: =Arkusz3!D8 -> 0 | G9: 0 | H9: =Arkusz3!E8 -> 0 | I9: 0 | J9: =Arkusz3!F8 -> 0 | K9: 0 | L9: =Arkusz3!G8 -> 0 | M9: 0
B10: 0 | C10: =B9 -> 1 | D10: 0 | E10: =D9 -> 1 | F10: 0 | G10: =F9 -> 0 | H10: 0 | I10: =H9 -> 0 | J10: 0 | K10: =J9 -> 0 | L10: 0 | M10: =L9 -> 0
A11: Wycena spot=100 | B11: =IF(B$7="c",call_wycena(100, B$6,B$3, B$4,B$5),put_wycena(100, B$6,B$3, B$4,B$5)) -> 6.286942855 | D11: =IF(D$7="c",call_wycena(100, D$6,D$3, D$4,D$5),put_wycena(100, D$6,D$3, D$4,D$5)) -> 8.864155948 | F11: =IF(F$7="c",call_wycena(100, F$6,F$3, F$4,F$5),put_wycena(100, F$6,F$3, F$4,F$5)) -> 3.114037233 | H11: =IF(H$7="c",call_wycena(100, H$6,H$3, H$4,H$5),put_wycena(100, H$6,H$3, H$4,H$5)) -> 8.864155948 | J11: =IF(J$7="c",call_wycena(100, J$6,J$3, J$4,J$5),put_wycena(100, J$6,J$3, J$4,J$5)) -> 8.864155948 | L11: =IF(L$7="c",call_wycena(100, L$6,L$3, L$4,L$5),put_wycena(100, L$6,L$3, L$4,L$5)) -> 8.864155948
A13: 70 | B13: =IF(B$8="d",1,-1)*IF(B$7="c",call_wycena($A13, B$6,B$3, B$4,B$5),put_wycena($A13, B$6,B$3, B$4,B$5)) -> 21.17975145 | C13: =IF(B$8="d",1,-1)*(IF(B$7="c",MAX($A13-B$6,0),MAX(B$6-$A13,0))-B$11*((1+B$3)^B$5)) -> 13.58731829 | D13: =IF(D$8="d",1,-1)*IF(D$7="c",call_wycena($A13, D$6,D$3, D$4,D$5),put_wycena($A13, D$6,D$3, D$4,D$5)) -> 0.8676550239 | E13: =IF(D$8="d",1,-1)*(IF(D$7="c",MAX($A13-D$6,0),MAX(D$6-$A13,0))-D$11*((1+D$3)^D$5)) -> -9.041439067 | F13: =IF(F$8="d",1,-1)*IF(F$7="c",call_wycena($A13, F$6,F$3, F$4,F$5),put_wycena($A13, F$6,F$3, F$4,F$5)) -> 13.67679081 | G13: =IF(F$8="d",1,-1)*(IF(F$7="c",MAX($A13-F$6,0),MAX(F$6-$A13,0))-F$11*((1+F$3)^F$5)) -> 6.823682022 | H13: =IF(H$8="d",1,-1)*IF(H$7="c",call_wycena($A13, H$6,H$3, H$4,H$5),put_wycena($A13, H$6,H$3, H$4,H$5)) -> -0.8676550239 | I13: =IF(H$8="d",1,-1)*(IF(H$7="c",MAX($A13-H$6,0),MAX(H$6-$A13,0))-H$11*((1+H$3)^H$5)) -> 9.041439067 | J13: =IF(J$8="d",1,-1)*IF(J$7="c",call_wycena($A13, J$6,J$3, J$4,J$5),put_wycena($A13, J$6,J$3, J$4,J$5)) -> -0.8676550239 | K13: =IF(J$8="d",1,-1)*(IF(J$7="c",MAX($A13-J$6,0),MAX(J$6-$A13,0))-J$11*((1+J$3)^J$5)) -> 9.041439067 | L13: =IF(L$8="d",1,-1)*IF(L$7="c",call_wycena($A13, L$6,L$3, L$4,L$5),put_wycena($A13, L$6,L$3, L$4,L$5)) -> -0.8676550239 | M13: =IF(L$8="d",1,-1)*(IF(L$7="c",MAX($A13-L$6,0),MAX(L$6-$A13,0))-L$11*((1+L$3)^L$5)) -> 9.041439067 | O13: =SUMPRODUCT(B$9:M$9,B13:M13) -> 22.04740647 | P13: =SUMPRODUCT(B$10:M$10,B13:M13) -> 4.545879221
A14: =A13+0.5 -> 70.5 | B14: =IF(B$8="d",1,-1)*IF(B$7="c",call_wycena($A14, B$6,B$3, B$4,B$5),put_wycena($A14, B$6,B$3, B$4,B$5)) -> 20.81535649 | C14: 13.08731829 | D14: =IF(D$8="d",1,-1)*IF(D$7="c",call_wycena($A14, D$6,D$3, D$4,D$5),put_wycena($A14, D$6,D$3, D$4,D$5)) -> 0.917963509 | E14: -9.041439067 | F14: =IF(F$8="d",1,-1)*IF(F$7="c",call_wycena($A14, F$6,F$3, F$4,F$5),put_wycena($A14, F$6,F$3, F$4,F$5)) -> 13.38392933 | G14: =IF(F$8="d",1,-1)*(IF(F$7="c",MAX($A14-F$6,0),MAX(F$6-$A14,0))-F$11*((1+F$3)^F$5)) -> 6.323682022 | H14: =IF(H$8="d",1,-1)*IF(H$7="c",call_wycena($A14, H$6,H$3, H$4,H$5),put_wycena($A14, H$6,H$3, H$4,H$5)) -> -0.917963509 | I14: =IF(H$8="d",1,-1)*(IF(H$7="c",MAX($A14-H$6,0),MAX(H$6-$A14,0))-H$11*((1+H$3)^H$5)) -> 9.041439067 | J14: =IF(J$8="d",1,-1)*IF(J$7="c",call_wycena($A14, J$6,J$3, J$4,J$5),put_wycena($A14, J$6,J$3, J$4,J$5)) -> -0.917963509 | K14: =IF(J$8="d",1,-1)*(IF(J$7="c",MAX($A14-J$6,0),MAX(J$6-$A14,0))-J$11*((1+J$3)^J$5)) -> 9.041439067 | L14: =IF(L$8="d",1,-1)*IF(L$7="c",call_wycena($A14, L$6,L$3, L$4,L$5),put_wycena($A14, L$6,L$3, L$4,L$5)) -> -0.917963509 | M14: =IF(L$8="d",1,-1)*(IF(L$7="c",MAX($A14-L$6,0),MAX(L$6-$A14,0))-L$11*((1+L$3)^L$5)) -> 9.041439067 | O14: =SUMPRODUCT(B$9:M$9,B14:M14) -> 21.73332 | P14: =SUMPRODUCT(B$10:M$10,B14:M14) -> 4.045879221
A15: =A14+0.5 -> 71 | B15: =IF(B$8="d",1,-1)*IF(B$7="c",call_wycena($A15, B$6,B$3, B$4,B$5),put_wycena($A15, B$6,B$3, B$4,B$5)) -> 20.4549065 | C15: 12.58731829 | D15: =IF(D$8="d",1,-1)*IF(D$7="c",call_wycena($A15, D$6,D$3, D$4,D$5),put_wycena($A15, D$6,D$3, D$4,D$5)) -> 0.9703873062 | E15: -9.041439067 | F15: =IF(F$8="d",1,-1)*IF(F$7="c",call_wycena($A15, F$6,F$3, F$4,F$5),put_wycena($A15, F$6,F$3, F$4,F$5)) -> 13.09568549 | G15: =IF(F$8="d",1,-1)*(IF(F$7="c",MAX($A15-F$6,0),MAX(F$6-$A15,0))-F$11*((1+F$3)^F$5)) -> 5.823682022 | H15: =IF(H$8="d",1,-1)*IF(H$7="c",call_wycena($A15, H$6,H$3, H$4,H$5),put_wycena($A15, H$6,H$3, H$4,H$5)) -> -0.9703873062 | I15: =IF(H$8="d",1,-1)*(IF(H$7="c",MAX($A15-H$6,0),MAX(H$6-$A15,0))-H$11*((1+H$3)^H$5)) -> 9.041439067 | J15: =IF(J$8="d",1,-1)*IF(J$7="c",call_wycena($A15, J$6,J$3, J$4,J$5),put_wycena($A15, J$6,J$3, J$4,J$5)) -> -0.9703873062 | K15: =IF(J$8="d",1,-1)*(IF(J$7="c",MAX($A15-J$6,0),MAX(J$6-$A15,0))-J$11*((1+J$3)^J$5)) -> 9.041439067 | L15: =IF(L$8="d",1,-1)*IF(L$7="c",call_wycena($A15, L$6,L$3, L$4,L$5),put_wycena($A15, L$6,L$3, L$4,L$5)) -> -0.9703873062 | M15: =IF(L$8="d",1,-1)*(IF(L$7="c",MAX($A15-L$6,0),MAX(L$6-$A15,0))-L$11*((1+L$3)^L$5)) -> 9.041439067 | O15: 21.42529381 | P15: 3.545879221
A16: 71.5 | B16: =IF(B$8="d",1,-1)*IF(B$7="c",call_wycena($A16, B$6,B$3, B$4,B$5),put_wycena($A16, B$6,B$3, B$4,B$5)) -> 20.09842809 | C16: 12.08731829 | D16: =IF(D$8="d",1,-1)*IF(D$7="c",call_wycena($A16, D$6,D$3, D$4,D$5),put_wycena($A16, D$6,D$3, D$4,D$5)) -> 1.024974512 | E16: -9.041439067 | F16: =IF(F$8="d",1,-1)*IF(F$7="c",call_wycena($A16, F$6,F$3, F$4,F$5),put_wycena($A16, F$6,F$3, F$4,F$5)) -> 12.81204767 | G16: =IF(F$8="d",1,-1)*(IF(F$7="c",MAX($A16-F$6,0),MAX(F$6-$A16,0))-F$11*((1+F$3)^F$5)) -> 5.323682022 | H16: =IF(H$8="d",1,-1)*IF(H$7="c",call_wycena($A16, H$6,H$3, H$4,H$5),put_wycena($A16, H$6,H$3, H$4,H$5)) -> -1.024974512 | I16: =IF(H$8="d",1,-1)*(IF(H$7="c",MAX($A16-H$6,0),MAX(H$6-$A16,0))-H$11*((1+H$3)^H$5)) -> 9.041439067 | J16: =IF(J$8="d",1,-1)*IF(J$7="c",call_wycena($A16, J$6,J$3, J$4,J$5),put_wycena($A16, J$6,J$3, J$4,J$5)) -> -1.024974512 | K16: =IF(J$8="d",1,-1)*(IF(J$7="c",MAX($A16-J$6,0),MAX(J$6-$A16,0))-J$11*((1+J$3)^J$5)) -> 9.041439067 | L16: =IF(L$8="d",1,-1)*IF(L$7="c",call_wycena($A16, L$6,L$3, L$4,L$5),put_wycena($A16, L$6,L$3, L$4,L$5)) -> -1.024974512 | M16: =IF(L$8="d",1,-1)*(IF(L$7="c",MAX($A16-L$6,0),MAX(L$6-$A16,0))-L$11*((1+L$3)^L$5)) -> 9.041439067 | O16: 21.1234026 | P16: 3.045879221
A17: 72 | B17: =IF(B$8="d",1,-1)*IF(B$7="c",call_wycena($A17, B$6,B$3, B$4,B$5),put_wycena($A17, B$6,B$3, B$4,B$5)) -> 19.74594569 | C17: 11.58731829 | D17: =IF(D$8="d",1,-1)*IF(D$7="c",call_wycena($A17, D$6,D$3, D$4,D$5),put_wycena($A17, D$6,D$3, D$4,D$5)) -> 1.081772753 | E17: -9.041439067 | F17: =IF(F$8="d",1,-1)*IF(F$7="c",call_wycena($A17, F$6,F$3, F$4,F$5),put_wycena($A17, F$6,F$3, F$4,F$5)) -> 12.53300182 | G17: =IF(F$8="d",1,-1)*(IF(F$7="c",MAX($A17-F$6,0),MAX(F$6-$A17,0))-F$11*((1+F$3)^F$5)) -> 4.823682022 | H17: =IF(H$8="d",1,-1)*IF(H$7="c",call_wycena($A17, H$6,H$3, H$4,H$5),put_wycena($A17, H$6,H$3, H$4,H$5)) -> -1.081772753 | I17: =IF(H$8="d",1,-1)*(IF(H$7="c",MAX($A17-H$6,0),MAX(H$6-$A17,0))-H$11*((1+H$3)^H$5)) -> 9.041439067 | J17: =IF(J$8="d",1,-1)*IF(J$7="c",call_wycena($A17, J$6,J$3, J$4,J$5),put_wycena($A17, J$6,J$3, J$4,J$5)) -> -1.081772753 | K17: =IF(J$8="d",1,-1)*(IF(J$7="c",MAX($A17-J$6,0),MAX(J$6-$A17,0))-J$11*((1+J$3)^J$5)) -> 9.041439067 | L17: =IF(L$8="d",1,-1)*IF(L$7="c",call_wycena($A17, L$6,L$3, L$4,L$5),put_wycena($A17, L$6,L$3, L$4,L$5)) -> -1.081772753 | M17: =IF(L$8="d",1,-1)*(IF(L$7="c",MAX($A17-L$6,0),MAX(L$6-$A17,0))-L$11*((1+L$3)^L$5)) -> 9.041439067 | O17: 20.82771844 | P17: 2.545879221
A18: 72.5 | B18: =IF(B$8="d",1,-1)*IF(B$7="c",call_wycena($A18, B$6,B$3, B$4,B$5),put_wycena($A18, B$6,B$3, B$4,B$5)) -> 19.39748152 | C18: 11.08731829 | D18: =IF(D$8="d",1,-1)*IF(D$7="c",call_wycena($A18, D$6,D$3, D$4,D$5),put_wycena($A18, D$6,D$3, D$4,D$5)) -> 1.140829138 | E18: -9.041439067 | F18: =IF(F$8="d",1,-1)*IF(F$7="c",call_wycena($A18, F$6,F$3, F$4,F$5),put_wycena($A18, F$6,F$3, F$4,F$5)) -> 12.25853158 | G18: =IF(F$8="d",1,-1)*(IF(F$7="c",MAX($A18-F$6,0),MAX(F$6-$A18,0))-F$11*((1+F$3)^F$5)) -> 4.323682022 | H18: =IF(H$8="d",1,-1)*IF(H$7="c",call_wycena($A18, H$6,H$3, H$4,H$5),put_wycena($A18, H$6,H$3, H$4,H$5)) -> -1.140829138 | I18: =IF(H$8="d",1,-1)*(IF(H$7="c",MAX($A18-H$6,0),MAX(H$6-$A18,0))-H$11*((1+H$3)^H$5)) -> 9.041439067 | J18: =IF(J$8="d",1,-1)*IF(J$7="c",call_wycena($A18, J$6,J$3, J$4,J$5),put_wycena($A18, J$6,J$3, J$4,J$5)) -> -1.140829138 | K18: =IF(J$8="d",1,-1)*(IF(J$7="c",MAX($A18-J$6,0),MAX(J$6-$A18,0))-J$11*((1+J$3)^J$5)) -> 9.041439067 | L18: =IF(L$8="d",1,-1)*IF(L$7="c",call_wycena($A18, L$6,L$3, L$4,L$5),put_wycena($A18, L$6,L$3, L$4,L$5)) -> -1.140829138 | M18: =IF(L$8="d",1,-1)*(IF(L$7="c",MAX($A18-L$6,0),MAX(L$6-$A18,0))-L$11*((1+L$3)^L$5)) -> 9.041439067 | O18: 20.53831066 | P18: 2.045879221
A19: 73 | B19: =IF(B$8="d",1,-1)*IF(B$7="c",call_wycena($A19, B$6,B$3, B$4,B$5),put_wycena($A19, B$6,B$3, B$4,B$5)) -> 19.05305563 | C19: 10.58731829 | D19: =IF(D$8="d",1,-1)*IF(D$7="c",call_wycena($A19, D$6,D$3, D$4,D$5),put_wycena($A19, D$6,D$3, D$4,D$5)) -> 1.202190213 | E19: -9.041439067 | F19: =IF(F$8="d",1,-1)*IF(F$7="c",call_wycena($A19, F$6,F$3, F$4,F$5),put_wycena($A19, F$6,F$3, F$4,F$5)) -> 11.98861829 | G19: =IF(F$8="d",1,-1)*(IF(F$7="c",MAX($A19-F$6,0),MAX(F$6-$A19,0))-F$11*((1+F$3)^F$5)) -> 3.823682022 | H19: =IF(H$8="d",1,-1)*IF(H$7="c",call_wycena($A19, H$6,H$3, H$4,H$5),put_wycena($A19, H$6,H$3, H$4,H$5)) -> -1.202190213 | I19: =IF(H$8="d",1,-1)*(IF(H$7="c",MAX($A19-H$6,0),MAX(H$6-$A19,0))-H$11*((1+H$3)^H$5)) -> 9.041439067 | J19: =IF(J$8="d",1,-1)*IF(J$7="c",call_wycena($A19, J$6,J$3, J$4,J$5),put_wycena($A19, J$6,J$3, J$4,J$5)) -> -1.202190213 | K19: =IF(J$8="d",1,-1)*(IF(J$7="c",MAX($A19-J$6,0),MAX(J$6-$A19,0))-J$11*((1+J$3)^J$5)) -> 9.041439067 | L19: =IF(L$8="d",1,-1)*IF(L$7="c",call_wycena($A19, L$6,L$3, L$4,L$5),put_wycena($A19, L$6,L$3, L$4,L$5)) -> -1.202190213 | M19: =IF(L$8="d",1,-1)*(IF(L$7="c",MAX($A19-L$6,0),MAX(L$6-$A19,0))-L$11*((1+L$3)^L$5)) -> 9.041439067 | O19: 20.25524584 | P19: 1.545879221
A20: 73.5 | B20: =IF(B$8="d",1,-1)*IF(B$7="c",call_wycena($A20, B$6,B$3, B$4,B$5),put_wycena($A20, B$6,B$3, B$4,B$5)) -> 18.71268587 | C20: 10.08731829 | D20: =IF(D$8="d",1,-1)*IF(D$7="c",call_wycena($A20, D$6,D$3, D$4,D$5),put_wycena($A20, D$6,D$3, D$4,D$5)) -> 1.265901917 | E20: -9.041439067 | F20: =IF(F$8="d",1,-1)*IF(F$7="c",call_wycena($A20, F$6,F$3, F$4,F$5),put_wycena($A20, F$6,F$3, F$4,F$5)) -> 11.72324115 | G20: =IF(F$8="d",1,-1)*(IF(F$7="c",MAX($A20-F$6,0),MAX(F$6-$A20,0))-F$11*((1+F$3)^F$5)) -> 3.323682022 | H20: =IF(H$8="d",1,-1)*IF(H$7="c",call_wycena($A20, H$6,H$3, H$4,H$5),put_wycena($A20, H$6,H$3, H$4,H$5)) -> -1.265901917 | I20: =IF(H$8="d",1,-1)*(IF(H$7="c",MAX($A20-H$6,0),MAX(H$6-$A20,0))-H$11*((1+H$3)^H$5)) -> 9.041439067 | J20: =IF(J$8="d",1,-1)*IF(J$7="c",call_wycena($A20, J$6,J$3, J$4,J$5),put_wycena($A20, J$6,J$3, J$4,J$5)) -> -1.265901917 | K20: =IF(J$8="d",1,-1)*(IF(J$7="c",MAX($A20-J$6,0),MAX(J$6-$A20,0))-J$11*((1+J$3)^J$5)) -> 9.041439067 | L20: =IF(L$8="d",1,-1)*IF(L$7="c",call_wycena($A20, L$6,L$3, L$4,L$5),put_wycena($A20, L$6,L$3, L$4,L$5)) -> -1.265901917 | M20: =IF(L$8="d",1,-1)*(IF(L$7="c",MAX($A20-L$6,0),MAX(L$6-$A20,0))-L$11*((1+L$3)^L$5)) -> 9.041439067 | O20: 19.97858779 | P20: 1.045879221
A21: 74 | B21: =IF(B$8="d",1,-1)*IF(B$7="c",call_wycena($A21, B$6,B$3, B$4,B$5),put_wycena($A21, B$6,B$3, B$4,B$5)) -> 18.37638795 | C21: 9.587318288 | D21: =IF(D$8="d",1,-1)*IF(D$7="c",call_wycena($A21, D$6,D$3, D$4,D$5),put_wycena($A21, D$6,D$3, D$4,D$5)) -> 1.332009533 | E21: -9.041439067 | F21: =IF(F$8="d",1,-1)*IF(F$7="c",call_wycena($A21, F$6,F$3, F$4,F$5),put_wycena($A21, F$6,F$3, F$4,F$5)) -> 11.4623772 | G21: =IF(F$8="d",1,-1)*(IF(F$7="c",MAX($A21-F$6,0),MAX(F$6-$A21,0))-F$11*((1+F$3)^F$5)) -> 2.823682022 | H21: =IF(H$8="d",1,-1)*IF(H$7="c",call_wycena($A21, H$6,H$3, H$4,H$5),put_wycena($A21, H$6,H$3, H$4,H$5)) -> -1.332009533 | I21: =IF(H$8="d",1,-1)*(IF(H$7="c",MAX($A21-H$6,0),MAX(H$6-$A21,0))-H$11*((1+H$3)^H$5)) -> 9.041439067 | J21: =IF(J$8="d",1,-1)*IF(J$7="c",call_wycena($A21, J$6,J$3, J$4,J$5),put_wycena($A21, J$6,J$3, J$4,J$5)) -> -1.332009533 | K21: =IF(J$8="d",1,-1)*(IF(J$7="c",MAX($A21-J$6,0),MAX(J$6-$A21,0))-J$11*((1+J$3)^J$5)) -> 9.041439067 | L21: =IF(L$8="d",1,-1)*IF(L$7="c",call_wycena($A21, L$6,L$3, L$4,L$5),put_wycena($A21, L$6,L$3, L$4,L$5)) -> -1.332009533 | M21: =IF(L$8="d",1,-1)*(IF(L$7="c",MAX($A21-L$6,0),MAX(L$6-$A21,0))-L$11*((1+L$3)^L$5)) -> 9.041439067 | O21: 19.70839748 | P21: 0.5458792205
A22: 74.5 | B22: =IF(B$8="d",1,-1)*IF(B$7="c",call_wycena($A22, B$6,B$3, B$4,B$5),put_wycena($A22, B$6,B$3, B$4,B$5)) -> 18.04417542 | C22: 9.087318288 | D22: =IF(D$8="d",1,-1)*IF(D$7="c",call_wycena($A22, D$6,D$3, D$4,D$5),put_wycena($A22, D$6,D$3, D$4,D$5)) -> 1.400557653 | E22: -9.041439067 | F22: =IF(F$8="d",1,-1)*IF(F$7="c",call_wycena($A22, F$6,F$3, F$4,F$5),put_wycena($A22, F$6,F$3, F$4,F$5)) -> 11.2060015 | G22: =IF(F$8="d",1,-1)*(IF(F$7="c",MAX($A22-F$6,0),MAX(F$6-$A22,0))-F$11*((1+F$3)^F$5)) -> 2.323682022 | H22: =IF(H$8="d",1,-1)*IF(H$7="c",call_wycena($A22, H$6,H$3, H$4,H$5),put_wycena($A22, H$6,H$3, H$4,H$5)) -> -1.400557653 | I22: =IF(H$8="d",1,-1)*(IF(H$7="c",MAX($A22-H$6,0),MAX(H$6-$A22,0))-H$11*((1+H$3)^H$5)) -> 9.041439067 | J22: =IF(J$8="d",1,-1)*IF(J$7="c",call_wycena($A22, J$6,J$3, J$4,J$5),put_wycena($A22, J$6,J$3, J$4,J$5)) -> -1.400557653 | K22: =IF(J$8="d",1,-1)*(IF(J$7="c",MAX($A22-J$6,0),MAX(J$6-$A22,0))-J$11*((1+J$3)^J$5)) -> 9.041439067 | L22: =IF(L$8="d",1,-1)*IF(L$7="c",call_wycena($A22, L$6,L$3, L$4,L$5),put_wycena($A22, L$6,L$3, L$4,L$5)) -> -1.400557653 | M22: =IF(L$8="d",1,-1)*(IF(L$7="c",MAX($A22-L$6,0),MAX(L$6-$A22,0))-L$11*((1+L$3)^L$5)) -> 9.041439067 | O22: 19.44473308 | P22: 0.04587922054
A23: 75 | B23: =IF(B$8="d",1,-1)*IF(B$7="c",call_wycena($A23, B$6,B$3, B$4,B$5),put_wycena($A23, B$6,B$3, B$4,B$5)) -> 17.71605974 | C23: 8.587318288 | D23: =IF(D$8="d",1,-1)*IF(D$7="c",call_wycena($A23, D$6,D$3, D$4,D$5),put_wycena($A23, D$6,D$3, D$4,D$5)) -> 1.471590133 | E23: -9.041439067 | F23: =IF(F$8="d",1,-1)*IF(F$7="c",call_wycena($A23, F$6,F$3, F$4,F$5),put_wycena($A23, F$6,F$3, F$4,F$5)) -> 10.95408712 | G23: =IF(F$8="d",1,-1)*(IF(F$7="c",MAX($A23-F$6,0),MAX(F$6-$A23,0))-F$11*((1+F$3)^F$5)) -> 1.823682022 | H23: =IF(H$8="d",1,-1)*IF(H$7="c",call_wycena($A23, H$6,H$3, H$4,H$5),put_wycena($A23, H$6,H$3, H$4,H$5)) -> -1.471590133 | I23: =IF(H$8="d",1,-1)*(IF(H$7="c",MAX($A23-H$6,0),MAX(H$6-$A23,0))-H$11*((1+H$3)^H$5)) -> 9.041439067 | J23: =IF(J$8="d",1,-1)*IF(J$7="c",call_wycena($A23, J$6,J$3, J$4,J$5),put_wycena($A23, J$6,J$3, J$4,J$5)) -> -1.471590133 | K23: =IF(J$8="d",1,-1)*(IF(J$7="c",MAX($A23-J$6,0),MAX(J$6-$A23,0))-J$11*((1+J$3)^J$5)) -> 9.041439067 | L23: =IF(L$8="d",1,-1)*IF(L$7="c",call_wycena($A23, L$6,L$3, L$4,L$5),put_wycena($A23, L$6,L$3, L$4,L$5)) -> -1.471590133 | M23: =IF(L$8="d",1,-1)*(IF(L$7="c",MAX($A23-L$6,0),MAX(L$6-$A23,0))-L$11*((1+L$3)^L$5)) -> 9.041439067 | O23: 19.18764987 | P23: -0.4541207795
A24: 75.5 | B24: =IF(B$8="d",1,-1)*IF(B$7="c",call_wycena($A24, B$6,B$3, B$4,B$5),put_wycena($A24, B$6,B$3, B$4,B$5)) -> 17.39205025 | C24: 8.087318288 | D24: =IF(D$8="d",1,-1)*IF(D$7="c",call_wycena($A24, D$6,D$3, D$4,D$5),put_wycena($A24, D$6,D$3, D$4,D$5)) -> 1.545150056 | E24: -9.041439067 | F24: =IF(F$8="d",1,-1)*IF(F$7="c",call_wycena($A24, F$6,F$3, F$4,F$5),put_wycena($A24, F$6,F$3, F$4,F$5)) -> 10.70660528 | G24: =IF(F$8="d",1,-1)*(IF(F$7="c",MAX($A24-F$6,0),MAX(F$6-$A24,0))-F$11*((1+F$3)^F$5)) -> 1.323682022 | H24: =IF(H$8="d",1,-1)*IF(H$7="c",call_wycena($A24, H$6,H$3, H$4,H$5),put_wycena($A24, H$6,H$3, H$4,H$5)) -> -1.545150056 | I24: =IF(H$8="d",1,-1)*(IF(H$7="c",MAX($A24-H$6,0),MAX(H$6-$A24,0))-H$11*((1+H$3)^H$5)) -> 9.041439067 | J24: =IF(J$8="d",1,-1)*IF(J$7="c",call_wycena($A24, J$6,J$3, J$4,J$5),put_wycena($A24, J$6,J$3, J$4,J$5)) -> -1.545150056 | K24: =IF(J$8="d",1,-1)*(IF(J$7="c",MAX($A24-J$6,0),MAX(J$6-$A24,0))-J$11*((1+J$3)^J$5)) -> 9.041439067 | L24: =IF(L$8="d",1,-1)*IF(L$7="c",call_wycena($A24, L$6,L$3, L$4,L$5),put_wycena($A24, L$6,L$3, L$4,L$5)) -> -1.545150056 | M24: =IF(L$8="d",1,-1)*(IF(L$7="c",MAX($A24-L$6,0),MAX(L$6-$A24,0))-L$11*((1+L$3)^L$5)) -> 9.041439067 | O24: 18.93720031 | P24: -0.9541207795
A25: 76 | B25: =IF(B$8="d",1,-1)*IF(B$7="c",call_wycena($A25, B$6,B$3, B$4,B$5),put_wycena($A25, B$6,B$3, B$4,B$5)) -> 17.07215425 | C25: 7.587318288 | D25: =IF(D$8="d",1,-1)*IF(D$7="c",call_wycena($A25, D$6,D$3, D$4,D$5),put_wycena($A25, D$6,D$3, D$4,D$5)) -> 1.62127969 | E25: -9.041439067 | F25: =IF(F$8="d",1,-1)*IF(F$7="c",call_wycena($A25, F$6,F$3, F$4,F$5),put_wycena($A25, F$6,F$3, F$4,F$5)) -> 10.46352539 | G25: =IF(F$8="d",1,-1)*(IF(F$7="c",MAX($A25-F$6,0),MAX(F$6-$A25,0))-F$11*((1+F$3)^F$5)) -> 0.823682022 | H25: =IF(H$8="d",1,-1)*IF(H$7="c",call_wycena($A25, H$6,H$3, H$4,H$5),put_wycena($A25, H$6,H$3, H$4,H$5)) -> -1.62127969 | I25: =IF(H$8="d",1,-1)*(IF(H$7="c",MAX($A25-H$6,0),MAX(H$6-$A25,0))-H$11*((1+H$3)^H$5)) -> 9.041439067 | J25: =IF(J$8="d",1,-1)*IF(J$7="c",call_wycena($A25, J$6,J$3, J$4,J$5),put_wycena($A25, J$6,J$3, J$4,J$5)) -> -1.62127969 | K25: =IF(J$8="d",1,-1)*(IF(J$7="c",MAX($A25-J$6,0),MAX(J$6-$A25,0))-J$11*((1+J$3)^J$5)) -> 9.041439067 | L25: =IF(L$8="d",1,-1)*IF(L$7="c",call_wycena($A25, L$6,L$3, L$4,L$5),put_wycena($A25, L$6,L$3, L$4,L$5)) -> -1.62127969 | M25: =IF(L$8="d",1,-1)*(IF(L$7="c",MAX($A25-L$6,0),MAX(L$6-$A25,0))-L$11*((1+L$3)^L$5)) -> 9.041439067 | O25: 18.69343394 | P25: -1.454120779
A26: 76.5 | B26: =IF(B$8="d",1,-1)*IF(B$7="c",call_wycena($A26, B$6,B$3, B$4,B$5),put_wycena($A26, B$6,B$3, B$4,B$5)) -> 16.75637696 | C26: 7.087318288 | D26: =IF(D$8="d",1,-1)*IF(D$7="c",call_wycena($A26, D$6,D$3, D$4,D$5),put_wycena($A26, D$6,D$3, D$4,D$5)) -> 1.70002046 | E26: -9.041439067 | F26: =IF(F$8="d",1,-1)*IF(F$7="c",call_wycena($A26, F$6,F$3, F$4,F$5),put_wycena($A26, F$6,F$3, F$4,F$5)) -> 10.22481518 | G26: =IF(F$8="d",1,-1)*(IF(F$7="c",MAX($A26-F$6,0),MAX(F$6-$A26,0))-F$11*((1+F$3)^F$5)) -> 0.323682022 | H26: =IF(H$8="d",1,-1)*IF(H$7="c",call_wycena($A26, H$6,H$3, H$4,H$5),put_wycena($A26, H$6,H$3, H$4,H$5)) -> -1.70002046 | I26: =IF(H$8="d",1,-1)*(IF(H$7="c",MAX($A26-H$6,0),MAX(H$6-$A26,0))-H$11*((1+H$3)^H$5)) -> 9.041439067 | J26: =IF(J$8="d",1,-1)*IF(J$7="c",call_wycena($A26, J$6,J$3, J$4,J$5),put_wycena($A26, J$6,J$3, J$4,J$5)) -> -1.70002046 | K26: =IF(J$8="d",1,-1)*(IF(J$7="c",MAX($A26-J$6,0),MAX(J$6-$A26,0))-J$11*((1+J$3)^J$5)) -> 9.041439067 | L26: =IF(L$8="d",1,-1)*IF(L$7="c",call_wycena($A26, L$6,L$3, L$4,L$5),put_wycena($A26, L$6,L$3, L$4,L$5)) -> -1.70002046 | M26: =IF(L$8="d",1,-1)*(IF(L$7="c",MAX($A26-L$6,0),MAX(L$6-$A26,0))-L$11*((1+L$3)^L$5)) -> 9.041439067 | O26: 18.45639742 | P26: -1.954120779
A27: 77 | B27: =IF(B$8="d",1,-1)*IF(B$7="c",call_wycena($A27, B$6,B$3, B$4,B$5),put_wycena($A27, B$6,B$3, B$4,B$5)) -> 16.44472166 | C27: 6.587318288 | D27: =IF(D$8="d",1,-1)*IF(D$7="c",call_wycena($A27, D$6,D$3, D$4,D$5),put_wycena($A27, D$6,D$3, D$4,D$5)) -> 1.781412906 | E27: -9.041439067 | F27: =IF(F$8="d",1,-1)*IF(F$7="c",call_wycena($A27, F$6,F$3, F$4,F$5),put_wycena($A27, F$6,F$3, F$4,F$5)) -> 9.990440706 | G27: =IF(F$8="d",1,-1)*(IF(F$7="c",MAX($A27-F$6,0),MAX(F$6-$A27,0))-F$11*((1+F$3)^F$5)) -> -0.176317978 | H27: =IF(H$8="d",1,-1)*IF(H$7="c",call_wycena($A27, H$6,H$3, H$4,H$5),put_wycena($A27, H$6,H$3, H$4,H$5)) -> -1.781412906 | I27: =IF(H$8="d",1,-1)*(IF(H$7="c",MAX($A27-H$6,0),MAX(H$6-$A27,0))-H$11*((1+H$3)^H$5)) -> 9.041439067 | J27: =IF(J$8="d",1,-1)*IF(J$7="c",call_wycena($A27, J$6,J$3, J$4,J$5),put_wycena($A27, J$6,J$3, J$4,J$5)) -> -1.781412906 | K27: =IF(J$8="d",1,-1)*(IF(J$7="c",MAX($A27-J$6,0),MAX(J$6-$A27,0))-J$11*((1+J$3)^J$5)) -> 9.041439067 | L27: =IF(L$8="d",1,-1)*IF(L$7="c",call_wycena($A27, L$6,L$3, L$4,L$5),put_wycena($A27, L$6,L$3, L$4,L$5)) -> -1.781412906 | M27: =IF(L$8="d",1,-1)*(IF(L$7="c",MAX($A27-L$6,0),MAX(L$6-$A27,0))-L$11*((1+L$3)^L$5)) -> 9.041439067 | O27: 18.22613456 | P27: -2.454120779
A28: 77.5 | B28: =IF(B$8="d",1,-1)*IF(B$7="c",call_wycena($A28, B$6,B$3, B$4,B$5),put_wycena($A28, B$6,B$3, B$4,B$5)) -> 16.13718959 | C28: 6.087318288 | D28: =IF(D$8="d",1,-1)*IF(D$7="c",call_wycena($A28, D$6,D$3, D$4,D$5),put_wycena($A28, D$6,D$3, D$4,D$5)) -> 1.865496655 | E28: -9.041439067 | F28: =IF(F$8="d",1,-1)*IF(F$7="c",call_wycena($A28, F$6,F$3, F$4,F$5),put_wycena($A28, F$6,F$3, F$4,F$5)) -> 9.760366502 | G28: =IF(F$8="d",1,-1)*(IF(F$7="c",MAX($A28-F$6,0),MAX(F$6-$A28,0))-F$11*((1+F$3)^F$5)) -> -0.676317978 | H28: =IF(H$8="d",1,-1)*IF(H$7="c",call_wycena($A28, H$6,H$3, H$4,H$5),put_wycena($A28, H$6,H$3, H$4,H$5)) -> -1.865496655 | I28: =IF(H$8="d",1,-1)*(IF(H$7="c",MAX($A28-H$6,0),MAX(H$6-$A28,0))-H$11*((1+H$3)^H$5)) -> 9.041439067 | J28: =IF(J$8="d",1,-1)*IF(J$7="c",call_wycena($A28, J$6,J$3, J$4,J$5),put_wycena($A28, J$6,J$3, J$4,J$5)) -> -1.865496655 | K28: =IF(J$8="d",1,-1)*(IF(J$7="c",MAX($A28-J$6,0),MAX(J$6-$A28,0))-J$11*((1+J$3)^J$5)) -> 9.041439067 | L28: =IF(L$8="d",1,-1)*IF(L$7="c",call_wycena($A28, L$6,L$3, L$4,L$5),put_wycena($A28, L$6,L$3, L$4,L$5)) -> -1.865496655 | M28: =IF(L$8="d",1,-1)*(IF(L$7="c",MAX($A28-L$6,0),MAX(L$6-$A28,0))-L$11*((1+L$3)^L$5)) -> 9.041439067 | O28: 18.00268625 | P28: -2.954120779
A29: 78 | B29: =IF(B$8="d",1,-1)*IF(B$7="c",call_wycena($A29, B$6,B$3, B$4,B$5),put_wycena($A29, B$6,B$3, B$4,B$5)) -> 15.83378012 | C29: 5.587318288 | D29: =IF(D$8="d",1,-1)*IF(D$7="c",call_wycena($A29, D$6,D$3, D$4,D$5),put_wycena($A29, D$6,D$3, D$4,D$5)) -> 1.95231039 | E29: -9.041439067 | F29: =IF(F$8="d",1,-1)*IF(F$7="c",call_wycena($A29, F$6,F$3, F$4,F$5),put_wycena($A29, F$6,F$3, F$4,F$5)) -> 9.534555615 | G29: =IF(F$8="d",1,-1)*(IF(F$7="c",MAX($A29-F$6,0),MAX(F$6-$A29,0))-F$11*((1+F$3)^F$5)) -> -1.176317978 | H29: =IF(H$8="d",1,-1)*IF(H$7="c",call_wycena($A29, H$6,H$3, H$4,H$5),put_wycena($A29, H$6,H$3, H$4,H$5)) -> -1.95231039 | I29: =IF(H$8="d",1,-1)*(IF(H$7="c",MAX($A29-H$6,0),MAX(H$6-$A29,0))-H$11*((1+H$3)^H$5)) -> 9.041439067 | J29: =IF(J$8="d",1,-1)*IF(J$7="c",call_wycena($A29, J$6,J$3, J$4,J$5),put_wycena($A29, J$6,J$3, J$4,J$5)) -> -1.95231039 | K29: =IF(J$8="d",1,-1)*(IF(J$7="c",MAX($A29-J$6,0),MAX(J$6-$A29,0))-J$11*((1+J$3)^J$5)) -> 9.041439067 | L29: =IF(L$8="d",1,-1)*IF(L$7="c",call_wycena($A29, L$6,L$3, L$4,L$5),put_wycena($A29, L$6,L$3, L$4,L$5)) -> -1.95231039 | M29: =IF(L$8="d",1,-1)*(IF(L$7="c",MAX($A29-L$6,0),MAX(L$6-$A29,0))-L$11*((1+L$3)^L$5)) -> 9.041439067 | O29: 17.78609051 | P29: -3.454120779
A30: 78.5 | B30: =IF(B$8="d",1,-1)*IF(B$7="c",call_wycena($A30, B$6,B$3, B$4,B$5),put_wycena($A30, B$6,B$3, B$4,B$5)) -> 15.53449068 | C30: 5.087318288 | D30: =IF(D$8="d",1,-1)*IF(D$7="c",call_wycena($A30, D$6,D$3, D$4,D$5),put_wycena($A30, D$6,D$3, D$4,D$5)) -> 2.041891818 | E30: -9.041439067 | F30: =IF(F$8="d",1,-1)*IF(F$7="c",call_wycena($A30, F$6,F$3, F$4,F$5),put_wycena($A30, F$6,F$3, F$4,F$5)) -> 9.312969698 | G30: =IF(F$8="d",1,-1)*(IF(F$7="c",MAX($A30-F$6,0),MAX(F$6-$A30,0))-F$11*((1+F$3)^F$5)) -> -1.676317978 | H30: =IF(H$8="d",1,-1)*IF(H$7="c",call_wycena($A30, H$6,H$3, H$4,H$5),put_wycena($A30, H$6,H$3, H$4,H$5)) -> -2.041891818 | I30: =IF(H$8="d",1,-1)*(IF(H$7="c",MAX($A30-H$6,0),MAX(H$6-$A30,0))-H$11*((1+H$3)^H$5)) -> 9.041439067 | J30: =IF(J$8="d",1,-1)*IF(J$7="c",call_wycena($A30, J$6,J$3, J$4,J$5),put_wycena($A30, J$6,J$3, J$4,J$5)) -> -2.041891818 | K30: =IF(J$8="d",1,-1)*(IF(J$7="c",MAX($A30-J$6,0),MAX(J$6-$A30,0))-J$11*((1+J$3)^J$5)) -> 9.041439067 | L30: =IF(L$8="d",1,-1)*IF(L$7="c",call_wycena($A30, L$6,L$3, L$4,L$5),put_wycena($A30, L$6,L$3, L$4,L$5)) -> -2.041891818 | M30: =IF(L$8="d",1,-1)*(IF(L$7="c",MAX($A30-L$6,0),MAX(L$6-$A30,0))-L$11*((1+L$3)^L$5)) -> 9.041439067 | O30: 17.57638249 | P30: -3.954120779
A31: 79 | B31: =IF(B$8="d",1,-1)*IF(B$7="c",call_wycena($A31, B$6,B$3, B$4,B$5),put_wycena($A31, B$6,B$3, B$4,B$5)) -> 15.23931686 | C31: 4.587318288 | D31: =IF(D$8="d",1,-1)*IF(D$7="c",call_wycena($A31, D$6,D$3, D$4,D$5),put_wycena($A31, D$6,D$3, D$4,D$5)) -> 2.134277645 | E31: -9.041439067 | F31: =IF(F$8="d",1,-1)*IF(F$7="c",call_wycena($A31, F$6,F$3, F$4,F$5),put_wycena($A31, F$6,F$3, F$4,F$5)) -> 9.095569086 | G31: =IF(F$8="d",1,-1)*(IF(F$7="c",MAX($A31-F$6,0),MAX(F$6-$A31,0))-F$11*((1+F$3)^F$5)) -> -2.176317978 | H31: =IF(H$8="d",1,-1)*IF(H$7="c",call_wycena($A31, H$6,H$3, H$4,H$5),put_wycena($A31, H$6,H$3, H$4,H$5)) -> -2.134277645 | I31: =IF(H$8="d",1,-1)*(IF(H$7="c",MAX($A31-H$6,0),MAX(H$6-$A31,0))-H$11*((1+H$3)^H$5)) -> 9.041439067 | J31: =IF(J$8="d",1,-1)*IF(J$7="c",call_wycena($A31, J$6,J$3, J$4,J$5),put_wycena($A31, J$6,J$3, J$4,J$5)) -> -2.134277645 | K31: =IF(J$8="d",1,-1)*(IF(J$7="c",MAX($A31-J$6,0),MAX(J$6-$A31,0))-J$11*((1+J$3)^J$5)) -> 9.041439067 | L31: =IF(L$8="d",1,-1)*IF(L$7="c",call_wycena($A31, L$6,L$3, L$4,L$5),put_wycena($A31, L$6,L$3, L$4,L$5)) -> -2.134277645 | M31: =IF(L$8="d",1,-1)*(IF(L$7="c",MAX($A31-L$6,0),MAX(L$6-$A31,0))-L$11*((1+L$3)^L$5)) -> 9.041439067 | O31: 17.3735945 | P31: -4.454120779
A32: 79.5 | B32: =IF(B$8="d",1,-1)*IF(B$7="c",call_wycena($A32, B$6,B$3, B$4,B$5),put_wycena($A32, B$6,B$3, B$4,B$5)) -> 14.94825244 | C32: 4.087318288 | D32: =IF(D$8="d",1,-1)*IF(D$7="c",call_wycena($A32, D$6,D$3, D$4,D$5),put_wycena($A32, D$6,D$3, D$4,D$5)) -> 2.229503551 | E32: -9.041439067 | F32: =IF(F$8="d",1,-1)*IF(F$7="c",call_wycena($A32, F$6,F$3, F$4,F$5),put_wycena($A32, F$6,F$3, F$4,F$5)) -> 8.882312871 | G32: =IF(F$8="d",1,-1)*(IF(F$7="c",MAX($A32-F$6,0),MAX(F$6-$A32,0))-F$11*((1+F$3)^F$5)) -> -2.676317978 | H32: =IF(H$8="d",1,-1)*IF(H$7="c",call_wycena($A32, H$6,H$3, H$4,H$5),put_wycena($A32, H$6,H$3, H$4,H$5)) -> -2.229503551 | I32: =IF(H$8="d",1,-1)*(IF(H$7="c",MAX($A32-H$6,0),MAX(H$6-$A32,0))-H$11*((1+H$3)^H$5)) -> 9.041439067 | J32: =IF(J$8="d",1,-1)*IF(J$7="c",call_wycena($A32, J$6,J$3, J$4,J$5),put_wycena($A32, J$6,J$3, J$4,J$5)) -> -2.229503551 | K32: =IF(J$8="d",1,-1)*(IF(J$7="c",MAX($A32-J$6,0),MAX(J$6-$A32,0))-J$11*((1+J$3)^J$5)) -> 9.041439067 | L32: =IF(L$8="d",1,-1)*IF(L$7="c",call_wycena($A32, L$6,L$3, L$4,L$5),put_wycena($A32, L$6,L$3, L$4,L$5)) -> -2.229503551 | M32: =IF(L$8="d",1,-1)*(IF(L$7="c",MAX($A32-L$6,0),MAX(L$6-$A32,0))-L$11*((1+L$3)^L$5)) -> 9.041439067 | O32: 17.17775599 | P32: -4.954120779
A33: 80 | B33: =IF(B$8="d",1,-1)*IF(B$7="c",call_wycena($A33, B$6,B$3, B$4,B$5),put_wycena($A33, B$6,B$3, B$4,B$5)) -> 14.66128943 | C33: 3.587318288 | D33: =IF(D$8="d",1,-1)*IF(D$7="c",call_wycena($A33, D$6,D$3, D$4,D$5),put_wycena($A33, D$6,D$3, D$4,D$5)) -> 2.327604161 | E33: -9.041439067 | F33: =IF(F$8="d",1,-1)*IF(F$7="c",call_wycena($A33, F$6,F$3, F$4,F$5),put_wycena($A33, F$6,F$3, F$4,F$5)) -> 8.673158979 | G33: =IF(F$8="d",1,-1)*(IF(F$7="c",MAX($A33-F$6,0),MAX(F$6-$A33,0))-F$11*((1+F$3)^F$5)) -> -3.176317978 | H33: =IF(H$8="d",1,-1)*IF(H$7="c",call_wycena($A33, H$6,H$3, H$4,H$5),put_wycena($A33, H$6,H$3, H$4,H$5)) -> -2.327604161 | I33: =IF(H$8="d",1,-1)*(IF(H$7="c",MAX($A33-H$6,0),MAX(H$6-$A33,0))-H$11*((1+H$3)^H$5)) -> 9.041439067 | J33: =IF(J$8="d",1,-1)*IF(J$7="c",call_wycena($A33, J$6,J$3, J$4,J$5),put_wycena($A33, J$6,J$3, J$4,J$5)) -> -2.327604161 | K33: =IF(J$8="d",1,-1)*(IF(J$7="c",MAX($A33-J$6,0),MAX(J$6-$A33,0))-J$11*((1+J$3)^J$5)) -> 9.041439067 | L33: =IF(L$8="d",1,-1)*IF(L$7="c",call_wycena($A33, L$6,L$3, L$4,L$5),put_wycena($A33, L$6,L$3, L$4,L$5)) -> -2.327604161 | M33: =IF(L$8="d",1,-1)*(IF(L$7="c",MAX($A33-L$6,0),MAX(L$6-$A33,0))-L$11*((1+L$3)^L$5)) -> 9.041439067 | O33: 16.98889359 | P33: -5.454120779
A34: 80.5 | B34: =IF(B$8="d",1,-1)*IF(B$7="c",call_wycena($A34, B$6,B$3, B$4,B$5),put_wycena($A34, B$6,B$3, B$4,B$5)) -> 14.3784181 | C34: 3.087318288 | D34: =IF(D$8="d",1,-1)*IF(D$7="c",call_wycena($A34, D$6,D$3, D$4,D$5),put_wycena($A34, D$6,D$3, D$4,D$5)) -> 2.428613032 | E34: -9.041439067 | F34: =IF(F$8="d",1,-1)*IF(F$7="c",call_wycena($A34, F$6,F$3, F$4,F$5),put_wycena($A34, F$6,F$3, F$4,F$5)) -> 8.468064244 | G34: =IF(F$8="d",1,-1)*(IF(F$7="c",MAX($A34-F$6,0),MAX(F$6-$A34,0))-F$11*((1+F$3)^F$5)) -> -3.176317978 | H34: =IF(H$8="d",1,-1)*IF(H$7="c",call_wycena($A34, H$6,H$3, H$4,H$5),put_wycena($A34, H$6,H$3, H$4,H$5)) -> -2.428613032 | I34: =IF(H$8="d",1,-1)*(IF(H$7="c",MAX($A34-H$6,0),MAX(H$6-$A34,0))-H$11*((1+H$3)^H$5)) -> 9.041439067 | J34: =IF(J$8="d",1,-1)*IF(J$7="c",call_wycena($A34, J$6,J$3, J$4,J$5),put_wycena($A34, J$6,J$3, J$4,J$5)) -> -2.428613032 | K34: =IF(J$8="d",1,-1)*(IF(J$7="c",MAX($A34-J$6,0),MAX(J$6-$A34,0))-J$11*((1+J$3)^J$5)) -> 9.041439067 | L34: =IF(L$8="d",1,-1)*IF(L$7="c",call_wycena($A34, L$6,L$3, L$4,L$5),put_wycena($A34, L$6,L$3, L$4,L$5)) -> -2.428613032 | M34: =IF(L$8="d",1,-1)*(IF(L$7="c",MAX($A34-L$6,0),MAX(L$6-$A34,0))-L$11*((1+L$3)^L$5)) -> 9.041439067 | O34: 16.80703113 | P34: -5.954120779
A35: 81 | B35: =IF(B$8="d",1,-1)*IF(B$7="c",call_wycena($A35, B$6,B$3, B$4,B$5),put_wycena($A35, B$6,B$3, B$4,B$5)) -> 14.09962705 | C35: 2.587318288 | D35: =IF(D$8="d",1,-1)*IF(D$7="c",call_wycena($A35, D$6,D$3, D$4,D$5),put_wycena($A35, D$6,D$3, D$4,D$5)) -> 2.532562624 | E35: -9.041439067 | F35: =IF(F$8="d",1,-1)*IF(F$7="c",call_wycena($A35, F$6,F$3, F$4,F$5),put_wycena($A35, F$6,F$3, F$4,F$5)) -> 8.266984482 | G35: =IF(F$8="d",1,-1)*(IF(F$7="c",MAX($A35-F$6,0),MAX(F$6-$A35,0))-F$11*((1+F$3)^F$5)) -> -3.176317978 | H35: =IF(H$8="d",1,-1)*IF(H$7="c",call_wycena($A35, H$6,H$3, H$4,H$5),put_wycena($A35, H$6,H$3, H$4,H$5)) -> -2.532562624 | I35: =IF(H$8="d",1,-1)*(IF(H$7="c",MAX($A35-H$6,0),MAX(H$6-$A35,0))-H$11*((1+H$3)^H$5)) -> 9.041439067 | J35: =IF(J$8="d",1,-1)*IF(J$7="c",call_wycena($A35, J$6,J$3, J$4,J$5),put_wycena($A35, J$6,J$3, J$4,J$5)) -> -2.532562624 | K35: =IF(J$8="d",1,-1)*(IF(J$7="c",MAX($A35-J$6,0),MAX(J$6-$A35,0))-J$11*((1+J$3)^J$5)) -> 9.041439067 | L35: =IF(L$8="d",1,-1)*IF(L$7="c",call_wycena($A35, L$6,L$3, L$4,L$5),put_wycena($A35, L$6,L$3, L$4,L$5)) -> -2.532562624 | M35: =IF(L$8="d",1,-1)*(IF(L$7="c",MAX($A35-L$6,0),MAX(L$6-$A35,0))-L$11*((1+L$3)^L$5)) -> 9.041439067 | O35: 16.63218967 | P35: -6.454120779
A36: 81.5 | B36: =IF(B$8="d",1,-1)*IF(B$7="c",call_wycena($A36, B$6,B$3, B$4,B$5),put_wycena($A36, B$6,B$3, B$4,B$5)) -> 13.82490323 | C36: 2.087318288 | D36: =IF(D$8="d",1,-1)*IF(D$7="c",call_wycena($A36, D$6,D$3, D$4,D$5),put_wycena($A36, D$6,D$3, D$4,D$5)) -> 2.639484286 | E36: -9.041439067 | F36: =IF(F$8="d",1,-1)*IF(F$7="c",call_wycena($A36, F$6,F$3, F$4,F$5),put_wycena($A36, F$6,F$3, F$4,F$5)) -> 8.069874563 | G36: =IF(F$8="d",1,-1)*(IF(F$7="c",MAX($A36-F$6,0),MAX(F$6-$A36,0))-F$11*((1+F$3)^F$5)) -> -3.176317978 | H36: =IF(H$8="d",1,-1)*IF(H$7="c",call_wycena($A36, H$6,H$3, H$4,H$5),put_wycena($A36, H$6,H$3, H$4,H$5)) -> -2.639484286 | I36: =IF(H$8="d",1,-1)*(IF(H$7="c",MAX($A36-H$6,0),MAX(H$6-$A36,0))-H$11*((1+H$3)^H$5)) -> 9.041439067 | J36: =IF(J$8="d",1,-1)*IF(J$7="c",call_wycena($A36, J$6,J$3, J$4,J$5),put_wycena($A36, J$6,J$3, J$4,J$5)) -> -2.639484286 | K36: =IF(J$8="d",1,-1)*(IF(J$7="c",MAX($A36-J$6,0),MAX(J$6-$A36,0))-J$11*((1+J$3)^J$5)) -> 9.041439067 | L36: =IF(L$8="d",1,-1)*IF(L$7="c",call_wycena($A36, L$6,L$3, L$4,L$5),put_wycena($A36, L$6,L$3, L$4,L$5)) -> -2.639484286 | M36: =IF(L$8="d",1,-1)*(IF(L$7="c",MAX($A36-L$6,0),MAX(L$6-$A36,0))-L$11*((1+L$3)^L$5)) -> 9.041439067 | O36: 16.46438752 | P36: -6.954120779
A37: 82 | B37: =IF(B$8="d",1,-1)*IF(B$7="c",call_wycena($A37, B$6,B$3, B$4,B$5),put_wycena($A37, B$6,B$3, B$4,B$5)) -> 13.55423202 | C37: 1.587318288 | D37: =IF(D$8="d",1,-1)*IF(D$7="c",call_wycena($A37, D$6,D$3, D$4,D$5),put_wycena($A37, D$6,D$3, D$4,D$5)) -> 2.749408237 | E37: -9.041439067 | F37: =IF(F$8="d",1,-1)*IF(F$7="c",call_wycena($A37, F$6,F$3, F$4,F$5),put_wycena($A37, F$6,F$3, F$4,F$5)) -> 7.876688478 | G37: =IF(F$8="d",1,-1)*(IF(F$7="c",MAX($A37-F$6,0),MAX(F$6-$A37,0))-F$11*((1+F$3)^F$5)) -> -3.176317978 | H37: =IF(H$8="d",1,-1)*IF(H$7="c",call_wycena($A37, H$6,H$3, H$4,H$5),put_wycena($A37, H$6,H$3, H$4,H$5)) -> -2.749408237 | I37: =IF(H$8="d",1,-1)*(IF(H$7="c",MAX($A37-H$6,0),MAX(H$6-$A37,0))-H$11*((1+H$3)^H$5)) -> 9.041439067 | J37: =IF(J$8="d",1,-1)*IF(J$7="c",call_wycena($A37, J$6,J$3, J$4,J$5),put_wycena($A37, J$6,J$3, J$4,J$5)) -> -2.749408237 | K37: =IF(J$8="d",1,-1)*(IF(J$7="c",MAX($A37-J$6,0),MAX(J$6-$A37,0))-J$11*((1+J$3)^J$5)) -> 9.041439067 | L37: =IF(L$8="d",1,-1)*IF(L$7="c",call_wycena($A37, L$6,L$3, L$4,L$5),put_wycena($A37, L$6,L$3, L$4,L$5)) -> -2.749408237 | M37: =IF(L$8="d",1,-1)*(IF(L$7="c",MAX($A37-L$6,0),MAX(L$6-$A37,0))-L$11*((1+L$3)^L$5)) -> 9.041439067 | O37: 16.30364026 | P37: -7.454120779
A38: 82.5 | B38: =IF(B$8="d",1,-1)*IF(B$7="c",call_wycena($A38, B$6,B$3, B$4,B$5),put_wycena($A38, B$6,B$3, B$4,B$5)) -> 13.28759725 | C38: 1.087318288 | D38: =IF(D$8="d",1,-1)*IF(D$7="c",call_wycena($A38, D$6,D$3, D$4,D$5),put_wycena($A38, D$6,D$3, D$4,D$5)) -> 2.862363552 | E38: -9.041439067 | F38: =IF(F$8="d",1,-1)*IF(F$7="c",call_wycena($A38, F$6,F$3, F$4,F$5),put_wycena($A38, F$6,F$3, F$4,F$5)) -> 7.687379413 | G38: =IF(F$8="d",1,-1)*(IF(F$7="c",MAX($A38-F$6,0),MAX(F$6-$A38,0))-F$11*((1+F$3)^F$5)) -> -3.176317978 | H38: =IF(H$8="d",1,-1)*IF(H$7="c",call_wycena($A38, H$6,H$3, H$4,H$5),put_wycena($A38, H$6,H$3, H$4,H$5)) -> -2.862363552 | I38: =IF(H$8="d",1,-1)*(IF(H$7="c",MAX($A38-H$6,0),MAX(H$6-$A38,0))-H$11*((1+H$3)^H$5)) -> 9.041439067 | J38: =IF(J$8="d",1,-1)*IF(J$7="c",call_wycena($A38, J$6,J$3, J$4,J$5),put_wycena($A38, J$6,J$3, J$4,J$5)) -> -2.862363552 | K38: =IF(J$8="d",1,-1)*(IF(J$7="c",MAX($A38-J$6,0),MAX(J$6-$A38,0))-J$11*((1+J$3)^J$5)) -> 9.041439067 | L38: =IF(L$8="d",1,-1)*IF(L$7="c",call_wycena($A38, L$6,L$3, L$4,L$5),put_wycena($A38, L$6,L$3, L$4,L$5)) -> -2.862363552 | M38: =IF(L$8="d",1,-1)*(IF(L$7="c",MAX($A38-L$6,0),MAX(L$6-$A38,0))-L$11*((1+L$3)^L$5)) -> 9.041439067 | O38: 16.1499608 | P38: -7.954120779
A39: 83 | B39: =IF(B$8="d",1,-1)*IF(B$7="c",call_wycena($A39, B$6,B$3, B$4,B$5),put_wycena($A39, B$6,B$3, B$4,B$5)) -> 13.02498124 | C39: 0.5873182878 | D39: =IF(D$8="d",1,-1)*IF(D$7="c",call_wycena($A39, D$6,D$3, D$4,D$5),put_wycena($A39, D$6,D$3, D$4,D$5)) -> 2.978378148 | E39: -9.041439067 | F39: =IF(F$8="d",1,-1)*IF(F$7="c",call_wycena($A39, F$6,F$3, F$4,F$5),put_wycena($A39, F$6,F$3, F$4,F$5)) -> 7.501899815 | G39: =IF(F$8="d",1,-1)*(IF(F$7="c",MAX($A39-F$6,0),MAX(F$6-$A39,0))-F$11*((1+F$3)^F$5)) -> -3.176317978 | H39: =IF(H$8="d",1,-1)*IF(H$7="c",call_wycena($A39, H$6,H$3, H$4,H$5),put_wycena($A39, H$6,H$3, H$4,H$5)) -> -2.978378148 | I39: =IF(H$8="d",1,-1)*(IF(H$7="c",MAX($A39-H$6,0),MAX(H$6-$A39,0))-H$11*((1+H$3)^H$5)) -> 9.041439067 | J39: =IF(J$8="d",1,-1)*IF(J$7="c",call_wycena($A39, J$6,J$3, J$4,J$5),put_wycena($A39, J$6,J$3, J$4,J$5)) -> -2.978378148 | K39: =IF(J$8="d",1,-1)*(IF(J$7="c",MAX($A39-J$6,0),MAX(J$6-$A39,0))-J$11*((1+J$3)^J$5)) -> 9.041439067 | L39: =IF(L$8="d",1,-1)*IF(L$7="c",call_wycena($A39, L$6,L$3, L$4,L$5),put_wycena($A39, L$6,L$3, L$4,L$5)) -> -2.978378148 | M39: =IF(L$8="d",1,-1)*(IF(L$7="c",MAX($A39-L$6,0),MAX(L$6-$A39,0))-L$11*((1+L$3)^L$5)) -> 9.041439067 | O39: 16.00335938 | P39: -8.454120779
A40: 83.5 | B40: =IF(B$8="d",1,-1)*IF(B$7="c",call_wycena($A40, B$6,B$3, B$4,B$5),put_wycena($A40, B$6,B$3, B$4,B$5)) -> 12.76636488 | C40: 0.08731828784 | D40: =IF(D$8="d",1,-1)*IF(D$7="c",call_wycena($A40, D$6,D$3, D$4,D$5),put_wycena($A40, D$6,D$3, D$4,D$5)) -> 3.097478772 | E40: -9.041439067 | F40: =IF(F$8="d",1,-1)*IF(F$7="c",call_wycena($A40, F$6,F$3, F$4,F$5),put_wycena($A40, F$6,F$3, F$4,F$5)) -> 7.320201456 | G40: =IF(F$8="d",1,-1)*(IF(F$7="c",MAX($A40-F$6,0),MAX(F$6-$A40,0))-F$11*((1+F$3)^F$5)) -> -3.176317978 | H40: =IF(H$8="d",1,-1)*IF(H$7="c",call_wycena($A40, H$6,H$3, H$4,H$5),put_wycena($A40, H$6,H$3, H$4,H$5)) -> -3.097478772 | I40: =IF(H$8="d",1,-1)*(IF(H$7="c",MAX($A40-H$6,0),MAX(H$6-$A40,0))-H$11*((1+H$3)^H$5)) -> 9.041439067 | J40: =IF(J$8="d",1,-1)*IF(J$7="c",call_wycena($A40, J$6,J$3, J$4,J$5),put_wycena($A40, J$6,J$3, J$4,J$5)) -> -3.097478772 | K40: =IF(J$8="d",1,-1)*(IF(J$7="c",MAX($A40-J$6,0),MAX(J$6-$A40,0))-J$11*((1+J$3)^J$5)) -> 9.041439067 | L40: =IF(L$8="d",1,-1)*IF(L$7="c",call_wycena($A40, L$6,L$3, L$4,L$5),put_wycena($A40, L$6,L$3, L$4,L$5)) -> -3.097478772 | M40: =IF(L$8="d",1,-1)*(IF(L$7="c",MAX($A40-L$6,0),MAX(L$6-$A40,0))-L$11*((1+L$3)^L$5)) -> 9.041439067 | O40: 15.86384366 | P40: -8.954120779
A41: 84 | B41: =IF(B$8="d",1,-1)*IF(B$7="c",call_wycena($A41, B$6,B$3, B$4,B$5),put_wycena($A41, B$6,B$3, B$4,B$5)) -> 12.51172768 | C41: -0.4126817122 | D41: =IF(D$8="d",1,-1)*IF(D$7="c",call_wycena($A41, D$6,D$3, D$4,D$5),put_wycena($A41, D$6,D$3, D$4,D$5)) -> 3.219690993 | E41: -9.041439067 | F41: =IF(F$8="d",1,-1)*IF(F$7="c",call_wycena($A41, F$6,F$3, F$4,F$5),put_wycena($A41, F$6,F$3, F$4,F$5)) -> 7.1422355 | G41: =IF(F$8="d",1,-1)*(IF(F$7="c",MAX($A41-F$6,0),MAX(F$6-$A41,0))-F$11*((1+F$3)^F$5)) -> -3.176317978 | H41: =IF(H$8="d",1,-1)*IF(H$7="c",call_wycena($A41, H$6,H$3, H$4,H$5),put_wycena($A41, H$6,H$3, H$4,H$5)) -> -3.219690993 | I41: =IF(H$8="d",1,-1)*(IF(H$7="c",MAX($A41-H$6,0),MAX(H$6-$A41,0))-H$11*((1+H$3)^H$5)) -> 9.041439067 | J41: =IF(J$8="d",1,-1)*IF(J$7="c",call_wycena($A41, J$6,J$3, J$4,J$5),put_wycena($A41, J$6,J$3, J$4,J$5)) -> -3.219690993 | K41: =IF(J$8="d",1,-1)*(IF(J$7="c",MAX($A41-J$6,0),MAX(J$6-$A41,0))-J$11*((1+J$3)^J$5)) -> 9.041439067 | L41: =IF(L$8="d",1,-1)*IF(L$7="c",call_wycena($A41, L$6,L$3, L$4,L$5),put_wycena($A41, L$6,L$3, L$4,L$5)) -> -3.219690993 | M41: =IF(L$8="d",1,-1)*(IF(L$7="c",MAX($A41-L$6,0),MAX(L$6-$A41,0))-L$11*((1+L$3)^L$5)) -> 9.041439067 | O41: 15.73141868 | P41: -9.454120779
A42: 84.5 | B42: =IF(B$8="d",1,-1)*IF(B$7="c",call_wycena($A42, B$6,B$3, B$4,B$5),put_wycena($A42, B$6,B$3, B$4,B$5)) -> 12.26104779 | C42: -0.9126817122 | D42: =IF(D$8="d",1,-1)*IF(D$7="c",call_wycena($A42, D$6,D$3, D$4,D$5),put_wycena($A42, D$6,D$3, D$4,D$5)) -> 3.345039189 | E42: -9.041439067 | F42: =IF(F$8="d",1,-1)*IF(F$7="c",call_wycena($A42, F$6,F$3, F$4,F$5),put_wycena($A42, F$6,F$3, F$4,F$5)) -> 6.967952564 | G42: =IF(F$8="d",1,-1)*(IF(F$7="c",MAX($A42-F$6,0),MAX(F$6-$A42,0))-F$11*((1+F$3)^F$5)) -> -3.176317978 | H42: =IF(H$8="d",1,-1)*IF(H$7="c",call_wycena($A42, H$6,H$3, H$4,H$5),put_wycena($A42, H$6,H$3, H$4,H$5)) -> -3.345039189 | I42: =IF(H$8="d",1,-1)*(IF(H$7="c",MAX($A42-H$6,0),MAX(H$6-$A42,0))-H$11*((1+H$3)^H$5)) -> 9.041439067 | J42: =IF(J$8="d",1,-1)*IF(J$7="c",call_wycena($A42, J$6,J$3, J$4,J$5),put_wycena($A42, J$6,J$3, J$4,J$5)) -> -3.345039189 | K42: =IF(J$8="d",1,-1)*(IF(J$7="c",MAX($A42-J$6,0),MAX(J$6-$A42,0))-J$11*((1+J$3)^J$5)) -> 9.041439067 | L42: =IF(L$8="d",1,-1)*IF(L$7="c",call_wycena($A42, L$6,L$3, L$4,L$5),put_wycena($A42, L$6,L$3, L$4,L$5)) -> -3.345039189 | M42: =IF(L$8="d",1,-1)*(IF(L$7="c",MAX($A42-L$6,0),MAX(L$6-$A42,0))-L$11*((1+L$3)^L$5)) -> 9.041439067 | O42: 15.60608698 | P42: -9.954120779
A43: 85 | B43: =IF(B$8="d",1,-1)*IF(B$7="c",call_wycena($A43, B$6,B$3, B$4,B$5),put_wycena($A43, B$6,B$3, B$4,B$5)) -> 12.01430205 | C43: -1.412681712 | D43: =IF(D$8="d",1,-1)*IF(D$7="c",call_wycena($A43, D$6,D$3, D$4,D$5),put_wycena($A43, D$6,D$3, D$4,D$5)) -> 3.473546542 | E43: -9.041439067 | F43: =IF(F$8="d",1,-1)*IF(F$7="c",call_wycena($A43, F$6,F$3, F$4,F$5),put_wycena($A43, F$6,F$3, F$4,F$5)) -> 6.797302778 | G43: =IF(F$8="d",1,-1)*(IF(F$7="c",MAX($A43-F$6,0),MAX(F$6-$A43,0))-F$11*((1+F$3)^F$5)) -> -3.176317978 | H43: =IF(H$8="d",1,-1)*IF(H$7="c",call_wycena($A43, H$6,H$3, H$4,H$5),put_wycena($A43, H$6,H$3, H$4,H$5)) -> -3.473546542 | I43: =IF(H$8="d",1,-1)*(IF(H$7="c",MAX($A43-H$6,0),MAX(H$6-$A43,0))-H$11*((1+H$3)^H$5)) -> 9.041439067 | J43: =IF(J$8="d",1,-1)*IF(J$7="c",call_wycena($A43, J$6,J$3, J$4,J$5),put_wycena($A43, J$6,J$3, J$4,J$5)) -> -3.473546542 | K43: =IF(J$8="d",1,-1)*(IF(J$7="c",MAX($A43-J$6,0),MAX(J$6-$A43,0))-J$11*((1+J$3)^J$5)) -> 9.041439067 | L43: =IF(L$8="d",1,-1)*IF(L$7="c",call_wycena($A43, L$6,L$3, L$4,L$5),put_wycena($A43, L$6,L$3, L$4,L$5)) -> -3.473546542 | M43: =IF(L$8="d",1,-1)*(IF(L$7="c",MAX($A43-L$6,0),MAX(L$6-$A43,0))-L$11*((1+L$3)^L$5)) -> 9.041439067 | O43: 15.48784859 | P43: -10.45412078
A44: 85.5 | B44: =IF(B$8="d",1,-1)*IF(B$7="c",call_wycena($A44, B$6,B$3, B$4,B$5),put_wycena($A44, B$6,B$3, B$4,B$5)) -> 11.77146607 | C44: -1.912681712 | D44: =IF(D$8="d",1,-1)*IF(D$7="c",call_wycena($A44, D$6,D$3, D$4,D$5),put_wycena($A44, D$6,D$3, D$4,D$5)) -> 3.605235036 | E44: -9.041439067 | F44: =IF(F$8="d",1,-1)*IF(F$7="c",call_wycena($A44, F$6,F$3, F$4,F$5),put_wycena($A44, F$6,F$3, F$4,F$5)) -> 6.630235848 | G44: =IF(F$8="d",1,-1)*(IF(F$7="c",MAX($A44-F$6,0),MAX(F$6-$A44,0))-F$11*((1+F$3)^F$5)) -> -3.176317978 | H44: =IF(H$8="d",1,-1)*IF(H$7="c",call_wycena($A44, H$6,H$3, H$4,H$5),put_wycena($A44, H$6,H$3, H$4,H$5)) -> -3.605235036 | I44: =IF(H$8="d",1,-1)*(IF(H$7="c",MAX($A44-H$6,0),MAX(H$6-$A44,0))-H$11*((1+H$3)^H$5)) -> 9.041439067 | J44: =IF(J$8="d",1,-1)*IF(J$7="c",call_wycena($A44, J$6,J$3, J$4,J$5),put_wycena($A44, J$6,J$3, J$4,J$5)) -> -3.605235036 | K44: =IF(J$8="d",1,-1)*(IF(J$7="c",MAX($A44-J$6,0),MAX(J$6-$A44,0))-J$11*((1+J$3)^J$5)) -> 9.041439067 | L44: =IF(L$8="d",1,-1)*IF(L$7="c",call_wycena($A44, L$6,L$3, L$4,L$5),put_wycena($A44, L$6,L$3, L$4,L$5)) -> -3.605235036 | M44: =IF(L$8="d",1,-1)*(IF(L$7="c",MAX($A44-L$6,0),MAX(L$6-$A44,0))-L$11*((1+L$3)^L$5)) -> 9.041439067 | O44: 15.3767011 | P44: -10.95412078
A45: 86 | B45: =IF(B$8="d",1,-1)*IF(B$7="c",call_wycena($A45, B$6,B$3, B$4,B$5),put_wycena($A45, B$6,B$3, B$4,B$5)) -> 11.53251426 | C45: =IF(B$8="d",1,-1)*(IF(B$7="c",MAX($A45-B$6,0),MAX(B$6-$A45,0))-B$11*((1+B$3)^B$5)) -> -2.412681712 | D45: =IF(D$8="d",1,-1)*IF(D$7="c",call_wycena($A45, D$6,D$3, D$4,D$5),put_wycena($A45, D$6,D$3, D$4,D$5)) -> 3.740125449 | E45: =IF(D$8="d",1,-1)*(IF(D$7="c",MAX($A45-D$6,0),MAX(D$6-$A45,0))-D$11*((1+D$3)^D$5)) -> -9.041439067 | F45: =IF(F$8="d",1,-1)*IF(F$7="c",call_wycena($A45, F$6,F$3, F$4,F$5),put_wycena($A45, F$6,F$3, F$4,F$5)) -> 6.466701108 | G45: =IF(F$8="d",1,-1)*(IF(F$7="c",MAX($A45-F$6,0),MAX(F$6-$A45,0))-F$11*((1+F$3)^F$5)) -> -3.176317978 | H45: =IF(H$8="d",1,-1)*IF(H$7="c",call_wycena($A45, H$6,H$3, H$4,H$5),put_wycena($A45, H$6,H$3, H$4,H$5)) -> -3.740125449 | I45: =IF(H$8="d",1,-1)*(IF(H$7="c",MAX($A45-H$6,0),MAX(H$6-$A45,0))-H$11*((1+H$3)^H$5)) -> 9.041439067 | J45: =IF(J$8="d",1,-1)*IF(J$7="c",call_wycena($A45, J$6,J$3, J$4,J$5),put_wycena($A45, J$6,J$3, J$4,J$5)) -> -3.740125449 | K45: =IF(J$8="d",1,-1)*(IF(J$7="c",MAX($A45-J$6,0),MAX(J$6-$A45,0))-J$11*((1+J$3)^J$5)) -> 9.041439067 | L45: =IF(L$8="d",1,-1)*IF(L$7="c",call_wycena($A45, L$6,L$3, L$4,L$5),put_wycena($A45, L$6,L$3, L$4,L$5)) -> -3.740125449 | M45: =IF(L$8="d",1,-1)*(IF(L$7="c",MAX($A45-L$6,0),MAX(L$6-$A45,0))-L$11*((1+L$3)^L$5)) -> 9.041439067 | O45: 15.27263971 | P45: -11.45412078
A46: 86.5 | B46: =IF(B$8="d",1,-1)*IF(B$7="c",call_wycena($A46, B$6,B$3, B$4,B$5),put_wycena($A46, B$6,B$3, B$4,B$5)) -> 11.2974199 | C46: -2.912681712 | D46: =IF(D$8="d",1,-1)*IF(D$7="c",call_wycena($A46, D$6,D$3, D$4,D$5),put_wycena($A46, D$6,D$3, D$4,D$5)) -> 3.878237349 | E46: -9.041439067 | F46: =IF(F$8="d",1,-1)*IF(F$7="c",call_wycena($A46, F$6,F$3, F$4,F$5),put_wycena($A46, F$6,F$3, F$4,F$5)) -> 6.306647582 | G46: =IF(F$8="d",1,-1)*(IF(F$7="c",MAX($A46-F$6,0),MAX(F$6-$A46,0))-F$11*((1+F$3)^F$5)) -> -3.176317978 | H46: =IF(H$8="d",1,-1)*IF(H$7="c",call_wycena($A46, H$6,H$3, H$4,H$5),put_wycena($A46, H$6,H$3, H$4,H$5)) -> -3.878237349 | I46: =IF(H$8="d",1,-1)*(IF(H$7="c",MAX($A46-H$6,0),MAX(H$6-$A46,0))-H$11*((1+H$3)^H$5)) -> 9.041439067 | J46: =IF(J$8="d",1,-1)*IF(J$7="c",call_wycena($A46, J$6,J$3, J$4,J$5),put_wycena($A46, J$6,J$3, J$4,J$5)) -> -3.878237349 | K46: =IF(J$8="d",1,-1)*(IF(J$7="c",MAX($A46-J$6,0),MAX(J$6-$A46,0))-J$11*((1+J$3)^J$5)) -> 9.041439067 | L46: =IF(L$8="d",1,-1)*IF(L$7="c",call_wycena($A46, L$6,L$3, L$4,L$5),put_wycena($A46, L$6,L$3, L$4,L$5)) -> -3.878237349 | M46: =IF(L$8="d",1,-1)*(IF(L$7="c",MAX($A46-L$6,0),MAX(L$6-$A46,0))-L$11*((1+L$3)^L$5)) -> 9.041439067 | O46: 15.17565725 | P46: -11.95412078
A47: 87 | B47: =IF(B$8="d",1,-1)*IF(B$7="c",call_wycena($A47, B$6,B$3, B$4,B$5),put_wycena($A47, B$6,B$3, B$4,B$5)) -> 11.06615514 | C47: -3.412681712 | D47: =IF(D$8="d",1,-1)*IF(D$7="c",call_wycena($A47, D$6,D$3, D$4,D$5),put_wycena($A47, D$6,D$3, D$4,D$5)) -> 4.019589098 | E47: -9.041439067 | F47: =IF(F$8="d",1,-1)*IF(F$7="c",call_wycena($A47, F$6,F$3, F$4,F$5),put_wycena($A47, F$6,F$3, F$4,F$5)) -> 6.15002403 | G47: =IF(F$8="d",1,-1)*(IF(F$7="c",MAX($A47-F$6,0),MAX(F$6-$A47,0))-F$11*((1+F$3)^F$5)) -> -3.176317978 | H47: =IF(H$8="d",1,-1)*IF(H$7="c",call_wycena($A47, H$6,H$3, H$4,H$5),put_wycena($A47, H$6,H$3, H$4,H$5)) -> -4.019589098 | I47: =IF(H$8="d",1,-1)*(IF(H$7="c",MAX($A47-H$6,0),MAX(H$6-$A47,0))-H$11*((1+H$3)^H$5)) -> 9.041439067 | J47: =IF(J$8="d",1,-1)*IF(J$7="c",call_wycena($A47, J$6,J$3, J$4,J$5),put_wycena($A47, J$6,J$3, J$4,J$5)) -> -4.019589098 | K47: =IF(J$8="d",1,-1)*(IF(J$7="c",MAX($A47-J$6,0),MAX(J$6-$A47,0))-J$11*((1+J$3)^J$5)) -> 9.041439067 | L47: =IF(L$8="d",1,-1)*IF(L$7="c",call_wycena($A47, L$6,L$3, L$4,L$5),put_wycena($A47, L$6,L$3, L$4,L$5)) -> -4.019589098 | M47: =IF(L$8="d",1,-1)*(IF(L$7="c",MAX($A47-L$6,0),MAX(L$6-$A47,0))-L$11*((1+L$3)^L$5)) -> 9.041439067 | O47: 15.08574424 | P47: -12.45412078
A48: 87.5 | B48: =IF(B$8="d",1,-1)*IF(B$7="c",call_wycena($A48, B$6,B$3, B$4,B$5),put_wycena($A48, B$6,B$3, B$4,B$5)) -> 10.83869111 | C48: -3.912681712 | D48: =IF(D$8="d",1,-1)*IF(D$7="c",call_wycena($A48, D$6,D$3, D$4,D$5),put_wycena($A48, D$6,D$3, D$4,D$5)) -> 4.164197852 | E48: -9.041439067 | F48: =IF(F$8="d",1,-1)*IF(F$7="c",call_wycena($A48, F$6,F$3, F$4,F$5),put_wycena($A48, F$6,F$3, F$4,F$5)) -> 5.996779008 | G48: =IF(F$8="d",1,-1)*(IF(F$7="c",MAX($A48-F$6,0),MAX(F$6-$A48,0))-F$11*((1+F$3)^F$5)) -> -3.176317978 | H48: =IF(H$8="d",1,-1)*IF(H$7="c",call_wycena($A48, H$6,H$3, H$4,H$5),put_wycena($A48, H$6,H$3, H$4,H$5)) -> -4.164197852 | I48: =IF(H$8="d",1,-1)*(IF(H$7="c",MAX($A48-H$6,0),MAX(H$6-$A48,0))-H$11*((1+H$3)^H$5)) -> 9.041439067 | J48: =IF(J$8="d",1,-1)*IF(J$7="c",call_wycena($A48, J$6,J$3, J$4,J$5),put_wycena($A48, J$6,J$3, J$4,J$5)) -> -4.164197852 | K48: =IF(J$8="d",1,-1)*(IF(J$7="c",MAX($A48-J$6,0),MAX(J$6-$A48,0))-J$11*((1+J$3)^J$5)) -> 9.041439067 | L48: =IF(L$8="d",1,-1)*IF(L$7="c",call_wycena($A48, L$6,L$3, L$4,L$5),put_wycena($A48, L$6,L$3, L$4,L$5)) -> -4.164197852 | M48: =IF(L$8="d",1,-1)*(IF(L$7="c",MAX($A48-L$6,0),MAX(L$6-$A48,0))-L$11*((1+L$3)^L$5)) -> 9.041439067 | O48: 15.00288896 | P48: -12.95412078
A49: 88 | B49: =IF(B$8="d",1,-1)*IF(B$7="c",call_wycena($A49, B$6,B$3, B$4,B$5),put_wycena($A49, B$6,B$3, B$4,B$5)) -> 10.61499793 | C49: -4.412681712 | D49: =IF(D$8="d",1,-1)*IF(D$7="c",call_wycena($A49, D$6,D$3, D$4,D$5),put_wycena($A49, D$6,D$3, D$4,D$5)) -> 4.312079556 | E49: -9.041439067 | F49: =IF(F$8="d",1,-1)*IF(F$7="c",call_wycena($A49, F$6,F$3, F$4,F$5),put_wycena($A49, F$6,F$3, F$4,F$5)) -> 5.846860911 | G49: =IF(F$8="d",1,-1)*(IF(F$7="c",MAX($A49-F$6,0),MAX(F$6-$A49,0))-F$11*((1+F$3)^F$5)) -> -3.176317978 | H49: =IF(H$8="d",1,-1)*IF(H$7="c",call_wycena($A49, H$6,H$3, H$4,H$5),put_wycena($A49, H$6,H$3, H$4,H$5)) -> -4.312079556 | I49: =IF(H$8="d",1,-1)*(IF(H$7="c",MAX($A49-H$6,0),MAX(H$6-$A49,0))-H$11*((1+H$3)^H$5)) -> 9.041439067 | J49: =IF(J$8="d",1,-1)*IF(J$7="c",call_wycena($A49, J$6,J$3, J$4,J$5),put_wycena($A49, J$6,J$3, J$4,J$5)) -> -4.312079556 | K49: =IF(J$8="d",1,-1)*(IF(J$7="c",MAX($A49-J$6,0),MAX(J$6-$A49,0))-J$11*((1+J$3)^J$5)) -> 9.041439067 | L49: =IF(L$8="d",1,-1)*IF(L$7="c",call_wycena($A49, L$6,L$3, L$4,L$5),put_wycena($A49, L$6,L$3, L$4,L$5)) -> -4.312079556 | M49: =IF(L$8="d",1,-1)*(IF(L$7="c",MAX($A49-L$6,0),MAX(L$6-$A49,0))-L$11*((1+L$3)^L$5)) -> 9.041439067 | O49: 14.92707748 | P49: -13.45412078
A50: 88.5 | B50: =IF(B$8="d",1,-1)*IF(B$7="c",call_wycena($A50, B$6,B$3, B$4,B$5),put_wycena($A50, B$6,B$3, B$4,B$5)) -> 10.39504476 | C50: -4.912681712 | D50: =IF(D$8="d",1,-1)*IF(D$7="c",call_wycena($A50, D$6,D$3, D$4,D$5),put_wycena($A50, D$6,D$3, D$4,D$5)) -> 4.463248957 | E50: -9.041439067 | F50: =IF(F$8="d",1,-1)*IF(F$7="c",call_wycena($A50, F$6,F$3, F$4,F$5),put_wycena($A50, F$6,F$3, F$4,F$5)) -> 5.700218026 | G50: =IF(F$8="d",1,-1)*(IF(F$7="c",MAX($A50-F$6,0),MAX(F$6-$A50,0))-F$11*((1+F$3)^F$5)) -> -3.176317978 | H50: =IF(H$8="d",1,-1)*IF(H$7="c",call_wycena($A50, H$6,H$3, H$4,H$5),put_wycena($A50, H$6,H$3, H$4,H$5)) -> -4.463248957 | I50: =IF(H$8="d",1,-1)*(IF(H$7="c",MAX($A50-H$6,0),MAX(H$6-$A50,0))-H$11*((1+H$3)^H$5)) -> 9.041439067 | J50: =IF(J$8="d",1,-1)*IF(J$7="c",call_wycena($A50, J$6,J$3, J$4,J$5),put_wycena($A50, J$6,J$3, J$4,J$5)) -> -4.463248957 | K50: =IF(J$8="d",1,-1)*(IF(J$7="c",MAX($A50-J$6,0),MAX(J$6-$A50,0))-J$11*((1+J$3)^J$5)) -> 9.041439067 | L50: =IF(L$8="d",1,-1)*IF(L$7="c",call_wycena($A50, L$6,L$3, L$4,L$5),put_wycena($A50, L$6,L$3, L$4,L$5)) -> -4.463248957 | M50: =IF(L$8="d",1,-1)*(IF(L$7="c",MAX($A50-L$6,0),MAX(L$6-$A50,0))-L$11*((1+L$3)^L$5)) -> 9.041439067 | O50: 14.85829372 | P50: -13.95412078
A51: 89 | B51: =IF(B$8="d",1,-1)*IF(B$7="c",call_wycena($A51, B$6,B$3, B$4,B$5),put_wycena($A51, B$6,B$3, B$4,B$5)) -> 10.17879989 | C51: -5.412681712 | D51: =IF(D$8="d",1,-1)*IF(D$7="c",call_wycena($A51, D$6,D$3, D$4,D$5),put_wycena($A51, D$6,D$3, D$4,D$5)) -> 4.617719599 | E51: -9.041439067 | F51: =IF(F$8="d",1,-1)*IF(F$7="c",call_wycena($A51, F$6,F$3, F$4,F$5),put_wycena($A51, F$6,F$3, F$4,F$5)) -> 5.556798576 | G51: =IF(F$8="d",1,-1)*(IF(F$7="c",MAX($A51-F$6,0),MAX(F$6-$A51,0))-F$11*((1+F$3)^F$5)) -> -3.176317978 | H51: =IF(H$8="d",1,-1)*IF(H$7="c",call_wycena($A51, H$6,H$3, H$4,H$5),put_wycena($A51, H$6,H$3, H$4,H$5)) -> -4.617719599 | I51: =IF(H$8="d",1,-1)*(IF(H$7="c",MAX($A51-H$6,0),MAX(H$6-$A51,0))-H$11*((1+H$3)^H$5)) -> 9.041439067 | J51: =IF(J$8="d",1,-1)*IF(J$7="c",call_wycena($A51, J$6,J$3, J$4,J$5),put_wycena($A51, J$6,J$3, J$4,J$5)) -> -4.617719599 | K51: =IF(J$8="d",1,-1)*(IF(J$7="c",MAX($A51-J$6,0),MAX(J$6-$A51,0))-J$11*((1+J$3)^J$5)) -> 9.041439067 | L51: =IF(L$8="d",1,-1)*IF(L$7="c",call_wycena($A51, L$6,L$3, L$4,L$5),put_wycena($A51, L$6,L$3, L$4,L$5)) -> -4.617719599 | M51: =IF(L$8="d",1,-1)*(IF(L$7="c",MAX($A51-L$6,0),MAX(L$6-$A51,0))-L$11*((1+L$3)^L$5)) -> 9.041439067 | O51: 14.79651949 | P51: -14.45412078
A52: 89.5 | B52: =IF(B$8="d",1,-1)*IF(B$7="c",call_wycena($A52, B$6,B$3, B$4,B$5),put_wycena($A52, B$6,B$3, B$4,B$5)) -> 9.966230714 | C52: -5.912681712 | D52: =IF(D$8="d",1,-1)*IF(D$7="c",call_wycena($A52, D$6,D$3, D$4,D$5),put_wycena($A52, D$6,D$3, D$4,D$5)) -> 4.775503836 | E52: -9.041439067 | F52: =IF(F$8="d",1,-1)*IF(F$7="c",call_wycena($A52, F$6,F$3, F$4,F$5),put_wycena($A52, F$6,F$3, F$4,F$5)) -> 5.416550767 | G52: =IF(F$8="d",1,-1)*(IF(F$7="c",MAX($A52-F$6,0),MAX(F$6-$A52,0))-F$11*((1+F$3)^F$5)) -> -3.176317978 | H52: =IF(H$8="d",1,-1)*IF(H$7="c",call_wycena($A52, H$6,H$3, H$4,H$5),put_wycena($A52, H$6,H$3, H$4,H$5)) -> -4.775503836 | I52: =IF(H$8="d",1,-1)*(IF(H$7="c",MAX($A52-H$6,0),MAX(H$6-$A52,0))-H$11*((1+H$3)^H$5)) -> 9.041439067 | J52: =IF(J$8="d",1,-1)*IF(J$7="c",call_wycena($A52, J$6,J$3, J$4,J$5),put_wycena($A52, J$6,J$3, J$4,J$5)) -> -4.775503836 | K52: =IF(J$8="d",1,-1)*(IF(J$7="c",MAX($A52-J$6,0),MAX(J$6-$A52,0))-J$11*((1+J$3)^J$5)) -> 9.041439067 | L52: =IF(L$8="d",1,-1)*IF(L$7="c",call_wycena($A52, L$6,L$3, L$4,L$5),put_wycena($A52, L$6,L$3, L$4,L$5)) -> -4.775503836 | M52: =IF(L$8="d",1,-1)*(IF(L$7="c",MAX($A52-L$6,0),MAX(L$6-$A52,0))-L$11*((1+L$3)^L$5)) -> 9.041439067 | O52: 14.74173455 | P52: -14.95412078
A53: 90 | B53: =IF(B$8="d",1,-1)*IF(B$7="c",call_wycena($A53, B$6,B$3, B$4,B$5),put_wycena($A53, B$6,B$3, B$4,B$5)) -> 9.757303851 | C53: -6.412681712 | D53: =IF(D$8="d",1,-1)*IF(D$7="c",call_wycena($A53, D$6,D$3, D$4,D$5),put_wycena($A53, D$6,D$3, D$4,D$5)) -> 4.936612835 | E53: -9.041439067 | F53: =IF(F$8="d",1,-1)*IF(F$7="c",call_wycena($A53, F$6,F$3, F$4,F$5),put_wycena($A53, F$6,F$3, F$4,F$5)) -> 5.279422827 | G53: =IF(F$8="d",1,-1)*(IF(F$7="c",MAX($A53-F$6,0),MAX(F$6-$A53,0))-F$11*((1+F$3)^F$5)) -> -3.176317978 | H53: =IF(H$8="d",1,-1)*IF(H$7="c",call_wycena($A53, H$6,H$3, H$4,H$5),put_wycena($A53, H$6,H$3, H$4,H$5)) -> -4.936612835 | I53: =IF(H$8="d",1,-1)*(IF(H$7="c",MAX($A53-H$6,0),MAX(H$6-$A53,0))-H$11*((1+H$3)^H$5)) -> 9.041439067 | J53: =IF(J$8="d",1,-1)*IF(J$7="c",call_wycena($A53, J$6,J$3, J$4,J$5),put_wycena($A53, J$6,J$3, J$4,J$5)) -> -4.936612835 | K53: =IF(J$8="d",1,-1)*(IF(J$7="c",MAX($A53-J$6,0),MAX(J$6-$A53,0))-J$11*((1+J$3)^J$5)) -> 9.041439067 | L53: =IF(L$8="d",1,-1)*IF(L$7="c",call_wycena($A53, L$6,L$3, L$4,L$5),put_wycena($A53, L$6,L$3, L$4,L$5)) -> -4.936612835 | M53: =IF(L$8="d",1,-1)*(IF(L$7="c",MAX($A53-L$6,0),MAX(L$6-$A53,0))-L$11*((1+L$3)^L$5)) -> 9.041439067 | O53: 14.69391669 | P53: -15.45412078
A54: 90.5 | B54: =IF(B$8="d",1,-1)*IF(B$7="c",call_wycena($A54, B$6,B$3, B$4,B$5),put_wycena($A54, B$6,B$3, B$4,B$5)) -> 9.551985144 | C54: -6.412681712 | D54: =IF(D$8="d",1,-1)*IF(D$7="c",call_wycena($A54, D$6,D$3, D$4,D$5),put_wycena($A54, D$6,D$3, D$4,D$5)) -> 5.101056584 | E54: -9.041439067 | F54: =IF(F$8="d",1,-1)*IF(F$7="c",call_wycena($A54, F$6,F$3, F$4,F$5),put_wycena($A54, F$6,F$3, F$4,F$5)) -> 5.14536305 | G54: =IF(F$8="d",1,-1)*(IF(F$7="c",MAX($A54-F$6,0),MAX(F$6-$A54,0))-F$11*((1+F$3)^F$5)) -> -3.176317978 | H54: =IF(H$8="d",1,-1)*IF(H$7="c",call_wycena($A54, H$6,H$3, H$4,H$5),put_wycena($A54, H$6,H$3, H$4,H$5)) -> -5.101056584 | I54: =IF(H$8="d",1,-1)*(IF(H$7="c",MAX($A54-H$6,0),MAX(H$6-$A54,0))-H$11*((1+H$3)^H$5)) -> 9.041439067 | J54: =IF(J$8="d",1,-1)*IF(J$7="c",call_wycena($A54, J$6,J$3, J$4,J$5),put_wycena($A54, J$6,J$3, J$4,J$5)) -> -5.101056584 | K54: =IF(J$8="d",1,-1)*(IF(J$7="c",MAX($A54-J$6,0),MAX(J$6-$A54,0))-J$11*((1+J$3)^J$5)) -> 9.041439067 | L54: =IF(L$8="d",1,-1)*IF(L$7="c",call_wycena($A54, L$6,L$3, L$4,L$5),put_wycena($A54, L$6,L$3, L$4,L$5)) -> -5.101056584 | M54: =IF(L$8="d",1,-1)*(IF(L$7="c",MAX($A54-L$6,0),MAX(L$6-$A54,0))-L$11*((1+L$3)^L$5)) -> 9.041439067 | O54: 14.65304173 | P54: -15.45412078
A55: 91 | B55: =IF(B$8="d",1,-1)*IF(B$7="c",call_wycena($A55, B$6,B$3, B$4,B$5),put_wycena($A55, B$6,B$3, B$4,B$5)) -> 9.350239723 | C55: -6.412681712 | D55: =IF(D$8="d",1,-1)*IF(D$7="c",call_wycena($A55, D$6,D$3, D$4,D$5),put_wycena($A55, D$6,D$3, D$4,D$5)) -> 5.268843902 | E55: -9.041439067 | F55: =IF(F$8="d",1,-1)*IF(F$7="c",call_wycena($A55, F$6,F$3, F$4,F$5),put_wycena($A55, F$6,F$3, F$4,F$5)) -> 5.014319837 | G55: =IF(F$8="d",1,-1)*(IF(F$7="c",MAX($A55-F$6,0),MAX(F$6-$A55,0))-F$11*((1+F$3)^F$5)) -> -3.176317978 | H55: =IF(H$8="d",1,-1)*IF(H$7="c",call_wycena($A55, H$6,H$3, H$4,H$5),put_wycena($A55, H$6,H$3, H$4,H$5)) -> -5.268843902 | I55: =IF(H$8="d",1,-1)*(IF(H$7="c",MAX($A55-H$6,0),MAX(H$6-$A55,0))-H$11*((1+H$3)^H$5)) -> 9.041439067 | J55: =IF(J$8="d",1,-1)*IF(J$7="c",call_wycena($A55, J$6,J$3, J$4,J$5),put_wycena($A55, J$6,J$3, J$4,J$5)) -> -5.268843902 | K55: =IF(J$8="d",1,-1)*(IF(J$7="c",MAX($A55-J$6,0),MAX(J$6-$A55,0))-J$11*((1+J$3)^J$5)) -> 9.041439067 | L55: =IF(L$8="d",1,-1)*IF(L$7="c",call_wycena($A55, L$6,L$3, L$4,L$5),put_wycena($A55, L$6,L$3, L$4,L$5)) -> -5.268843902 | M55: =IF(L$8="d",1,-1)*(IF(L$7="c",MAX($A55-L$6,0),MAX(L$6-$A55,0))-L$11*((1+L$3)^L$5)) -> 9.041439067 | O55: 14.61908362 | P55: -15.45412078
A56: 91.5 | B56: =IF(B$8="d",1,-1)*IF(B$7="c",call_wycena($A56, B$6,B$3, B$4,B$5),put_wycena($A56, B$6,B$3, B$4,B$5)) -> 9.152032048 | C56: -6.412681712 | D56: =IF(D$8="d",1,-1)*IF(D$7="c",call_wycena($A56, D$6,D$3, D$4,D$5),put_wycena($A56, D$6,D$3, D$4,D$5)) -> 5.43998245 | E56: -9.041439067 | F56: =IF(F$8="d",1,-1)*IF(F$7="c",call_wycena($A56, F$6,F$3, F$4,F$5),put_wycena($A56, F$6,F$3, F$4,F$5)) -> 4.886241726 | G56: =IF(F$8="d",1,-1)*(IF(F$7="c",MAX($A56-F$6,0),MAX(F$6-$A56,0))-F$11*((1+F$3)^F$5)) -> -3.176317978 | H56: =IF(H$8="d",1,-1)*IF(H$7="c",call_wycena($A56, H$6,H$3, H$4,H$5),put_wycena($A56, H$6,H$3, H$4,H$5)) -> -5.43998245 | I56: =IF(H$8="d",1,-1)*(IF(H$7="c",MAX($A56-H$6,0),MAX(H$6-$A56,0))-H$11*((1+H$3)^H$5)) -> 9.041439067 | J56: =IF(J$8="d",1,-1)*IF(J$7="c",call_wycena($A56, J$6,J$3, J$4,J$5),put_wycena($A56, J$6,J$3, J$4,J$5)) -> -5.43998245 | K56: =IF(J$8="d",1,-1)*(IF(J$7="c",MAX($A56-J$6,0),MAX(J$6-$A56,0))-J$11*((1+J$3)^J$5)) -> 9.041439067 | L56: =IF(L$8="d",1,-1)*IF(L$7="c",call_wycena($A56, L$6,L$3, L$4,L$5),put_wycena($A56, L$6,L$3, L$4,L$5)) -> -5.43998245 | M56: =IF(L$8="d",1,-1)*(IF(L$7="c",MAX($A56-L$6,0),MAX(L$6-$A56,0))-L$11*((1+L$3)^L$5)) -> 9.041439067 | O56: 14.5920145 | P56: -15.45412078
A57: 92 | B57: =IF(B$8="d",1,-1)*IF(B$7="c",call_wycena($A57, B$6,B$3, B$4,B$5),put_wycena($A57, B$6,B$3, B$4,B$5)) -> 8.957325954 | C57: -6.412681712 | D57: =IF(D$8="d",1,-1)*IF(D$7="c",call_wycena($A57, D$6,D$3, D$4,D$5),put_wycena($A57, D$6,D$3, D$4,D$5)) -> 5.61447874 | E57: -9.041439067 | F57: =IF(F$8="d",1,-1)*IF(F$7="c",call_wycena($A57, F$6,F$3, F$4,F$5),put_wycena($A57, F$6,F$3, F$4,F$5)) -> 4.761077438 | G57: =IF(F$8="d",1,-1)*(IF(F$7="c",MAX($A57-F$6,0),MAX(F$6-$A57,0))-F$11*((1+F$3)^F$5)) -> -3.176317978 | H57: =IF(H$8="d",1,-1)*IF(H$7="c",call_wycena($A57, H$6,H$3, H$4,H$5),put_wycena($A57, H$6,H$3, H$4,H$5)) -> -5.61447874 | I57: =IF(H$8="d",1,-1)*(IF(H$7="c",MAX($A57-H$6,0),MAX(H$6-$A57,0))-H$11*((1+H$3)^H$5)) -> 9.041439067 | J57: =IF(J$8="d",1,-1)*IF(J$7="c",call_wycena($A57, J$6,J$3, J$4,J$5),put_wycena($A57, J$6,J$3, J$4,J$5)) -> -5.61447874 | K57: =IF(J$8="d",1,-1)*(IF(J$7="c",MAX($A57-J$6,0),MAX(J$6-$A57,0))-J$11*((1+J$3)^J$5)) -> 9.041439067 | L57: =IF(L$8="d",1,-1)*IF(L$7="c",call_wycena($A57, L$6,L$3, L$4,L$5),put_wycena($A57, L$6,L$3, L$4,L$5)) -> -5.61447874 | M57: =IF(L$8="d",1,-1)*(IF(L$7="c",MAX($A57-L$6,0),MAX(L$6-$A57,0))-L$11*((1+L$3)^L$5)) -> 9.041439067 | O57: 14.57180469 | P57: -15.45412078
A58: 92.5 | B58: =IF(B$8="d",1,-1)*IF(B$7="c",call_wycena($A58, B$6,B$3, B$4,B$5),put_wycena($A58, B$6,B$3, B$4,B$5)) -> 8.766084692 | C58: -6.412681712 | D58: =IF(D$8="d",1,-1)*IF(D$7="c",call_wycena($A58, D$6,D$3, D$4,D$5),put_wycena($A58, D$6,D$3, D$4,D$5)) -> 5.792338149 | E58: -9.041439067 | F58: =IF(F$8="d",1,-1)*IF(F$7="c",call_wycena($A58, F$6,F$3, F$4,F$5),put_wycena($A58, F$6,F$3, F$4,F$5)) -> 4.638775902 | G58: =IF(F$8="d",1,-1)*(IF(F$7="c",MAX($A58-F$6,0),MAX(F$6-$A58,0))-F$11*((1+F$3)^F$5)) -> -3.176317978 | H58: =IF(H$8="d",1,-1)*IF(H$7="c",call_wycena($A58, H$6,H$3, H$4,H$5),put_wycena($A58, H$6,H$3, H$4,H$5)) -> -5.792338149 | I58: =IF(H$8="d",1,-1)*(IF(H$7="c",MAX($A58-H$6,0),MAX(H$6-$A58,0))-H$11*((1+H$3)^H$5)) -> 9.041439067 | J58: =IF(J$8="d",1,-1)*IF(J$7="c",call_wycena($A58, J$6,J$3, J$4,J$5),put_wycena($A58, J$6,J$3, J$4,J$5)) -> -5.792338149 | K58: =IF(J$8="d",1,-1)*(IF(J$7="c",MAX($A58-J$6,0),MAX(J$6-$A58,0))-J$11*((1+J$3)^J$5)) -> 9.041439067 | L58: =IF(L$8="d",1,-1)*IF(L$7="c",call_wycena($A58, L$6,L$3, L$4,L$5),put_wycena($A58, L$6,L$3, L$4,L$5)) -> -5.792338149 | M58: =IF(L$8="d",1,-1)*(IF(L$7="c",MAX($A58-L$6,0),MAX(L$6-$A58,0))-L$11*((1+L$3)^L$5)) -> 9.041439067 | O58: 14.55842284 | P58: -15.45412078
A59: 93 | B59: =IF(B$8="d",1,-1)*IF(B$7="c",call_wycena($A59, B$6,B$3, B$4,B$5),put_wycena($A59, B$6,B$3, B$4,B$5)) -> 8.578270972 | C59: -6.412681712 | D59: =IF(D$8="d",1,-1)*IF(D$7="c",call_wycena($A59, D$6,D$3, D$4,D$5),put_wycena($A59, D$6,D$3, D$4,D$5)) -> 5.97356493 | E59: -9.041439067 | F59: =IF(F$8="d",1,-1)*IF(F$7="c",call_wycena($A59, F$6,F$3, F$4,F$5),put_wycena($A59, F$6,F$3, F$4,F$5)) -> 4.519286292 | G59: =IF(F$8="d",1,-1)*(IF(F$7="c",MAX($A59-F$6,0),MAX(F$6-$A59,0))-F$11*((1+F$3)^F$5)) -> -3.176317978 | H59: =IF(H$8="d",1,-1)*IF(H$7="c",call_wycena($A59, H$6,H$3, H$4,H$5),put_wycena($A59, H$6,H$3, H$4,H$5)) -> -5.97356493 | I59: =IF(H$8="d",1,-1)*(IF(H$7="c",MAX($A59-H$6,0),MAX(H$6-$A59,0))-H$11*((1+H$3)^H$5)) -> 9.041439067 | J59: =IF(J$8="d",1,-1)*IF(J$7="c",call_wycena($A59, J$6,J$3, J$4,J$5),put_wycena($A59, J$6,J$3, J$4,J$5)) -> -5.97356493 | K59: =IF(J$8="d",1,-1)*(IF(J$7="c",MAX($A59-J$6,0),MAX(J$6-$A59,0))-J$11*((1+J$3)^J$5)) -> 9.041439067 | L59: =IF(L$8="d",1,-1)*IF(L$7="c",call_wycena($A59, L$6,L$3, L$4,L$5),put_wycena($A59, L$6,L$3, L$4,L$5)) -> -5.97356493 | M59: =IF(L$8="d",1,-1)*(IF(L$7="c",MAX($A59-L$6,0),MAX(L$6-$A59,0))-L$11*((1+L$3)^L$5)) -> 9.041439067 | O59: 14.5518359 | P59: -15.45412078
A60: 93.5 | B60: =IF(B$8="d",1,-1)*IF(B$7="c",call_wycena($A60, B$6,B$3, B$4,B$5),put_wycena($A60, B$6,B$3, B$4,B$5)) -> 8.393847006 | C60: -6.412681712 | D60: =IF(D$8="d",1,-1)*IF(D$7="c",call_wycena($A60, D$6,D$3, D$4,D$5),put_wycena($A60, D$6,D$3, D$4,D$5)) -> 6.158162227 | E60: -9.041439067 | F60: =IF(F$8="d",1,-1)*IF(F$7="c",call_wycena($A60, F$6,F$3, F$4,F$5),put_wycena($A60, F$6,F$3, F$4,F$5)) -> 4.402558058 | G60: =IF(F$8="d",1,-1)*(IF(F$7="c",MAX($A60-F$6,0),MAX(F$6-$A60,0))-F$11*((1+F$3)^F$5)) -> -3.176317978 | H60: =IF(H$8="d",1,-1)*IF(H$7="c",call_wycena($A60, H$6,H$3, H$4,H$5),put_wycena($A60, H$6,H$3, H$4,H$5)) -> -6.158162227 | I60: =IF(H$8="d",1,-1)*(IF(H$7="c",MAX($A60-H$6,0),MAX(H$6-$A60,0))-H$11*((1+H$3)^H$5)) -> 9.041439067 | J60: =IF(J$8="d",1,-1)*IF(J$7="c",call_wycena($A60, J$6,J$3, J$4,J$5),put_wycena($A60, J$6,J$3, J$4,J$5)) -> -6.158162227 | K60: =IF(J$8="d",1,-1)*(IF(J$7="c",MAX($A60-J$6,0),MAX(J$6-$A60,0))-J$11*((1+J$3)^J$5)) -> 9.041439067 | L60: =IF(L$8="d",1,-1)*IF(L$7="c",call_wycena($A60, L$6,L$3, L$4,L$5),put_wycena($A60, L$6,L$3, L$4,L$5)) -> -6.158162227 | M60: =IF(L$8="d",1,-1)*(IF(L$7="c",MAX($A60-L$6,0),MAX(L$6-$A60,0))-L$11*((1+L$3)^L$5)) -> 9.041439067 | O60: 14.55200923 | P60: -15.45412078
A61: 94 | B61: =IF(B$8="d",1,-1)*IF(B$7="c",call_wycena($A61, B$6,B$3, B$4,B$5),put_wycena($A61, B$6,B$3, B$4,B$5)) -> 8.212774549 | C61: -6.412681712 | D61: =IF(D$8="d",1,-1)*IF(D$7="c",call_wycena($A61, D$6,D$3, D$4,D$5),put_wycena($A61, D$6,D$3, D$4,D$5)) -> 6.34613209 | E61: -9.041439067 | F61: =IF(F$8="d",1,-1)*IF(F$7="c",call_wycena($A61, F$6,F$3, F$4,F$5),put_wycena($A61, F$6,F$3, F$4,F$5)) -> 4.288540952 | G61: =IF(F$8="d",1,-1)*(IF(F$7="c",MAX($A61-F$6,0),MAX(F$6-$A61,0))-F$11*((1+F$3)^F$5)) -> -3.176317978 | H61: =IF(H$8="d",1,-1)*IF(H$7="c",call_wycena($A61, H$6,H$3, H$4,H$5),put_wycena($A61, H$6,H$3, H$4,H$5)) -> -6.34613209 | I61: =IF(H$8="d",1,-1)*(IF(H$7="c",MAX($A61-H$6,0),MAX(H$6-$A61,0))-H$11*((1+H$3)^H$5)) -> 9.041439067 | J61: =IF(J$8="d",1,-1)*IF(J$7="c",call_wycena($A61, J$6,J$3, J$4,J$5),put_wycena($A61, J$6,J$3, J$4,J$5)) -> -6.34613209 | K61: =IF(J$8="d",1,-1)*(IF(J$7="c",MAX($A61-J$6,0),MAX(J$6-$A61,0))-J$11*((1+J$3)^J$5)) -> 9.041439067 | L61: =IF(L$8="d",1,-1)*IF(L$7="c",call_wycena($A61, L$6,L$3, L$4,L$5),put_wycena($A61, L$6,L$3, L$4,L$5)) -> -6.34613209 | M61: =IF(L$8="d",1,-1)*(IF(L$7="c",MAX($A61-L$6,0),MAX(L$6-$A61,0))-L$11*((1+L$3)^L$5)) -> 9.041439067 | O61: 14.55890664 | P61: -15.45412078
A62: 94.5 | B62: =IF(B$8="d",1,-1)*IF(B$7="c",call_wycena($A62, B$6,B$3, B$4,B$5),put_wycena($A62, B$6,B$3, B$4,B$5)) -> 8.035014938 | C62: -6.412681712 | D62: =IF(D$8="d",1,-1)*IF(D$7="c",call_wycena($A62, D$6,D$3, D$4,D$5),put_wycena($A62, D$6,D$3, D$4,D$5)) -> 6.537475492 | E62: -9.041439067 | F62: =IF(F$8="d",1,-1)*IF(F$7="c",call_wycena($A62, F$6,F$3, F$4,F$5),put_wycena($A62, F$6,F$3, F$4,F$5)) -> 4.177185061 | G62: =IF(F$8="d",1,-1)*(IF(F$7="c",MAX($A62-F$6,0),MAX(F$6-$A62,0))-F$11*((1+F$3)^F$5)) -> -3.176317978 | H62: =IF(H$8="d",1,-1)*IF(H$7="c",call_wycena($A62, H$6,H$3, H$4,H$5),put_wycena($A62, H$6,H$3, H$4,H$5)) -> -6.537475492 | I62: =IF(H$8="d",1,-1)*(IF(H$7="c",MAX($A62-H$6,0),MAX(H$6-$A62,0))-H$11*((1+H$3)^H$5)) -> 9.041439067 | J62: =IF(J$8="d",1,-1)*IF(J$7="c",call_wycena($A62, J$6,J$3, J$4,J$5),put_wycena($A62, J$6,J$3, J$4,J$5)) -> -6.537475492 | K62: =IF(J$8="d",1,-1)*(IF(J$7="c",MAX($A62-J$6,0),MAX(J$6-$A62,0))-J$11*((1+J$3)^J$5)) -> 9.041439067 | L62: =IF(L$8="d",1,-1)*IF(L$7="c",call_wycena($A62, L$6,L$3, L$4,L$5),put_wycena($A62, L$6,L$3, L$4,L$5)) -> -6.537475492 | M62: =IF(L$8="d",1,-1)*(IF(L$7="c",MAX($A62-L$6,0),MAX(L$6-$A62,0))-L$11*((1+L$3)^L$5)) -> 9.041439067 | O62: 14.57249043 | P62: -15.45412078
A63: 95 | B63: =IF(B$8="d",1,-1)*IF(B$7="c",call_wycena($A63, B$6,B$3, B$4,B$5),put_wycena($A63, B$6,B$3, B$4,B$5)) -> 7.860529129 | C63: -6.412681712 | D63: =IF(D$8="d",1,-1)*IF(D$7="c",call_wycena($A63, D$6,D$3, D$4,D$5),put_wycena($A63, D$6,D$3, D$4,D$5)) -> 6.732192341 | E63: -9.041439067 | F63: =IF(F$8="d",1,-1)*IF(F$7="c",call_wycena($A63, F$6,F$3, F$4,F$5),put_wycena($A63, F$6,F$3, F$4,F$5)) -> 4.068440825 | G63: =IF(F$8="d",1,-1)*(IF(F$7="c",MAX($A63-F$6,0),MAX(F$6-$A63,0))-F$11*((1+F$3)^F$5)) -> -3.176317978 | H63: =IF(H$8="d",1,-1)*IF(H$7="c",call_wycena($A63, H$6,H$3, H$4,H$5),put_wycena($A63, H$6,H$3, H$4,H$5)) -> -6.732192341 | I63: =IF(H$8="d",1,-1)*(IF(H$7="c",MAX($A63-H$6,0),MAX(H$6-$A63,0))-H$11*((1+H$3)^H$5)) -> 9.041439067 | J63: =IF(J$8="d",1,-1)*IF(J$7="c",call_wycena($A63, J$6,J$3, J$4,J$5),put_wycena($A63, J$6,J$3, J$4,J$5)) -> -6.732192341 | K63: =IF(J$8="d",1,-1)*(IF(J$7="c",MAX($A63-J$6,0),MAX(J$6-$A63,0))-J$11*((1+J$3)^J$5)) -> 9.041439067 | L63: =IF(L$8="d",1,-1)*IF(L$7="c",call_wycena($A63, L$6,L$3, L$4,L$5),put_wycena($A63, L$6,L$3, L$4,L$5)) -> -6.732192341 | M63: =IF(L$8="d",1,-1)*(IF(L$7="c",MAX($A63-L$6,0),MAX(L$6-$A63,0))-L$11*((1+L$3)^L$5)) -> 9.041439067 | O63: 14.59272147 | P63: -15.45412078
A64: 95.5 | B64: =IF(B$8="d",1,-1)*IF(B$7="c",call_wycena($A64, B$6,B$3, B$4,B$5),put_wycena($A64, B$6,B$3, B$4,B$5)) -> 7.689277739 | C64: -6.412681712 | D64: =IF(D$8="d",1,-1)*IF(D$7="c",call_wycena($A64, D$6,D$3, D$4,D$5),put_wycena($A64, D$6,D$3, D$4,D$5)) -> 6.930281498 | E64: -9.041439067 | F64: =IF(F$8="d",1,-1)*IF(F$7="c",call_wycena($A64, F$6,F$3, F$4,F$5),put_wycena($A64, F$6,F$3, F$4,F$5)) -> 3.96225907 | G64: =IF(F$8="d",1,-1)*(IF(F$7="c",MAX($A64-F$6,0),MAX(F$6-$A64,0))-F$11*((1+F$3)^F$5)) -> -3.176317978 | H64: =IF(H$8="d",1,-1)*IF(H$7="c",call_wycena($A64, H$6,H$3, H$4,H$5),put_wycena($A64, H$6,H$3, H$4,H$5)) -> -6.930281498 | I64: =IF(H$8="d",1,-1)*(IF(H$7="c",MAX($A64-H$6,0),MAX(H$6-$A64,0))-H$11*((1+H$3)^H$5)) -> 9.041439067 | J64: =IF(J$8="d",1,-1)*IF(J$7="c",call_wycena($A64, J$6,J$3, J$4,J$5),put_wycena($A64, J$6,J$3, J$4,J$5)) -> -6.930281498 | K64: =IF(J$8="d",1,-1)*(IF(J$7="c",MAX($A64-J$6,0),MAX(J$6-$A64,0))-J$11*((1+J$3)^J$5)) -> 9.041439067 | L64: =IF(L$8="d",1,-1)*IF(L$7="c",call_wycena($A64, L$6,L$3, L$4,L$5),put_wycena($A64, L$6,L$3, L$4,L$5)) -> -6.930281498 | M64: =IF(L$8="d",1,-1)*(IF(L$7="c",MAX($A64-L$6,0),MAX(L$6-$A64,0))-L$11*((1+L$3)^L$5)) -> 9.041439067 | O64: 14.61955924 | P64: -15.45412078
A65: 96 | B65: =IF(B$8="d",1,-1)*IF(B$7="c",call_wycena($A65, B$6,B$3, B$4,B$5),put_wycena($A65, B$6,B$3, B$4,B$5)) -> 7.521221081 | C65: -6.412681712 | D65: =IF(D$8="d",1,-1)*IF(D$7="c",call_wycena($A65, D$6,D$3, D$4,D$5),put_wycena($A65, D$6,D$3, D$4,D$5)) -> 7.131740799 | E65: -9.041439067 | F65: =IF(F$8="d",1,-1)*IF(F$7="c",call_wycena($A65, F$6,F$3, F$4,F$5),put_wycena($A65, F$6,F$3, F$4,F$5)) -> 3.858591025 | G65: =IF(F$8="d",1,-1)*(IF(F$7="c",MAX($A65-F$6,0),MAX(F$6-$A65,0))-F$11*((1+F$3)^F$5)) -> -3.176317978 | H65: =IF(H$8="d",1,-1)*IF(H$7="c",call_wycena($A65, H$6,H$3, H$4,H$5),put_wycena($A65, H$6,H$3, H$4,H$5)) -> -7.131740799 | I65: =IF(H$8="d",1,-1)*(IF(H$7="c",MAX($A65-H$6,0),MAX(H$6-$A65,0))-H$11*((1+H$3)^H$5)) -> 9.041439067 | J65: =IF(J$8="d",1,-1)*IF(J$7="c",call_wycena($A65, J$6,J$3, J$4,J$5),put_wycena($A65, J$6,J$3, J$4,J$5)) -> -7.131740799 | K65: =IF(J$8="d",1,-1)*(IF(J$7="c",MAX($A65-J$6,0),MAX(J$6-$A65,0))-J$11*((1+J$3)^J$5)) -> 9.041439067 | L65: =IF(L$8="d",1,-1)*IF(L$7="c",call_wycena($A65, L$6,L$3, L$4,L$5),put_wycena($A65, L$6,L$3, L$4,L$5)) -> -7.131740799 | M65: =IF(L$8="d",1,-1)*(IF(L$7="c",MAX($A65-L$6,0),MAX(L$6-$A65,0))-L$11*((1+L$3)^L$5)) -> 9.041439067 | O65: 14.65296188 | P65: -15.45412078
A66: 96.5 | B66: =IF(B$8="d",1,-1)*IF(B$7="c",call_wycena($A66, B$6,B$3, B$4,B$5),put_wycena($A66, B$6,B$3, B$4,B$5)) -> 7.356319198 | C66: -6.412681712 | D66: =IF(D$8="d",1,-1)*IF(D$7="c",call_wycena($A66, D$6,D$3, D$4,D$5),put_wycena($A66, D$6,D$3, D$4,D$5)) -> 7.336567068 | E66: -9.041439067 | F66: =IF(F$8="d",1,-1)*IF(F$7="c",call_wycena($A66, F$6,F$3, F$4,F$5),put_wycena($A66, F$6,F$3, F$4,F$5)) -> 3.757388345 | G66: =IF(F$8="d",1,-1)*(IF(F$7="c",MAX($A66-F$6,0),MAX(F$6-$A66,0))-F$11*((1+F$3)^F$5)) -> -3.176317978 | H66: =IF(H$8="d",1,-1)*IF(H$7="c",call_wycena($A66, H$6,H$3, H$4,H$5),put_wycena($A66, H$6,H$3, H$4,H$5)) -> -7.336567068 | I66: =IF(H$8="d",1,-1)*(IF(H$7="c",MAX($A66-H$6,0),MAX(H$6-$A66,0))-H$11*((1+H$3)^H$5)) -> 9.041439067 | J66: =IF(J$8="d",1,-1)*IF(J$7="c",call_wycena($A66, J$6,J$3, J$4,J$5),put_wycena($A66, J$6,J$3, J$4,J$5)) -> -7.336567068 | K66: =IF(J$8="d",1,-1)*(IF(J$7="c",MAX($A66-J$6,0),MAX(J$6-$A66,0))-J$11*((1+J$3)^J$5)) -> 9.041439067 | L66: =IF(L$8="d",1,-1)*IF(L$7="c",call_wycena($A66, L$6,L$3, L$4,L$5),put_wycena($A66, L$6,L$3, L$4,L$5)) -> -7.336567068 | M66: =IF(L$8="d",1,-1)*(IF(L$7="c",MAX($A66-L$6,0),MAX(L$6-$A66,0))-L$11*((1+L$3)^L$5)) -> 9.041439067 | O66: 14.69288627 | P66: -15.45412078
A67: 97 | B67: =IF(B$8="d",1,-1)*IF(B$7="c",call_wycena($A67, B$6,B$3, B$4,B$5),put_wycena($A67, B$6,B$3, B$4,B$5)) -> 7.194531902 | C67: -6.412681712 | D67: =IF(D$8="d",1,-1)*IF(D$7="c",call_wycena($A67, D$6,D$3, D$4,D$5),put_wycena($A67, D$6,D$3, D$4,D$5)) -> 7.544756137 | E67: -9.041439067 | F67: =IF(F$8="d",1,-1)*IF(F$7="c",call_wycena($A67, F$6,F$3, F$4,F$5),put_wycena($A67, F$6,F$3, F$4,F$5)) -> 3.658603134 | G67: =IF(F$8="d",1,-1)*(IF(F$7="c",MAX($A67-F$6,0),MAX(F$6-$A67,0))-F$11*((1+F$3)^F$5)) -> -3.176317978 | H67: =IF(H$8="d",1,-1)*IF(H$7="c",call_wycena($A67, H$6,H$3, H$4,H$5),put_wycena($A67, H$6,H$3, H$4,H$5)) -> -7.544756137 | I67: =IF(H$8="d",1,-1)*(IF(H$7="c",MAX($A67-H$6,0),MAX(H$6-$A67,0))-H$11*((1+H$3)^H$5)) -> 9.041439067 | J67: =IF(J$8="d",1,-1)*IF(J$7="c",call_wycena($A67, J$6,J$3, J$4,J$5),put_wycena($A67, J$6,J$3, J$4,J$5)) -> -7.544756137 | K67: =IF(J$8="d",1,-1)*(IF(J$7="c",MAX($A67-J$6,0),MAX(J$6-$A67,0))-J$11*((1+J$3)^J$5)) -> 9.041439067 | L67: =IF(L$8="d",1,-1)*IF(L$7="c",call_wycena($A67, L$6,L$3, L$4,L$5),put_wycena($A67, L$6,L$3, L$4,L$5)) -> -7.544756137 | M67: =IF(L$8="d",1,-1)*(IF(L$7="c",MAX($A67-L$6,0),MAX(L$6-$A67,0))-L$11*((1+L$3)^L$5)) -> 9.041439067 | O67: 14.73928804 | P67: -15.45412078
A68: 97.5 | B68: =IF(B$8="d",1,-1)*IF(B$7="c",call_wycena($A68, B$6,B$3, B$4,B$5),put_wycena($A68, B$6,B$3, B$4,B$5)) -> 7.035818805 | C68: -6.412681712 | D68: =IF(D$8="d",1,-1)*IF(D$7="c",call_wycena($A68, D$6,D$3, D$4,D$5),put_wycena($A68, D$6,D$3, D$4,D$5)) -> 7.756302866 | E68: -9.041439067 | F68: =IF(F$8="d",1,-1)*IF(F$7="c",call_wycena($A68, F$6,F$3, F$4,F$5),put_wycena($A68, F$6,F$3, F$4,F$5)) -> 3.56218796 | G68: =IF(F$8="d",1,-1)*(IF(F$7="c",MAX($A68-F$6,0),MAX(F$6-$A68,0))-F$11*((1+F$3)^F$5)) -> -3.176317978 | H68: =IF(H$8="d",1,-1)*IF(H$7="c",call_wycena($A68, H$6,H$3, H$4,H$5),put_wycena($A68, H$6,H$3, H$4,H$5)) -> -7.756302866 | I68: =IF(H$8="d",1,-1)*(IF(H$7="c",MAX($A68-H$6,0),MAX(H$6-$A68,0))-H$11*((1+H$3)^H$5)) -> 9.041439067 | J68: =IF(J$8="d",1,-1)*IF(J$7="c",call_wycena($A68, J$6,J$3, J$4,J$5),put_wycena($A68, J$6,J$3, J$4,J$5)) -> -7.756302866 | K68: =IF(J$8="d",1,-1)*(IF(J$7="c",MAX($A68-J$6,0),MAX(J$6-$A68,0))-J$11*((1+J$3)^J$5)) -> 9.041439067 | L68: =IF(L$8="d",1,-1)*IF(L$7="c",call_wycena($A68, L$6,L$3, L$4,L$5),put_wycena($A68, L$6,L$3, L$4,L$5)) -> -7.756302866 | M68: =IF(L$8="d",1,-1)*(IF(L$7="c",MAX($A68-L$6,0),MAX(L$6-$A68,0))-L$11*((1+L$3)^L$5)) -> 9.041439067 | O68: 14.79212167 | P68: -15.45412078
A69: 98 | B69: =IF(B$8="d",1,-1)*IF(B$7="c",call_wycena($A69, B$6,B$3, B$4,B$5),put_wycena($A69, B$6,B$3, B$4,B$5)) -> 6.880139352 | C69: -6.412681712 | D69: =IF(D$8="d",1,-1)*IF(D$7="c",call_wycena($A69, D$6,D$3, D$4,D$5),put_wycena($A69, D$6,D$3, D$4,D$5)) -> 7.971201162 | E69: -9.041439067 | F69: =IF(F$8="d",1,-1)*IF(F$7="c",call_wycena($A69, F$6,F$3, F$4,F$5),put_wycena($A69, F$6,F$3, F$4,F$5)) -> 3.468095874 | G69: =IF(F$8="d",1,-1)*(IF(F$7="c",MAX($A69-F$6,0),MAX(F$6-$A69,0))-F$11*((1+F$3)^F$5)) -> -3.176317978 | H69: =IF(H$8="d",1,-1)*IF(H$7="c",call_wycena($A69, H$6,H$3, H$4,H$5),put_wycena($A69, H$6,H$3, H$4,H$5)) -> -7.971201162 | I69: =IF(H$8="d",1,-1)*(IF(H$7="c",MAX($A69-H$6,0),MAX(H$6-$A69,0))-H$11*((1+H$3)^H$5)) -> 9.041439067 | J69: =IF(J$8="d",1,-1)*IF(J$7="c",call_wycena($A69, J$6,J$3, J$4,J$5),put_wycena($A69, J$6,J$3, J$4,J$5)) -> -7.971201162 | K69: =IF(J$8="d",1,-1)*(IF(J$7="c",MAX($A69-J$6,0),MAX(J$6-$A69,0))-J$11*((1+J$3)^J$5)) -> 9.041439067 | L69: =IF(L$8="d",1,-1)*IF(L$7="c",call_wycena($A69, L$6,L$3, L$4,L$5),put_wycena($A69, L$6,L$3, L$4,L$5)) -> -7.971201162 | M69: =IF(L$8="d",1,-1)*(IF(L$7="c",MAX($A69-L$6,0),MAX(L$6-$A69,0))-L$11*((1+L$3)^L$5)) -> 9.041439067 | O69: 14.85134051 | P69: -15.45412078
A70: 98.5 | B70: =IF(B$8="d",1,-1)*IF(B$7="c",call_wycena($A70, B$6,B$3, B$4,B$5),put_wycena($A70, B$6,B$3, B$4,B$5)) -> 6.727452856 | C70: -6.412681712 | D70: =IF(D$8="d",1,-1)*IF(D$7="c",call_wycena($A70, D$6,D$3, D$4,D$5),put_wycena($A70, D$6,D$3, D$4,D$5)) -> 8.189444 | E70: -9.041439067 | F70: =IF(F$8="d",1,-1)*IF(F$7="c",call_wycena($A70, F$6,F$3, F$4,F$5),put_wycena($A70, F$6,F$3, F$4,F$5)) -> 3.376280428 | G70: =IF(F$8="d",1,-1)*(IF(F$7="c",MAX($A70-F$6,0),MAX(F$6-$A70,0))-F$11*((1+F$3)^F$5)) -> -3.176317978 | H70: =IF(H$8="d",1,-1)*IF(H$7="c",call_wycena($A70, H$6,H$3, H$4,H$5),put_wycena($A70, H$6,H$3, H$4,H$5)) -> -8.189444 | I70: =IF(H$8="d",1,-1)*(IF(H$7="c",MAX($A70-H$6,0),MAX(H$6-$A70,0))-H$11*((1+H$3)^H$5)) -> 9.041439067 | J70: =IF(J$8="d",1,-1)*IF(J$7="c",call_wycena($A70, J$6,J$3, J$4,J$5),put_wycena($A70, J$6,J$3, J$4,J$5)) -> -8.189444 | K70: =IF(J$8="d",1,-1)*(IF(J$7="c",MAX($A70-J$6,0),MAX(J$6-$A70,0))-J$11*((1+J$3)^J$5)) -> 9.041439067 | L70: =IF(L$8="d",1,-1)*IF(L$7="c",call_wycena($A70, L$6,L$3, L$4,L$5),put_wycena($A70, L$6,L$3, L$4,L$5)) -> -8.189444 | M70: =IF(L$8="d",1,-1)*(IF(L$7="c",MAX($A70-L$6,0),MAX(L$6-$A70,0))-L$11*((1+L$3)^L$5)) -> 9.041439067 | O70: 14.91689686 | P70: -15.45412078
A71: 99 | B71: =IF(B$8="d",1,-1)*IF(B$7="c",call_wycena($A71, B$6,B$3, B$4,B$5),put_wycena($A71, B$6,B$3, B$4,B$5)) -> 6.577718525 | C71: -6.412681712 | D71: =IF(D$8="d",1,-1)*IF(D$7="c",call_wycena($A71, D$6,D$3, D$4,D$5),put_wycena($A71, D$6,D$3, D$4,D$5)) -> 8.411023442 | E71: -9.041439067 | F71: =IF(F$8="d",1,-1)*IF(F$7="c",call_wycena($A71, F$6,F$3, F$4,F$5),put_wycena($A71, F$6,F$3, F$4,F$5)) -> 3.286695686 | G71: =IF(F$8="d",1,-1)*(IF(F$7="c",MAX($A71-F$6,0),MAX(F$6-$A71,0))-F$11*((1+F$3)^F$5)) -> -3.176317978 | H71: =IF(H$8="d",1,-1)*IF(H$7="c",call_wycena($A71, H$6,H$3, H$4,H$5),put_wycena($A71, H$6,H$3, H$4,H$5)) -> -8.411023442 | I71: =IF(H$8="d",1,-1)*(IF(H$7="c",MAX($A71-H$6,0),MAX(H$6-$A71,0))-H$11*((1+H$3)^H$5)) -> 9.041439067 | J71: =IF(J$8="d",1,-1)*IF(J$7="c",call_wycena($A71, J$6,J$3, J$4,J$5),put_wycena($A71, J$6,J$3, J$4,J$5)) -> -8.411023442 | K71: =IF(J$8="d",1,-1)*(IF(J$7="c",MAX($A71-J$6,0),MAX(J$6-$A71,0))-J$11*((1+J$3)^J$5)) -> 9.041439067 | L71: =IF(L$8="d",1,-1)*IF(L$7="c",call_wycena($A71, L$6,L$3, L$4,L$5),put_wycena($A71, L$6,L$3, L$4,L$5)) -> -8.411023442 | M71: =IF(L$8="d",1,-1)*(IF(L$7="c",MAX($A71-L$6,0),MAX(L$6-$A71,0))-L$11*((1+L$3)^L$5)) -> 9.041439067 | O71: 14.98874197 | P71: -15.45412078
A72: 99.5 | B72: =IF(B$8="d",1,-1)*IF(B$7="c",call_wycena($A72, B$6,B$3, B$4,B$5),put_wycena($A72, B$6,B$3, B$4,B$5)) -> 6.430895494 | C72: -6.412681712 | D72: =IF(D$8="d",1,-1)*IF(D$7="c",call_wycena($A72, D$6,D$3, D$4,D$5),put_wycena($A72, D$6,D$3, D$4,D$5)) -> 8.635930658 | E72: -9.041439067 | F72: =IF(F$8="d",1,-1)*IF(F$7="c",call_wycena($A72, F$6,F$3, F$4,F$5),put_wycena($A72, F$6,F$3, F$4,F$5)) -> 3.199296243 | G72: =IF(F$8="d",1,-1)*(IF(F$7="c",MAX($A72-F$6,0),MAX(F$6-$A72,0))-F$11*((1+F$3)^F$5)) -> -3.176317978 | H72: =IF(H$8="d",1,-1)*IF(H$7="c",call_wycena($A72, H$6,H$3, H$4,H$5),put_wycena($A72, H$6,H$3, H$4,H$5)) -> -8.635930658 | I72: =IF(H$8="d",1,-1)*(IF(H$7="c",MAX($A72-H$6,0),MAX(H$6-$A72,0))-H$11*((1+H$3)^H$5)) -> 9.041439067 | J72: =IF(J$8="d",1,-1)*IF(J$7="c",call_wycena($A72, J$6,J$3, J$4,J$5),put_wycena($A72, J$6,J$3, J$4,J$5)) -> -8.635930658 | K72: =IF(J$8="d",1,-1)*(IF(J$7="c",MAX($A72-J$6,0),MAX(J$6-$A72,0))-J$11*((1+J$3)^J$5)) -> 9.041439067 | L72: =IF(L$8="d",1,-1)*IF(L$7="c",call_wycena($A72, L$6,L$3, L$4,L$5),put_wycena($A72, L$6,L$3, L$4,L$5)) -> -8.635930658 | M72: =IF(L$8="d",1,-1)*(IF(L$7="c",MAX($A72-L$6,0),MAX(L$6-$A72,0))-L$11*((1+L$3)^L$5)) -> 9.041439067 | O72: 15.06682615 | P72: -15.45412078
A73: 100 | B73: =IF(B$8="d",1,-1)*IF(B$7="c",call_wycena($A73, B$6,B$3, B$4,B$5),put_wycena($A73, B$6,B$3, B$4,B$5)) -> 6.286942855 | C73: -6.412681712 | D73: =IF(D$8="d",1,-1)*IF(D$7="c",call_wycena($A73, D$6,D$3, D$4,D$5),put_wycena($A73, D$6,D$3, D$4,D$5)) -> 8.864155948 | E73: -9.041439067 | F73: =IF(F$8="d",1,-1)*IF(F$7="c",call_wycena($A73, F$6,F$3, F$4,F$5),put_wycena($A73, F$6,F$3, F$4,F$5)) -> 3.114037233 | G73: =IF(F$8="d",1,-1)*(IF(F$7="c",MAX($A73-F$6,0),MAX(F$6-$A73,0))-F$11*((1+F$3)^F$5)) -> -3.176317978 | H73: =IF(H$8="d",1,-1)*IF(H$7="c",call_wycena($A73, H$6,H$3, H$4,H$5),put_wycena($A73, H$6,H$3, H$4,H$5)) -> -8.864155948 | I73: =IF(H$8="d",1,-1)*(IF(H$7="c",MAX($A73-H$6,0),MAX(H$6-$A73,0))-H$11*((1+H$3)^H$5)) -> 9.041439067 | J73: =IF(J$8="d",1,-1)*IF(J$7="c",call_wycena($A73, J$6,J$3, J$4,J$5),put_wycena($A73, J$6,J$3, J$4,J$5)) -> -8.864155948 | K73: =IF(J$8="d",1,-1)*(IF(J$7="c",MAX($A73-J$6,0),MAX(J$6-$A73,0))-J$11*((1+J$3)^J$5)) -> 9.041439067 | L73: =IF(L$8="d",1,-1)*IF(L$7="c",call_wycena($A73, L$6,L$3, L$4,L$5),put_wycena($A73, L$6,L$3, L$4,L$5)) -> -8.864155948 | M73: =IF(L$8="d",1,-1)*(IF(L$7="c",MAX($A73-L$6,0),MAX(L$6-$A73,0))-L$11*((1+L$3)^L$5)) -> 9.041439067 | O73: 15.1510988 | P73: -15.45412078
A74: 100.5 | B74: =IF(B$8="d",1,-1)*IF(B$7="c",call_wycena($A74, B$6,B$3, B$4,B$5),put_wycena($A74, B$6,B$3, B$4,B$5)) -> 6.145819682 | C74: -6.412681712 | D74: =IF(D$8="d",1,-1)*IF(D$7="c",call_wycena($A74, D$6,D$3, D$4,D$5),put_wycena($A74, D$6,D$3, D$4,D$5)) -> 9.095688764 | E74: -9.041439067 | F74: =IF(F$8="d",1,-1)*IF(F$7="c",call_wycena($A74, F$6,F$3, F$4,F$5),put_wycena($A74, F$6,F$3, F$4,F$5)) -> 3.030874343 | G74: =IF(F$8="d",1,-1)*(IF(F$7="c",MAX($A74-F$6,0),MAX(F$6-$A74,0))-F$11*((1+F$3)^F$5)) -> -3.176317978 | H74: =IF(H$8="d",1,-1)*IF(H$7="c",call_wycena($A74, H$6,H$3, H$4,H$5),put_wycena($A74, H$6,H$3, H$4,H$5)) -> -9.095688764 | I74: =IF(H$8="d",1,-1)*(IF(H$7="c",MAX($A74-H$6,0),MAX(H$6-$A74,0))-H$11*((1+H$3)^H$5)) -> 9.041439067 | J74: =IF(J$8="d",1,-1)*IF(J$7="c",call_wycena($A74, J$6,J$3, J$4,J$5),put_wycena($A74, J$6,J$3, J$4,J$5)) -> -9.095688764 | K74: =IF(J$8="d",1,-1)*(IF(J$7="c",MAX($A74-J$6,0),MAX(J$6-$A74,0))-J$11*((1+J$3)^J$5)) -> 9.041439067 | L74: =IF(L$8="d",1,-1)*IF(L$7="c",call_wycena($A74, L$6,L$3, L$4,L$5),put_wycena($A74, L$6,L$3, L$4,L$5)) -> -9.095688764 | M74: =IF(L$8="d",1,-1)*(IF(L$7="c",MAX($A74-L$6,0),MAX(L$6-$A74,0))-L$11*((1+L$3)^L$5)) -> 9.041439067 | O74: 15.24150845 | P74: -15.45412078
A75: 101 | B75: =IF(B$8="d",1,-1)*IF(B$7="c",call_wycena($A75, B$6,B$3, B$4,B$5),put_wycena($A75, B$6,B$3, B$4,B$5)) -> 6.007485061 | C75: -6.412681712 | D75: =IF(D$8="d",1,-1)*IF(D$7="c",call_wycena($A75, D$6,D$3, D$4,D$5),put_wycena($A75, D$6,D$3, D$4,D$5)) -> 9.330517728 | E75: -9.041439067 | F75: =IF(F$8="d",1,-1)*IF(F$7="c",call_wycena($A75, F$6,F$3, F$4,F$5),put_wycena($A75, F$6,F$3, F$4,F$5)) -> 2.949763822 | G75: =IF(F$8="d",1,-1)*(IF(F$7="c",MAX($A75-F$6,0),MAX(F$6-$A75,0))-F$11*((1+F$3)^F$5)) -> -3.176317978 | H75: =IF(H$8="d",1,-1)*IF(H$7="c",call_wycena($A75, H$6,H$3, H$4,H$5),put_wycena($A75, H$6,H$3, H$4,H$5)) -> -9.330517728 | I75: =IF(H$8="d",1,-1)*(IF(H$7="c",MAX($A75-H$6,0),MAX(H$6-$A75,0))-H$11*((1+H$3)^H$5)) -> 9.041439067 | J75: =IF(J$8="d",1,-1)*IF(J$7="c",call_wycena($A75, J$6,J$3, J$4,J$5),put_wycena($A75, J$6,J$3, J$4,J$5)) -> -9.330517728 | K75: =IF(J$8="d",1,-1)*(IF(J$7="c",MAX($A75-J$6,0),MAX(J$6-$A75,0))-J$11*((1+J$3)^J$5)) -> 9.041439067 | L75: =IF(L$8="d",1,-1)*IF(L$7="c",call_wycena($A75, L$6,L$3, L$4,L$5),put_wycena($A75, L$6,L$3, L$4,L$5)) -> -9.330517728 | M75: =IF(L$8="d",1,-1)*(IF(L$7="c",MAX($A75-L$6,0),MAX(L$6-$A75,0))-L$11*((1+L$3)^L$5)) -> 9.041439067 | O75: 15.33800279 | P75: -15.45412078
A76: 101.5 | B76: =IF(B$8="d",1,-1)*IF(B$7="c",call_wycena($A76, B$6,B$3, B$4,B$5),put_wycena($A76, B$6,B$3, B$4,B$5)) -> 5.871898112 | C76: -6.412681712 | D76: =IF(D$8="d",1,-1)*IF(D$7="c",call_wycena($A76, D$6,D$3, D$4,D$5),put_wycena($A76, D$6,D$3, D$4,D$5)) -> 9.568630658 | E76: -9.041439067 | F76: =IF(F$8="d",1,-1)*IF(F$7="c",call_wycena($A76, F$6,F$3, F$4,F$5),put_wycena($A76, F$6,F$3, F$4,F$5)) -> 2.870662493 | G76: =IF(F$8="d",1,-1)*(IF(F$7="c",MAX($A76-F$6,0),MAX(F$6-$A76,0))-F$11*((1+F$3)^F$5)) -> -3.176317978 | H76: =IF(H$8="d",1,-1)*IF(H$7="c",call_wycena($A76, H$6,H$3, H$4,H$5),put_wycena($A76, H$6,H$3, H$4,H$5)) -> -9.568630658 | I76: =IF(H$8="d",1,-1)*(IF(H$7="c",MAX($A76-H$6,0),MAX(H$6-$A76,0))-H$11*((1+H$3)^H$5)) -> 9.041439067 | J76: =IF(J$8="d",1,-1)*IF(J$7="c",call_wycena($A76, J$6,J$3, J$4,J$5),put_wycena($A76, J$6,J$3, J$4,J$5)) -> -9.568630658 | K76: =IF(J$8="d",1,-1)*(IF(J$7="c",MAX($A76-J$6,0),MAX(J$6-$A76,0))-J$11*((1+J$3)^J$5)) -> 9.041439067 | L76: =IF(L$8="d",1,-1)*IF(L$7="c",call_wycena($A76, L$6,L$3, L$4,L$5),put_wycena($A76, L$6,L$3, L$4,L$5)) -> -9.568630658 | M76: =IF(L$8="d",1,-1)*(IF(L$7="c",MAX($A76-L$6,0),MAX(L$6-$A76,0))-L$11*((1+L$3)^L$5)) -> 9.041439067 | O76: 15.44052877 | P76: -15.45412078
A77: 102 | B77: =IF(B$8="d",1,-1)*IF(B$7="c",call_wycena($A77, B$6,B$3, B$4,B$5),put_wycena($A77, B$6,B$3, B$4,B$5)) -> 5.739018019 | C77: =IF(B$8="d",1,-1)*(IF(B$7="c",MAX($A77-B$6,0),MAX(B$6-$A77,0))-B$11*((1+B$3)^B$5)) -> -6.412681712 | D77: =IF(D$8="d",1,-1)*IF(D$7="c",call_wycena($A77, D$6,D$3, D$4,D$5),put_wycena($A77, D$6,D$3, D$4,D$5)) -> 9.810014589 | E77: =IF(D$8="d",1,-1)*(IF(D$7="c",MAX($A77-D$6,0),MAX(D$6-$A77,0))-D$11*((1+D$3)^D$5)) -> -9.041439067 | F77: =IF(F$8="d",1,-1)*IF(F$7="c",call_wycena($A77, F$6,F$3, F$4,F$5),put_wycena($A77, F$6,F$3, F$4,F$5)) -> 2.793527757 | G77: =IF(F$8="d",1,-1)*(IF(F$7="c",MAX($A77-F$6,0),MAX(F$6-$A77,0))-F$11*((1+F$3)^F$5)) -> -3.176317978 | H77: =IF(H$8="d",1,-1)*IF(H$7="c",call_wycena($A77, H$6,H$3, H$4,H$5),put_wycena($A77, H$6,H$3, H$4,H$5)) -> -9.810014589 | I77: =IF(H$8="d",1,-1)*(IF(H$7="c",MAX($A77-H$6,0),MAX(H$6-$A77,0))-H$11*((1+H$3)^H$5)) -> 9.041439067 | J77: =IF(J$8="d",1,-1)*IF(J$7="c",call_wycena($A77, J$6,J$3, J$4,J$5),put_wycena($A77, J$6,J$3, J$4,J$5)) -> -9.810014589 | K77: =IF(J$8="d",1,-1)*(IF(J$7="c",MAX($A77-J$6,0),MAX(J$6-$A77,0))-J$11*((1+J$3)^J$5)) -> 9.041439067 | L77: =IF(L$8="d",1,-1)*IF(L$7="c",call_wycena($A77, L$6,L$3, L$4,L$5),put_wycena($A77, L$6,L$3, L$4,L$5)) -> -9.810014589 | M77: =IF(L$8="d",1,-1)*(IF(L$7="c",MAX($A77-L$6,0),MAX(L$6-$A77,0))-L$11*((1+L$3)^L$5)) -> 9.041439067 | O77: 15.54903261 | P77: -15.45412078
A78: 102.5 | B78: =IF(B$8="d",1,-1)*IF(B$7="c",call_wycena($A78, B$6,B$3, B$4,B$5),put_wycena($A78, B$6,B$3, B$4,B$5)) -> 5.608804049 | C78: -6.412681712 | D78: =IF(D$8="d",1,-1)*IF(D$7="c",call_wycena($A78, D$6,D$3, D$4,D$5),put_wycena($A78, D$6,D$3, D$4,D$5)) -> 10.05465579 | E78: -9.041439067 | F78: =IF(F$8="d",1,-1)*IF(F$7="c",call_wycena($A78, F$6,F$3, F$4,F$5),put_wycena($A78, F$6,F$3, F$4,F$5)) -> 2.718317606 | G78: =IF(F$8="d",1,-1)*(IF(F$7="c",MAX($A78-F$6,0),MAX(F$6-$A78,0))-F$11*((1+F$3)^F$5)) -> -3.176317978 | H78: =IF(H$8="d",1,-1)*IF(H$7="c",call_wycena($A78, H$6,H$3, H$4,H$5),put_wycena($A78, H$6,H$3, H$4,H$5)) -> -10.05465579 | I78: =IF(H$8="d",1,-1)*(IF(H$7="c",MAX($A78-H$6,0),MAX(H$6-$A78,0))-H$11*((1+H$3)^H$5)) -> 9.041439067 | J78: =IF(J$8="d",1,-1)*IF(J$7="c",call_wycena($A78, J$6,J$3, J$4,J$5),put_wycena($A78, J$6,J$3, J$4,J$5)) -> -10.05465579 | K78: =IF(J$8="d",1,-1)*(IF(J$7="c",MAX($A78-J$6,0),MAX(J$6-$A78,0))-J$11*((1+J$3)^J$5)) -> 9.041439067 | L78: =IF(L$8="d",1,-1)*IF(L$7="c",call_wycena($A78, L$6,L$3, L$4,L$5),put_wycena($A78, L$6,L$3, L$4,L$5)) -> -10.05465579 | M78: =IF(L$8="d",1,-1)*(IF(L$7="c",MAX($A78-L$6,0),MAX(L$6-$A78,0))-L$11*((1+L$3)^L$5)) -> 9.041439067 | O78: =SUMPRODUCT(B$9:M$9,B78:M78) -> 15.66345984 | P78: =SUMPRODUCT(B$10:M$10,B78:M78) -> -15.45412078
A79: =A78+0.5 -> 103 | B79: =IF(B$8="d",1,-1)*IF(B$7="c",call_wycena($A79, B$6,B$3, B$4,B$5),put_wycena($A79, B$6,B$3, B$4,B$5)) -> 5.48121558 | C79: -6.412681712 | D79: =IF(D$8="d",1,-1)*IF(D$7="c",call_wycena($A79, D$6,D$3, D$4,D$5),put_wycena($A79, D$6,D$3, D$4,D$5)) -> 10.3025398 | E79: -9.041439067 | F79: =IF(F$8="d",1,-1)*IF(F$7="c",call_wycena($A79, F$6,F$3, F$4,F$5),put_wycena($A79, F$6,F$3, F$4,F$5)) -> 2.644990625 | G79: =IF(F$8="d",1,-1)*(IF(F$7="c",MAX($A79-F$6,0),MAX(F$6-$A79,0))-F$11*((1+F$3)^F$5)) -> -3.176317978 | H79: =IF(H$8="d",1,-1)*IF(H$7="c",call_wycena($A79, H$6,H$3, H$4,H$5),put_wycena($A79, H$6,H$3, H$4,H$5)) -> -10.3025398 | I79: =IF(H$8="d",1,-1)*(IF(H$7="c",MAX($A79-H$6,0),MAX(H$6-$A79,0))-H$11*((1+H$3)^H$5)) -> 9.041439067 | J79: =IF(J$8="d",1,-1)*IF(J$7="c",call_wycena($A79, J$6,J$3, J$4,J$5),put_wycena($A79, J$6,J$3, J$4,J$5)) -> -10.3025398 | K79: =IF(J$8="d",1,-1)*(IF(J$7="c",MAX($A79-J$6,0),MAX(J$6-$A79,0))-J$11*((1+J$3)^J$5)) -> 9.041439067 | L79: =IF(L$8="d",1,-1)*IF(L$7="c",call_wycena($A79, L$6,L$3, L$4,L$5),put_wycena($A79, L$6,L$3, L$4,L$5)) -> -10.3025398 | M79: =IF(L$8="d",1,-1)*(IF(L$7="c",MAX($A79-L$6,0),MAX(L$6-$A79,0))-L$11*((1+L$3)^L$5)) -> 9.041439067 | O79: 15.78375538 | P79: -15.45412078
A80: 103.5 | B80: =IF(B$8="d",1,-1)*IF(B$7="c",call_wycena($A80, B$6,B$3, B$4,B$5),put_wycena($A80, B$6,B$3, B$4,B$5)) -> 5.356212118 | C80: -6.412681712 | D80: =IF(D$8="d",1,-1)*IF(D$7="c",call_wycena($A80, D$6,D$3, D$4,D$5),put_wycena($A80, D$6,D$3, D$4,D$5)) -> 10.55365143 | E80: -9.041439067 | F80: =IF(F$8="d",1,-1)*IF(F$7="c",call_wycena($A80, F$6,F$3, F$4,F$5),put_wycena($A80, F$6,F$3, F$4,F$5)) -> 2.573505998 | G80: =IF(F$8="d",1,-1)*(IF(F$7="c",MAX($A80-F$6,0),MAX(F$6-$A80,0))-F$11*((1+F$3)^F$5)) -> -3.176317978 | H80: =IF(H$8="d",1,-1)*IF(H$7="c",call_wycena($A80, H$6,H$3, H$4,H$5),put_wycena($A80, H$6,H$3, H$4,H$5)) -> -10.55365143 | I80: =IF(H$8="d",1,-1)*(IF(H$7="c",MAX($A80-H$6,0),MAX(H$6-$A80,0))-H$11*((1+H$3)^H$5)) -> 9.041439067 | J80: =IF(J$8="d",1,-1)*IF(J$7="c",call_wycena($A80, J$6,J$3, J$4,J$5),put_wycena($A80, J$6,J$3, J$4,J$5)) -> -10.55365143 | K80: =IF(J$8="d",1,-1)*(IF(J$7="c",MAX($A80-J$6,0),MAX(J$6-$A80,0))-J$11*((1+J$3)^J$5)) -> 9.041439067 | L80: =IF(L$8="d",1,-1)*IF(L$7="c",call_wycena($A80, L$6,L$3, L$4,L$5),put_wycena($A80, L$6,L$3, L$4,L$5)) -> -10.55365143 | M80: =IF(L$8="d",1,-1)*(IF(L$7="c",MAX($A80-L$6,0),MAX(L$6-$A80,0))-L$11*((1+L$3)^L$5)) -> 9.041439067 | O80: 15.90986354 | P80: -15.45412078
A81: 104 | B81: =IF(B$8="d",1,-1)*IF(B$7="c",call_wycena($A81, B$6,B$3, B$4,B$5),put_wycena($A81, B$6,B$3, B$4,B$5)) -> 5.23375332 | C81: -6.412681712 | D81: =IF(D$8="d",1,-1)*IF(D$7="c",call_wycena($A81, D$6,D$3, D$4,D$5),put_wycena($A81, D$6,D$3, D$4,D$5)) -> 10.80797479 | E81: -9.041439067 | F81: =IF(F$8="d",1,-1)*IF(F$7="c",call_wycena($A81, F$6,F$3, F$4,F$5),put_wycena($A81, F$6,F$3, F$4,F$5)) -> 2.503823518 | G81: =IF(F$8="d",1,-1)*(IF(F$7="c",MAX($A81-F$6,0),MAX(F$6-$A81,0))-F$11*((1+F$3)^F$5)) -> -3.176317978 | H81: =IF(H$8="d",1,-1)*IF(H$7="c",call_wycena($A81, H$6,H$3, H$4,H$5),put_wycena($A81, H$6,H$3, H$4,H$5)) -> -10.80797479 | I81: =IF(H$8="d",1,-1)*(IF(H$7="c",MAX($A81-H$6,0),MAX(H$6-$A81,0))-H$11*((1+H$3)^H$5)) -> 9.041439067 | J81: =IF(J$8="d",1,-1)*IF(J$7="c",call_wycena($A81, J$6,J$3, J$4,J$5),put_wycena($A81, J$6,J$3, J$4,J$5)) -> -10.80797479 | K81: =IF(J$8="d",1,-1)*(IF(J$7="c",MAX($A81-J$6,0),MAX(J$6-$A81,0))-J$11*((1+J$3)^J$5)) -> 9.041439067 | L81: =IF(L$8="d",1,-1)*IF(L$7="c",call_wycena($A81, L$6,L$3, L$4,L$5),put_wycena($A81, L$6,L$3, L$4,L$5)) -> -10.80797479 | M81: =IF(L$8="d",1,-1)*(IF(L$7="c",MAX($A81-L$6,0),MAX(L$6-$A81,0))-L$11*((1+L$3)^L$5)) -> 9.041439067 | O81: 16.04172811 | P81: -15.45412078
A82: 104.5 | B82: =IF(B$8="d",1,-1)*IF(B$7="c",call_wycena($A82, B$6,B$3, B$4,B$5),put_wycena($A82, B$6,B$3, B$4,B$5)) -> 5.113799017 | C82: -6.412681712 | D82: =IF(D$8="d",1,-1)*IF(D$7="c",call_wycena($A82, D$6,D$3, D$4,D$5),put_wycena($A82, D$6,D$3, D$4,D$5)) -> 11.06549335 | E82: -9.041439067 | F82: =IF(F$8="d",1,-1)*IF(F$7="c",call_wycena($A82, F$6,F$3, F$4,F$5),put_wycena($A82, F$6,F$3, F$4,F$5)) -> 2.435903583 | G82: =IF(F$8="d",1,-1)*(IF(F$7="c",MAX($A82-F$6,0),MAX(F$6-$A82,0))-F$11*((1+F$3)^F$5)) -> -3.176317978 | H82: =IF(H$8="d",1,-1)*IF(H$7="c",call_wycena($A82, H$6,H$3, H$4,H$5),put_wycena($A82, H$6,H$3, H$4,H$5)) -> -11.06549335 | I82: =IF(H$8="d",1,-1)*(IF(H$7="c",MAX($A82-H$6,0),MAX(H$6-$A82,0))-H$11*((1+H$3)^H$5)) -> 9.041439067 | J82: =IF(J$8="d",1,-1)*IF(J$7="c",call_wycena($A82, J$6,J$3, J$4,J$5),put_wycena($A82, J$6,J$3, J$4,J$5)) -> -11.06549335 | K82: =IF(J$8="d",1,-1)*(IF(J$7="c",MAX($A82-J$6,0),MAX(J$6-$A82,0))-J$11*((1+J$3)^J$5)) -> 9.041439067 | L82: =IF(L$8="d",1,-1)*IF(L$7="c",call_wycena($A82, L$6,L$3, L$4,L$5),put_wycena($A82, L$6,L$3, L$4,L$5)) -> -11.06549335 | M82: =IF(L$8="d",1,-1)*(IF(L$7="c",MAX($A82-L$6,0),MAX(L$6-$A82,0))-L$11*((1+L$3)^L$5)) -> 9.041439067 | O82: 16.17929237 | P82: -15.45412078
A83: 105 | B83: =IF(B$8="d",1,-1)*IF(B$7="c",call_wycena($A83, B$6,B$3, B$4,B$5),put_wycena($A83, B$6,B$3, B$4,B$5)) -> 4.996309227 | C83: -6.412681712 | D83: =IF(D$8="d",1,-1)*IF(D$7="c",call_wycena($A83, D$6,D$3, D$4,D$5),put_wycena($A83, D$6,D$3, D$4,D$5)) -> 11.3261899 | E83: -9.041439067 | F83: =IF(F$8="d",1,-1)*IF(F$7="c",call_wycena($A83, F$6,F$3, F$4,F$5),put_wycena($A83, F$6,F$3, F$4,F$5)) -> 2.369707205 | G83: =IF(F$8="d",1,-1)*(IF(F$7="c",MAX($A83-F$6,0),MAX(F$6-$A83,0))-F$11*((1+F$3)^F$5)) -> -3.176317978 | H83: =IF(H$8="d",1,-1)*IF(H$7="c",call_wycena($A83, H$6,H$3, H$4,H$5),put_wycena($A83, H$6,H$3, H$4,H$5)) -> -11.3261899 | I83: =IF(H$8="d",1,-1)*(IF(H$7="c",MAX($A83-H$6,0),MAX(H$6-$A83,0))-H$11*((1+H$3)^H$5)) -> 9.041439067 | J83: =IF(J$8="d",1,-1)*IF(J$7="c",call_wycena($A83, J$6,J$3, J$4,J$5),put_wycena($A83, J$6,J$3, J$4,J$5)) -> -11.3261899 | K83: =IF(J$8="d",1,-1)*(IF(J$7="c",MAX($A83-J$6,0),MAX(J$6-$A83,0))-J$11*((1+J$3)^J$5)) -> 9.041439067 | L83: =IF(L$8="d",1,-1)*IF(L$7="c",call_wycena($A83, L$6,L$3, L$4,L$5),put_wycena($A83, L$6,L$3, L$4,L$5)) -> -11.3261899 | M83: =IF(L$8="d",1,-1)*(IF(L$7="c",MAX($A83-L$6,0),MAX(L$6-$A83,0))-L$11*((1+L$3)^L$5)) -> 9.041439067 | O83: 16.32249912 | P83: -15.45412078
A84: 105.5 | B84: =IF(B$8="d",1,-1)*IF(B$7="c",call_wycena($A84, B$6,B$3, B$4,B$5),put_wycena($A84, B$6,B$3, B$4,B$5)) -> 4.881244182 | C84: -6.412681712 | D84: =IF(D$8="d",1,-1)*IF(D$7="c",call_wycena($A84, D$6,D$3, D$4,D$5),put_wycena($A84, D$6,D$3, D$4,D$5)) -> 11.5900466 | E84: -9.041439067 | F84: =IF(F$8="d",1,-1)*IF(F$7="c",call_wycena($A84, F$6,F$3, F$4,F$5),put_wycena($A84, F$6,F$3, F$4,F$5)) -> 2.305196011 | G84: =IF(F$8="d",1,-1)*(IF(F$7="c",MAX($A84-F$6,0),MAX(F$6-$A84,0))-F$11*((1+F$3)^F$5)) -> -3.176317978 | H84: =IF(H$8="d",1,-1)*IF(H$7="c",call_wycena($A84, H$6,H$3, H$4,H$5),put_wycena($A84, H$6,H$3, H$4,H$5)) -> -11.5900466 | I84: =IF(H$8="d",1,-1)*(IF(H$7="c",MAX($A84-H$6,0),MAX(H$6-$A84,0))-H$11*((1+H$3)^H$5)) -> 9.041439067 | J84: =IF(J$8="d",1,-1)*IF(J$7="c",call_wycena($A84, J$6,J$3, J$4,J$5),put_wycena($A84, J$6,J$3, J$4,J$5)) -> -11.5900466 | K84: =IF(J$8="d",1,-1)*(IF(J$7="c",MAX($A84-J$6,0),MAX(J$6-$A84,0))-J$11*((1+J$3)^J$5)) -> 9.041439067 | L84: =IF(L$8="d",1,-1)*IF(L$7="c",call_wycena($A84, L$6,L$3, L$4,L$5),put_wycena($A84, L$6,L$3, L$4,L$5)) -> -11.5900466 | M84: =IF(L$8="d",1,-1)*(IF(L$7="c",MAX($A84-L$6,0),MAX(L$6-$A84,0))-L$11*((1+L$3)^L$5)) -> 9.041439067 | O84: 16.47129078 | P84: -15.45412078
A85: 106 | B85: =IF(B$8="d",1,-1)*IF(B$7="c",call_wycena($A85, B$6,B$3, B$4,B$5),put_wycena($A85, B$6,B$3, B$4,B$5)) -> 4.768564336 | C85: -6.412681712 | D85: =IF(D$8="d",1,-1)*IF(D$7="c",call_wycena($A85, D$6,D$3, D$4,D$5),put_wycena($A85, D$6,D$3, D$4,D$5)) -> 11.85704502 | E85: -9.041439067 | F85: =IF(F$8="d",1,-1)*IF(F$7="c",call_wycena($A85, F$6,F$3, F$4,F$5),put_wycena($A85, F$6,F$3, F$4,F$5)) -> 2.242332244 | G85: =IF(F$8="d",1,-1)*(IF(F$7="c",MAX($A85-F$6,0),MAX(F$6-$A85,0))-F$11*((1+F$3)^F$5)) -> -3.176317978 | H85: =IF(H$8="d",1,-1)*IF(H$7="c",call_wycena($A85, H$6,H$3, H$4,H$5),put_wycena($A85, H$6,H$3, H$4,H$5)) -> -11.85704502 | I85: =IF(H$8="d",1,-1)*(IF(H$7="c",MAX($A85-H$6,0),MAX(H$6-$A85,0))-H$11*((1+H$3)^H$5)) -> 9.041439067 | J85: =IF(J$8="d",1,-1)*IF(J$7="c",call_wycena($A85, J$6,J$3, J$4,J$5),put_wycena($A85, J$6,J$3, J$4,J$5)) -> -11.85704502 | K85: =IF(J$8="d",1,-1)*(IF(J$7="c",MAX($A85-J$6,0),MAX(J$6-$A85,0))-J$11*((1+J$3)^J$5)) -> 9.041439067 | L85: =IF(L$8="d",1,-1)*IF(L$7="c",call_wycena($A85, L$6,L$3, L$4,L$5),put_wycena($A85, L$6,L$3, L$4,L$5)) -> -11.85704502 | M85: =IF(L$8="d",1,-1)*(IF(L$7="c",MAX($A85-L$6,0),MAX(L$6-$A85,0))-L$11*((1+L$3)^L$5)) -> 9.041439067 | O85: 16.62560935 | P85: -15.45412078
A86: 106.5 | B86: =IF(B$8="d",1,-1)*IF(B$7="c",call_wycena($A86, B$6,B$3, B$4,B$5),put_wycena($A86, B$6,B$3, B$4,B$5)) -> 4.658230389 | C86: -6.412681712 | D86: =IF(D$8="d",1,-1)*IF(D$7="c",call_wycena($A86, D$6,D$3, D$4,D$5),put_wycena($A86, D$6,D$3, D$4,D$5)) -> 12.12716614 | E86: -9.041439067 | F86: =IF(F$8="d",1,-1)*IF(F$7="c",call_wycena($A86, F$6,F$3, F$4,F$5),put_wycena($A86, F$6,F$3, F$4,F$5)) -> 2.181078764 | G86: =IF(F$8="d",1,-1)*(IF(F$7="c",MAX($A86-F$6,0),MAX(F$6-$A86,0))-F$11*((1+F$3)^F$5)) -> -3.176317978 | H86: =IF(H$8="d",1,-1)*IF(H$7="c",call_wycena($A86, H$6,H$3, H$4,H$5),put_wycena($A86, H$6,H$3, H$4,H$5)) -> -12.12716614 | I86: =IF(H$8="d",1,-1)*(IF(H$7="c",MAX($A86-H$6,0),MAX(H$6-$A86,0))-H$11*((1+H$3)^H$5)) -> 9.041439067 | J86: =IF(J$8="d",1,-1)*IF(J$7="c",call_wycena($A86, J$6,J$3, J$4,J$5),put_wycena($A86, J$6,J$3, J$4,J$5)) -> -12.12716614 | K86: =IF(J$8="d",1,-1)*(IF(J$7="c",MAX($A86-J$6,0),MAX(J$6-$A86,0))-J$11*((1+J$3)^J$5)) -> 9.041439067 | L86: =IF(L$8="d",1,-1)*IF(L$7="c",call_wycena($A86, L$6,L$3, L$4,L$5),put_wycena($A86, L$6,L$3, L$4,L$5)) -> -12.12716614 | M86: =IF(L$8="d",1,-1)*(IF(L$7="c",MAX($A86-L$6,0),MAX(L$6-$A86,0))-L$11*((1+L$3)^L$5)) -> 9.041439067 | O86: 16.78539653 | P86: -15.45412078
A87: 107 | B87: =IF(B$8="d",1,-1)*IF(B$7="c",call_wycena($A87, B$6,B$3, B$4,B$5),put_wycena($A87, B$6,B$3, B$4,B$5)) -> 4.550203299 | C87: -6.412681712 | D87: =IF(D$8="d",1,-1)*IF(D$7="c",call_wycena($A87, D$6,D$3, D$4,D$5),put_wycena($A87, D$6,D$3, D$4,D$5)) -> 12.40039038 | E87: -9.041439067 | F87: =IF(F$8="d",1,-1)*IF(F$7="c",call_wycena($A87, F$6,F$3, F$4,F$5),put_wycena($A87, F$6,F$3, F$4,F$5)) -> 2.121399049 | G87: =IF(F$8="d",1,-1)*(IF(F$7="c",MAX($A87-F$6,0),MAX(F$6-$A87,0))-F$11*((1+F$3)^F$5)) -> -3.176317978 | H87: =IF(H$8="d",1,-1)*IF(H$7="c",call_wycena($A87, H$6,H$3, H$4,H$5),put_wycena($A87, H$6,H$3, H$4,H$5)) -> -12.40039038 | I87: =IF(H$8="d",1,-1)*(IF(H$7="c",MAX($A87-H$6,0),MAX(H$6-$A87,0))-H$11*((1+H$3)^H$5)) -> 9.041439067 | J87: =IF(J$8="d",1,-1)*IF(J$7="c",call_wycena($A87, J$6,J$3, J$4,J$5),put_wycena($A87, J$6,J$3, J$4,J$5)) -> -12.40039038 | K87: =IF(J$8="d",1,-1)*(IF(J$7="c",MAX($A87-J$6,0),MAX(J$6-$A87,0))-J$11*((1+J$3)^J$5)) -> 9.041439067 | L87: =IF(L$8="d",1,-1)*IF(L$7="c",call_wycena($A87, L$6,L$3, L$4,L$5),put_wycena($A87, L$6,L$3, L$4,L$5)) -> -12.40039038 | M87: =IF(L$8="d",1,-1)*(IF(L$7="c",MAX($A87-L$6,0),MAX(L$6-$A87,0))-L$11*((1+L$3)^L$5)) -> 9.041439067 | O87: 16.95059368 | P87: -15.45412078
A88: 107.5 | B88: =IF(B$8="d",1,-1)*IF(B$7="c",call_wycena($A88, B$6,B$3, B$4,B$5),put_wycena($A88, B$6,B$3, B$4,B$5)) -> 4.444444297 | C88: -6.412681712 | D88: =IF(D$8="d",1,-1)*IF(D$7="c",call_wycena($A88, D$6,D$3, D$4,D$5),put_wycena($A88, D$6,D$3, D$4,D$5)) -> 12.67669762 | E88: -9.041439067 | F88: =IF(F$8="d",1,-1)*IF(F$7="c",call_wycena($A88, F$6,F$3, F$4,F$5),put_wycena($A88, F$6,F$3, F$4,F$5)) -> 2.063257197 | G88: =IF(F$8="d",1,-1)*(IF(F$7="c",MAX($A88-F$6,0),MAX(F$6-$A88,0))-F$11*((1+F$3)^F$5)) -> -3.176317978 | H88: =IF(H$8="d",1,-1)*IF(H$7="c",call_wycena($A88, H$6,H$3, H$4,H$5),put_wycena($A88, H$6,H$3, H$4,H$5)) -> -12.67669762 | I88: =IF(H$8="d",1,-1)*(IF(H$7="c",MAX($A88-H$6,0),MAX(H$6-$A88,0))-H$11*((1+H$3)^H$5)) -> 9.041439067 | J88: =IF(J$8="d",1,-1)*IF(J$7="c",call_wycena($A88, J$6,J$3, J$4,J$5),put_wycena($A88, J$6,J$3, J$4,J$5)) -> -12.67669762 | K88: =IF(J$8="d",1,-1)*(IF(J$7="c",MAX($A88-J$6,0),MAX(J$6-$A88,0))-J$11*((1+J$3)^J$5)) -> 9.041439067 | L88: =IF(L$8="d",1,-1)*IF(L$7="c",call_wycena($A88, L$6,L$3, L$4,L$5),put_wycena($A88, L$6,L$3, L$4,L$5)) -> -12.67669762 | M88: =IF(L$8="d",1,-1)*(IF(L$7="c",MAX($A88-L$6,0),MAX(L$6-$A88,0))-L$11*((1+L$3)^L$5)) -> 9.041439067 | O88: 17.12114192 | P88: -15.45412078
A89: 108 | B89: =IF(B$8="d",1,-1)*IF(B$7="c",call_wycena($A89, B$6,B$3, B$4,B$5),put_wycena($A89, B$6,B$3, B$4,B$5)) -> 4.340914903 | C89: -6.412681712 | D89: =IF(D$8="d",1,-1)*IF(D$7="c",call_wycena($A89, D$6,D$3, D$4,D$5),put_wycena($A89, D$6,D$3, D$4,D$5)) -> 12.95606723 | E89: -9.041439067 | F89: =IF(F$8="d",1,-1)*IF(F$7="c",call_wycena($A89, F$6,F$3, F$4,F$5),put_wycena($A89, F$6,F$3, F$4,F$5)) -> 2.006617919 | G89: =IF(F$8="d",1,-1)*(IF(F$7="c",MAX($A89-F$6,0),MAX(F$6-$A89,0))-F$11*((1+F$3)^F$5)) -> -3.176317978 | H89: =IF(H$8="d",1,-1)*IF(H$7="c",call_wycena($A89, H$6,H$3, H$4,H$5),put_wycena($A89, H$6,H$3, H$4,H$5)) -> -12.95606723 | I89: =IF(H$8="d",1,-1)*(IF(H$7="c",MAX($A89-H$6,0),MAX(H$6-$A89,0))-H$11*((1+H$3)^H$5)) -> 9.041439067 | J89: =IF(J$8="d",1,-1)*IF(J$7="c",call_wycena($A89, J$6,J$3, J$4,J$5),put_wycena($A89, J$6,J$3, J$4,J$5)) -> -12.95606723 | K89: =IF(J$8="d",1,-1)*(IF(J$7="c",MAX($A89-J$6,0),MAX(J$6-$A89,0))-J$11*((1+J$3)^J$5)) -> 9.041439067 | L89: =IF(L$8="d",1,-1)*IF(L$7="c",call_wycena($A89, L$6,L$3, L$4,L$5),put_wycena($A89, L$6,L$3, L$4,L$5)) -> -12.95606723 | M89: =IF(L$8="d",1,-1)*(IF(L$7="c",MAX($A89-L$6,0),MAX(L$6-$A89,0))-L$11*((1+L$3)^L$5)) -> 9.041439067 | O89: 17.29698213 | P89: -15.45412078
A90: 108.5 | B90: =IF(B$8="d",1,-1)*IF(B$7="c",call_wycena($A90, B$6,B$3, B$4,B$5),put_wycena($A90, B$6,B$3, B$4,B$5)) -> 4.239576938 | C90: -6.412681712 | D90: =IF(D$8="d",1,-1)*IF(D$7="c",call_wycena($A90, D$6,D$3, D$4,D$5),put_wycena($A90, D$6,D$3, D$4,D$5)) -> 13.23847805 | E90: -9.041439067 | F90: =IF(F$8="d",1,-1)*IF(F$7="c",call_wycena($A90, F$6,F$3, F$4,F$5),put_wycena($A90, F$6,F$3, F$4,F$5)) -> 1.951446546 | G90: =IF(F$8="d",1,-1)*(IF(F$7="c",MAX($A90-F$6,0),MAX(F$6-$A90,0))-F$11*((1+F$3)^F$5)) -> -3.176317978 | H90: =IF(H$8="d",1,-1)*IF(H$7="c",call_wycena($A90, H$6,H$3, H$4,H$5),put_wycena($A90, H$6,H$3, H$4,H$5)) -> -13.23847805 | I90: =IF(H$8="d",1,-1)*(IF(H$7="c",MAX($A90-H$6,0),MAX(H$6-$A90,0))-H$11*((1+H$3)^H$5)) -> 9.041439067 | J90: =IF(J$8="d",1,-1)*IF(J$7="c",call_wycena($A90, J$6,J$3, J$4,J$5),put_wycena($A90, J$6,J$3, J$4,J$5)) -> -13.23847805 | K90: =IF(J$8="d",1,-1)*(IF(J$7="c",MAX($A90-J$6,0),MAX(J$6-$A90,0))-J$11*((1+J$3)^J$5)) -> 9.041439067 | L90: =IF(L$8="d",1,-1)*IF(L$7="c",call_wycena($A90, L$6,L$3, L$4,L$5),put_wycena($A90, L$6,L$3, L$4,L$5)) -> -13.23847805 | M90: =IF(L$8="d",1,-1)*(IF(L$7="c",MAX($A90-L$6,0),MAX(L$6-$A90,0))-L$11*((1+L$3)^L$5)) -> 9.041439067 | O90: 17.47805499 | P90: -15.45412078
A91: 109 | B91: =IF(B$8="d",1,-1)*IF(B$7="c",call_wycena($A91, B$6,B$3, B$4,B$5),put_wycena($A91, B$6,B$3, B$4,B$5)) -> 4.140392538 | C91: -6.412681712 | D91: =IF(D$8="d",1,-1)*IF(D$7="c",call_wycena($A91, D$6,D$3, D$4,D$5),put_wycena($A91, D$6,D$3, D$4,D$5)) -> 13.5239085 | E91: -9.041439067 | F91: =IF(F$8="d",1,-1)*IF(F$7="c",call_wycena($A91, F$6,F$3, F$4,F$5),put_wycena($A91, F$6,F$3, F$4,F$5)) -> 1.89770902 | G91: =IF(F$8="d",1,-1)*(IF(F$7="c",MAX($A91-F$6,0),MAX(F$6-$A91,0))-F$11*((1+F$3)^F$5)) -> -3.176317978 | H91: =IF(H$8="d",1,-1)*IF(H$7="c",call_wycena($A91, H$6,H$3, H$4,H$5),put_wycena($A91, H$6,H$3, H$4,H$5)) -> -13.5239085 | I91: =IF(H$8="d",1,-1)*(IF(H$7="c",MAX($A91-H$6,0),MAX(H$6-$A91,0))-H$11*((1+H$3)^H$5)) -> 9.041439067 | J91: =IF(J$8="d",1,-1)*IF(J$7="c",call_wycena($A91, J$6,J$3, J$4,J$5),put_wycena($A91, J$6,J$3, J$4,J$5)) -> -13.5239085 | K91: =IF(J$8="d",1,-1)*(IF(J$7="c",MAX($A91-J$6,0),MAX(J$6-$A91,0))-J$11*((1+J$3)^J$5)) -> 9.041439067 | L91: =IF(L$8="d",1,-1)*IF(L$7="c",call_wycena($A91, L$6,L$3, L$4,L$5),put_wycena($A91, L$6,L$3, L$4,L$5)) -> -13.5239085 | M91: =IF(L$8="d",1,-1)*(IF(L$7="c",MAX($A91-L$6,0),MAX(L$6-$A91,0))-L$11*((1+L$3)^L$5)) -> 9.041439067 | O91: 17.66430103 | P91: -15.45412078
A92: 109.5 | B92: =IF(B$8="d",1,-1)*IF(B$7="c",call_wycena($A92, B$6,B$3, B$4,B$5),put_wycena($A92, B$6,B$3, B$4,B$5)) -> 4.043324162 | C92: -6.412681712 | D92: =IF(D$8="d",1,-1)*IF(D$7="c",call_wycena($A92, D$6,D$3, D$4,D$5),put_wycena($A92, D$6,D$3, D$4,D$5)) -> 13.81233649 | E92: -9.041439067 | F92: =IF(F$8="d",1,-1)*IF(F$7="c",call_wycena($A92, F$6,F$3, F$4,F$5),put_wycena($A92, F$6,F$3, F$4,F$5)) -> 1.845371896 | G92: =IF(F$8="d",1,-1)*(IF(F$7="c",MAX($A92-F$6,0),MAX(F$6-$A92,0))-F$11*((1+F$3)^F$5)) -> -3.176317978 | H92: =IF(H$8="d",1,-1)*IF(H$7="c",call_wycena($A92, H$6,H$3, H$4,H$5),put_wycena($A92, H$6,H$3, H$4,H$5)) -> -13.81233649 | I92: =IF(H$8="d",1,-1)*(IF(H$7="c",MAX($A92-H$6,0),MAX(H$6-$A92,0))-H$11*((1+H$3)^H$5)) -> 9.041439067 | J92: =IF(J$8="d",1,-1)*IF(J$7="c",call_wycena($A92, J$6,J$3, J$4,J$5),put_wycena($A92, J$6,J$3, J$4,J$5)) -> -13.81233649 | K92: =IF(J$8="d",1,-1)*(IF(J$7="c",MAX($A92-J$6,0),MAX(J$6-$A92,0))-J$11*((1+J$3)^J$5)) -> 9.041439067 | L92: =IF(L$8="d",1,-1)*IF(L$7="c",call_wycena($A92, L$6,L$3, L$4,L$5),put_wycena($A92, L$6,L$3, L$4,L$5)) -> -13.81233649 | M92: =IF(L$8="d",1,-1)*(IF(L$7="c",MAX($A92-L$6,0),MAX(L$6-$A92,0))-L$11*((1+L$3)^L$5)) -> 9.041439067 | O92: 17.85566065 | P92: -15.45412078
A93: 110 | B93: =IF(B$8="d",1,-1)*IF(B$7="c",call_wycena($A93, B$6,B$3, B$4,B$5),put_wycena($A93, B$6,B$3, B$4,B$5)) -> 3.948334608 | C93: -6.412681712 | D93: =IF(D$8="d",1,-1)*IF(D$7="c",call_wycena($A93, D$6,D$3, D$4,D$5),put_wycena($A93, D$6,D$3, D$4,D$5)) -> 14.10373953 | E93: -9.041439067 | F93: =IF(F$8="d",1,-1)*IF(F$7="c",call_wycena($A93, F$6,F$3, F$4,F$5),put_wycena($A93, F$6,F$3, F$4,F$5)) -> 1.794402337 | G93: =IF(F$8="d",1,-1)*(IF(F$7="c",MAX($A93-F$6,0),MAX(F$6-$A93,0))-F$11*((1+F$3)^F$5)) -> -3.176317978 | H93: =IF(H$8="d",1,-1)*IF(H$7="c",call_wycena($A93, H$6,H$3, H$4,H$5),put_wycena($A93, H$6,H$3, H$4,H$5)) -> -14.10373953 | I93: =IF(H$8="d",1,-1)*(IF(H$7="c",MAX($A93-H$6,0),MAX(H$6-$A93,0))-H$11*((1+H$3)^H$5)) -> 9.041439067 | J93: =IF(J$8="d",1,-1)*IF(J$7="c",call_wycena($A93, J$6,J$3, J$4,J$5),put_wycena($A93, J$6,J$3, J$4,J$5)) -> -14.10373953 | K93: =IF(J$8="d",1,-1)*(IF(J$7="c",MAX($A93-J$6,0),MAX(J$6-$A93,0))-J$11*((1+J$3)^J$5)) -> 9.041439067 | L93: =IF(L$8="d",1,-1)*IF(L$7="c",call_wycena($A93, L$6,L$3, L$4,L$5),put_wycena($A93, L$6,L$3, L$4,L$5)) -> -14.10373953 | M93: =IF(L$8="d",1,-1)*(IF(L$7="c",MAX($A93-L$6,0),MAX(L$6-$A93,0))-L$11*((1+L$3)^L$5)) -> 9.041439067 | O93: 18.05207414 | P93: -15.45412078
A94: 110.5 | B94: =IF(B$8="d",1,-1)*IF(B$7="c",call_wycena($A94, B$6,B$3, B$4,B$5),put_wycena($A94, B$6,B$3, B$4,B$5)) -> 3.85538702 | C94: -6.412681712 | D94: =IF(D$8="d",1,-1)*IF(D$7="c",call_wycena($A94, D$6,D$3, D$4,D$5),put_wycena($A94, D$6,D$3, D$4,D$5)) -> 14.39809472 | E94: -8.541439067 | F94: =IF(F$8="d",1,-1)*IF(F$7="c",call_wycena($A94, F$6,F$3, F$4,F$5),put_wycena($A94, F$6,F$3, F$4,F$5)) -> 1.744768112 | G94: =IF(F$8="d",1,-1)*(IF(F$7="c",MAX($A94-F$6,0),MAX(F$6-$A94,0))-F$11*((1+F$3)^F$5)) -> -3.176317978 | H94: =IF(H$8="d",1,-1)*IF(H$7="c",call_wycena($A94, H$6,H$3, H$4,H$5),put_wycena($A94, H$6,H$3, H$4,H$5)) -> -14.39809472 | I94: =IF(H$8="d",1,-1)*(IF(H$7="c",MAX($A94-H$6,0),MAX(H$6-$A94,0))-H$11*((1+H$3)^H$5)) -> 8.541439067 | J94: =IF(J$8="d",1,-1)*IF(J$7="c",call_wycena($A94, J$6,J$3, J$4,J$5),put_wycena($A94, J$6,J$3, J$4,J$5)) -> -14.39809472 | K94: =IF(J$8="d",1,-1)*(IF(J$7="c",MAX($A94-J$6,0),MAX(J$6-$A94,0))-J$11*((1+J$3)^J$5)) -> 8.541439067 | L94: =IF(L$8="d",1,-1)*IF(L$7="c",call_wycena($A94, L$6,L$3, L$4,L$5),put_wycena($A94, L$6,L$3, L$4,L$5)) -> -14.39809472 | M94: =IF(L$8="d",1,-1)*(IF(L$7="c",MAX($A94-L$6,0),MAX(L$6-$A94,0))-L$11*((1+L$3)^L$5)) -> 8.541439067 | O94: 18.25348174 | P94: -14.95412078
A95: 111 | B95: =IF(B$8="d",1,-1)*IF(B$7="c",call_wycena($A95, B$6,B$3, B$4,B$5),put_wycena($A95, B$6,B$3, B$4,B$5)) -> 3.7644449 | C95: -6.412681712 | D95: =IF(D$8="d",1,-1)*IF(D$7="c",call_wycena($A95, D$6,D$3, D$4,D$5),put_wycena($A95, D$6,D$3, D$4,D$5)) -> 14.69537875 | E95: -8.041439067 | F95: =IF(F$8="d",1,-1)*IF(F$7="c",call_wycena($A95, F$6,F$3, F$4,F$5),put_wycena($A95, F$6,F$3, F$4,F$5)) -> 1.696437592 | G95: =IF(F$8="d",1,-1)*(IF(F$7="c",MAX($A95-F$6,0),MAX(F$6-$A95,0))-F$11*((1+F$3)^F$5)) -> -3.176317978 | H95: =IF(H$8="d",1,-1)*IF(H$7="c",call_wycena($A95, H$6,H$3, H$4,H$5),put_wycena($A95, H$6,H$3, H$4,H$5)) -> -14.69537875 | I95: =IF(H$8="d",1,-1)*(IF(H$7="c",MAX($A95-H$6,0),MAX(H$6-$A95,0))-H$11*((1+H$3)^H$5)) -> 8.041439067 | J95: =IF(J$8="d",1,-1)*IF(J$7="c",call_wycena($A95, J$6,J$3, J$4,J$5),put_wycena($A95, J$6,J$3, J$4,J$5)) -> -14.69537875 | K95: =IF(J$8="d",1,-1)*(IF(J$7="c",MAX($A95-J$6,0),MAX(J$6-$A95,0))-J$11*((1+J$3)^J$5)) -> 8.041439067 | L95: =IF(L$8="d",1,-1)*IF(L$7="c",call_wycena($A95, L$6,L$3, L$4,L$5),put_wycena($A95, L$6,L$3, L$4,L$5)) -> -14.69537875 | M95: =IF(L$8="d",1,-1)*(IF(L$7="c",MAX($A95-L$6,0),MAX(L$6-$A95,0))-L$11*((1+L$3)^L$5)) -> 8.041439067 | O95: 18.45982365 | P95: -14.45412078
A96: 111.5 | B96: =IF(B$8="d",1,-1)*IF(B$7="c",call_wycena($A96, B$6,B$3, B$4,B$5),put_wycena($A96, B$6,B$3, B$4,B$5)) -> 3.675472113 | C96: -6.412681712 | D96: =IF(D$8="d",1,-1)*IF(D$7="c",call_wycena($A96, D$6,D$3, D$4,D$5),put_wycena($A96, D$6,D$3, D$4,D$5)) -> 14.99556795 | E96: -7.541439067 | F96: =IF(F$8="d",1,-1)*IF(F$7="c",call_wycena($A96, F$6,F$3, F$4,F$5),put_wycena($A96, F$6,F$3, F$4,F$5)) -> 1.649379746 | G96: =IF(F$8="d",1,-1)*(IF(F$7="c",MAX($A96-F$6,0),MAX(F$6-$A96,0))-F$11*((1+F$3)^F$5)) -> -3.176317978 | H96: =IF(H$8="d",1,-1)*IF(H$7="c",call_wycena($A96, H$6,H$3, H$4,H$5),put_wycena($A96, H$6,H$3, H$4,H$5)) -> -14.99556795 | I96: =IF(H$8="d",1,-1)*(IF(H$7="c",MAX($A96-H$6,0),MAX(H$6-$A96,0))-H$11*((1+H$3)^H$5)) -> 7.541439067 | J96: =IF(J$8="d",1,-1)*IF(J$7="c",call_wycena($A96, J$6,J$3, J$4,J$5),put_wycena($A96, J$6,J$3, J$4,J$5)) -> -14.99556795 | K96: =IF(J$8="d",1,-1)*(IF(J$7="c",MAX($A96-J$6,0),MAX(J$6-$A96,0))-J$11*((1+J$3)^J$5)) -> 7.541439067 | L96: =IF(L$8="d",1,-1)*IF(L$7="c",call_wycena($A96, L$6,L$3, L$4,L$5),put_wycena($A96, L$6,L$3, L$4,L$5)) -> -14.99556795 | M96: =IF(L$8="d",1,-1)*(IF(L$7="c",MAX($A96-L$6,0),MAX(L$6-$A96,0))-L$11*((1+L$3)^L$5)) -> 7.541439067 | O96: 18.67104006 | P96: -13.95412078
A97: 112 | B97: =IF(B$8="d",1,-1)*IF(B$7="c",call_wycena($A97, B$6,B$3, B$4,B$5),put_wycena($A97, B$6,B$3, B$4,B$5)) -> 3.588432902 | C97: -6.412681712 | D97: =IF(D$8="d",1,-1)*IF(D$7="c",call_wycena($A97, D$6,D$3, D$4,D$5),put_wycena($A97, D$6,D$3, D$4,D$5)) -> 15.2986383 | E97: -7.041439067 | F97: =IF(F$8="d",1,-1)*IF(F$7="c",call_wycena($A97, F$6,F$3, F$4,F$5),put_wycena($A97, F$6,F$3, F$4,F$5)) -> 1.603564137 | G97: =IF(F$8="d",1,-1)*(IF(F$7="c",MAX($A97-F$6,0),MAX(F$6-$A97,0))-F$11*((1+F$3)^F$5)) -> -3.176317978 | H97: =IF(H$8="d",1,-1)*IF(H$7="c",call_wycena($A97, H$6,H$3, H$4,H$5),put_wycena($A97, H$6,H$3, H$4,H$5)) -> -15.2986383 | I97: =IF(H$8="d",1,-1)*(IF(H$7="c",MAX($A97-H$6,0),MAX(H$6-$A97,0))-H$11*((1+H$3)^H$5)) -> 7.041439067 | J97: =IF(J$8="d",1,-1)*IF(J$7="c",call_wycena($A97, J$6,J$3, J$4,J$5),put_wycena($A97, J$6,J$3, J$4,J$5)) -> -15.2986383 | K97: =IF(J$8="d",1,-1)*(IF(J$7="c",MAX($A97-J$6,0),MAX(J$6-$A97,0))-J$11*((1+J$3)^J$5)) -> 7.041439067 | L97: =IF(L$8="d",1,-1)*IF(L$7="c",call_wycena($A97, L$6,L$3, L$4,L$5),put_wycena($A97, L$6,L$3, L$4,L$5)) -> -15.2986383 | M97: =IF(L$8="d",1,-1)*(IF(L$7="c",MAX($A97-L$6,0),MAX(L$6-$A97,0))-L$11*((1+L$3)^L$5)) -> 7.041439067 | O97: 18.8870712 | P97: -13.45412078
A98: 112.5 | B98: =IF(B$8="d",1,-1)*IF(B$7="c",call_wycena($A98, B$6,B$3, B$4,B$5),put_wycena($A98, B$6,B$3, B$4,B$5)) -> 3.503291888 | C98: -6.412681712 | D98: =IF(D$8="d",1,-1)*IF(D$7="c",call_wycena($A98, D$6,D$3, D$4,D$5),put_wycena($A98, D$6,D$3, D$4,D$5)) -> 15.60456543 | E98: -6.541439067 | F98: =IF(F$8="d",1,-1)*IF(F$7="c",call_wycena($A98, F$6,F$3, F$4,F$5),put_wycena($A98, F$6,F$3, F$4,F$5)) -> 1.558960916 | G98: =IF(F$8="d",1,-1)*(IF(F$7="c",MAX($A98-F$6,0),MAX(F$6-$A98,0))-F$11*((1+F$3)^F$5)) -> -3.176317978 | H98: =IF(H$8="d",1,-1)*IF(H$7="c",call_wycena($A98, H$6,H$3, H$4,H$5),put_wycena($A98, H$6,H$3, H$4,H$5)) -> -15.60456543 | I98: =IF(H$8="d",1,-1)*(IF(H$7="c",MAX($A98-H$6,0),MAX(H$6-$A98,0))-H$11*((1+H$3)^H$5)) -> 6.541439067 | J98: =IF(J$8="d",1,-1)*IF(J$7="c",call_wycena($A98, J$6,J$3, J$4,J$5),put_wycena($A98, J$6,J$3, J$4,J$5)) -> -15.60456543 | K98: =IF(J$8="d",1,-1)*(IF(J$7="c",MAX($A98-J$6,0),MAX(J$6-$A98,0))-J$11*((1+J$3)^J$5)) -> 6.541439067 | L98: =IF(L$8="d",1,-1)*IF(L$7="c",call_wycena($A98, L$6,L$3, L$4,L$5),put_wycena($A98, L$6,L$3, L$4,L$5)) -> -15.60456543 | M98: =IF(L$8="d",1,-1)*(IF(L$7="c",MAX($A98-L$6,0),MAX(L$6-$A98,0))-L$11*((1+L$3)^L$5)) -> 6.541439067 | O98: 19.10785732 | P98: -12.95412078
A99: 113 | B99: =IF(B$8="d",1,-1)*IF(B$7="c",call_wycena($A99, B$6,B$3, B$4,B$5),put_wycena($A99, B$6,B$3, B$4,B$5)) -> 3.420014082 | C99: -6.412681712 | D99: =IF(D$8="d",1,-1)*IF(D$7="c",call_wycena($A99, D$6,D$3, D$4,D$5),put_wycena($A99, D$6,D$3, D$4,D$5)) -> 15.91332468 | E99: -6.041439067 | F99: =IF(F$8="d",1,-1)*IF(F$7="c",call_wycena($A99, F$6,F$3, F$4,F$5),put_wycena($A99, F$6,F$3, F$4,F$5)) -> 1.515540819 | G99: =IF(F$8="d",1,-1)*(IF(F$7="c",MAX($A99-F$6,0),MAX(F$6-$A99,0))-F$11*((1+F$3)^F$5)) -> -3.176317978 | H99: =IF(H$8="d",1,-1)*IF(H$7="c",call_wycena($A99, H$6,H$3, H$4,H$5),put_wycena($A99, H$6,H$3, H$4,H$5)) -> -15.91332468 | I99: =IF(H$8="d",1,-1)*(IF(H$7="c",MAX($A99-H$6,0),MAX(H$6-$A99,0))-H$11*((1+H$3)^H$5)) -> 6.041439067 | J99: =IF(J$8="d",1,-1)*IF(J$7="c",call_wycena($A99, J$6,J$3, J$4,J$5),put_wycena($A99, J$6,J$3, J$4,J$5)) -> -15.91332468 | K99: =IF(J$8="d",1,-1)*(IF(J$7="c",MAX($A99-J$6,0),MAX(J$6-$A99,0))-J$11*((1+J$3)^J$5)) -> 6.041439067 | L99: =IF(L$8="d",1,-1)*IF(L$7="c",call_wycena($A99, L$6,L$3, L$4,L$5),put_wycena($A99, L$6,L$3, L$4,L$5)) -> -15.91332468 | M99: =IF(L$8="d",1,-1)*(IF(L$7="c",MAX($A99-L$6,0),MAX(L$6-$A99,0))-L$11*((1+L$3)^L$5)) -> 6.041439067 | O99: 19.33333876 | P99: -12.45412078
A100: 113.5 | B100: =IF(B$8="d",1,-1)*IF(B$7="c",call_wycena($A100, B$6,B$3, B$4,B$5),put_wycena($A100, B$6,B$3, B$4,B$5)) -> 3.338564892 | C100: -6.412681712 | D100: =IF(D$8="d",1,-1)*IF(D$7="c",call_wycena($A100, D$6,D$3, D$4,D$5),put_wycena($A100, D$6,D$3, D$4,D$5)) -> 16.22489109 | E100: -5.541439067 | F100: =IF(F$8="d",1,-1)*IF(F$7="c",call_wycena($A100, F$6,F$3, F$4,F$5),put_wycena($A100, F$6,F$3, F$4,F$5)) -> 1.47327516 | G100: =IF(F$8="d",1,-1)*(IF(F$7="c",MAX($A100-F$6,0),MAX(F$6-$A100,0))-F$11*((1+F$3)^F$5)) -> -3.176317978 | H100: =IF(H$8="d",1,-1)*IF(H$7="c",call_wycena($A100, H$6,H$3, H$4,H$5),put_wycena($A100, H$6,H$3, H$4,H$5)) -> -16.22489109 | I100: =IF(H$8="d",1,-1)*(IF(H$7="c",MAX($A100-H$6,0),MAX(H$6-$A100,0))-H$11*((1+H$3)^H$5)) -> 5.541439067 | J100: =IF(J$8="d",1,-1)*IF(J$7="c",call_wycena($A100, J$6,J$3, J$4,J$5),put_wycena($A100, J$6,J$3, J$4,J$5)) -> -16.22489109 | K100: =IF(J$8="d",1,-1)*(IF(J$7="c",MAX($A100-J$6,0),MAX(J$6-$A100,0))-J$11*((1+J$3)^J$5)) -> 5.541439067 | L100: =IF(L$8="d",1,-1)*IF(L$7="c",call_wycena($A100, L$6,L$3, L$4,L$5),put_wycena($A100, L$6,L$3, L$4,L$5)) -> -16.22489109 | M100: =IF(L$8="d",1,-1)*(IF(L$7="c",MAX($A100-L$6,0),MAX(L$6-$A100,0))-L$11*((1+L$3)^L$5)) -> 5.541439067 | O100: 19.56345598 | P100: -11.95412078
A101: 114 | B101: =IF(B$8="d",1,-1)*IF(B$7="c",call_wycena($A101, B$6,B$3, B$4,B$5),put_wycena($A101, B$6,B$3, B$4,B$5)) -> 3.258910126 | C101: -6.412681712 | D101: =IF(D$8="d",1,-1)*IF(D$7="c",call_wycena($A101, D$6,D$3, D$4,D$5),put_wycena($A101, D$6,D$3, D$4,D$5)) -> 16.53923941 | E101: -5.041439067 | F101: =IF(F$8="d",1,-1)*IF(F$7="c",call_wycena($A101, F$6,F$3, F$4,F$5),put_wycena($A101, F$6,F$3, F$4,F$5)) -> 1.432135827 | G101: =IF(F$8="d",1,-1)*(IF(F$7="c",MAX($A101-F$6,0),MAX(F$6-$A101,0))-F$11*((1+F$3)^F$5)) -> -3.176317978 | H101: =IF(H$8="d",1,-1)*IF(H$7="c",call_wycena($A101, H$6,H$3, H$4,H$5),put_wycena($A101, H$6,H$3, H$4,H$5)) -> -16.53923941 | I101: =IF(H$8="d",1,-1)*(IF(H$7="c",MAX($A101-H$6,0),MAX(H$6-$A101,0))-H$11*((1+H$3)^H$5)) -> 5.041439067 | J101: =IF(J$8="d",1,-1)*IF(J$7="c",call_wycena($A101, J$6,J$3, J$4,J$5),put_wycena($A101, J$6,J$3, J$4,J$5)) -> -16.53923941 | K101: =IF(J$8="d",1,-1)*(IF(J$7="c",MAX($A101-J$6,0),MAX(J$6-$A101,0))-J$11*((1+J$3)^J$5)) -> 5.041439067 | L101: =IF(L$8="d",1,-1)*IF(L$7="c",call_wycena($A101, L$6,L$3, L$4,L$5),put_wycena($A101, L$6,L$3, L$4,L$5)) -> -16.53923941 | M101: =IF(L$8="d",1,-1)*(IF(L$7="c",MAX($A101-L$6,0),MAX(L$6-$A101,0))-L$11*((1+L$3)^L$5)) -> 5.041439067 | O101: 19.79814953 | P101: -11.45412078
A102: 114.5 | B102: =IF(B$8="d",1,-1)*IF(B$7="c",call_wycena($A102, B$6,B$3, B$4,B$5),put_wycena($A102, B$6,B$3, B$4,B$5)) -> 3.181015997 | C102: -6.412681712 | D102: =IF(D$8="d",1,-1)*IF(D$7="c",call_wycena($A102, D$6,D$3, D$4,D$5),put_wycena($A102, D$6,D$3, D$4,D$5)) -> 16.85634415 | E102: -4.541439067 | F102: =IF(F$8="d",1,-1)*IF(F$7="c",call_wycena($A102, F$6,F$3, F$4,F$5),put_wycena($A102, F$6,F$3, F$4,F$5)) -> 1.392095273 | G102: =IF(F$8="d",1,-1)*(IF(F$7="c",MAX($A102-F$6,0),MAX(F$6-$A102,0))-F$11*((1+F$3)^F$5)) -> -3.176317978 | H102: =IF(H$8="d",1,-1)*IF(H$7="c",call_wycena($A102, H$6,H$3, H$4,H$5),put_wycena($A102, H$6,H$3, H$4,H$5)) -> -16.85634415 | I102: =IF(H$8="d",1,-1)*(IF(H$7="c",MAX($A102-H$6,0),MAX(H$6-$A102,0))-H$11*((1+H$3)^H$5)) -> 4.541439067 | J102: =IF(J$8="d",1,-1)*IF(J$7="c",call_wycena($A102, J$6,J$3, J$4,J$5),put_wycena($A102, J$6,J$3, J$4,J$5)) -> -16.85634415 | K102: =IF(J$8="d",1,-1)*(IF(J$7="c",MAX($A102-J$6,0),MAX(J$6-$A102,0))-J$11*((1+J$3)^J$5)) -> 4.541439067 | L102: =IF(L$8="d",1,-1)*IF(L$7="c",call_wycena($A102, L$6,L$3, L$4,L$5),put_wycena($A102, L$6,L$3, L$4,L$5)) -> -16.85634415 | M102: =IF(L$8="d",1,-1)*(IF(L$7="c",MAX($A102-L$6,0),MAX(L$6-$A102,0))-L$11*((1+L$3)^L$5)) -> 4.541439067 | O102: 20.03736015 | P102: -10.95412078
A103: 115 | B103: =IF(B$8="d",1,-1)*IF(B$7="c",call_wycena($A103, B$6,B$3, B$4,B$5),put_wycena($A103, B$6,B$3, B$4,B$5)) -> 3.104849133 | C103: -6.412681712 | D103: =IF(D$8="d",1,-1)*IF(D$7="c",call_wycena($A103, D$6,D$3, D$4,D$5),put_wycena($A103, D$6,D$3, D$4,D$5)) -> 17.17617958 | E103: -4.041439067 | F103: =IF(F$8="d",1,-1)*IF(F$7="c",call_wycena($A103, F$6,F$3, F$4,F$5),put_wycena($A103, F$6,F$3, F$4,F$5)) -> 1.353126515 | G103: =IF(F$8="d",1,-1)*(IF(F$7="c",MAX($A103-F$6,0),MAX(F$6-$A103,0))-F$11*((1+F$3)^F$5)) -> -3.176317978 | H103: =IF(H$8="d",1,-1)*IF(H$7="c",call_wycena($A103, H$6,H$3, H$4,H$5),put_wycena($A103, H$6,H$3, H$4,H$5)) -> -17.17617958 | I103: =IF(H$8="d",1,-1)*(IF(H$7="c",MAX($A103-H$6,0),MAX(H$6-$A103,0))-H$11*((1+H$3)^H$5)) -> 4.041439067 | J103: =IF(J$8="d",1,-1)*IF(J$7="c",call_wycena($A103, J$6,J$3, J$4,J$5),put_wycena($A103, J$6,J$3, J$4,J$5)) -> -17.17617958 | K103: =IF(J$8="d",1,-1)*(IF(J$7="c",MAX($A103-J$6,0),MAX(J$6-$A103,0))-J$11*((1+J$3)^J$5)) -> 4.041439067 | L103: =IF(L$8="d",1,-1)*IF(L$7="c",call_wycena($A103, L$6,L$3, L$4,L$5),put_wycena($A103, L$6,L$3, L$4,L$5)) -> -17.17617958 | M103: =IF(L$8="d",1,-1)*(IF(L$7="c",MAX($A103-L$6,0),MAX(L$6-$A103,0))-L$11*((1+L$3)^L$5)) -> 4.041439067 | O103: 20.28102872 | P103: -10.45412078
A104: 115.5 | B104: =IF(B$8="d",1,-1)*IF(B$7="c",call_wycena($A104, B$6,B$3, B$4,B$5),put_wycena($A104, B$6,B$3, B$4,B$5)) -> 3.030376574 | C104: -6.412681712 | D104: =IF(D$8="d",1,-1)*IF(D$7="c",call_wycena($A104, D$6,D$3, D$4,D$5),put_wycena($A104, D$6,D$3, D$4,D$5)) -> 17.49871975 | E104: -3.541439067 | F104: =IF(F$8="d",1,-1)*IF(F$7="c",call_wycena($A104, F$6,F$3, F$4,F$5),put_wycena($A104, F$6,F$3, F$4,F$5)) -> 1.315203123 | G104: =IF(F$8="d",1,-1)*(IF(F$7="c",MAX($A104-F$6,0),MAX(F$6-$A104,0))-F$11*((1+F$3)^F$5)) -> -3.176317978 | H104: =IF(H$8="d",1,-1)*IF(H$7="c",call_wycena($A104, H$6,H$3, H$4,H$5),put_wycena($A104, H$6,H$3, H$4,H$5)) -> -17.49871975 | I104: =IF(H$8="d",1,-1)*(IF(H$7="c",MAX($A104-H$6,0),MAX(H$6-$A104,0))-H$11*((1+H$3)^H$5)) -> 3.541439067 | J104: =IF(J$8="d",1,-1)*IF(J$7="c",call_wycena($A104, J$6,J$3, J$4,J$5),put_wycena($A104, J$6,J$3, J$4,J$5)) -> -17.49871975 | K104: =IF(J$8="d",1,-1)*(IF(J$7="c",MAX($A104-J$6,0),MAX(J$6-$A104,0))-J$11*((1+J$3)^J$5)) -> 3.541439067 | L104: =IF(L$8="d",1,-1)*IF(L$7="c",call_wycena($A104, L$6,L$3, L$4,L$5),put_wycena($A104, L$6,L$3, L$4,L$5)) -> -17.49871975 | M104: =IF(L$8="d",1,-1)*(IF(L$7="c",MAX($A104-L$6,0),MAX(L$6-$A104,0))-L$11*((1+L$3)^L$5)) -> 3.541439067 | O104: 20.52909632 | P104: -9.954120779
A105: 116 | B105: =IF(B$8="d",1,-1)*IF(B$7="c",call_wycena($A105, B$6,B$3, B$4,B$5),put_wycena($A105, B$6,B$3, B$4,B$5)) -> 2.957565782 | C105: -6.412681712 | D105: =IF(D$8="d",1,-1)*IF(D$7="c",call_wycena($A105, D$6,D$3, D$4,D$5),put_wycena($A105, D$6,D$3, D$4,D$5)) -> 17.82393849 | E105: -3.041439067 | F105: =IF(F$8="d",1,-1)*IF(F$7="c",call_wycena($A105, F$6,F$3, F$4,F$5),put_wycena($A105, F$6,F$3, F$4,F$5)) -> 1.278299217 | G105: =IF(F$8="d",1,-1)*(IF(F$7="c",MAX($A105-F$6,0),MAX(F$6-$A105,0))-F$11*((1+F$3)^F$5)) -> -3.176317978 | H105: =IF(H$8="d",1,-1)*IF(H$7="c",call_wycena($A105, H$6,H$3, H$4,H$5),put_wycena($A105, H$6,H$3, H$4,H$5)) -> -17.82393849 | I105: =IF(H$8="d",1,-1)*(IF(H$7="c",MAX($A105-H$6,0),MAX(H$6-$A105,0))-H$11*((1+H$3)^H$5)) -> 3.041439067 | J105: =IF(J$8="d",1,-1)*IF(J$7="c",call_wycena($A105, J$6,J$3, J$4,J$5),put_wycena($A105, J$6,J$3, J$4,J$5)) -> -17.82393849 | K105: =IF(J$8="d",1,-1)*(IF(J$7="c",MAX($A105-J$6,0),MAX(J$6-$A105,0))-J$11*((1+J$3)^J$5)) -> 3.041439067 | L105: =IF(L$8="d",1,-1)*IF(L$7="c",call_wycena($A105, L$6,L$3, L$4,L$5),put_wycena($A105, L$6,L$3, L$4,L$5)) -> -17.82393849 | M105: =IF(L$8="d",1,-1)*(IF(L$7="c",MAX($A105-L$6,0),MAX(L$6-$A105,0))-L$11*((1+L$3)^L$5)) -> 3.041439067 | O105: 20.78150427 | P105: -9.454120779
A106: =A105+0.5 -> 116.5 | B106: =IF(B$8="d",1,-1)*IF(B$7="c",call_wycena($A106, B$6,B$3, B$4,B$5),put_wycena($A106, B$6,B$3, B$4,B$5)) -> 2.88638464 | C106: -6.412681712 | D106: =IF(D$8="d",1,-1)*IF(D$7="c",call_wycena($A106, D$6,D$3, D$4,D$5),put_wycena($A106, D$6,D$3, D$4,D$5)) -> 18.15180945 | E106: -2.541439067 | F106: =IF(F$8="d",1,-1)*IF(F$7="c",call_wycena($A106, F$6,F$3, F$4,F$5),put_wycena($A106, F$6,F$3, F$4,F$5)) -> 1.242389456 | G106: =IF(F$8="d",1,-1)*(IF(F$7="c",MAX($A106-F$6,0),MAX(F$6-$A106,0))-F$11*((1+F$3)^F$5)) -> -3.176317978 | H106: =IF(H$8="d",1,-1)*IF(H$7="c",call_wycena($A106, H$6,H$3, H$4,H$5),put_wycena($A106, H$6,H$3, H$4,H$5)) -> -18.15180945 | I106: =IF(H$8="d",1,-1)*(IF(H$7="c",MAX($A106-H$6,0),MAX(H$6-$A106,0))-H$11*((1+H$3)^H$5)) -> 2.541439067 | J106: =IF(J$8="d",1,-1)*IF(J$7="c",call_wycena($A106, J$6,J$3, J$4,J$5),put_wycena($A106, J$6,J$3, J$4,J$5)) -> -18.15180945 | K106: =IF(J$8="d",1,-1)*(IF(J$7="c",MAX($A106-J$6,0),MAX(J$6-$A106,0))-J$11*((1+J$3)^J$5)) -> 2.541439067 | L106: =IF(L$8="d",1,-1)*IF(L$7="c",call_wycena($A106, L$6,L$3, L$4,L$5),put_wycena($A106, L$6,L$3, L$4,L$5)) -> -18.15180945 | M106: =IF(L$8="d",1,-1)*(IF(L$7="c",MAX($A106-L$6,0),MAX(L$6-$A106,0))-L$11*((1+L$3)^L$5)) -> 2.541439067 | O106: 21.03819409 | P106: -8.954120779
A107: 117 | B107: =IF(B$8="d",1,-1)*IF(B$7="c",call_wycena($A107, B$6,B$3, B$4,B$5),put_wycena($A107, B$6,B$3, B$4,B$5)) -> 2.816801458 | C107: -6.412681712 | D107: =IF(D$8="d",1,-1)*IF(D$7="c",call_wycena($A107, D$6,D$3, D$4,D$5),put_wycena($A107, D$6,D$3, D$4,D$5)) -> 18.48230613 | E107: -2.041439067 | F107: =IF(F$8="d",1,-1)*IF(F$7="c",call_wycena($A107, F$6,F$3, F$4,F$5),put_wycena($A107, F$6,F$3, F$4,F$5)) -> 1.207449038 | G107: =IF(F$8="d",1,-1)*(IF(F$7="c",MAX($A107-F$6,0),MAX(F$6-$A107,0))-F$11*((1+F$3)^F$5)) -> -3.176317978 | H107: =IF(H$8="d",1,-1)*IF(H$7="c",call_wycena($A107, H$6,H$3, H$4,H$5),put_wycena($A107, H$6,H$3, H$4,H$5)) -> -18.48230613 | I107: =IF(H$8="d",1,-1)*(IF(H$7="c",MAX($A107-H$6,0),MAX(H$6-$A107,0))-H$11*((1+H$3)^H$5)) -> 2.041439067 | J107: =IF(J$8="d",1,-1)*IF(J$7="c",call_wycena($A107, J$6,J$3, J$4,J$5),put_wycena($A107, J$6,J$3, J$4,J$5)) -> -18.48230613 | K107: =IF(J$8="d",1,-1)*(IF(J$7="c",MAX($A107-J$6,0),MAX(J$6-$A107,0))-J$11*((1+J$3)^J$5)) -> 2.041439067 | L107: =IF(L$8="d",1,-1)*IF(L$7="c",call_wycena($A107, L$6,L$3, L$4,L$5),put_wycena($A107, L$6,L$3, L$4,L$5)) -> -18.48230613 | M107: =IF(L$8="d",1,-1)*(IF(L$7="c",MAX($A107-L$6,0),MAX(L$6-$A107,0))-L$11*((1+L$3)^L$5)) -> 2.041439067 | O107: 21.29910759 | P107: -8.454120779
A108: 117.5 | B108: =IF(B$8="d",1,-1)*IF(B$7="c",call_wycena($A108, B$6,B$3, B$4,B$5),put_wycena($A108, B$6,B$3, B$4,B$5)) -> 2.748784973 | C108: -6.412681712 | D108: =IF(D$8="d",1,-1)*IF(D$7="c",call_wycena($A108, D$6,D$3, D$4,D$5),put_wycena($A108, D$6,D$3, D$4,D$5)) -> 18.81540185 | E108: -1.541439067 | F108: =IF(F$8="d",1,-1)*IF(F$7="c",call_wycena($A108, F$6,F$3, F$4,F$5),put_wycena($A108, F$6,F$3, F$4,F$5)) -> 1.173453687 | G108: =IF(F$8="d",1,-1)*(IF(F$7="c",MAX($A108-F$6,0),MAX(F$6-$A108,0))-F$11*((1+F$3)^F$5)) -> -3.176317978 | H108: =IF(H$8="d",1,-1)*IF(H$7="c",call_wycena($A108, H$6,H$3, H$4,H$5),put_wycena($A108, H$6,H$3, H$4,H$5)) -> -18.81540185 | I108: =IF(H$8="d",1,-1)*(IF(H$7="c",MAX($A108-H$6,0),MAX(H$6-$A108,0))-H$11*((1+H$3)^H$5)) -> 1.541439067 | J108: =IF(J$8="d",1,-1)*IF(J$7="c",call_wycena($A108, J$6,J$3, J$4,J$5),put_wycena($A108, J$6,J$3, J$4,J$5)) -> -18.81540185 | K108: =IF(J$8="d",1,-1)*(IF(J$7="c",MAX($A108-J$6,0),MAX(J$6-$A108,0))-J$11*((1+J$3)^J$5)) -> 1.541439067 | L108: =IF(L$8="d",1,-1)*IF(L$7="c",call_wycena($A108, L$6,L$3, L$4,L$5),put_wycena($A108, L$6,L$3, L$4,L$5)) -> -18.81540185 | M108: =IF(L$8="d",1,-1)*(IF(L$7="c",MAX($A108-L$6,0),MAX(L$6-$A108,0))-L$11*((1+L$3)^L$5)) -> 1.541439067 | O108: 21.56418682 | P108: -7.954120779
A109: 118 | B109: =IF(B$8="d",1,-1)*IF(B$7="c",call_wycena($A109, B$6,B$3, B$4,B$5),put_wycena($A109, B$6,B$3, B$4,B$5)) -> 2.682304354 | C109: =IF(B$8="d",1,-1)*(IF(B$7="c",MAX($A109-B$6,0),MAX(B$6-$A109,0))-B$11*((1+B$3)^B$5)) -> -6.412681712 | D109: =IF(D$8="d",1,-1)*IF(D$7="c",call_wycena($A109, D$6,D$3, D$4,D$5),put_wycena($A109, D$6,D$3, D$4,D$5)) -> 19.15106981 | E109: =IF(D$8="d",1,-1)*(IF(D$7="c",MAX($A109-D$6,0),MAX(D$6-$A109,0))-D$11*((1+D$3)^D$5)) -> -1.041439067 | F109: =IF(F$8="d",1,-1)*IF(F$7="c",call_wycena($A109, F$6,F$3, F$4,F$5),put_wycena($A109, F$6,F$3, F$4,F$5)) -> 1.140379647 | G109: =IF(F$8="d",1,-1)*(IF(F$7="c",MAX($A109-F$6,0),MAX(F$6-$A109,0))-F$11*((1+F$3)^F$5)) -> -3.176317978 | H109: =IF(H$8="d",1,-1)*IF(H$7="c",call_wycena($A109, H$6,H$3, H$4,H$5),put_wycena($A109, H$6,H$3, H$4,H$5)) -> -19.15106981 | I109: =IF(H$8="d",1,-1)*(IF(H$7="c",MAX($A109-H$6,0),MAX(H$6-$A109,0))-H$11*((1+H$3)^H$5)) -> 1.041439067 | J109: =IF(J$8="d",1,-1)*IF(J$7="c",call_wycena($A109, J$6,J$3, J$4,J$5),put_wycena($A109, J$6,J$3, J$4,J$5)) -> -19.15106981 | K109: =IF(J$8="d",1,-1)*(IF(J$7="c",MAX($A109-J$6,0),MAX(J$6-$A109,0))-J$11*((1+J$3)^J$5)) -> 1.041439067 | L109: =IF(L$8="d",1,-1)*IF(L$7="c",call_wycena($A109, L$6,L$3, L$4,L$5),put_wycena($A109, L$6,L$3, L$4,L$5)) -> -19.15106981 | M109: =IF(L$8="d",1,-1)*(IF(L$7="c",MAX($A109-L$6,0),MAX(L$6-$A109,0))-L$11*((1+L$3)^L$5)) -> 1.041439067 | O109: 21.83337416 | P109: -7.454120779
A110: 118.5 | B110: =IF(B$8="d",1,-1)*IF(B$7="c",call_wycena($A110, B$6,B$3, B$4,B$5),put_wycena($A110, B$6,B$3, B$4,B$5)) -> 2.617329198 | C110: -6.412681712 | D110: =IF(D$8="d",1,-1)*IF(D$7="c",call_wycena($A110, D$6,D$3, D$4,D$5),put_wycena($A110, D$6,D$3, D$4,D$5)) -> 19.48928307 | E110: -0.5414390673 | F110: =IF(F$8="d",1,-1)*IF(F$7="c",call_wycena($A110, F$6,F$3, F$4,F$5),put_wycena($A110, F$6,F$3, F$4,F$5)) -> 1.108203677 | G110: =IF(F$8="d",1,-1)*(IF(F$7="c",MAX($A110-F$6,0),MAX(F$6-$A110,0))-F$11*((1+F$3)^F$5)) -> -3.176317978 | H110: =IF(H$8="d",1,-1)*IF(H$7="c",call_wycena($A110, H$6,H$3, H$4,H$5),put_wycena($A110, H$6,H$3, H$4,H$5)) -> -19.48928307 | I110: =IF(H$8="d",1,-1)*(IF(H$7="c",MAX($A110-H$6,0),MAX(H$6-$A110,0))-H$11*((1+H$3)^H$5)) -> 0.5414390673 | J110: =IF(J$8="d",1,-1)*IF(J$7="c",call_wycena($A110, J$6,J$3, J$4,J$5),put_wycena($A110, J$6,J$3, J$4,J$5)) -> -19.48928307 | K110: =IF(J$8="d",1,-1)*(IF(J$7="c",MAX($A110-J$6,0),MAX(J$6-$A110,0))-J$11*((1+J$3)^J$5)) -> 0.5414390673 | L110: =IF(L$8="d",1,-1)*IF(L$7="c",call_wycena($A110, L$6,L$3, L$4,L$5),put_wycena($A110, L$6,L$3, L$4,L$5)) -> -19.48928307 | M110: =IF(L$8="d",1,-1)*(IF(L$7="c",MAX($A110-L$6,0),MAX(L$6-$A110,0))-L$11*((1+L$3)^L$5)) -> 0.5414390673 | O110: 22.10661226 | P110: -6.954120779
A111: 119 | B111: =IF(B$8="d",1,-1)*IF(B$7="c",call_wycena($A111, B$6,B$3, B$4,B$5),put_wycena($A111, B$6,B$3, B$4,B$5)) -> 2.553829539 | C111: -6.412681712 | D111: =IF(D$8="d",1,-1)*IF(D$7="c",call_wycena($A111, D$6,D$3, D$4,D$5),put_wycena($A111, D$6,D$3, D$4,D$5)) -> 19.83001459 | E111: -0.04143906731 | F111: =IF(F$8="d",1,-1)*IF(F$7="c",call_wycena($A111, F$6,F$3, F$4,F$5),put_wycena($A111, F$6,F$3, F$4,F$5)) -> 1.076903044 | G111: =IF(F$8="d",1,-1)*(IF(F$7="c",MAX($A111-F$6,0),MAX(F$6-$A111,0))-F$11*((1+F$3)^F$5)) -> -3.176317978 | H111: =IF(H$8="d",1,-1)*IF(H$7="c",call_wycena($A111, H$6,H$3, H$4,H$5),put_wycena($A111, H$6,H$3, H$4,H$5)) -> -19.83001459 | I111: =IF(H$8="d",1,-1)*(IF(H$7="c",MAX($A111-H$6,0),MAX(H$6-$A111,0))-H$11*((1+H$3)^H$5)) -> 0.04143906731 | J111: =IF(J$8="d",1,-1)*IF(J$7="c",call_wycena($A111, J$6,J$3, J$4,J$5),put_wycena($A111, J$6,J$3, J$4,J$5)) -> -19.83001459 | K111: =IF(J$8="d",1,-1)*(IF(J$7="c",MAX($A111-J$6,0),MAX(J$6-$A111,0))-J$11*((1+J$3)^J$5)) -> 0.04143906731 | L111: =IF(L$8="d",1,-1)*IF(L$7="c",call_wycena($A111, L$6,L$3, L$4,L$5),put_wycena($A111, L$6,L$3, L$4,L$5)) -> -19.83001459 | M111: =IF(L$8="d",1,-1)*(IF(L$7="c",MAX($A111-L$6,0),MAX(L$6-$A111,0))-L$11*((1+L$3)^L$5)) -> 0.04143906731 | O111: 22.38384413 | P111: -6.454120779
A112: 119.5 | B112: =IF(B$8="d",1,-1)*IF(B$7="c",call_wycena($A112, B$6,B$3, B$4,B$5),put_wycena($A112, B$6,B$3, B$4,B$5)) -> 2.491775841 | C112: -6.412681712 | D112: =IF(D$8="d",1,-1)*IF(D$7="c",call_wycena($A112, D$6,D$3, D$4,D$5),put_wycena($A112, D$6,D$3, D$4,D$5)) -> 20.17323726 | E112: 0.4585609327 | F112: =IF(F$8="d",1,-1)*IF(F$7="c",call_wycena($A112, F$6,F$3, F$4,F$5),put_wycena($A112, F$6,F$3, F$4,F$5)) -> 1.046455511 | G112: =IF(F$8="d",1,-1)*(IF(F$7="c",MAX($A112-F$6,0),MAX(F$6-$A112,0))-F$11*((1+F$3)^F$5)) -> -3.176317978 | H112: =IF(H$8="d",1,-1)*IF(H$7="c",call_wycena($A112, H$6,H$3, H$4,H$5),put_wycena($A112, H$6,H$3, H$4,H$5)) -> -20.17323726 | I112: =IF(H$8="d",1,-1)*(IF(H$7="c",MAX($A112-H$6,0),MAX(H$6-$A112,0))-H$11*((1+H$3)^H$5)) -> -0.4585609327 | J112: =IF(J$8="d",1,-1)*IF(J$7="c",call_wycena($A112, J$6,J$3, J$4,J$5),put_wycena($A112, J$6,J$3, J$4,J$5)) -> -20.17323726 | K112: =IF(J$8="d",1,-1)*(IF(J$7="c",MAX($A112-J$6,0),MAX(J$6-$A112,0))-J$11*((1+J$3)^J$5)) -> -0.4585609327 | L112: =IF(L$8="d",1,-1)*IF(L$7="c",call_wycena($A112, L$6,L$3, L$4,L$5),put_wycena($A112, L$6,L$3, L$4,L$5)) -> -20.17323726 | M112: =IF(L$8="d",1,-1)*(IF(L$7="c",MAX($A112-L$6,0),MAX(L$6-$A112,0))-L$11*((1+L$3)^L$5)) -> -0.4585609327 | O112: 22.6650131 | P112: -5.954120779
A113: 120 | B113: =IF(B$8="d",1,-1)*IF(B$7="c",call_wycena($A113, B$6,B$3, B$4,B$5),put_wycena($A113, B$6,B$3, B$4,B$5)) -> 2.431139004 | C113: -6.412681712 | D113: =IF(D$8="d",1,-1)*IF(D$7="c",call_wycena($A113, D$6,D$3, D$4,D$5),put_wycena($A113, D$6,D$3, D$4,D$5)) -> 20.51892385 | E113: 0.9585609327 | F113: =IF(F$8="d",1,-1)*IF(F$7="c",call_wycena($A113, F$6,F$3, F$4,F$5),put_wycena($A113, F$6,F$3, F$4,F$5)) -> 1.016839336 | G113: =IF(F$8="d",1,-1)*(IF(F$7="c",MAX($A113-F$6,0),MAX(F$6-$A113,0))-F$11*((1+F$3)^F$5)) -> -3.176317978 | H113: =IF(H$8="d",1,-1)*IF(H$7="c",call_wycena($A113, H$6,H$3, H$4,H$5),put_wycena($A113, H$6,H$3, H$4,H$5)) -> -20.51892385 | I113: =IF(H$8="d",1,-1)*(IF(H$7="c",MAX($A113-H$6,0),MAX(H$6-$A113,0))-H$11*((1+H$3)^H$5)) -> -0.9585609327 | J113: =IF(J$8="d",1,-1)*IF(J$7="c",call_wycena($A113, J$6,J$3, J$4,J$5),put_wycena($A113, J$6,J$3, J$4,J$5)) -> -20.51892385 | K113: =IF(J$8="d",1,-1)*(IF(J$7="c",MAX($A113-J$6,0),MAX(J$6-$A113,0))-J$11*((1+J$3)^J$5)) -> -0.9585609327 | L113: =IF(L$8="d",1,-1)*IF(L$7="c",call_wycena($A113, L$6,L$3, L$4,L$5),put_wycena($A113, L$6,L$3, L$4,L$5)) -> -20.51892385 | M113: =IF(L$8="d",1,-1)*(IF(L$7="c",MAX($A113-L$6,0),MAX(L$6-$A113,0))-L$11*((1+L$3)^L$5)) -> -0.9585609327 | O113: 22.95006286 | P113: -5.454120779
A114: 120.5 | B114: =IF(B$8="d",1,-1)*IF(B$7="c",call_wycena($A114, B$6,B$3, B$4,B$5),put_wycena($A114, B$6,B$3, B$4,B$5)) -> 2.371890361 | C114: -6.412681712 | D114: =IF(D$8="d",1,-1)*IF(D$7="c",call_wycena($A114, D$6,D$3, D$4,D$5),put_wycena($A114, D$6,D$3, D$4,D$5)) -> 20.8670471 | E114: 1.458560933 | F114: =IF(F$8="d",1,-1)*IF(F$7="c",call_wycena($A114, F$6,F$3, F$4,F$5),put_wycena($A114, F$6,F$3, F$4,F$5)) -> 0.9880332584 | G114: =IF(F$8="d",1,-1)*(IF(F$7="c",MAX($A114-F$6,0),MAX(F$6-$A114,0))-F$11*((1+F$3)^F$5)) -> -3.176317978 | H114: =IF(H$8="d",1,-1)*IF(H$7="c",call_wycena($A114, H$6,H$3, H$4,H$5),put_wycena($A114, H$6,H$3, H$4,H$5)) -> -20.8670471 | I114: =IF(H$8="d",1,-1)*(IF(H$7="c",MAX($A114-H$6,0),MAX(H$6-$A114,0))-H$11*((1+H$3)^H$5)) -> -1.458560933 | J114: =IF(J$8="d",1,-1)*IF(J$7="c",call_wycena($A114, J$6,J$3, J$4,J$5),put_wycena($A114, J$6,J$3, J$4,J$5)) -> -20.8670471 | K114: =IF(J$8="d",1,-1)*(IF(J$7="c",MAX($A114-J$6,0),MAX(J$6-$A114,0))-J$11*((1+J$3)^J$5)) -> -1.458560933 | L114: =IF(L$8="d",1,-1)*IF(L$7="c",call_wycena($A114, L$6,L$3, L$4,L$5),put_wycena($A114, L$6,L$3, L$4,L$5)) -> -20.8670471 | M114: =IF(L$8="d",1,-1)*(IF(L$7="c",MAX($A114-L$6,0),MAX(L$6-$A114,0))-L$11*((1+L$3)^L$5)) -> -1.458560933 | O114: 23.23893746 | P114: -4.954120779
A115: 121 | B115: =IF(B$8="d",1,-1)*IF(B$7="c",call_wycena($A115, B$6,B$3, B$4,B$5),put_wycena($A115, B$6,B$3, B$4,B$5)) -> 2.31400168 | C115: -6.412681712 | D115: =IF(D$8="d",1,-1)*IF(D$7="c",call_wycena($A115, D$6,D$3, D$4,D$5),put_wycena($A115, D$6,D$3, D$4,D$5)) -> 21.21757969 | E115: 1.958560933 | F115: =IF(F$8="d",1,-1)*IF(F$7="c",call_wycena($A115, F$6,F$3, F$4,F$5),put_wycena($A115, F$6,F$3, F$4,F$5)) -> 0.960016497 | G115: =IF(F$8="d",1,-1)*(IF(F$7="c",MAX($A115-F$6,0),MAX(F$6-$A115,0))-F$11*((1+F$3)^F$5)) -> -3.176317978 | H115: =IF(H$8="d",1,-1)*IF(H$7="c",call_wycena($A115, H$6,H$3, H$4,H$5),put_wycena($A115, H$6,H$3, H$4,H$5)) -> -21.21757969 | I115: =IF(H$8="d",1,-1)*(IF(H$7="c",MAX($A115-H$6,0),MAX(H$6-$A115,0))-H$11*((1+H$3)^H$5)) -> -1.958560933 | J115: =IF(J$8="d",1,-1)*IF(J$7="c",call_wycena($A115, J$6,J$3, J$4,J$5),put_wycena($A115, J$6,J$3, J$4,J$5)) -> -21.21757969 | K115: =IF(J$8="d",1,-1)*(IF(J$7="c",MAX($A115-J$6,0),MAX(J$6-$A115,0))-J$11*((1+J$3)^J$5)) -> -1.958560933 | L115: =IF(L$8="d",1,-1)*IF(L$7="c",call_wycena($A115, L$6,L$3, L$4,L$5),put_wycena($A115, L$6,L$3, L$4,L$5)) -> -21.21757969 | M115: =IF(L$8="d",1,-1)*(IF(L$7="c",MAX($A115-L$6,0),MAX(L$6-$A115,0))-L$11*((1+L$3)^L$5)) -> -1.958560933 | O115: 23.53158137 | P115: -4.454120779
A116: 121.5 | B116: =IF(B$8="d",1,-1)*IF(B$7="c",call_wycena($A116, B$6,B$3, B$4,B$5),put_wycena($A116, B$6,B$3, B$4,B$5)) -> 2.257445159 | C116: -6.412681712 | D116: =IF(D$8="d",1,-1)*IF(D$7="c",call_wycena($A116, D$6,D$3, D$4,D$5),put_wycena($A116, D$6,D$3, D$4,D$5)) -> 21.57049425 | E116: 2.458560933 | F116: =IF(F$8="d",1,-1)*IF(F$7="c",call_wycena($A116, F$6,F$3, F$4,F$5),put_wycena($A116, F$6,F$3, F$4,F$5)) -> 0.9327687378 | G116: =IF(F$8="d",1,-1)*(IF(F$7="c",MAX($A116-F$6,0),MAX(F$6-$A116,0))-F$11*((1+F$3)^F$5)) -> -3.176317978 | H116: =IF(H$8="d",1,-1)*IF(H$7="c",call_wycena($A116, H$6,H$3, H$4,H$5),put_wycena($A116, H$6,H$3, H$4,H$5)) -> -21.57049425 | I116: =IF(H$8="d",1,-1)*(IF(H$7="c",MAX($A116-H$6,0),MAX(H$6-$A116,0))-H$11*((1+H$3)^H$5)) -> -2.458560933 | J116: =IF(J$8="d",1,-1)*IF(J$7="c",call_wycena($A116, J$6,J$3, J$4,J$5),put_wycena($A116, J$6,J$3, J$4,J$5)) -> -21.57049425 | K116: =IF(J$8="d",1,-1)*(IF(J$7="c",MAX($A116-J$6,0),MAX(J$6-$A116,0))-J$11*((1+J$3)^J$5)) -> -2.458560933 | L116: =IF(L$8="d",1,-1)*IF(L$7="c",call_wycena($A116, L$6,L$3, L$4,L$5),put_wycena($A116, L$6,L$3, L$4,L$5)) -> -21.57049425 | M116: =IF(L$8="d",1,-1)*(IF(L$7="c",MAX($A116-L$6,0),MAX(L$6-$A116,0))-L$11*((1+L$3)^L$5)) -> -2.458560933 | O116: 23.82793941 | P116: -3.954120779
A117: 122 | B117: =IF(B$8="d",1,-1)*IF(B$7="c",call_wycena($A117, B$6,B$3, B$4,B$5),put_wycena($A117, B$6,B$3, B$4,B$5)) -> 2.202193433 | C117: -6.412681712 | D117: =IF(D$8="d",1,-1)*IF(D$7="c",call_wycena($A117, D$6,D$3, D$4,D$5),put_wycena($A117, D$6,D$3, D$4,D$5)) -> 21.9257634 | E117: 2.958560933 | F117: =IF(F$8="d",1,-1)*IF(F$7="c",call_wycena($A117, F$6,F$3, F$4,F$5),put_wycena($A117, F$6,F$3, F$4,F$5)) -> 0.9062701289 | G117: =IF(F$8="d",1,-1)*(IF(F$7="c",MAX($A117-F$6,0),MAX(F$6-$A117,0))-F$11*((1+F$3)^F$5)) -> -3.176317978 | H117: =IF(H$8="d",1,-1)*IF(H$7="c",call_wycena($A117, H$6,H$3, H$4,H$5),put_wycena($A117, H$6,H$3, H$4,H$5)) -> -21.9257634 | I117: =IF(H$8="d",1,-1)*(IF(H$7="c",MAX($A117-H$6,0),MAX(H$6-$A117,0))-H$11*((1+H$3)^H$5)) -> -2.958560933 | J117: =IF(J$8="d",1,-1)*IF(J$7="c",call_wycena($A117, J$6,J$3, J$4,J$5),put_wycena($A117, J$6,J$3, J$4,J$5)) -> -21.9257634 | K117: =IF(J$8="d",1,-1)*(IF(J$7="c",MAX($A117-J$6,0),MAX(J$6-$A117,0))-J$11*((1+J$3)^J$5)) -> -2.958560933 | L117: =IF(L$8="d",1,-1)*IF(L$7="c",call_wycena($A117, L$6,L$3, L$4,L$5),put_wycena($A117, L$6,L$3, L$4,L$5)) -> -21.9257634 | M117: =IF(L$8="d",1,-1)*(IF(L$7="c",MAX($A117-L$6,0),MAX(L$6-$A117,0))-L$11*((1+L$3)^L$5)) -> -2.958560933 | O117: 24.12795683 | P117: -3.454120779
A118: 122.5 | B118: =IF(B$8="d",1,-1)*IF(B$7="c",call_wycena($A118, B$6,B$3, B$4,B$5),put_wycena($A118, B$6,B$3, B$4,B$5)) -> 2.148219565 | C118: -6.412681712 | D118: =IF(D$8="d",1,-1)*IF(D$7="c",call_wycena($A118, D$6,D$3, D$4,D$5),put_wycena($A118, D$6,D$3, D$4,D$5)) -> 22.28335974 | E118: 3.458560933 | F118: =IF(F$8="d",1,-1)*IF(F$7="c",call_wycena($A118, F$6,F$3, F$4,F$5),put_wycena($A118, F$6,F$3, F$4,F$5)) -> 0.8805012723 | G118: =IF(F$8="d",1,-1)*(IF(F$7="c",MAX($A118-F$6,0),MAX(F$6-$A118,0))-F$11*((1+F$3)^F$5)) -> -3.176317978 | H118: =IF(H$8="d",1,-1)*IF(H$7="c",call_wycena($A118, H$6,H$3, H$4,H$5),put_wycena($A118, H$6,H$3, H$4,H$5)) -> -22.28335974 | I118: =IF(H$8="d",1,-1)*(IF(H$7="c",MAX($A118-H$6,0),MAX(H$6-$A118,0))-H$11*((1+H$3)^H$5)) -> -3.458560933 | J118: =IF(J$8="d",1,-1)*IF(J$7="c",call_wycena($A118, J$6,J$3, J$4,J$5),put_wycena($A118, J$6,J$3, J$4,J$5)) -> -22.28335974 | K118: =IF(J$8="d",1,-1)*(IF(J$7="c",MAX($A118-J$6,0),MAX(J$6-$A118,0))-J$11*((1+J$3)^J$5)) -> -3.458560933 | L118: =IF(L$8="d",1,-1)*IF(L$7="c",call_wycena($A118, L$6,L$3, L$4,L$5),put_wycena($A118, L$6,L$3, L$4,L$5)) -> -22.28335974 | M118: =IF(L$8="d",1,-1)*(IF(L$7="c",MAX($A118-L$6,0),MAX(L$6-$A118,0))-L$11*((1+L$3)^L$5)) -> -3.458560933 | O118: 24.43157931 | P118: -2.954120779
A119: 123 | B119: =IF(B$8="d",1,-1)*IF(B$7="c",call_wycena($A119, B$6,B$3, B$4,B$5),put_wycena($A119, B$6,B$3, B$4,B$5)) -> 2.095497049 | C119: -6.412681712 | D119: =IF(D$8="d",1,-1)*IF(D$7="c",call_wycena($A119, D$6,D$3, D$4,D$5),put_wycena($A119, D$6,D$3, D$4,D$5)) -> 22.64325588 | E119: 3.958560933 | F119: =IF(F$8="d",1,-1)*IF(F$7="c",call_wycena($A119, F$6,F$3, F$4,F$5),put_wycena($A119, F$6,F$3, F$4,F$5)) -> 0.8554432159 | G119: =IF(F$8="d",1,-1)*(IF(F$7="c",MAX($A119-F$6,0),MAX(F$6-$A119,0))-F$11*((1+F$3)^F$5)) -> -3.176317978 | H119: =IF(H$8="d",1,-1)*IF(H$7="c",call_wycena($A119, H$6,H$3, H$4,H$5),put_wycena($A119, H$6,H$3, H$4,H$5)) -> -22.64325588 | I119: =IF(H$8="d",1,-1)*(IF(H$7="c",MAX($A119-H$6,0),MAX(H$6-$A119,0))-H$11*((1+H$3)^H$5)) -> -3.958560933 | J119: =IF(J$8="d",1,-1)*IF(J$7="c",call_wycena($A119, J$6,J$3, J$4,J$5),put_wycena($A119, J$6,J$3, J$4,J$5)) -> -22.64325588 | K119: =IF(J$8="d",1,-1)*(IF(J$7="c",MAX($A119-J$6,0),MAX(J$6-$A119,0))-J$11*((1+J$3)^J$5)) -> -3.958560933 | L119: =IF(L$8="d",1,-1)*IF(L$7="c",call_wycena($A119, L$6,L$3, L$4,L$5),put_wycena($A119, L$6,L$3, L$4,L$5)) -> -22.64325588 | M119: =IF(L$8="d",1,-1)*(IF(L$7="c",MAX($A119-L$6,0),MAX(L$6-$A119,0))-L$11*((1+L$3)^L$5)) -> -3.958560933 | O119: 24.73875293 | P119: -2.454120779
A120: 123.5 | B120: =IF(B$8="d",1,-1)*IF(B$7="c",call_wycena($A120, B$6,B$3, B$4,B$5),put_wycena($A120, B$6,B$3, B$4,B$5)) -> 2.043999806 | C120: -6.412681712 | D120: =IF(D$8="d",1,-1)*IF(D$7="c",call_wycena($A120, D$6,D$3, D$4,D$5),put_wycena($A120, D$6,D$3, D$4,D$5)) -> 23.00542444 | E120: 4.458560933 | F120: =IF(F$8="d",1,-1)*IF(F$7="c",call_wycena($A120, F$6,F$3, F$4,F$5),put_wycena($A120, F$6,F$3, F$4,F$5)) -> 0.8310774464 | G120: =IF(F$8="d",1,-1)*(IF(F$7="c",MAX($A120-F$6,0),MAX(F$6-$A120,0))-F$11*((1+F$3)^F$5)) -> -3.176317978 | H120: =IF(H$8="d",1,-1)*IF(H$7="c",call_wycena($A120, H$6,H$3, H$4,H$5),put_wycena($A120, H$6,H$3, H$4,H$5)) -> -23.00542444 | I120: =IF(H$8="d",1,-1)*(IF(H$7="c",MAX($A120-H$6,0),MAX(H$6-$A120,0))-H$11*((1+H$3)^H$5)) -> -4.458560933 | J120: =IF(J$8="d",1,-1)*IF(J$7="c",call_wycena($A120, J$6,J$3, J$4,J$5),put_wycena($A120, J$6,J$3, J$4,J$5)) -> -23.00542444 | K120: =IF(J$8="d",1,-1)*(IF(J$7="c",MAX($A120-J$6,0),MAX(J$6-$A120,0))-J$11*((1+J$3)^J$5)) -> -4.458560933 | L120: =IF(L$8="d",1,-1)*IF(L$7="c",call_wycena($A120, L$6,L$3, L$4,L$5),put_wycena($A120, L$6,L$3, L$4,L$5)) -> -23.00542444 | M120: =IF(L$8="d",1,-1)*(IF(L$7="c",MAX($A120-L$6,0),MAX(L$6-$A120,0))-L$11*((1+L$3)^L$5)) -> -4.458560933 | O120: 25.04942425 | P120: -1.954120779
A121: 124 | B121: =IF(B$8="d",1,-1)*IF(B$7="c",call_wycena($A121, B$6,B$3, B$4,B$5),put_wycena($A121, B$6,B$3, B$4,B$5)) -> 1.993702184 | C121: -6.412681712 | D121: =IF(D$8="d",1,-1)*IF(D$7="c",call_wycena($A121, D$6,D$3, D$4,D$5),put_wycena($A121, D$6,D$3, D$4,D$5)) -> 23.36983805 | E121: 4.958560933 | F121: =IF(F$8="d",1,-1)*IF(F$7="c",call_wycena($A121, F$6,F$3, F$4,F$5),put_wycena($A121, F$6,F$3, F$4,F$5)) -> 0.8073858811 | G121: =IF(F$8="d",1,-1)*(IF(F$7="c",MAX($A121-F$6,0),MAX(F$6-$A121,0))-F$11*((1+F$3)^F$5)) -> -3.176317978 | H121: =IF(H$8="d",1,-1)*IF(H$7="c",call_wycena($A121, H$6,H$3, H$4,H$5),put_wycena($A121, H$6,H$3, H$4,H$5)) -> -23.36983805 | I121: =IF(H$8="d",1,-1)*(IF(H$7="c",MAX($A121-H$6,0),MAX(H$6-$A121,0))-H$11*((1+H$3)^H$5)) -> -4.958560933 | J121: =IF(J$8="d",1,-1)*IF(J$7="c",call_wycena($A121, J$6,J$3, J$4,J$5),put_wycena($A121, J$6,J$3, J$4,J$5)) -> -23.36983805 | K121: =IF(J$8="d",1,-1)*(IF(J$7="c",MAX($A121-J$6,0),MAX(J$6-$A121,0))-J$11*((1+J$3)^J$5)) -> -4.958560933 | L121: =IF(L$8="d",1,-1)*IF(L$7="c",call_wycena($A121, L$6,L$3, L$4,L$5),put_wycena($A121, L$6,L$3, L$4,L$5)) -> -23.36983805 | M121: =IF(L$8="d",1,-1)*(IF(L$7="c",MAX($A121-L$6,0),MAX(L$6-$A121,0))-L$11*((1+L$3)^L$5)) -> -4.958560933 | O121: 25.36354024 | P121: -1.454120779
A122: 124.5 | B122: =IF(B$8="d",1,-1)*IF(B$7="c",call_wycena($A122, B$6,B$3, B$4,B$5),put_wycena($A122, B$6,B$3, B$4,B$5)) -> 1.944578956 | C122: -6.412681712 | D122: =IF(D$8="d",1,-1)*IF(D$7="c",call_wycena($A122, D$6,D$3, D$4,D$5),put_wycena($A122, D$6,D$3, D$4,D$5)) -> 23.7364694 | E122: 5.458560933 | F122: =IF(F$8="d",1,-1)*IF(F$7="c",call_wycena($A122, F$6,F$3, F$4,F$5),put_wycena($A122, F$6,F$3, F$4,F$5)) -> 0.7843508606 | G122: =IF(F$8="d",1,-1)*(IF(F$7="c",MAX($A122-F$6,0),MAX(F$6-$A122,0))-F$11*((1+F$3)^F$5)) -> -3.176317978 | H122: =IF(H$8="d",1,-1)*IF(H$7="c",call_wycena($A122, H$6,H$3, H$4,H$5),put_wycena($A122, H$6,H$3, H$4,H$5)) -> -23.7364694 | I122: =IF(H$8="d",1,-1)*(IF(H$7="c",MAX($A122-H$6,0),MAX(H$6-$A122,0))-H$11*((1+H$3)^H$5)) -> -5.458560933 | J122: =IF(J$8="d",1,-1)*IF(J$7="c",call_wycena($A122, J$6,J$3, J$4,J$5),put_wycena($A122, J$6,J$3, J$4,J$5)) -> -23.7364694 | K122: =IF(J$8="d",1,-1)*(IF(J$7="c",MAX($A122-J$6,0),MAX(J$6-$A122,0))-J$11*((1+J$3)^J$5)) -> -5.458560933 | L122: =IF(L$8="d",1,-1)*IF(L$7="c",call_wycena($A122, L$6,L$3, L$4,L$5),put_wycena($A122, L$6,L$3, L$4,L$5)) -> -23.7364694 | M122: =IF(L$8="d",1,-1)*(IF(L$7="c",MAX($A122-L$6,0),MAX(L$6-$A122,0))-L$11*((1+L$3)^L$5)) -> -5.458560933 | O122: 25.68104835 | P122: -0.9541207795
A123: 125 | B123: =IF(B$8="d",1,-1)*IF(B$7="c",call_wycena($A123, B$6,B$3, B$4,B$5),put_wycena($A123, B$6,B$3, B$4,B$5)) -> 1.896605313 | C123: -6.412681712 | D123: =IF(D$8="d",1,-1)*IF(D$7="c",call_wycena($A123, D$6,D$3, D$4,D$5),put_wycena($A123, D$6,D$3, D$4,D$5)) -> 24.1052912 | E123: 5.958560933 | F123: =IF(F$8="d",1,-1)*IF(F$7="c",call_wycena($A123, F$6,F$3, F$4,F$5),put_wycena($A123, F$6,F$3, F$4,F$5)) -> 0.7619551411 | G123: =IF(F$8="d",1,-1)*(IF(F$7="c",MAX($A123-F$6,0),MAX(F$6-$A123,0))-F$11*((1+F$3)^F$5)) -> -3.176317978 | H123: =IF(H$8="d",1,-1)*IF(H$7="c",call_wycena($A123, H$6,H$3, H$4,H$5),put_wycena($A123, H$6,H$3, H$4,H$5)) -> -24.1052912 | I123: =IF(H$8="d",1,-1)*(IF(H$7="c",MAX($A123-H$6,0),MAX(H$6-$A123,0))-H$11*((1+H$3)^H$5)) -> -5.958560933 | J123: =IF(J$8="d",1,-1)*IF(J$7="c",call_wycena($A123, J$6,J$3, J$4,J$5),put_wycena($A123, J$6,J$3, J$4,J$5)) -> -24.1052912 | K123: =IF(J$8="d",1,-1)*(IF(J$7="c",MAX($A123-J$6,0),MAX(J$6-$A123,0))-J$11*((1+J$3)^J$5)) -> -5.958560933 | L123: =IF(L$8="d",1,-1)*IF(L$7="c",call_wycena($A123, L$6,L$3, L$4,L$5),put_wycena($A123, L$6,L$3, L$4,L$5)) -> -24.1052912 | M123: =IF(L$8="d",1,-1)*(IF(L$7="c",MAX($A123-L$6,0),MAX(L$6-$A123,0))-L$11*((1+L$3)^L$5)) -> -5.958560933 | O123: 26.00189651 | P123: -0.4541207795
A124: 125.5 | B124: =IF(B$8="d",1,-1)*IF(B$7="c",call_wycena($A124, B$6,B$3, B$4,B$5),put_wycena($A124, B$6,B$3, B$4,B$5)) -> 1.84975687 | C124: -6.412681712 | D124: =IF(D$8="d",1,-1)*IF(D$7="c",call_wycena($A124, D$6,D$3, D$4,D$5),put_wycena($A124, D$6,D$3, D$4,D$5)) -> 24.47627622 | E124: 6.458560933 | F124: =IF(F$8="d",1,-1)*IF(F$7="c",call_wycena($A124, F$6,F$3, F$4,F$5),put_wycena($A124, F$6,F$3, F$4,F$5)) -> 0.7401818867 | G124: =IF(F$8="d",1,-1)*(IF(F$7="c",MAX($A124-F$6,0),MAX(F$6-$A124,0))-F$11*((1+F$3)^F$5)) -> -3.176317978 | H124: =IF(H$8="d",1,-1)*IF(H$7="c",call_wycena($A124, H$6,H$3, H$4,H$5),put_wycena($A124, H$6,H$3, H$4,H$5)) -> -24.47627622 | I124: =IF(H$8="d",1,-1)*(IF(H$7="c",MAX($A124-H$6,0),MAX(H$6-$A124,0))-H$11*((1+H$3)^H$5)) -> -6.458560933 | J124: =IF(J$8="d",1,-1)*IF(J$7="c",call_wycena($A124, J$6,J$3, J$4,J$5),put_wycena($A124, J$6,J$3, J$4,J$5)) -> -24.47627622 | K124: =IF(J$8="d",1,-1)*(IF(J$7="c",MAX($A124-J$6,0),MAX(J$6-$A124,0))-J$11*((1+J$3)^J$5)) -> -6.458560933 | L124: =IF(L$8="d",1,-1)*IF(L$7="c",call_wycena($A124, L$6,L$3, L$4,L$5),put_wycena($A124, L$6,L$3, L$4,L$5)) -> -24.47627622 | M124: =IF(L$8="d",1,-1)*(IF(L$7="c",MAX($A124-L$6,0),MAX(L$6-$A124,0))-L$11*((1+L$3)^L$5)) -> -6.458560933 | O124: 26.32603309 | P124: 0.04587922054
A125: 126 | B125: =IF(B$8="d",1,-1)*IF(B$7="c",call_wycena($A125, B$6,B$3, B$4,B$5),put_wycena($A125, B$6,B$3, B$4,B$5)) -> 1.804009654 | C125: -6.412681712 | D125: =IF(D$8="d",1,-1)*IF(D$7="c",call_wycena($A125, D$6,D$3, D$4,D$5),put_wycena($A125, D$6,D$3, D$4,D$5)) -> 24.84939732 | E125: 6.958560933 | F125: =IF(F$8="d",1,-1)*IF(F$7="c",call_wycena($A125, F$6,F$3, F$4,F$5),put_wycena($A125, F$6,F$3, F$4,F$5)) -> 0.7190146619 | G125: =IF(F$8="d",1,-1)*(IF(F$7="c",MAX($A125-F$6,0),MAX(F$6-$A125,0))-F$11*((1+F$3)^F$5)) -> -3.176317978 | H125: =IF(H$8="d",1,-1)*IF(H$7="c",call_wycena($A125, H$6,H$3, H$4,H$5),put_wycena($A125, H$6,H$3, H$4,H$5)) -> -24.84939732 | I125: =IF(H$8="d",1,-1)*(IF(H$7="c",MAX($A125-H$6,0),MAX(H$6-$A125,0))-H$11*((1+H$3)^H$5)) -> -6.958560933 | J125: =IF(J$8="d",1,-1)*IF(J$7="c",call_wycena($A125, J$6,J$3, J$4,J$5),put_wycena($A125, J$6,J$3, J$4,J$5)) -> -24.84939732 | K125: =IF(J$8="d",1,-1)*(IF(J$7="c",MAX($A125-J$6,0),MAX(J$6-$A125,0))-J$11*((1+J$3)^J$5)) -> -6.958560933 | L125: =IF(L$8="d",1,-1)*IF(L$7="c",call_wycena($A125, L$6,L$3, L$4,L$5),put_wycena($A125, L$6,L$3, L$4,L$5)) -> -24.84939732 | M125: =IF(L$8="d",1,-1)*(IF(L$7="c",MAX($A125-L$6,0),MAX(L$6-$A125,0))-L$11*((1+L$3)^L$5)) -> -6.958560933 | O125: 26.65340698 | P125: 0.5458792205
A126: 126.5 | B126: =IF(B$8="d",1,-1)*IF(B$7="c",call_wycena($A126, B$6,B$3, B$4,B$5),put_wycena($A126, B$6,B$3, B$4,B$5)) -> 1.759340107 | C126: -6.412681712 | D126: =IF(D$8="d",1,-1)*IF(D$7="c",call_wycena($A126, D$6,D$3, D$4,D$5),put_wycena($A126, D$6,D$3, D$4,D$5)) -> 25.22462741 | E126: 7.458560933 | F126: =IF(F$8="d",1,-1)*IF(F$7="c",call_wycena($A126, F$6,F$3, F$4,F$5),put_wycena($A126, F$6,F$3, F$4,F$5)) -> 0.6984374242 | G126: =IF(F$8="d",1,-1)*(IF(F$7="c",MAX($A126-F$6,0),MAX(F$6-$A126,0))-F$11*((1+F$3)^F$5)) -> -3.176317978 | H126: =IF(H$8="d",1,-1)*IF(H$7="c",call_wycena($A126, H$6,H$3, H$4,H$5),put_wycena($A126, H$6,H$3, H$4,H$5)) -> -25.22462741 | I126: =IF(H$8="d",1,-1)*(IF(H$7="c",MAX($A126-H$6,0),MAX(H$6-$A126,0))-H$11*((1+H$3)^H$5)) -> -7.458560933 | J126: =IF(J$8="d",1,-1)*IF(J$7="c",call_wycena($A126, J$6,J$3, J$4,J$5),put_wycena($A126, J$6,J$3, J$4,J$5)) -> -25.22462741 | K126: =IF(J$8="d",1,-1)*(IF(J$7="c",MAX($A126-J$6,0),MAX(J$6-$A126,0))-J$11*((1+J$3)^J$5)) -> -7.458560933 | L126: =IF(L$8="d",1,-1)*IF(L$7="c",call_wycena($A126, L$6,L$3, L$4,L$5),put_wycena($A126, L$6,L$3, L$4,L$5)) -> -25.22462741 | M126: =IF(L$8="d",1,-1)*(IF(L$7="c",MAX($A126-L$6,0),MAX(L$6-$A126,0))-L$11*((1+L$3)^L$5)) -> -7.458560933 | O126: 26.98396752 | P126: 1.045879221
A127: 127 | B127: =IF(B$8="d",1,-1)*IF(B$7="c",call_wycena($A127, B$6,B$3, B$4,B$5),put_wycena($A127, B$6,B$3, B$4,B$5)) -> 1.715725082 | C127: -6.412681712 | D127: =IF(D$8="d",1,-1)*IF(D$7="c",call_wycena($A127, D$6,D$3, D$4,D$5),put_wycena($A127, D$6,D$3, D$4,D$5)) -> 25.6019395 | E127: 7.958560933 | F127: =IF(F$8="d",1,-1)*IF(F$7="c",call_wycena($A127, F$6,F$3, F$4,F$5),put_wycena($A127, F$6,F$3, F$4,F$5)) -> 0.6784345163 | G127: =IF(F$8="d",1,-1)*(IF(F$7="c",MAX($A127-F$6,0),MAX(F$6-$A127,0))-F$11*((1+F$3)^F$5)) -> -3.176317978 | H127: =IF(H$8="d",1,-1)*IF(H$7="c",call_wycena($A127, H$6,H$3, H$4,H$5),put_wycena($A127, H$6,H$3, H$4,H$5)) -> -25.6019395 | I127: =IF(H$8="d",1,-1)*(IF(H$7="c",MAX($A127-H$6,0),MAX(H$6-$A127,0))-H$11*((1+H$3)^H$5)) -> -7.958560933 | J127: =IF(J$8="d",1,-1)*IF(J$7="c",call_wycena($A127, J$6,J$3, J$4,J$5),put_wycena($A127, J$6,J$3, J$4,J$5)) -> -25.6019395 | K127: =IF(J$8="d",1,-1)*(IF(J$7="c",MAX($A127-J$6,0),MAX(J$6-$A127,0))-J$11*((1+J$3)^J$5)) -> -7.958560933 | L127: =IF(L$8="d",1,-1)*IF(L$7="c",call_wycena($A127, L$6,L$3, L$4,L$5),put_wycena($A127, L$6,L$3, L$4,L$5)) -> -25.6019395 | M127: =IF(L$8="d",1,-1)*(IF(L$7="c",MAX($A127-L$6,0),MAX(L$6-$A127,0))-L$11*((1+L$3)^L$5)) -> -7.958560933 | O127: 27.31766458 | P127: 1.545879221
A128: 127.5 | B128: =IF(B$8="d",1,-1)*IF(B$7="c",call_wycena($A128, B$6,B$3, B$4,B$5),put_wycena($A128, B$6,B$3, B$4,B$5)) -> 1.673141838 | C128: -6.412681712 | D128: =IF(D$8="d",1,-1)*IF(D$7="c",call_wycena($A128, D$6,D$3, D$4,D$5),put_wycena($A128, D$6,D$3, D$4,D$5)) -> 25.98130668 | E128: 8.458560933 | F128: =IF(F$8="d",1,-1)*IF(F$7="c",call_wycena($A128, F$6,F$3, F$4,F$5),put_wycena($A128, F$6,F$3, F$4,F$5)) -> 0.658990659 | G128: =IF(F$8="d",1,-1)*(IF(F$7="c",MAX($A128-F$6,0),MAX(F$6-$A128,0))-F$11*((1+F$3)^F$5)) -> -3.176317978 | H128: =IF(H$8="d",1,-1)*IF(H$7="c",call_wycena($A128, H$6,H$3, H$4,H$5),put_wycena($A128, H$6,H$3, H$4,H$5)) -> -25.98130668 | I128: =IF(H$8="d",1,-1)*(IF(H$7="c",MAX($A128-H$6,0),MAX(H$6-$A128,0))-H$11*((1+H$3)^H$5)) -> -8.458560933 | J128: =IF(J$8="d",1,-1)*IF(J$7="c",call_wycena($A128, J$6,J$3, J$4,J$5),put_wycena($A128, J$6,J$3, J$4,J$5)) -> -25.98130668 | K128: =IF(J$8="d",1,-1)*(IF(J$7="c",MAX($A128-J$6,0),MAX(J$6-$A128,0))-J$11*((1+J$3)^J$5)) -> -8.458560933 | L128: =IF(L$8="d",1,-1)*IF(L$7="c",call_wycena($A128, L$6,L$3, L$4,L$5),put_wycena($A128, L$6,L$3, L$4,L$5)) -> -25.98130668 | M128: =IF(L$8="d",1,-1)*(IF(L$7="c",MAX($A128-L$6,0),MAX(L$6-$A128,0))-L$11*((1+L$3)^L$5)) -> -8.458560933 | O128: 27.65444851 | P128: 2.045879221
A129: 128 | B129: =IF(B$8="d",1,-1)*IF(B$7="c",call_wycena($A129, B$6,B$3, B$4,B$5),put_wycena($A129, B$6,B$3, B$4,B$5)) -> 1.631568036 | C129: -6.412681712 | D129: =IF(D$8="d",1,-1)*IF(D$7="c",call_wycena($A129, D$6,D$3, D$4,D$5),put_wycena($A129, D$6,D$3, D$4,D$5)) -> 26.36270215 | E129: 8.958560933 | F129: =IF(F$8="d",1,-1)*IF(F$7="c",call_wycena($A129, F$6,F$3, F$4,F$5),put_wycena($A129, F$6,F$3, F$4,F$5)) -> 0.6400909438 | G129: =IF(F$8="d",1,-1)*(IF(F$7="c",MAX($A129-F$6,0),MAX(F$6-$A129,0))-F$11*((1+F$3)^F$5)) -> -3.176317978 | H129: =IF(H$8="d",1,-1)*IF(H$7="c",call_wycena($A129, H$6,H$3, H$4,H$5),put_wycena($A129, H$6,H$3, H$4,H$5)) -> -26.36270215 | I129: =IF(H$8="d",1,-1)*(IF(H$7="c",MAX($A129-H$6,0),MAX(H$6-$A129,0))-H$11*((1+H$3)^H$5)) -> -8.958560933 | J129: =IF(J$8="d",1,-1)*IF(J$7="c",call_wycena($A129, J$6,J$3, J$4,J$5),put_wycena($A129, J$6,J$3, J$4,J$5)) -> -26.36270215 | K129: =IF(J$8="d",1,-1)*(IF(J$7="c",MAX($A129-J$6,0),MAX(J$6-$A129,0))-J$11*((1+J$3)^J$5)) -> -8.958560933 | L129: =IF(L$8="d",1,-1)*IF(L$7="c",call_wycena($A129, L$6,L$3, L$4,L$5),put_wycena($A129, L$6,L$3, L$4,L$5)) -> -26.36270215 | M129: =IF(L$8="d",1,-1)*(IF(L$7="c",MAX($A129-L$6,0),MAX(L$6-$A129,0))-L$11*((1+L$3)^L$5)) -> -8.958560933 | O129: 27.99427018 | P129: 2.545879221
A130: 128.5 | B130: =IF(B$8="d",1,-1)*IF(B$7="c",call_wycena($A130, B$6,B$3, B$4,B$5),put_wycena($A130, B$6,B$3, B$4,B$5)) -> 1.590981739 | C130: -6.412681712 | D130: =IF(D$8="d",1,-1)*IF(D$7="c",call_wycena($A130, D$6,D$3, D$4,D$5),put_wycena($A130, D$6,D$3, D$4,D$5)) -> 26.74609922 | E130: 9.458560933 | F130: =IF(F$8="d",1,-1)*IF(F$7="c",call_wycena($A130, F$6,F$3, F$4,F$5),put_wycena($A130, F$6,F$3, F$4,F$5)) -> 0.6217208253 | G130: =IF(F$8="d",1,-1)*(IF(F$7="c",MAX($A130-F$6,0),MAX(F$6-$A130,0))-F$11*((1+F$3)^F$5)) -> -3.176317978 | H130: =IF(H$8="d",1,-1)*IF(H$7="c",call_wycena($A130, H$6,H$3, H$4,H$5),put_wycena($A130, H$6,H$3, H$4,H$5)) -> -26.74609922 | I130: =IF(H$8="d",1,-1)*(IF(H$7="c",MAX($A130-H$6,0),MAX(H$6-$A130,0))-H$11*((1+H$3)^H$5)) -> -9.458560933 | J130: =IF(J$8="d",1,-1)*IF(J$7="c",call_wycena($A130, J$6,J$3, J$4,J$5),put_wycena($A130, J$6,J$3, J$4,J$5)) -> -26.74609922 | K130: =IF(J$8="d",1,-1)*(IF(J$7="c",MAX($A130-J$6,0),MAX(J$6-$A130,0))-J$11*((1+J$3)^J$5)) -> -9.458560933 | L130: =IF(L$8="d",1,-1)*IF(L$7="c",call_wycena($A130, L$6,L$3, L$4,L$5),put_wycena($A130, L$6,L$3, L$4,L$5)) -> -26.74609922 | M130: =IF(L$8="d",1,-1)*(IF(L$7="c",MAX($A130-L$6,0),MAX(L$6-$A130,0))-L$11*((1+L$3)^L$5)) -> -9.458560933 | O130: 28.33708096 | P130: 3.045879221
A131: 129 | B131: =IF(B$8="d",1,-1)*IF(B$7="c",call_wycena($A131, B$6,B$3, B$4,B$5),put_wycena($A131, B$6,B$3, B$4,B$5)) -> 1.551361404 | C131: -6.412681712 | D131: =IF(D$8="d",1,-1)*IF(D$7="c",call_wycena($A131, D$6,D$3, D$4,D$5),put_wycena($A131, D$6,D$3, D$4,D$5)) -> 27.13147132 | E131: 9.958560933 | F131: =IF(F$8="d",1,-1)*IF(F$7="c",call_wycena($A131, F$6,F$3, F$4,F$5),put_wycena($A131, F$6,F$3, F$4,F$5)) -> 0.6038661141 | G131: =IF(F$8="d",1,-1)*(IF(F$7="c",MAX($A131-F$6,0),MAX(F$6-$A131,0))-F$11*((1+F$3)^F$5)) -> -3.176317978 | H131: =IF(H$8="d",1,-1)*IF(H$7="c",call_wycena($A131, H$6,H$3, H$4,H$5),put_wycena($A131, H$6,H$3, H$4,H$5)) -> -27.13147132 | I131: =IF(H$8="d",1,-1)*(IF(H$7="c",MAX($A131-H$6,0),MAX(H$6-$A131,0))-H$11*((1+H$3)^H$5)) -> -9.958560933 | J131: =IF(J$8="d",1,-1)*IF(J$7="c",call_wycena($A131, J$6,J$3, J$4,J$5),put_wycena($A131, J$6,J$3, J$4,J$5)) -> -27.13147132 | K131: =IF(J$8="d",1,-1)*(IF(J$7="c",MAX($A131-J$6,0),MAX(J$6-$A131,0))-J$11*((1+J$3)^J$5)) -> -9.958560933 | L131: =IF(L$8="d",1,-1)*IF(L$7="c",call_wycena($A131, L$6,L$3, L$4,L$5),put_wycena($A131, L$6,L$3, L$4,L$5)) -> -27.13147132 | M131: =IF(L$8="d",1,-1)*(IF(L$7="c",MAX($A131-L$6,0),MAX(L$6-$A131,0))-L$11*((1+L$3)^L$5)) -> -9.958560933 | O131: 28.68283273 | P131: 3.545879221
A132: 129.5 | B132: =IF(B$8="d",1,-1)*IF(B$7="c",call_wycena($A132, B$6,B$3, B$4,B$5),put_wycena($A132, B$6,B$3, B$4,B$5)) -> 1.512685883 | C132: -6.412681712 | D132: =IF(D$8="d",1,-1)*IF(D$7="c",call_wycena($A132, D$6,D$3, D$4,D$5),put_wycena($A132, D$6,D$3, D$4,D$5)) -> 27.51879202 | E132: 10.45856093 | F132: =IF(F$8="d",1,-1)*IF(F$7="c",call_wycena($A132, F$6,F$3, F$4,F$5),put_wycena($A132, F$6,F$3, F$4,F$5)) -> 0.5865129699 | G132: =IF(F$8="d",1,-1)*(IF(F$7="c",MAX($A132-F$6,0),MAX(F$6-$A132,0))-F$11*((1+F$3)^F$5)) -> -3.176317978 | H132: =IF(H$8="d",1,-1)*IF(H$7="c",call_wycena($A132, H$6,H$3, H$4,H$5),put_wycena($A132, H$6,H$3, H$4,H$5)) -> -27.51879202 | I132: =IF(H$8="d",1,-1)*(IF(H$7="c",MAX($A132-H$6,0),MAX(H$6-$A132,0))-H$11*((1+H$3)^H$5)) -> -10.45856093 | J132: =IF(J$8="d",1,-1)*IF(J$7="c",call_wycena($A132, J$6,J$3, J$4,J$5),put_wycena($A132, J$6,J$3, J$4,J$5)) -> -27.51879202 | K132: =IF(J$8="d",1,-1)*(IF(J$7="c",MAX($A132-J$6,0),MAX(J$6-$A132,0))-J$11*((1+J$3)^J$5)) -> -10.45856093 | L132: =IF(L$8="d",1,-1)*IF(L$7="c",call_wycena($A132, L$6,L$3, L$4,L$5),put_wycena($A132, L$6,L$3, L$4,L$5)) -> -27.51879202 | M132: =IF(L$8="d",1,-1)*(IF(L$7="c",MAX($A132-L$6,0),MAX(L$6-$A132,0))-L$11*((1+L$3)^L$5)) -> -10.45856093 | O132: 29.0314779 | P132: 4.045879221
A133: 130 | B133: =IF(B$8="d",1,-1)*IF(B$7="c",call_wycena($A133, B$6,B$3, B$4,B$5),put_wycena($A133, B$6,B$3, B$4,B$5)) -> 1.474934414 | C133: -6.412681712 | D133: =IF(D$8="d",1,-1)*IF(D$7="c",call_wycena($A133, D$6,D$3, D$4,D$5),put_wycena($A133, D$6,D$3, D$4,D$5)) -> 27.908035 | E133: 10.95856093 | F133: =IF(F$8="d",1,-1)*IF(F$7="c",call_wycena($A133, F$6,F$3, F$4,F$5),put_wycena($A133, F$6,F$3, F$4,F$5)) -> 0.569647894 | G133: =IF(F$8="d",1,-1)*(IF(F$7="c",MAX($A133-F$6,0),MAX(F$6-$A133,0))-F$11*((1+F$3)^F$5)) -> -3.176317978 | H133: =IF(H$8="d",1,-1)*IF(H$7="c",call_wycena($A133, H$6,H$3, H$4,H$5),put_wycena($A133, H$6,H$3, H$4,H$5)) -> -27.908035 | I133: =IF(H$8="d",1,-1)*(IF(H$7="c",MAX($A133-H$6,0),MAX(H$6-$A133,0))-H$11*((1+H$3)^H$5)) -> -10.95856093 | J133: =IF(J$8="d",1,-1)*IF(J$7="c",call_wycena($A133, J$6,J$3, J$4,J$5),put_wycena($A133, J$6,J$3, J$4,J$5)) -> -27.908035 | K133: =IF(J$8="d",1,-1)*(IF(J$7="c",MAX($A133-J$6,0),MAX(J$6-$A133,0))-J$11*((1+J$3)^J$5)) -> -10.95856093 | L133: =IF(L$8="d",1,-1)*IF(L$7="c",call_wycena($A133, L$6,L$3, L$4,L$5),put_wycena($A133, L$6,L$3, L$4,L$5)) -> -27.908035 | M133: =IF(L$8="d",1,-1)*(IF(L$7="c",MAX($A133-L$6,0),MAX(L$6-$A133,0))-L$11*((1+L$3)^L$5)) -> -10.95856093 | O133: 29.38296941 | P133: 4.545879221

Sheet Arkusz3
B1: opcja 1 | C1: opcja 2 | D1: opcja 3 | E1: opcja 4 | F1: opcja 5 | G1: opcja 6
A2: r | B2: 0.02 | C2: 0.02 | D2: 0.02 | E2: 0.02 | F2: 0.02 | G2: 0.02
A3: sigma | B3: 0.3 | C3: 0.3 | D3: 0.3 | E3: 0.3 | F3: 0.3 | G3: 0.3
A4: Czas do wykonania | B4: 1 | C4: 1 | D4: 1 | E4: 1 | F4: 1 | G4: 1
A5: Cena wykonania | B5: 90 | C5: 110 | D5: 80 | E5: 110 | F5: 110 | G5: 110
A6: Call/put | B6: p | C6: c | D6: p | E6: c | F6: c | G6: c
A7: długa/krótka | B7: d | C7: d | D7: d | E7: k | F7: k | G7: k
A8: w portfelu | B8: 1 | C8: 1 | D8: 0 | E8: 0 | F8: 0 | G8: 0
A25: Uwaga: wykresy przedstawiają wynik po uwzględnieniu premii opcyjnej
